Workbook

Sheet メニュー
A2: ファイナンス ポータル Finance Portal 資金繰り表 管理ソフト版
B8: 事業所名： | D8: =IF(科目!W13="","",科目!W13) -> K-Oneコンサルティング
B9: 決算期： | D9: =IF(科目!W16="","",科目!W16) -> 12月
D11: メニュー
D13: 資金繰り表
D14: 日繰り表
D15: 入出金入力
D18: 入出金データクリア
D20: ver: | E20: =科目!W19 -> 1.04
C22: Excel 2013以降用
C24: 今日の収支: | E24: 2018-05-30T23:06:40.810
C25: 繰越現金 | E25: 910696
C26: 経常収支 | E26: -2192
C27: 経常外収支 | E27: 0
C28: 財務収支 | E28: 0
C29: 翌日繰越現金 | E29: 908504
B30: ※収支予定はこのファイルを開いたときのみ更新されます。
C36: =科目!W22 -> ©K-Oneコンサルティング

Sheet 資金繰り表
A1: =科目!W13 -> K-Oneコンサルティング
A2: 資金繰り表 | J2: (円) | P2: (円)
E3: 2018-01-01 | F3: =DATE(YEAR($E$3),MONTH($E$3)+1,DAY($E$3)) -> 2018-02-01 | G3: =DATE(YEAR($E$3),MONTH($E$3)+2,DAY($E$3)) -> 2018-03-01 | H3: =DATE(YEAR($E$3),MONTH($E$3)+3,DAY($E$3)) -> 2018-04-01 | I3: =DATE(YEAR($E$3),MONTH($E$3)+4,DAY($E$3)) -> 2018-05-01 | J3: =DATE(YEAR($E$3),MONTH($E$3)+5,DAY($E$3)) -> 2018-06-01 | K3: =DATE(YEAR($E$3),MONTH($E$3)+6,DAY($E$3)) -> 2018-07-01 | L3: =DATE(YEAR($E$3),MONTH($E$3)+7,DAY($E$3)) -> 2018-08-01 | M3: =DATE(YEAR($E$3),MONTH($E$3)+8,DAY($E$3)) -> 2018-09-01 | N3: =DATE(YEAR($E$3),MONTH($E$3)+9,DAY($E$3)) -> 2018-10-01 | O3: =DATE(YEAR($E$3),MONTH($E$3)+10,DAY($E$3)) -> 2018-11-01 | P3: =DATE(YEAR($E$3),MONTH($E$3)+11,DAY($E$3)) -> 2018-12-01 | Q3: =DATE(YEAR($E$3),MONTH($E$3)+12,DAY($E$3)) -> 2019-01-01
A4: 前月繰越現金・当座資金（A) | E4: 1000000 | F4: =E52+E53 -> 974676 | G4: =F52+F53 -> 978162 | H4: =G52+G53 -> 909940 | I4: 908618 | J4: 905668 | K4: 892643 | L4: 881786 | M4: 872708 | N4: 867870 | O4: 857336 | P4: 839044
A5: 経常収支 | B5: 収入 | C5: (1) | D5: 現金売上 | E5: =SUMIFS(入出金tbl[金額],入出金tbl[内 容],$D5,入出金tbl[年月日],">="&E$3,入出金tbl[年月日],"<"&F$3) -> 2755 | F5: =SUMIFS(入出金tbl[金額],入出金tbl[内 容],$D5,入出金tbl[年月日],">="&F$3,入出金tbl[年月日],"<"&G$3) -> 3245 | G5: =SUMIFS(入出金tbl[金額],入出金tbl[内 容],$D5,入出金tbl[年月日],">="&G$3,入出金tbl[年月日],"<"&H$3) -> 1421 | H5: =SUMIFS(入出金tbl[金額],入出金tbl[内 容],$D5,入出金tbl[年月日],">="&H$3,入出金tbl[年月日],"<"&I$3) -> 1745 | I5: =SUMIFS(入出金tbl[金額],入出金tbl[内 容],$D5,入出金tbl[年月日],">="&I$3,入出金tbl[年月日],"<"&J$3) -> 1943 | J5: =SUMIFS(入出金tbl[金額],入出金tbl[内 容],$D5,入出金tbl[年月日],">="&J$3,入出金tbl[年月日],"<"&K$3) -> 1901 | K5: =SUMIFS(入出金tbl[金額],入出金tbl[内 容],$D5,入出金tbl[年月日],">="&K$3,入出金tbl[年月日],"<"&L$3) -> 1329 | L5: =SUMIFS(入出金tbl[金額],入出金tbl[内 容],$D5,入出金tbl[年月日],">="&L$3,入出金tbl[年月日],"<"&M$3) -> 1433 | M5: =SUMIFS(入出金tbl[金額],入出金tbl[内 容],$D5,入出金tbl[年月日],">="&M$3,入出金tbl[年月日],"<"&N$3) -> 1109 | N5: =SUMIFS(入出金tbl[金額],入出金tbl[内 容],$D5,入出金tbl[年月日],">="&N$3,入出金tbl[年月日],"<"&O$3) -> 2060 | O5: =SUMIFS(入出金tbl[金額],入出金tbl[内 容],$D5,入出金tbl[年月日],">="&O$3,入出金tbl[年月日],"<"&P$3) -> 1078 | P5: =SUMIFS(入出金tbl[金額],入出金tbl[内 容],$D5,入出金tbl[年月日],">="&P$3,入出金tbl[年月日],"<"&Q$3) -> 906
C6: (2) | D6: 売掛金回収 | E6: =SUMIFS(入出金tbl[金額],入出金tbl[内 容],$D6,入出金tbl[年月日],">="&E$3,入出金tbl[年月日],"<"&F$3) -> 814 | F6: =SUMIFS(入出金tbl[金額],入出金tbl[内 容],$D6,入出金tbl[年月日],">="&F$3,入出金tbl[年月日],"<"&G$3) -> 1385 | G6: =SUMIFS(入出金tbl[金額],入出金tbl[内 容],$D6,入出金tbl[年月日],">="&G$3,入出金tbl[年月日],"<"&H$3) -> 866 | H6: =SUMIFS(入出金tbl[金額],入出金tbl[内 容],$D6,入出金tbl[年月日],">="&H$3,入出金tbl[年月日],"<"&I$3) -> 6972 | I6: =SUMIFS(入出金tbl[金額],入出金tbl[内 容],$D6,入出金tbl[年月日],">="&I$3,入出金tbl[年月日],"<"&J$3) -> 998 | J6: =SUMIFS(入出金tbl[金額],入出金tbl[内 容],$D6,入出金tbl[年月日],">="&J$3,入出金tbl[年月日],"<"&K$3) -> 2725 | K6: =SUMIFS(入出金tbl[金額],入出金tbl[内 容],$D6,入出金tbl[年月日],">="&K$3,入出金tbl[年月日],"<"&L$3) -> 2677 | L6: =SUMIFS(入出金tbl[金額],入出金tbl[内 容],$D6,入出金tbl[年月日],">="&L$3,入出金tbl[年月日],"<"&M$3) -> 2515 | M6: =SUMIFS(入出金tbl[金額],入出金tbl[内 容],$D6,入出金tbl[年月日],">="&M$3,入出金tbl[年月日],"<"&N$3) -> 2790 | N6: =SUMIFS(入出金tbl[金額],入出金tbl[内 容],$D6,入出金tbl[年月日],">="&N$3,入出金tbl[年月日],"<"&O$3) -> 1553 | O6: =SUMIFS(入出金tbl[金額],入出金tbl[内 容],$D6,入出金tbl[年月日],">="&O$3,入出金tbl[年月日],"<"&P$3) -> 2567 | P6: =SUMIFS(入出金tbl[金額],入出金tbl[内 容],$D6,入出金tbl[年月日],">="&P$3,入出金tbl[年月日],"<"&Q$3) -> 2575
C7: (3) | D7: 受取手形回収 | E7: =SUMIFS(入出金tbl[金額],入出金tbl[内 容],$D7,入出金tbl[年月日],">="&E$3,入出金tbl[年月日],"<"&F$3) -> 1413 | F7: =SUMIFS(入出金tbl[金額],入出金tbl[内 容],$D7,入出金tbl[年月日],">="&F$3,入出金tbl[年月日],"<"&G$3) -> 1659 | G7: =SUMIFS(入出金tbl[金額],入出金tbl[内 容],$D7,入出金tbl[年月日],">="&G$3,入出金tbl[年月日],"<"&H$3) -> 1917 | H7: =SUMIFS(入出金tbl[金額],入出金tbl[内 容],$D7,入出金tbl[年月日],">="&H$3,入出金tbl[年月日],"<"&I$3) -> 1648 | I7: =SUMIFS(入出金tbl[金額],入出金tbl[内 容],$D7,入出金tbl[年月日],">="&I$3,入出金tbl[年月日],"<"&J$3) -> 1943 | J7: =SUMIFS(入出金tbl[金額],入出金tbl[内 容],$D7,入出金tbl[年月日],">="&J$3,入出金tbl[年月日],"<"&K$3) -> 2391 | K7: =SUMIFS(入出金tbl[金額],入出金tbl[内 容],$D7,入出金tbl[年月日],">="&K$3,入出金tbl[年月日],"<"&L$3) -> 993 | L7: =SUMIFS(入出金tbl[金額],入出金tbl[内 容],$D7,入出金tbl[年月日],">="&L$3,入出金tbl[年月日],"<"&M$3) -> 1148 | M7: =SUMIFS(入出金tbl[金額],入出金tbl[内 容],$D7,入出金tbl[年月日],">="&M$3,入出金tbl[年月日],"<"&N$3) -> 2899 | N7: =SUMIFS(入出金tbl[金額],入出金tbl[内 容],$D7,入出金tbl[年月日],">="&N$3,入出金tbl[年月日],"<"&O$3) -> 1497 | O7: =SUMIFS(入出金tbl[金額],入出金tbl[内 容],$D7,入出金tbl[年月日],">="&O$3,入出金tbl[年月日],"<"&P$3) -> 1916 | P7: =SUMIFS(入出金tbl[金額],入出金tbl[内 容],$D7,入出金tbl[年月日],">="&P$3,入出金tbl[年月日],"<"&Q$3) -> 1545
C8: (4) | D8: 手形割引 | E8: =SUMIFS(入出金tbl[金額],入出金tbl[内 容],$D8,入出金tbl[年月日],">="&E$3,入出金tbl[年月日],"<"&F$3) -> 1195 | F8: =SUMIFS(入出金tbl[金額],入出金tbl[内 容],$D8,入出金tbl[年月日],">="&F$3,入出金tbl[年月日],"<"&G$3) -> 1465 | G8: =SUMIFS(入出金tbl[金額],入出金tbl[内 容],$D8,入出金tbl[年月日],">="&G$3,入出金tbl[年月日],"<"&H$3) -> 2282 | H8: =SUMIFS(入出金tbl[金額],入出金tbl[内 容],$D8,入出金tbl[年月日],">="&H$3,入出金tbl[年月日],"<"&I$3) -> 2377 | I8: =SUMIFS(入出金tbl[金額],入出金tbl[内 容],$D8,入出金tbl[年月日],">="&I$3,入出金tbl[年月日],"<"&J$3) -> 677 | J8: =SUMIFS(入出金tbl[金額],入出金tbl[内 容],$D8,入出金tbl[年月日],">="&J$3,入出金tbl[年月日],"<"&K$3) -> 2246 | K8: =SUMIFS(入出金tbl[金額],入出金tbl[内 容],$D8,入出金tbl[年月日],">="&K$3,入出金tbl[年月日],"<"&L$3) -> 2765 | L8: =SUMIFS(入出金tbl[金額],入出金tbl[内 容],$D8,入出金tbl[年月日],">="&L$3,入出金tbl[年月日],"<"&M$3) -> 2840 | M8: =SUMIFS(入出金tbl[金額],入出金tbl[内 容],$D8,入出金tbl[年月日],">="&M$3,入出金tbl[年月日],"<"&N$3) -> 2140 | N8: =SUMIFS(入出金tbl[金額],入出金tbl[内 容],$D8,入出金tbl[年月日],">="&N$3,入出金tbl[年月日],"<"&O$3) -> 2017 | O8: =SUMIFS(入出金tbl[金額],入出金tbl[内 容],$D8,入出金tbl[年月日],">="&O$3,入出金tbl[年月日],"<"&P$3) -> 2998 | P8: =SUMIFS(入出金tbl[金額],入出金tbl[内 容],$D8,入出金tbl[年月日],">="&P$3,入出金tbl[年月日],"<"&Q$3) -> 1290
C9: (5) | D9: その他収入 | E9: =SUMIFS(入出金tbl[金額],入出金tbl[内 容],$D9,入出金tbl[年月日],">="&E$3,入出金tbl[年月日],"<"&F$3) -> 527 | F9: =SUMIFS(入出金tbl[金額],入出金tbl[内 容],$D9,入出金tbl[年月日],">="&F$3,入出金tbl[年月日],"<"&G$3) -> 2578 | G9: =SUMIFS(入出金tbl[金額],入出金tbl[内 容],$D9,入出金tbl[年月日],">="&G$3,入出金tbl[年月日],"<"&H$3) -> 2661 | H9: =SUMIFS(入出金tbl[金額],入出金tbl[内 容],$D9,入出金tbl[年月日],">="&H$3,入出金tbl[年月日],"<"&I$3) -> 1708 | I9: =SUMIFS(入出金tbl[金額],入出金tbl[内 容],$D9,入出金tbl[年月日],">="&I$3,入出金tbl[年月日],"<"&J$3) -> 384 | J9: =SUMIFS(入出金tbl[金額],入出金tbl[内 容],$D9,入出金tbl[年月日],">="&J$3,入出金tbl[年月日],"<"&K$3) -> 1288 | K9: =SUMIFS(入出金tbl[金額],入出金tbl[内 容],$D9,入出金tbl[年月日],">="&K$3,入出金tbl[年月日],"<"&L$3) -> 2519 | L9: =SUMIFS(入出金tbl[金額],入出金tbl[内 容],$D9,入出金tbl[年月日],">="&L$3,入出金tbl[年月日],"<"&M$3) -> 1046 | M9: =SUMIFS(入出金tbl[金額],入出金tbl[内 容],$D9,入出金tbl[年月日],">="&M$3,入出金tbl[年月日],"<"&N$3) -> 4008 | N9: =SUMIFS(入出金tbl[金額],入出金tbl[内 容],$D9,入出金tbl[年月日],">="&N$3,入出金tbl[年月日],"<"&O$3) -> 1972 | O9: =SUMIFS(入出金tbl[金額],入出金tbl[内 容],$D9,入出金tbl[年月日],">="&O$3,入出金tbl[年月日],"<"&P$3) -> 1678 | P9: =SUMIFS(入出金tbl[金額],入出金tbl[内 容],$D9,入出金tbl[年月日],">="&P$3,入出金tbl[年月日],"<"&Q$3) -> 1483
C10: (6) | D10: ---------- | E10: =SUMIFS(入出金tbl[金額],入出金tbl[内 容],$D10,入出金tbl[年月日],">="&E$3,入出金tbl[年月日],"<"&F$3) -> 0 | F10: =SUMIFS(入出金tbl[金額],入出金tbl[内 容],$D10,入出金tbl[年月日],">="&F$3,入出金tbl[年月日],"<"&G$3) -> 0 | G10: =SUMIFS(入出金tbl[金額],入出金tbl[内 容],$D10,入出金tbl[年月日],">="&G$3,入出金tbl[年月日],"<"&H$3) -> 0 | H10: =SUMIFS(入出金tbl[金額],入出金tbl[内 容],$D10,入出金tbl[年月日],">="&H$3,入出金tbl[年月日],"<"&I$3) -> 0 | I10: =SUMIFS(入出金tbl[金額],入出金tbl[内 容],$D10,入出金tbl[年月日],">="&I$3,入出金tbl[年月日],"<"&J$3) -> 0 | J10: =SUMIFS(入出金tbl[金額],入出金tbl[内 容],$D10,入出金tbl[年月日],">="&J$3,入出金tbl[年月日],"<"&K$3) -> 0 | K10: =SUMIFS(入出金tbl[金額],入出金tbl[内 容],$D10,入出金tbl[年月日],">="&K$3,入出金tbl[年月日],"<"&L$3) -> 0 | L10: =SUMIFS(入出金tbl[金額],入出金tbl[内 容],$D10,入出金tbl[年月日],">="&L$3,入出金tbl[年月日],"<"&M$3) -> 0 | M10: =SUMIFS(入出金tbl[金額],入出金tbl[内 容],$D10,入出金tbl[年月日],">="&M$3,入出金tbl[年月日],"<"&N$3) -> 0 | N10: =SUMIFS(入出金tbl[金額],入出金tbl[内 容],$D10,入出金tbl[年月日],">="&N$3,入出金tbl[年月日],"<"&O$3) -> 0 | O10: =SUMIFS(入出金tbl[金額],入出金tbl[内 容],$D10,入出金tbl[年月日],">="&O$3,入出金tbl[年月日],"<"&P$3) -> 0 | P10: =SUMIFS(入出金tbl[金額],入出金tbl[内 容],$D10,入出金tbl[年月日],">="&P$3,入出金tbl[年月日],"<"&Q$3) -> 0
D11: 収入合計（B) | E11: =SUM(E5:E10) -> 6704 | F11: =SUM(F5:F10) -> 10332 | G11: 9147 | H11: 14450 | I11: 5945 | J11: 10551 | K11: 10283 | L11: 8982 | M11: 12946 | N11: 9099 | O11: 10237 | P11: 7799
B12: 支出 | C12: (1) | D12: 現金仕入 | E12: =SUMIFS(入出金tbl[金額],入出金tbl[内 容],$D12,入出金tbl[年月日],">="&E$3,入出金tbl[年月日],"<"&F$3) -> 868 | F12: =SUMIFS(入出金tbl[金額],入出金tbl[内 容],$D12,入出金tbl[年月日],">="&F$3,入出金tbl[年月日],"<"&G$3) -> 1845 | G12: =SUMIFS(入出金tbl[金額],入出金tbl[内 容],$D12,入出金tbl[年月日],">="&G$3,入出金tbl[年月日],"<"&H$3) -> 3607 | H12: =SUMIFS(入出金tbl[金額],入出金tbl[内 容],$D12,入出金tbl[年月日],">="&H$3,入出金tbl[年月日],"<"&I$3) -> 3761 | I12: =SUMIFS(入出金tbl[金額],入出金tbl[内 容],$D12,入出金tbl[年月日],">="&I$3,入出金tbl[年月日],"<"&J$3) -> 1738 | J12: =SUMIFS(入出金tbl[金額],入出金tbl[内 容],$D12,入出金tbl[年月日],">="&J$3,入出金tbl[年月日],"<"&K$3) -> 962 | K12: =SUMIFS(入出金tbl[金額],入出金tbl[内 容],$D12,入出金tbl[年月日],">="&K$3,入出金tbl[年月日],"<"&L$3) -> 1950 | L12: =SUMIFS(入出金tbl[金額],入出金tbl[内 容],$D12,入出金tbl[年月日],">="&L$3,入出金tbl[年月日],"<"&M$3) -> 1464 | M12: =SUMIFS(入出金tbl[金額],入出金tbl[内 容],$D12,入出金tbl[年月日],">="&M$3,入出金tbl[年月日],"<"&N$3) -> 1986 | N12: =SUMIFS(入出金tbl[金額],入出金tbl[内 容],$D12,入出金tbl[年月日],">="&N$3,入出金tbl[年月日],"<"&O$3) -> 1847 | O12: =SUMIFS(入出金tbl[金額],入出金tbl[内 容],$D12,入出金tbl[年月日],">="&O$3,入出金tbl[年月日],"<"&P$3) -> 976 | P12: =SUMIFS(入出金tbl[金額],入出金tbl[内 容],$D12,入出金tbl[年月日],">="&P$3,入出金tbl[年月日],"<"&Q$3) -> 2019
C13: (2) | D13: 買掛金支払 | E13: =SUMIFS(入出金tbl[金額],入出金tbl[内 容],$D13,入出金tbl[年月日],">="&E$3,入出金tbl[年月日],"<"&F$3) -> 692 | F13: =SUMIFS(入出金tbl[金額],入出金tbl[内 容],$D13,入出金tbl[年月日],">="&F$3,入出金tbl[年月日],"<"&G$3) -> 1593 | G13: =SUMIFS(入出金tbl[金額],入出金tbl[内 容],$D13,入出金tbl[年月日],">="&G$3,入出金tbl[年月日],"<"&H$3) -> 3943 | H13: =SUMIFS(入出金tbl[金額],入出金tbl[内 容],$D13,入出金tbl[年月日],">="&H$3,入出金tbl[年月日],"<"&I$3) -> 701 | I13: =SUMIFS(入出金tbl[金額],入出金tbl[内 容],$D13,入出金tbl[年月日],">="&I$3,入出金tbl[年月日],"<"&J$3) -> 1195 | J13: =SUMIFS(入出金tbl[金額],入出金tbl[内 容],$D13,入出金tbl[年月日],">="&J$3,入出金tbl[年月日],"<"&K$3) -> 2191 | K13: =SUMIFS(入出金tbl[金額],入出金tbl[内 容],$D13,入出金tbl[年月日],">="&K$3,入出金tbl[年月日],"<"&L$3) -> 3290 | L13: =SUMIFS(入出金tbl[金額],入出金tbl[内 容],$D13,入出金tbl[年月日],">="&L$3,入出金tbl[年月日],"<"&M$3) -> 2111 | M13: =SUMIFS(入出金tbl[金額],入出金tbl[内 容],$D13,入出金tbl[年月日],">="&M$3,入出金tbl[年月日],"<"&N$3) -> 2159 | N13: =SUMIFS(入出金tbl[金額],入出金tbl[内 容],$D13,入出金tbl[年月日],">="&N$3,入出金tbl[年月日],"<"&O$3) -> 3371 | O13: =SUMIFS(入出金tbl[金額],入出金tbl[内 容],$D13,入出金tbl[年月日],">="&O$3,入出金tbl[年月日],"<"&P$3) -> 2252 | P13: =SUMIFS(入出金tbl[金額],入出金tbl[内 容],$D13,入出金tbl[年月日],">="&P$3,入出金tbl[年月日],"<"&Q$3) -> 1760
C14: (3) | D14: 手形支払 | E14: =SUMIFS(入出金tbl[金額],入出金tbl[内 容],$D14,入出金tbl[年月日],">="&E$3,入出金tbl[年月日],"<"&F$3) -> 1374 | F14: =SUMIFS(入出金tbl[金額],入出金tbl[内 容],$D14,入出金tbl[年月日],">="&F$3,入出金tbl[年月日],"<"&G$3) -> 926 | G14: =SUMIFS(入出金tbl[金額],入出金tbl[内 容],$D14,入出金tbl[年月日],">="&G$3,入出金tbl[年月日],"<"&H$3) -> 3754 | H14: =SUMIFS(入出金tbl[金額],入出金tbl[内 容],$D14,入出金tbl[年月日],">="&H$3,入出金tbl[年月日],"<"&I$3) -> 425 | I14: =SUMIFS(入出金tbl[金額],入出金tbl[内 容],$D14,入出金tbl[年月日],">="&I$3,入出金tbl[年月日],"<"&J$3) -> 1545 | J14: =SUMIFS(入出金tbl[金額],入出金tbl[内 容],$D14,入出金tbl[年月日],">="&J$3,入出金tbl[年月日],"<"&K$3) -> 1891 | K14: =SUMIFS(入出金tbl[金額],入出金tbl[内 容],$D14,入出金tbl[年月日],">="&K$3,入出金tbl[年月日],"<"&L$3) -> 2305 | L14: =SUMIFS(入出金tbl[金額],入出金tbl[内 容],$D14,入出金tbl[年月日],">="&L$3,入出金tbl[年月日],"<"&M$3) -> 1464 | M14: =SUMIFS(入出金tbl[金額],入出金tbl[内 容],$D14,入出金tbl[年月日],">="&M$3,入出金tbl[年月日],"<"&N$3) -> 2471 | N14: =SUMIFS(入出金tbl[金額],入出金tbl[内 容],$D14,入出金tbl[年月日],">="&N$3,入出金tbl[年月日],"<"&O$3) -> 2226 | O14: =SUMIFS(入出金tbl[金額],入出金tbl[内 容],$D14,入出金tbl[年月日],">="&O$3,入出金tbl[年月日],"<"&P$3) -> 2029 | P14: =SUMIFS(入出金tbl[金額],入出金tbl[内 容],$D14,入出金tbl[年月日],">="&P$3,入出金tbl[年月日],"<"&Q$3) -> 1677
C15: (4) | D15: 賃金・給与現金支払 | E15: =SUMIFS(入出金tbl[金額],入出金tbl[内 容],$D15,入出金tbl[年月日],">="&E$3,入出金tbl[年月日],"<"&F$3) -> 3783 | F15: =SUMIFS(入出金tbl[金額],入出金tbl[内 容],$D15,入出金tbl[年月日],">="&F$3,入出金tbl[年月日],"<"&G$3) -> 865 | G15: =SUMIFS(入出金tbl[金額],入出金tbl[内 容],$D15,入出金tbl[年月日],">="&G$3,入出金tbl[年月日],"<"&H$3) -> 4263 | H15: =SUMIFS(入出金tbl[金額],入出金tbl[内 容],$D15,入出金tbl[年月日],">="&H$3,入出金tbl[年月日],"<"&I$3) -> 465 | I15: =SUMIFS(入出金tbl[金額],入出金tbl[内 容],$D15,入出金tbl[年月日],">="&I$3,入出金tbl[年月日],"<"&J$3) -> 1492 | J15: =SUMIFS(入出金tbl[金額],入出金tbl[内 容],$D15,入出金tbl[年月日],">="&J$3,入出金tbl[年月日],"<"&K$3) -> 1347 | K15: =SUMIFS(入出金tbl[金額],入出金tbl[内 容],$D15,入出金tbl[年月日],">="&K$3,入出金tbl[年月日],"<"&L$3) -> 2907 | L15: =SUMIFS(入出金tbl[金額],入出金tbl[内 容],$D15,入出金tbl[年月日],">="&L$3,入出金tbl[年月日],"<"&M$3) -> 2111 | M15: =SUMIFS(入出金tbl[金額],入出金tbl[内 容],$D15,入出金tbl[年月日],">="&M$3,入出金tbl[年月日],"<"&N$3) -> 759 | N15: =SUMIFS(入出金tbl[金額],入出金tbl[内 容],$D15,入出金tbl[年月日],">="&N$3,入出金tbl[年月日],"<"&O$3) -> 3647 | O15: =SUMIFS(入出金tbl[金額],入出金tbl[内 容],$D15,入出金tbl[年月日],">="&O$3,入出金tbl[年月日],"<"&P$3) -> 1810 | P15: =SUMIFS(入出金tbl[金額],入出金tbl[内 容],$D15,入出金tbl[年月日],">="&P$3,入出金tbl[年月日],"<"&Q$3) -> 1400
C16: (5) | D16: 賞与支払い | E16: =SUMIFS(入出金tbl[金額],入出金tbl[内 容],$D16,入出金tbl[年月日],">="&E$3,入出金tbl[年月日],"<"&F$3) -> 2295 | F16: =SUMIFS(入出金tbl[金額],入出金tbl[内 容],$D16,入出金tbl[年月日],">="&F$3,入出金tbl[年月日],"<"&G$3) -> 972 | G16: =SUMIFS(入出金tbl[金額],入出金tbl[内 容],$D16,入出金tbl[年月日],">="&G$3,入出金tbl[年月日],"<"&H$3) -> 5656 | H16: =SUMIFS(入出金tbl[金額],入出金tbl[内 容],$D16,入出金tbl[年月日],">="&H$3,入出金tbl[年月日],"<"&I$3) -> 1140 | I16: =SUMIFS(入出金tbl[金額],入出金tbl[内 容],$D16,入出金tbl[年月日],">="&I$3,入出金tbl[年月日],"<"&J$3) -> 1421 | J16: =SUMIFS(入出金tbl[金額],入出金tbl[内 容],$D16,入出金tbl[年月日],">="&J$3,入出金tbl[年月日],"<"&K$3) -> 1908 | K16: =SUMIFS(入出金tbl[金額],入出金tbl[内 容],$D16,入出金tbl[年月日],">="&K$3,入出金tbl[年月日],"<"&L$3) -> 1733 | L16: =SUMIFS(入出金tbl[金額],入出金tbl[内 容],$D16,入出金tbl[年月日],">="&L$3,入出金tbl[年月日],"<"&M$3) -> 1309 | M16: =SUMIFS(入出金tbl[金額],入出金tbl[内 容],$D16,入出金tbl[年月日],">="&M$3,入出金tbl[年月日],"<"&N$3) -> 2241 | N16: =SUMIFS(入出金tbl[金額],入出金tbl[内 容],$D16,入出金tbl[年月日],">="&N$3,入出金tbl[年月日],"<"&O$3) -> 2245 | O16: =SUMIFS(入出金tbl[金額],入出金tbl[内 容],$D16,入出金tbl[年月日],">="&O$3,入出金tbl[年月日],"<"&P$3) -> 1351 | P16: =SUMIFS(入出金tbl[金額],入出金tbl[内 容],$D16,入出金tbl[年月日],">="&P$3,入出金tbl[年月日],"<"&Q$3) -> 702
C17: (6) | D17: 支払利息・割引料 | E17: =SUMIFS(入出金tbl[金額],入出金tbl[内 容],$D17,入出金tbl[年月日],">="&E$3,入出金tbl[年月日],"<"&F$3) -> 2569 | F17: =SUMIFS(入出金tbl[金額],入出金tbl[内 容],$D17,入出金tbl[年月日],">="&F$3,入出金tbl[年月日],"<"&G$3) -> 1987 | G17: =SUMIFS(入出金tbl[金額],入出金tbl[内 容],$D17,入出金tbl[年月日],">="&G$3,入出金tbl[年月日],"<"&H$3) -> 5255 | H17: =SUMIFS(入出金tbl[金額],入出金tbl[内 容],$D17,入出金tbl[年月日],">="&H$3,入出金tbl[年月日],"<"&I$3) -> 1001 | I17: =SUMIFS(入出金tbl[金額],入出金tbl[内 容],$D17,入出金tbl[年月日],">="&I$3,入出金tbl[年月日],"<"&J$3) -> 2427 | J17: =SUMIFS(入出金tbl[金額],入出金tbl[内 容],$D17,入出金tbl[年月日],">="&J$3,入出金tbl[年月日],"<"&K$3) -> 1210 | K17: =SUMIFS(入出金tbl[金額],入出金tbl[内 容],$D17,入出金tbl[年月日],">="&K$3,入出金tbl[年月日],"<"&L$3) -> 2314 | L17: =SUMIFS(入出金tbl[金額],入出金tbl[内 容],$D17,入出金tbl[年月日],">="&L$3,入出金tbl[年月日],"<"&M$3) -> 1855 | M17: =SUMIFS(入出金tbl[金額],入出金tbl[内 容],$D17,入出金tbl[年月日],">="&M$3,入出金tbl[年月日],"<"&N$3) -> 1665 | N17: =SUMIFS(入出金tbl[金額],入出金tbl[内 容],$D17,入出金tbl[年月日],">="&N$3,入出金tbl[年月日],"<"&O$3) -> 2983 | O17: =SUMIFS(入出金tbl[金額],入出金tbl[内 容],$D17,入出金tbl[年月日],">="&O$3,入出金tbl[年月日],"<"&P$3) -> 2896 | P17: =SUMIFS(入出金tbl[金額],入出金tbl[内 容],$D17,入出金tbl[年月日],">="&P$3,入出金tbl[年月日],"<"&Q$3) -> 1298
C18: (7) | D18: 諸経費現金支払 | E18: =SUMIFS(入出金tbl[金額],入出金tbl[内 容],$D18,入出金tbl[年月日],">="&E$3,入出金tbl[年月日],"<"&F$3) -> 1801 | F18: =SUMIFS(入出金tbl[金額],入出金tbl[内 容],$D18,入出金tbl[年月日],">="&F$3,入出金tbl[年月日],"<"&G$3) -> 1023 | G18: =SUMIFS(入出金tbl[金額],入出金tbl[内 容],$D18,入出金tbl[年月日],">="&G$3,入出金tbl[年月日],"<"&H$3) -> 5042 | H18: =SUMIFS(入出金tbl[金額],入出金tbl[内 容],$D18,入出金tbl[年月日],">="&H$3,入出金tbl[年月日],"<"&I$3) -> 1220 | I18: =SUMIFS(入出金tbl[金額],入出金tbl[内 容],$D18,入出金tbl[年月日],">="&I$3,入出金tbl[年月日],"<"&J$3) -> 2579 | J18: =SUMIFS(入出金tbl[金額],入出金tbl[内 容],$D18,入出金tbl[年月日],">="&J$3,入出金tbl[年月日],"<"&K$3) -> 1908 | K18: =SUMIFS(入出金tbl[金額],入出金tbl[内 容],$D18,入出金tbl[年月日],">="&K$3,入出金tbl[年月日],"<"&L$3) -> 2501 | L18: =SUMIFS(入出金tbl[金額],入出金tbl[内 容],$D18,入出金tbl[年月日],">="&L$3,入出金tbl[年月日],"<"&M$3) -> 1651 | M18: =SUMIFS(入出金tbl[金額],入出金tbl[内 容],$D18,入出金tbl[年月日],">="&M$3,入出金tbl[年月日],"<"&N$3) -> 2657 | N18: =SUMIFS(入出金tbl[金額],入出金tbl[内 容],$D18,入出金tbl[年月日],">="&N$3,入出金tbl[年月日],"<"&O$3) -> 2278 | O18: =SUMIFS(入出金tbl[金額],入出金tbl[内 容],$D18,入出金tbl[年月日],">="&O$3,入出金tbl[年月日],"<"&P$3) -> 2639 | P18: =SUMIFS(入出金tbl[金額],入出金tbl[内 容],$D18,入出金tbl[年月日],">="&P$3,入出金tbl[年月日],"<"&Q$3) -> 1601
C19: (8) | D19: ---------- | E19: =SUMIFS(入出金tbl[金額],入出金tbl[内 容],$D19,入出金tbl[年月日],">="&E$3,入出金tbl[年月日],"<"&F$3) -> 0 | F19: =SUMIFS(入出金tbl[金額],入出金tbl[内 容],$D19,入出金tbl[年月日],">="&F$3,入出金tbl[年月日],"<"&G$3) -> 0 | G19: =SUMIFS(入出金tbl[金額],入出金tbl[内 容],$D19,入出金tbl[年月日],">="&G$3,入出金tbl[年月日],"<"&H$3) -> 0 | H19: =SUMIFS(入出金tbl[金額],入出金tbl[内 容],$D19,入出金tbl[年月日],">="&H$3,入出金tbl[年月日],"<"&I$3) -> 0 | I19: =SUMIFS(入出金tbl[金額],入出金tbl[内 容],$D19,入出金tbl[年月日],">="&I$3,入出金tbl[年月日],"<"&J$3) -> 0 | J19: =SUMIFS(入出金tbl[金額],入出金tbl[内 容],$D19,入出金tbl[年月日],">="&J$3,入出金tbl[年月日],"<"&K$3) -> 0 | K19: =SUMIFS(入出金tbl[金額],入出金tbl[内 容],$D19,入出金tbl[年月日],">="&K$3,入出金tbl[年月日],"<"&L$3) -> 0 | L19: =SUMIFS(入出金tbl[金額],入出金tbl[内 容],$D19,入出金tbl[年月日],">="&L$3,入出金tbl[年月日],"<"&M$3) -> 0 | M19: =SUMIFS(入出金tbl[金額],入出金tbl[内 容],$D19,入出金tbl[年月日],">="&M$3,入出金tbl[年月日],"<"&N$3) -> 0 | N19: =SUMIFS(入出金tbl[金額],入出金tbl[内 容],$D19,入出金tbl[年月日],">="&N$3,入出金tbl[年月日],"<"&O$3) -> 0 | O19: =SUMIFS(入出金tbl[金額],入出金tbl[内 容],$D19,入出金tbl[年月日],">="&O$3,入出金tbl[年月日],"<"&P$3) -> 0 | P19: =SUMIFS(入出金tbl[金額],入出金tbl[内 容],$D19,入出金tbl[年月日],">="&P$3,入出金tbl[年月日],"<"&Q$3) -> 0
D20: 支出合計（C） | E20: =SUM(E12:E19) -> 13382 | F20: =SUM(F12:F19) -> 9211 | G20: 31520 | H20: 8713 | I20: 12397 | J20: 11417 | K20: 17000 | L20: 11965 | M20: 13938 | N20: 18597 | O20: 13953 | P20: 10457
B21: 差引過不足(D=B-C) | E21: =E11-E20 -> -6678 | F21: =F11-F20 -> 1121 | G21: -22373 | H21: 5737 | I21: -6452 | J21: -866 | K21: -6717 | L21: -2983 | M21: -992 | N21: -9498 | O21: -3716 | P21: -2658
A22: 経常外収支 | B22: 収入 | C22: (1) | D22: 固定資産等売却手取 | E22: =SUMIFS(入出金tbl[金額],入出金tbl[内 容],$D22,入出金tbl[年月日],">="&E$3,入出金tbl[年月日],"<"&F$3) -> 1242 | F22: =SUMIFS(入出金tbl[金額],入出金tbl[内 容],$D22,入出金tbl[年月日],">="&F$3,入出金tbl[年月日],"<"&G$3) -> 3004 | G22: =SUMIFS(入出金tbl[金額],入出金tbl[内 容],$D22,入出金tbl[年月日],">="&G$3,入出金tbl[年月日],"<"&H$3) -> 4896 | H22: =SUMIFS(入出金tbl[金額],入出金tbl[内 容],$D22,入出金tbl[年月日],">="&H$3,入出金tbl[年月日],"<"&I$3) -> 2817 | I22: =SUMIFS(入出金tbl[金額],入出金tbl[内 容],$D22,入出金tbl[年月日],">="&I$3,入出金tbl[年月日],"<"&J$3) -> 724 | J22: =SUMIFS(入出金tbl[金額],入出金tbl[内 容],$D22,入出金tbl[年月日],">="&J$3,入出金tbl[年月日],"<"&K$3) -> 1048 | K22: =SUMIFS(入出金tbl[金額],入出金tbl[内 容],$D22,入出金tbl[年月日],">="&K$3,入出金tbl[年月日],"<"&L$3) -> 2423 | L22: =SUMIFS(入出金tbl[金額],入出金tbl[内 容],$D22,入出金tbl[年月日],">="&L$3,入出金tbl[年月日],"<"&M$3) -> 1447 | M22: =SUMIFS(入出金tbl[金額],入出金tbl[内 容],$D22,入出金tbl[年月日],">="&M$3,入出金tbl[年月日],"<"&N$3) -> 1945 | N22: =SUMIFS(入出金tbl[金額],入出金tbl[内 容],$D22,入出金tbl[年月日],">="&N$3,入出金tbl[年月日],"<"&O$3) -> 2264 | O22: =SUMIFS(入出金tbl[金額],入出金tbl[内 容],$D22,入出金tbl[年月日],">="&O$3,入出金tbl[年月日],"<"&P$3) -> 3223 | P22: =SUMIFS(入出金tbl[金額],入出金tbl[内 容],$D22,入出金tbl[年月日],">="&P$3,入出金tbl[年月日],"<"&Q$3) -> 1145
C23: (2) | D23: 定期預金等解約 | E23: =SUMIFS(入出金tbl[金額],入出金tbl[内 容],$D23,入出金tbl[年月日],">="&E$3,入出金tbl[年月日],"<"&F$3) -> 1283 | F23: =SUMIFS(入出金tbl[金額],入出金tbl[内 容],$D23,入出金tbl[年月日],">="&F$3,入出金tbl[年月日],"<"&G$3) -> 2729 | G23: =SUMIFS(入出金tbl[金額],入出金tbl[内 容],$D23,入出金tbl[年月日],">="&G$3,入出金tbl[年月日],"<"&H$3) -> 5947 | H23: =SUMIFS(入出金tbl[金額],入出金tbl[内 容],$D23,入出金tbl[年月日],">="&H$3,入出金tbl[年月日],"<"&I$3) -> 1452 | I23: =SUMIFS(入出金tbl[金額],入出金tbl[内 容],$D23,入出金tbl[年月日],">="&I$3,入出金tbl[年月日],"<"&J$3) -> 1790 | J23: =SUMIFS(入出金tbl[金額],入出金tbl[内 容],$D23,入出金tbl[年月日],">="&J$3,入出金tbl[年月日],"<"&K$3) -> 1539 | K23: =SUMIFS(入出金tbl[金額],入出金tbl[内 容],$D23,入出金tbl[年月日],">="&K$3,入出金tbl[年月日],"<"&L$3) -> 2711 | L23: =SUMIFS(入出金tbl[金額],入出金tbl[内 容],$D23,入出金tbl[年月日],">="&L$3,入出金tbl[年月日],"<"&M$3) -> 2958 | M23: =SUMIFS(入出金tbl[金額],入出金tbl[内 容],$D23,入出金tbl[年月日],">="&M$3,入出金tbl[年月日],"<"&N$3) -> 3484 | N23: =SUMIFS(入出金tbl[金額],入出金tbl[内 容],$D23,入出金tbl[年月日],">="&N$3,入出金tbl[年月日],"<"&O$3) -> 2449 | O23: =SUMIFS(入出金tbl[金額],入出金tbl[内 容],$D23,入出金tbl[年月日],">="&O$3,入出金tbl[年月日],"<"&P$3) -> 1205 | P23: =SUMIFS(入出金tbl[金額],入出金tbl[内 容],$D23,入出金tbl[年月日],">="&P$3,入出金tbl[年月日],"<"&Q$3) -> 1399
C24: (3) | D24: その他臨時収入 | E24: =SUMIFS(入出金tbl[金額],入出金tbl[内 容],$D24,入出金tbl[年月日],">="&E$3,入出金tbl[年月日],"<"&F$3) -> 1175 | F24: =SUMIFS(入出金tbl[金額],入出金tbl[内 容],$D24,入出金tbl[年月日],">="&F$3,入出金tbl[年月日],"<"&G$3) -> 2465 | G24: =SUMIFS(入出金tbl[金額],入出金tbl[内 容],$D24,入出金tbl[年月日],">="&G$3,入出金tbl[年月日],"<"&H$3) -> 6312 | H24: =SUMIFS(入出金tbl[金額],入出金tbl[内 容],$D24,入出金tbl[年月日],">="&H$3,入出金tbl[年月日],"<"&I$3) -> 1492 | I24: =SUMIFS(入出金tbl[金額],入出金tbl[内 容],$D24,入出金tbl[年月日],">="&I$3,入出金tbl[年月日],"<"&J$3) -> 2104 | J24: =SUMIFS(入出金tbl[金額],入出金tbl[内 容],$D24,入出金tbl[年月日],">="&J$3,入出金tbl[年月日],"<"&K$3) -> 1645 | K24: =SUMIFS(入出金tbl[金額],入出金tbl[内 容],$D24,入出金tbl[年月日],">="&K$3,入出金tbl[年月日],"<"&L$3) -> 2970 | L24: =SUMIFS(入出金tbl[金額],入出金tbl[内 容],$D24,入出金tbl[年月日],">="&L$3,入出金tbl[年月日],"<"&M$3) -> 1693 | M24: =SUMIFS(入出金tbl[金額],入出金tbl[内 容],$D24,入出金tbl[年月日],">="&M$3,入出金tbl[年月日],"<"&N$3) -> 3437 | N24: =SUMIFS(入出金tbl[金額],入出金tbl[内 容],$D24,入出金tbl[年月日],">="&N$3,入出金tbl[年月日],"<"&O$3) -> 1413 | O24: =SUMIFS(入出金tbl[金額],入出金tbl[内 容],$D24,入出金tbl[年月日],">="&O$3,入出金tbl[年月日],"<"&P$3) -> 2069 | P24: =SUMIFS(入出金tbl[金額],入出金tbl[内 容],$D24,入出金tbl[年月日],">="&P$3,入出金tbl[年月日],"<"&Q$3) -> 2868
C25: (4) | D25: ---------- | E25: =SUMIFS(入出金tbl[金額],入出金tbl[内 容],$D25,入出金tbl[年月日],">="&E$3,入出金tbl[年月日],"<"&F$3) -> 0 | F25: =SUMIFS(入出金tbl[金額],入出金tbl[内 容],$D25,入出金tbl[年月日],">="&F$3,入出金tbl[年月日],"<"&G$3) -> 0 | G25: =SUMIFS(入出金tbl[金額],入出金tbl[内 容],$D25,入出金tbl[年月日],">="&G$3,入出金tbl[年月日],"<"&H$3) -> 0 | H25: =SUMIFS(入出金tbl[金額],入出金tbl[内 容],$D25,入出金tbl[年月日],">="&H$3,入出金tbl[年月日],"<"&I$3) -> 0 | I25: =SUMIFS(入出金tbl[金額],入出金tbl[内 容],$D25,入出金tbl[年月日],">="&I$3,入出金tbl[年月日],"<"&J$3) -> 0 | J25: =SUMIFS(入出金tbl[金額],入出金tbl[内 容],$D25,入出金tbl[年月日],">="&J$3,入出金tbl[年月日],"<"&K$3) -> 0 | K25: =SUMIFS(入出金tbl[金額],入出金tbl[内 容],$D25,入出金tbl[年月日],">="&K$3,入出金tbl[年月日],"<"&L$3) -> 0 | L25: =SUMIFS(入出金tbl[金額],入出金tbl[内 容],$D25,入出金tbl[年月日],">="&L$3,入出金tbl[年月日],"<"&M$3) -> 0 | M25: =SUMIFS(入出金tbl[金額],入出金tbl[内 容],$D25,入出金tbl[年月日],">="&M$3,入出金tbl[年月日],"<"&N$3) -> 0 | N25: =SUMIFS(入出金tbl[金額],入出金tbl[内 容],$D25,入出金tbl[年月日],">="&N$3,入出金tbl[年月日],"<"&O$3) -> 0 | O25: =SUMIFS(入出金tbl[金額],入出金tbl[内 容],$D25,入出金tbl[年月日],">="&O$3,入出金tbl[年月日],"<"&P$3) -> 0 | P25: =SUMIFS(入出金tbl[金額],入出金tbl[内 容],$D25,入出金tbl[年月日],">="&P$3,入出金tbl[年月日],"<"&Q$3) -> 0
D26: 収入合計(E) | E26: =SUM(E22:E25) -> 3700 | F26: =SUM(F22:F25) -> 8198 | G26: 17155 | H26: 5761 | I26: 4618 | J26: 4232 | K26: 8104 | L26: 6098 | M26: 8866 | N26: 6126 | O26: 6497 | P26: 5412
B27: 支出 | C27: (1) | D27: 税金 | E27: =SUMIFS(入出金tbl[金額],入出金tbl[内 容],$D27,入出金tbl[年月日],">="&E$3,入出金tbl[年月日],"<"&F$3) -> 3407 | F27: =SUMIFS(入出金tbl[金額],入出金tbl[内 容],$D27,入出金tbl[年月日],">="&F$3,入出金tbl[年月日],"<"&G$3) -> 1469 | G27: =SUMIFS(入出金tbl[金額],入出金tbl[内 容],$D27,入出金tbl[年月日],">="&G$3,入出金tbl[年月日],"<"&H$3) -> 7552 | H27: =SUMIFS(入出金tbl[金額],入出金tbl[内 容],$D27,入出金tbl[年月日],">="&H$3,入出金tbl[年月日],"<"&I$3) -> 1281 | I27: =SUMIFS(入出金tbl[金額],入出金tbl[内 容],$D27,入出金tbl[年月日],">="&I$3,入出金tbl[年月日],"<"&J$3) -> 1553 | J27: =SUMIFS(入出金tbl[金額],入出金tbl[内 容],$D27,入出金tbl[年月日],">="&J$3,入出金tbl[年月日],"<"&K$3) -> 1212 | K27: =SUMIFS(入出金tbl[金額],入出金tbl[内 容],$D27,入出金tbl[年月日],">="&K$3,入出金tbl[年月日],"<"&L$3) -> 2319 | L27: =SUMIFS(入出金tbl[金額],入出金tbl[内 容],$D27,入出金tbl[年月日],">="&L$3,入出金tbl[年月日],"<"&M$3) -> 2272 | M27: =SUMIFS(入出金tbl[金額],入出金tbl[内 容],$D27,入出金tbl[年月日],">="&M$3,入出金tbl[年月日],"<"&N$3) -> 2005 | N27: =SUMIFS(入出金tbl[金額],入出金tbl[内 容],$D27,入出金tbl[年月日],">="&N$3,入出金tbl[年月日],"<"&O$3) -> 2438 | O27: =SUMIFS(入出金tbl[金額],入出金tbl[内 容],$D27,入出金tbl[年月日],">="&O$3,入出金tbl[年月日],"<"&P$3) -> 2270 | P27: =SUMIFS(入出金tbl[金額],入出金tbl[内 容],$D27,入出金tbl[年月日],">="&P$3,入出金tbl[年月日],"<"&Q$3) -> 2318
C28: (2) | D28: 役員賞与 | E28: =SUMIFS(入出金tbl[金額],入出金tbl[内 容],$D28,入出金tbl[年月日],">="&E$3,入出金tbl[年月日],"<"&F$3) -> 2284 | F28: =SUMIFS(入出金tbl[金額],入出金tbl[内 容],$D28,入出金tbl[年月日],">="&F$3,入出金tbl[年月日],"<"&G$3) -> 1027 | G28: =SUMIFS(入出金tbl[金額],入出金tbl[内 容],$D28,入出金tbl[年月日],">="&G$3,入出金tbl[年月日],"<"&H$3) -> 7725 | H28: =SUMIFS(入出金tbl[金額],入出金tbl[内 容],$D28,入出金tbl[年月日],">="&H$3,入出金tbl[年月日],"<"&I$3) -> 970 | I28: =SUMIFS(入出金tbl[金額],入出金tbl[内 容],$D28,入出金tbl[年月日],">="&I$3,入出金tbl[年月日],"<"&J$3) -> 1345 | J28: =SUMIFS(入出金tbl[金額],入出金tbl[内 容],$D28,入出金tbl[年月日],">="&J$3,入出金tbl[年月日],"<"&K$3) -> 1912 | K28: =SUMIFS(入出金tbl[金額],入出金tbl[内 容],$D28,入出金tbl[年月日],">="&K$3,入出金tbl[年月日],"<"&L$3) -> 1792 | L28: =SUMIFS(入出金tbl[金額],入出金tbl[内 容],$D28,入出金tbl[年月日],">="&L$3,入出金tbl[年月日],"<"&M$3) -> 1327 | M28: =SUMIFS(入出金tbl[金額],入出金tbl[内 容],$D28,入出金tbl[年月日],">="&M$3,入出金tbl[年月日],"<"&N$3) -> 2902 | N28: =SUMIFS(入出金tbl[金額],入出金tbl[内 容],$D28,入出金tbl[年月日],">="&N$3,入出金tbl[年月日],"<"&O$3) -> 1883 | O28: =SUMIFS(入出金tbl[金額],入出金tbl[内 容],$D28,入出金tbl[年月日],">="&O$3,入出金tbl[年月日],"<"&P$3) -> 2747 | P28: =SUMIFS(入出金tbl[金額],入出金tbl[内 容],$D28,入出金tbl[年月日],">="&P$3,入出金tbl[年月日],"<"&Q$3) -> 866
C29: (3) | D29: 配当 | E29: =SUMIFS(入出金tbl[金額],入出金tbl[内 容],$D29,入出金tbl[年月日],">="&E$3,入出金tbl[年月日],"<"&F$3) -> 4289 | F29: =SUMIFS(入出金tbl[金額],入出金tbl[内 容],$D29,入出金tbl[年月日],">="&F$3,入出金tbl[年月日],"<"&G$3) -> 1673 | G29: =SUMIFS(入出金tbl[金額],入出金tbl[内 容],$D29,入出金tbl[年月日],">="&G$3,入出金tbl[年月日],"<"&H$3) -> 7530 | H29: =SUMIFS(入出金tbl[金額],入出金tbl[内 容],$D29,入出金tbl[年月日],">="&H$3,入出金tbl[年月日],"<"&I$3) -> 1010 | I29: =SUMIFS(入出金tbl[金額],入出金tbl[内 容],$D29,入出金tbl[年月日],">="&I$3,入出金tbl[年月日],"<"&J$3) -> 1128 | J29: =SUMIFS(入出金tbl[金額],入出金tbl[内 容],$D29,入出金tbl[年月日],">="&J$3,入出金tbl[年月日],"<"&K$3) -> 2004 | K29: =SUMIFS(入出金tbl[金額],入出金tbl[内 容],$D29,入出金tbl[年月日],">="&K$3,入出金tbl[年月日],"<"&L$3) -> 1610 | L29: =SUMIFS(入出金tbl[金額],入出金tbl[内 容],$D29,入出金tbl[年月日],">="&L$3,入出金tbl[年月日],"<"&M$3) -> 2823 | M29: =SUMIFS(入出金tbl[金額],入出金tbl[内 容],$D29,入出金tbl[年月日],">="&M$3,入出金tbl[年月日],"<"&N$3) -> 1989 | N29: =SUMIFS(入出金tbl[金額],入出金tbl[内 容],$D29,入出金tbl[年月日],">="&N$3,入出金tbl[年月日],"<"&O$3) -> 1893 | O29: =SUMIFS(入出金tbl[金額],入出金tbl[内 容],$D29,入出金tbl[年月日],">="&O$3,入出金tbl[年月日],"<"&P$3) -> 1629 | P29: =SUMIFS(入出金tbl[金額],入出金tbl[内 容],$D29,入出金tbl[年月日],">="&P$3,入出金tbl[年月日],"<"&Q$3) -> 372
C30: (4) | D30: 固定資産購入支出 | E30: =SUMIFS(入出金tbl[金額],入出金tbl[内 容],$D30,入出金tbl[年月日],">="&E$3,入出金tbl[年月日],"<"&F$3) -> 2326 | F30: =SUMIFS(入出金tbl[金額],入出金tbl[内 容],$D30,入出金tbl[年月日],">="&F$3,入出金tbl[年月日],"<"&G$3) -> 679 | G30: =SUMIFS(入出金tbl[金額],入出金tbl[内 容],$D30,入出金tbl[年月日],">="&G$3,入出金tbl[年月日],"<"&H$3) -> 8018 | H30: =SUMIFS(入出金tbl[金額],入出金tbl[内 容],$D30,入出金tbl[年月日],">="&H$3,入出金tbl[年月日],"<"&I$3) -> 1792 | I30: =SUMIFS(入出金tbl[金額],入出金tbl[内 容],$D30,入出金tbl[年月日],">="&I$3,入出金tbl[年月日],"<"&J$3) -> 604 | J30: =SUMIFS(入出金tbl[金額],入出金tbl[内 容],$D30,入出金tbl[年月日],">="&J$3,入出金tbl[年月日],"<"&K$3) -> 3517 | K30: =SUMIFS(入出金tbl[金額],入出金tbl[内 容],$D30,入出金tbl[年月日],">="&K$3,入出金tbl[年月日],"<"&L$3) -> 1778 | L30: =SUMIFS(入出金tbl[金額],入出金tbl[内 容],$D30,入出金tbl[年月日],">="&L$3,入出金tbl[年月日],"<"&M$3) -> 1929 | M30: =SUMIFS(入出金tbl[金額],入出金tbl[内 容],$D30,入出金tbl[年月日],">="&M$3,入出金tbl[年月日],"<"&N$3) -> 2702 | N30: =SUMIFS(入出金tbl[金額],入出金tbl[内 容],$D30,入出金tbl[年月日],">="&N$3,入出金tbl[年月日],"<"&O$3) -> 803 | O30: =SUMIFS(入出金tbl[金額],入出金tbl[内 容],$D30,入出金tbl[年月日],">="&O$3,入出金tbl[年月日],"<"&P$3) -> 2386 | P30: =SUMIFS(入出金tbl[金額],入出金tbl[内 容],$D30,入出金tbl[年月日],">="&P$3,入出金tbl[年月日],"<"&Q$3) -> 826
C31: (5) | D31: 定期預金等設定 | E31: =SUMIFS(入出金tbl[金額],入出金tbl[内 容],$D31,入出金tbl[年月日],">="&E$3,入出金tbl[年月日],"<"&F$3) -> 2113 | F31: =SUMIFS(入出金tbl[金額],入出金tbl[内 容],$D31,入出金tbl[年月日],">="&F$3,入出金tbl[年月日],"<"&G$3) -> 2205 | G31: =SUMIFS(入出金tbl[金額],入出金tbl[内 容],$D31,入出金tbl[年月日],">="&G$3,入出金tbl[年月日],"<"&H$3) -> 8198 | H31: =SUMIFS(入出金tbl[金額],入出金tbl[内 容],$D31,入出金tbl[年月日],">="&H$3,入出金tbl[年月日],"<"&I$3) -> 1832 | I31: =SUMIFS(入出金tbl[金額],入出金tbl[内 容],$D31,入出金tbl[年月日],">="&I$3,入出金tbl[年月日],"<"&J$3) -> 735 | J31: =SUMIFS(入出金tbl[金額],入出金tbl[内 容],$D31,入出金tbl[年月日],">="&J$3,入出金tbl[年月日],"<"&K$3) -> 2344 | K31: =SUMIFS(入出金tbl[金額],入出金tbl[内 容],$D31,入出金tbl[年月日],">="&K$3,入出金tbl[年月日],"<"&L$3) -> 1165 | L31: =SUMIFS(入出金tbl[金額],入出金tbl[内 容],$D31,入出金tbl[年月日],">="&L$3,入出金tbl[年月日],"<"&M$3) -> 3342 | M31: =SUMIFS(入出金tbl[金額],入出金tbl[内 容],$D31,入出金tbl[年月日],">="&M$3,入出金tbl[年月日],"<"&N$3) -> 1092 | N31: =SUMIFS(入出金tbl[金額],入出金tbl[内 容],$D31,入出金tbl[年月日],">="&N$3,入出金tbl[年月日],"<"&O$3) -> 1219 | O31: =SUMIFS(入出金tbl[金額],入出金tbl[内 容],$D31,入出金tbl[年月日],">="&O$3,入出金tbl[年月日],"<"&P$3) -> 2565 | P31: =SUMIFS(入出金tbl[金額],入出金tbl[内 容],$D31,入出金tbl[年月日],">="&P$3,入出金tbl[年月日],"<"&Q$3) -> 883
C32: (6) | D32: その他臨時支出 | E32: =SUMIFS(入出金tbl[金額],入出金tbl[内 容],$D32,入出金tbl[年月日],">="&E$3,入出金tbl[年月日],"<"&F$3) -> 2353 | F32: =SUMIFS(入出金tbl[金額],入出金tbl[内 容],$D32,入出金tbl[年月日],">="&F$3,入出金tbl[年月日],"<"&G$3) -> 1831 | G32: =SUMIFS(入出金tbl[金額],入出金tbl[内 容],$D32,入出金tbl[年月日],">="&G$3,入出金tbl[年月日],"<"&H$3) -> 8384 | H32: =SUMIFS(入出金tbl[金額],入出金tbl[内 容],$D32,入出金tbl[年月日],">="&H$3,入出金tbl[年月日],"<"&I$3) -> 2631 | I32: =SUMIFS(入出金tbl[金額],入出金tbl[内 容],$D32,入出金tbl[年月日],">="&I$3,入出金tbl[年月日],"<"&J$3) -> 604 | J32: =SUMIFS(入出金tbl[金額],入出金tbl[内 容],$D32,入出金tbl[年月日],">="&J$3,入出金tbl[年月日],"<"&K$3) -> 3589 | K32: =SUMIFS(入出金tbl[金額],入出金tbl[内 容],$D32,入出金tbl[年月日],">="&K$3,入出金tbl[年月日],"<"&L$3) -> 2446 | L32: =SUMIFS(入出金tbl[金額],入出金tbl[内 容],$D32,入出金tbl[年月日],">="&L$3,入出金tbl[年月日],"<"&M$3) -> 1717 | M32: =SUMIFS(入出金tbl[金額],入出金tbl[内 容],$D32,入出金tbl[年月日],">="&M$3,入出金tbl[年月日],"<"&N$3) -> 2806 | N32: =SUMIFS(入出金tbl[金額],入出金tbl[内 容],$D32,入出金tbl[年月日],">="&N$3,入出金tbl[年月日],"<"&O$3) -> 1360 | O32: =SUMIFS(入出金tbl[金額],入出金tbl[内 容],$D32,入出金tbl[年月日],">="&O$3,入出金tbl[年月日],"<"&P$3) -> 1598 | P32: =SUMIFS(入出金tbl[金額],入出金tbl[内 容],$D32,入出金tbl[年月日],">="&P$3,入出金tbl[年月日],"<"&Q$3) -> 851
C33: (7) | D33: テスト4 | E33: =SUMIFS(入出金tbl[金額],入出金tbl[内 容],$D33,入出金tbl[年月日],">="&E$3,入出金tbl[年月日],"<"&F$3) -> 0 | F33: =SUMIFS(入出金tbl[金額],入出金tbl[内 容],$D33,入出金tbl[年月日],">="&F$3,入出金tbl[年月日],"<"&G$3) -> 0 | G33: =SUMIFS(入出金tbl[金額],入出金tbl[内 容],$D33,入出金tbl[年月日],">="&G$3,入出金tbl[年月日],"<"&H$3) -> 7750 | H33: =SUMIFS(入出金tbl[金額],入出金tbl[内 容],$D33,入出金tbl[年月日],">="&H$3,入出金tbl[年月日],"<"&I$3) -> 1000 | I33: =SUMIFS(入出金tbl[金額],入出金tbl[内 容],$D33,入出金tbl[年月日],">="&I$3,入出金tbl[年月日],"<"&J$3) -> 0 | J33: =SUMIFS(入出金tbl[金額],入出金tbl[内 容],$D33,入出金tbl[年月日],">="&J$3,入出金tbl[年月日],"<"&K$3) -> 0 | K33: =SUMIFS(入出金tbl[金額],入出金tbl[内 容],$D33,入出金tbl[年月日],">="&K$3,入出金tbl[年月日],"<"&L$3) -> 0 | L33: =SUMIFS(入出金tbl[金額],入出金tbl[内 容],$D33,入出金tbl[年月日],">="&L$3,入出金tbl[年月日],"<"&M$3) -> 0 | M33: =SUMIFS(入出金tbl[金額],入出金tbl[内 容],$D33,入出金tbl[年月日],">="&M$3,入出金tbl[年月日],"<"&N$3) -> 0 | N33: =SUMIFS(入出金tbl[金額],入出金tbl[内 容],$D33,入出金tbl[年月日],">="&N$3,入出金tbl[年月日],"<"&O$3) -> 0 | O33: =SUMIFS(入出金tbl[金額],入出金tbl[内 容],$D33,入出金tbl[年月日],">="&O$3,入出金tbl[年月日],"<"&P$3) -> 0 | P33: =SUMIFS(入出金tbl[金額],入出金tbl[内 容],$D33,入出金tbl[年月日],">="&P$3,入出金tbl[年月日],"<"&Q$3) -> 0
D34: 支出合計(F) | E34: =SUM(E27:E33) -> 16772 | F34: =SUM(F27:F33) -> 8884 | G34: 55157 | H34: 10516 | I34: 5969 | J34: 14578 | K34: 11110 | L34: 13410 | M34: 13496 | N34: 9596 | O34: 13195 | P34: 6116
B35: 差引過不足(G=E-F) | E35: =E26-E34 -> -13072 | F35: =F26-F34 -> -686 | G35: -38002 | H35: -4755 | I35: -1351 | J35: -10346 | K35: -3006 | L35: -7312 | M35: -4630 | N35: -3470 | O35: -6698 | P35: -704
A36: 財務収支 | B36: 収入 | C36: (1) | D36: 短期借入金調達 | E36: =SUMIFS(入出金tbl[金額],入出金tbl[内 容],$D36,入出金tbl[年月日],">="&E$3,入出金tbl[年月日],"<"&F$3) -> 1112 | F36: =SUMIFS(入出金tbl[金額],入出金tbl[内 容],$D36,入出金tbl[年月日],">="&F$3,入出金tbl[年月日],"<"&G$3) -> 3393 | G36: =SUMIFS(入出金tbl[金額],入出金tbl[内 容],$D36,入出金tbl[年月日],">="&G$3,入出金tbl[年月日],"<"&H$3) -> 8485 | H36: =SUMIFS(入出金tbl[金額],入出金tbl[内 容],$D36,入出金tbl[年月日],">="&H$3,入出金tbl[年月日],"<"&I$3) -> 1847 | I36: =SUMIFS(入出金tbl[金額],入出金tbl[内 容],$D36,入出金tbl[年月日],">="&I$3,入出金tbl[年月日],"<"&J$3) -> 2064 | J36: =SUMIFS(入出金tbl[金額],入出金tbl[内 容],$D36,入出金tbl[年月日],">="&J$3,入出金tbl[年月日],"<"&K$3) -> 1172 | K36: =SUMIFS(入出金tbl[金額],入出金tbl[内 容],$D36,入出金tbl[年月日],">="&K$3,入出金tbl[年月日],"<"&L$3) -> 2704 | L36: =SUMIFS(入出金tbl[金額],入出金tbl[内 容],$D36,入出金tbl[年月日],">="&L$3,入出金tbl[年月日],"<"&M$3) -> 2409 | M36: =SUMIFS(入出金tbl[金額],入出金tbl[内 容],$D36,入出金tbl[年月日],">="&M$3,入出金tbl[年月日],"<"&N$3) -> 2622 | N36: =SUMIFS(入出金tbl[金額],入出金tbl[内 容],$D36,入出金tbl[年月日],">="&N$3,入出金tbl[年月日],"<"&O$3) -> 2159 | O36: =SUMIFS(入出金tbl[金額],入出金tbl[内 容],$D36,入出金tbl[年月日],">="&O$3,入出金tbl[年月日],"<"&P$3) -> 962 | P36: =SUMIFS(入出金tbl[金額],入出金tbl[内 容],$D36,入出金tbl[年月日],">="&P$3,入出金tbl[年月日],"<"&Q$3) -> 2681
C37: (2) | D37: 長期借入金調達 | E37: =SUMIFS(入出金tbl[金額],入出金tbl[内 容],$D37,入出金tbl[年月日],">="&E$3,入出金tbl[年月日],"<"&F$3) -> 408 | F37: =SUMIFS(入出金tbl[金額],入出金tbl[内 容],$D37,入出金tbl[年月日],">="&F$3,入出金tbl[年月日],"<"&G$3) -> 1996 | G37: =SUMIFS(入出金tbl[金額],入出金tbl[内 容],$D37,入出金tbl[年月日],">="&G$3,入出金tbl[年月日],"<"&H$3) -> 8631 | H37: =SUMIFS(入出金tbl[金額],入出金tbl[内 容],$D37,入出金tbl[年月日],">="&H$3,入出金tbl[年月日],"<"&I$3) -> 1188 | I37: =SUMIFS(入出金tbl[金額],入出金tbl[内 容],$D37,入出金tbl[年月日],">="&I$3,入出金tbl[年月日],"<"&J$3) -> 1842 | J37: =SUMIFS(入出金tbl[金額],入出金tbl[内 容],$D37,入出金tbl[年月日],">="&J$3,入出金tbl[年月日],"<"&K$3) -> 2253 | K37: =SUMIFS(入出金tbl[金額],入出金tbl[内 容],$D37,入出金tbl[年月日],">="&K$3,入出金tbl[年月日],"<"&L$3) -> 1642 | L37: =SUMIFS(入出金tbl[金額],入出金tbl[内 容],$D37,入出金tbl[年月日],">="&L$3,入出金tbl[年月日],"<"&M$3) -> 1622 | M37: =SUMIFS(入出金tbl[金額],入出金tbl[内 容],$D37,入出金tbl[年月日],">="&M$3,入出金tbl[年月日],"<"&N$3) -> 2868 | N37: =SUMIFS(入出金tbl[金額],入出金tbl[内 容],$D37,入出金tbl[年月日],">="&N$3,入出金tbl[年月日],"<"&O$3) -> 1883 | O37: =SUMIFS(入出金tbl[金額],入出金tbl[内 容],$D37,入出金tbl[年月日],">="&O$3,入出金tbl[年月日],"<"&P$3) -> 1314 | P37: =SUMIFS(入出金tbl[金額],入出金tbl[内 容],$D37,入出金tbl[年月日],">="&P$3,入出金tbl[年月日],"<"&Q$3) -> 2571
C38: (3) | D38: 社長借入金調達 | E38: =SUMIFS(入出金tbl[金額],入出金tbl[内 容],$D38,入出金tbl[年月日],">="&E$3,入出金tbl[年月日],"<"&F$3) -> 1322 | F38: =SUMIFS(入出金tbl[金額],入出金tbl[内 容],$D38,入出金tbl[年月日],">="&F$3,入出金tbl[年月日],"<"&G$3) -> 2626 | G38: =SUMIFS(入出金tbl[金額],入出金tbl[内 容],$D38,入出金tbl[年月日],">="&G$3,入出金tbl[年月日],"<"&H$3) -> 9436 | H38: =SUMIFS(入出金tbl[金額],入出金tbl[内 容],$D38,入出金tbl[年月日],">="&H$3,入出金tbl[年月日],"<"&I$3) -> 1927 | I38: =SUMIFS(入出金tbl[金額],入出金tbl[内 容],$D38,入出金tbl[年月日],">="&I$3,入出金tbl[年月日],"<"&J$3) -> 1209 | J38: =SUMIFS(入出金tbl[金額],入出金tbl[内 容],$D38,入出金tbl[年月日],">="&J$3,入出金tbl[年月日],"<"&K$3) -> 1891 | K38: =SUMIFS(入出金tbl[金額],入出金tbl[内 容],$D38,入出金tbl[年月日],">="&K$3,入出金tbl[年月日],"<"&L$3) -> 1734 | L38: =SUMIFS(入出金tbl[金額],入出金tbl[内 容],$D38,入出金tbl[年月日],">="&L$3,入出金tbl[年月日],"<"&M$3) -> 2409 | M38: =SUMIFS(入出金tbl[金額],入出金tbl[内 容],$D38,入出金tbl[年月日],">="&M$3,入出金tbl[年月日],"<"&N$3) -> 2158 | N38: =SUMIFS(入出金tbl[金額],入出金tbl[内 容],$D38,入出金tbl[年月日],">="&N$3,入出金tbl[年月日],"<"&O$3) -> 1189 | O38: =SUMIFS(入出金tbl[金額],入出金tbl[内 容],$D38,入出金tbl[年月日],">="&O$3,入出金tbl[年月日],"<"&P$3) -> 431 | P38: =SUMIFS(入出金tbl[金額],入出金tbl[内 容],$D38,入出金tbl[年月日],">="&P$3,入出金tbl[年月日],"<"&Q$3) -> 2020
C39: (4) | D39: その他調達 | E39: =SUMIFS(入出金tbl[金額],入出金tbl[内 容],$D39,入出金tbl[年月日],">="&E$3,入出金tbl[年月日],"<"&F$3) -> 376 | F39: =SUMIFS(入出金tbl[金額],入出金tbl[内 容],$D39,入出金tbl[年月日],">="&F$3,入出金tbl[年月日],"<"&G$3) -> 2159 | G39: =SUMIFS(入出金tbl[金額],入出金tbl[内 容],$D39,入出金tbl[年月日],">="&G$3,入出金tbl[年月日],"<"&H$3) -> 9251 | H39: =SUMIFS(入出金tbl[金額],入出金tbl[内 容],$D39,入出金tbl[年月日],">="&H$3,入出金tbl[年月日],"<"&I$3) -> 1268 | I39: =SUMIFS(入出金tbl[金額],入出金tbl[内 容],$D39,入出金tbl[年月日],">="&I$3,入出金tbl[年月日],"<"&J$3) -> 1116 | J39: =SUMIFS(入出金tbl[金額],入出金tbl[内 容],$D39,入出金tbl[年月日],">="&J$3,入出金tbl[年月日],"<"&K$3) -> 2895 | K39: =SUMIFS(入出金tbl[金額],入出金tbl[内 容],$D39,入出金tbl[年月日],">="&K$3,入出金tbl[年月日],"<"&L$3) -> 2422 | L39: =SUMIFS(入出金tbl[金額],入出金tbl[内 容],$D39,入出金tbl[年月日],">="&L$3,入出金tbl[年月日],"<"&M$3) -> 1860 | M39: =SUMIFS(入出金tbl[金額],入出金tbl[内 容],$D39,入出金tbl[年月日],">="&M$3,入出金tbl[年月日],"<"&N$3) -> 1375 | N39: =SUMIFS(入出金tbl[金額],入出金tbl[内 容],$D39,入出金tbl[年月日],">="&N$3,入出金tbl[年月日],"<"&O$3) -> 3522 | O39: =SUMIFS(入出金tbl[金額],入出金tbl[内 容],$D39,入出金tbl[年月日],">="&O$3,入出金tbl[年月日],"<"&P$3) -> 1435 | P39: =SUMIFS(入出金tbl[金額],入出金tbl[内 容],$D39,入出金tbl[年月日],">="&P$3,入出金tbl[年月日],"<"&Q$3) -> 2361
C40: (5) | D40: ---------- | E40: =SUMIFS(入出金tbl[金額],入出金tbl[内 容],$D40,入出金tbl[年月日],">="&E$3,入出金tbl[年月日],"<"&F$3) -> 0 | F40: =SUMIFS(入出金tbl[金額],入出金tbl[内 容],$D40,入出金tbl[年月日],">="&F$3,入出金tbl[年月日],"<"&G$3) -> 0 | G40: =SUMIFS(入出金tbl[金額],入出金tbl[内 容],$D40,入出金tbl[年月日],">="&G$3,入出金tbl[年月日],"<"&H$3) -> 0 | H40: =SUMIFS(入出金tbl[金額],入出金tbl[内 容],$D40,入出金tbl[年月日],">="&H$3,入出金tbl[年月日],"<"&I$3) -> 0 | I40: =SUMIFS(入出金tbl[金額],入出金tbl[内 容],$D40,入出金tbl[年月日],">="&I$3,入出金tbl[年月日],"<"&J$3) -> 0 | J40: =SUMIFS(入出金tbl[金額],入出金tbl[内 容],$D40,入出金tbl[年月日],">="&J$3,入出金tbl[年月日],"<"&K$3) -> 0 | K40: =SUMIFS(入出金tbl[金額],入出金tbl[内 容],$D40,入出金tbl[年月日],">="&K$3,入出金tbl[年月日],"<"&L$3) -> 0 | L40: =SUMIFS(入出金tbl[金額],入出金tbl[内 容],$D40,入出金tbl[年月日],">="&L$3,入出金tbl[年月日],"<"&M$3) -> 0 | M40: =SUMIFS(入出金tbl[金額],入出金tbl[内 容],$D40,入出金tbl[年月日],">="&M$3,入出金tbl[年月日],"<"&N$3) -> 0 | N40: =SUMIFS(入出金tbl[金額],入出金tbl[内 容],$D40,入出金tbl[年月日],">="&N$3,入出金tbl[年月日],"<"&O$3) -> 0 | O40: =SUMIFS(入出金tbl[金額],入出金tbl[内 容],$D40,入出金tbl[年月日],">="&O$3,入出金tbl[年月日],"<"&P$3) -> 0 | P40: =SUMIFS(入出金tbl[金額],入出金tbl[内 容],$D40,入出金tbl[年月日],">="&P$3,入出金tbl[年月日],"<"&Q$3) -> 0
D41: 収入合計(H) | E41: =SUM(E36:E40) -> 3218 | F41: =SUM(F36:F40) -> 10174 | G41: 35803 | H41: 6230 | I41: 6231 | J41: 8211 | K41: 8502 | L41: 8300 | M41: 9023 | N41: 8753 | O41: 4142 | P41: 9633
B42: 支出 | C42: (1) | D42: 短期借入金返済 | E42: =SUMIFS(入出金tbl[金額],入出金tbl[内 容],$D42,入出金tbl[年月日],">="&E$3,入出金tbl[年月日],"<"&F$3) -> 2945 | F42: =SUMIFS(入出金tbl[金額],入出金tbl[内 容],$D42,入出金tbl[年月日],">="&F$3,入出金tbl[年月日],"<"&G$3) -> 1332 | G42: =SUMIFS(入出金tbl[金額],入出金tbl[内 容],$D42,入出金tbl[年月日],">="&G$3,入出金tbl[年月日],"<"&H$3) -> 9770 | H42: =SUMIFS(入出金tbl[金額],入出金tbl[内 容],$D42,入出金tbl[年月日],">="&H$3,入出金tbl[年月日],"<"&I$3) -> 3386 | I42: =SUMIFS(入出金tbl[金額],入出金tbl[内 容],$D42,入出金tbl[年月日],">="&I$3,入出金tbl[年月日],"<"&J$3) -> 433 | J42: =SUMIFS(入出金tbl[金額],入出金tbl[内 容],$D42,入出金tbl[年月日],">="&J$3,入出金tbl[年月日],"<"&K$3) -> 3668 | K42: =SUMIFS(入出金tbl[金額],入出金tbl[内 容],$D42,入出金tbl[年月日],">="&K$3,入出金tbl[年月日],"<"&L$3) -> 2013 | L42: =SUMIFS(入出金tbl[金額],入出金tbl[内 容],$D42,入出金tbl[年月日],">="&L$3,入出金tbl[年月日],"<"&M$3) -> 2178 | M42: =SUMIFS(入出金tbl[金額],入出金tbl[内 容],$D42,入出金tbl[年月日],">="&M$3,入出金tbl[年月日],"<"&N$3) -> 1455 | N42: =SUMIFS(入出金tbl[金額],入出金tbl[内 容],$D42,入出金tbl[年月日],">="&N$3,入出金tbl[年月日],"<"&O$3) -> 1627 | O42: =SUMIFS(入出金tbl[金額],入出金tbl[内 容],$D42,入出金tbl[年月日],">="&O$3,入出金tbl[年月日],"<"&P$3) -> 2599 | P42: =SUMIFS(入出金tbl[金額],入出金tbl[内 容],$D42,入出金tbl[年月日],">="&P$3,入出金tbl[年月日],"<"&Q$3) -> 1109
C43: (2) | D43: 長期借入金返済 | E43: =SUMIFS(入出金tbl[金額],入出金tbl[内 容],$D43,入出金tbl[年月日],">="&E$3,入出金tbl[年月日],"<"&F$3) -> 2521 | F43: =SUMIFS(入出金tbl[金額],入出金tbl[内 容],$D43,入出金tbl[年月日],">="&F$3,入出金tbl[年月日],"<"&G$3) -> 1143 | G43: =SUMIFS(入出金tbl[金額],入出金tbl[内 容],$D43,入出金tbl[年月日],">="&G$3,入出金tbl[年月日],"<"&H$3) -> 11108 | H43: =SUMIFS(入出金tbl[金額],入出金tbl[内 容],$D43,入出金tbl[年月日],">="&H$3,入出金tbl[年月日],"<"&I$3) -> 3394 | I43: =SUMIFS(入出金tbl[金額],入出金tbl[内 容],$D43,入出金tbl[年月日],">="&I$3,入出金tbl[年月日],"<"&J$3) -> 256 | J43: =SUMIFS(入出金tbl[金額],入出金tbl[内 容],$D43,入出金tbl[年月日],">="&J$3,入出金tbl[年月日],"<"&K$3) -> 1859 | K43: =SUMIFS(入出金tbl[金額],入出金tbl[内 容],$D43,入出金tbl[年月日],">="&K$3,入出金tbl[年月日],"<"&L$3) -> 2504 | L43: =SUMIFS(入出金tbl[金額],入出金tbl[内 容],$D43,入出金tbl[年月日],">="&L$3,入出金tbl[年月日],"<"&M$3) -> 1765 | M43: =SUMIFS(入出金tbl[金額],入出金tbl[内 容],$D43,入出金tbl[年月日],">="&M$3,入出金tbl[年月日],"<"&N$3) -> 2136 | N43: =SUMIFS(入出金tbl[金額],入出金tbl[内 容],$D43,入出金tbl[年月日],">="&N$3,入出金tbl[年月日],"<"&O$3) -> 1162 | O43: =SUMIFS(入出金tbl[金額],入出金tbl[内 容],$D43,入出金tbl[年月日],">="&O$3,入出金tbl[年月日],"<"&P$3) -> 3991 | P43: =SUMIFS(入出金tbl[金額],入出金tbl[内 容],$D43,入出金tbl[年月日],">="&P$3,入出金tbl[年月日],"<"&Q$3) -> 948
C44: (3) | D44: 社長借入金返済 | E44: =SUMIFS(入出金tbl[金額],入出金tbl[内 容],$D44,入出金tbl[年月日],">="&E$3,入出金tbl[年月日],"<"&F$3) -> 1976 | F44: =SUMIFS(入出金tbl[金額],入出金tbl[内 容],$D44,入出金tbl[年月日],">="&F$3,入出金tbl[年月日],"<"&G$3) -> 2175 | G44: =SUMIFS(入出金tbl[金額],入出金tbl[内 容],$D44,入出金tbl[年月日],">="&G$3,入出金tbl[年月日],"<"&H$3) -> 11044 | H44: =SUMIFS(入出金tbl[金額],入出金tbl[内 容],$D44,入出金tbl[年月日],">="&H$3,入出金tbl[年月日],"<"&I$3) -> 2789 | I44: =SUMIFS(入出金tbl[金額],入出金tbl[内 容],$D44,入出金tbl[年月日],">="&I$3,入出金tbl[年月日],"<"&J$3) -> 433 | J44: =SUMIFS(入出金tbl[金額],入出金tbl[内 容],$D44,入出金tbl[年月日],">="&J$3,入出金tbl[年月日],"<"&K$3) -> 1934 | K44: =SUMIFS(入出金tbl[金額],入出金tbl[内 容],$D44,入出金tbl[年月日],">="&K$3,入出金tbl[年月日],"<"&L$3) -> 3577 | L44: =SUMIFS(入出金tbl[金額],入出金tbl[内 容],$D44,入出金tbl[年月日],">="&L$3,入出金tbl[年月日],"<"&M$3) -> 1801 | M44: =SUMIFS(入出金tbl[金額],入出金tbl[内 容],$D44,入出金tbl[年月日],">="&M$3,入出金tbl[年月日],"<"&N$3) -> 1778 | N44: =SUMIFS(入出金tbl[金額],入出金tbl[内 容],$D44,入出金tbl[年月日],">="&N$3,入出金tbl[年月日],"<"&O$3) -> 1466 | O44: =SUMIFS(入出金tbl[金額],入出金tbl[内 容],$D44,入出金tbl[年月日],">="&O$3,入出金tbl[年月日],"<"&P$3) -> 3458 | P44: =SUMIFS(入出金tbl[金額],入出金tbl[内 容],$D44,入出金tbl[年月日],">="&P$3,入出金tbl[年月日],"<"&Q$3) -> 1620
C45: (4) | D45: その他返済 | E45: =SUMIFS(入出金tbl[金額],入出金tbl[内 容],$D45,入出金tbl[年月日],">="&E$3,入出金tbl[年月日],"<"&F$3) -> 1350 | F45: =SUMIFS(入出金tbl[金額],入出金tbl[内 容],$D45,入出金tbl[年月日],">="&F$3,入出金tbl[年月日],"<"&G$3) -> 2473 | G45: =SUMIFS(入出金tbl[金額],入出金tbl[内 容],$D45,入出金tbl[年月日],">="&G$3,入出金tbl[年月日],"<"&H$3) -> 11728 | H45: =SUMIFS(入出金tbl[金額],入出金tbl[内 容],$D45,入出金tbl[年月日],">="&H$3,入出金tbl[年月日],"<"&I$3) -> 3615 | I45: =SUMIFS(入出金tbl[金額],入出金tbl[内 容],$D45,入出金tbl[年月日],">="&I$3,入出金tbl[年月日],"<"&J$3) -> 256 | J45: =SUMIFS(入出金tbl[金額],入出金tbl[内 容],$D45,入出金tbl[年月日],">="&J$3,入出金tbl[年月日],"<"&K$3) -> 2563 | K45: =SUMIFS(入出金tbl[金額],入出金tbl[内 容],$D45,入出金tbl[年月日],">="&K$3,入出金tbl[年月日],"<"&L$3) -> 1542 | L45: =SUMIFS(入出金tbl[金額],入出金tbl[内 容],$D45,入出金tbl[年月日],">="&L$3,入出金tbl[年月日],"<"&M$3) -> 1339 | M45: =SUMIFS(入出金tbl[金額],入出金tbl[内 容],$D45,入出金tbl[年月日],">="&M$3,入出金tbl[年月日],"<"&N$3) -> 2870 | N45: =SUMIFS(入出金tbl[金額],入出金tbl[内 容],$D45,入出金tbl[年月日],">="&N$3,入出金tbl[年月日],"<"&O$3) -> 2064 | O45: =SUMIFS(入出金tbl[金額],入出金tbl[内 容],$D45,入出金tbl[年月日],">="&O$3,入出金tbl[年月日],"<"&P$3) -> 1972 | P45: =SUMIFS(入出金tbl[金額],入出金tbl[内 容],$D45,入出金tbl[年月日],">="&P$3,入出金tbl[年月日],"<"&Q$3) -> 2158
C46: (5) | D46: ---------- | E46: =SUMIFS(入出金tbl[金額],入出金tbl[内 容],$D46,入出金tbl[年月日],">="&E$3,入出金tbl[年月日],"<"&F$3) -> 0 | F46: =SUMIFS(入出金tbl[金額],入出金tbl[内 容],$D46,入出金tbl[年月日],">="&F$3,入出金tbl[年月日],"<"&G$3) -> 0 | G46: =SUMIFS(入出金tbl[金額],入出金tbl[内 容],$D46,入出金tbl[年月日],">="&G$3,入出金tbl[年月日],"<"&H$3) -> 0 | H46: =SUMIFS(入出金tbl[金額],入出金tbl[内 容],$D46,入出金tbl[年月日],">="&H$3,入出金tbl[年月日],"<"&I$3) -> 0 | I46: =SUMIFS(入出金tbl[金額],入出金tbl[内 容],$D46,入出金tbl[年月日],">="&I$3,入出金tbl[年月日],"<"&J$3) -> 0 | J46: =SUMIFS(入出金tbl[金額],入出金tbl[内 容],$D46,入出金tbl[年月日],">="&J$3,入出金tbl[年月日],"<"&K$3) -> 0 | K46: =SUMIFS(入出金tbl[金額],入出金tbl[内 容],$D46,入出金tbl[年月日],">="&K$3,入出金tbl[年月日],"<"&L$3) -> 0 | L46: =SUMIFS(入出金tbl[金額],入出金tbl[内 容],$D46,入出金tbl[年月日],">="&L$3,入出金tbl[年月日],"<"&M$3) -> 0 | M46: =SUMIFS(入出金tbl[金額],入出金tbl[内 容],$D46,入出金tbl[年月日],">="&M$3,入出金tbl[年月日],"<"&N$3) -> 0 | N46: =SUMIFS(入出金tbl[金額],入出金tbl[内 容],$D46,入出金tbl[年月日],">="&N$3,入出金tbl[年月日],"<"&O$3) -> 0 | O46: =SUMIFS(入出金tbl[金額],入出金tbl[内 容],$D46,入出金tbl[年月日],">="&O$3,入出金tbl[年月日],"<"&P$3) -> 0 | P46: =SUMIFS(入出金tbl[金額],入出金tbl[内 容],$D46,入出金tbl[年月日],">="&P$3,入出金tbl[年月日],"<"&Q$3) -> 0
D47: 支出合計(I) | E47: =SUM(E42:E46) -> 8792 | F47: =SUM(F42:F46) -> 7123 | G47: 43650 | H47: 13184 | I47: 1378 | J47: 10024 | K47: 9636 | L47: 7083 | M47: 8239 | N47: 6319 | O47: 12020 | P47: 5835
B48: 差引過不足(J=H-I) | E48: =E41-E47 -> -5574 | F48: =F41-F47 -> 3051 | G48: -7847 | H48: -6954 | I48: 4853 | J48: -1813 | K48: -1134 | L48: 1217 | M48: 784 | N48: 2434 | O48: -7878 | P48: 3798
A49: 収入合計(B+E+H) | E49: =E11+E26+E41 -> 13622 | F49: =F11+F26+F41 -> 28704 | G49: 62105 | H49: 26441 | I49: 16794 | J49: 22994 | K49: 26889 | L49: 23380 | M49: 30835 | N49: 23978 | O49: 20876 | P49: 22844
A50: 支出合計(C+F+I) | E50: =E20+E34+E47 -> 38946 | F50: =F20+F34+F47 -> 25218 | G50: 130327 | H50: 32413 | I50: 19744 | J50: 36019 | K50: 37746 | L50: 32458 | M50: 35673 | N50: 34512 | O50: 39168 | P50: 22408
A51: 総合資金収支過不足 | E51: =E49-E50 -> -25324 | F51: =F49-F50 -> 3486 | G51: =G49-G50 -> -68222 | H51: -5972 | I51: -2950 | J51: -13025 | K51: -10857 | L51: -9078 | M51: -4838 | N51: -10534 | O51: -18292 | P51: 436
A52: 翌月繰越現金・当座資金(A+D+G+J) | E52: =E4+E21+E35+E48 -> 974676 | F52: =F4+F21+F35+F48 -> 978162 | G52: 909940 | H52: 903968 | I52: 905668 | J52: 892643 | K52: 881786 | L52: 872708 | M52: 867870 | N52: 857336 | O52: 839044 | P52: 839480
A53: 繰越調整 | E53: =SUMIFS(入出金tbl[金額],入出金tbl[内 容],$A53,入出金tbl[年月日],">="&E$3,入出金tbl[年月日],"<"&F$3) -> 0 | F53: =SUMIFS(入出金tbl[金額],入出金tbl[内 容],$A53,入出金tbl[年月日],">="&F$3,入出金tbl[年月日],"<"&G$3) -> 0 | G53: =SUMIFS(入出金tbl[金額],入出金tbl[内 容],$A53,入出金tbl[年月日],">="&G$3,入出金tbl[年月日],"<"&H$3) -> 0 | H53: =SUMIFS(入出金tbl[金額],入出金tbl[内 容],$A53,入出金tbl[年月日],">="&H$3,入出金tbl[年月日],"<"&I$3) -> 4650 | I53: =SUMIFS(入出金tbl[金額],入出金tbl[内 容],$A53,入出金tbl[年月日],">="&I$3,入出金tbl[年月日],"<"&J$3) -> 0 | J53: =SUMIFS(入出金tbl[金額],入出金tbl[内 容],$A53,入出金tbl[年月日],">="&J$3,入出金tbl[年月日],"<"&K$3) -> 0 | K53: =SUMIFS(入出金tbl[金額],入出金tbl[内 容],$A53,入出金tbl[年月日],">="&K$3,入出金tbl[年月日],"<"&L$3) -> 0 | L53: =SUMIFS(入出金tbl[金額],入出金tbl[内 容],$A53,入出金tbl[年月日],">="&L$3,入出金tbl[年月日],"<"&M$3) -> 0 | M53: =SUMIFS(入出金tbl[金額],入出金tbl[内 容],$A53,入出金tbl[年月日],">="&M$3,入出金tbl[年月日],"<"&N$3) -> 0 | N53: =SUMIFS(入出金tbl[金額],入出金tbl[内 容],$A53,入出金tbl[年月日],">="&N$3,入出金tbl[年月日],"<"&O$3) -> 0 | O53: =SUMIFS(入出金tbl[金額],入出金tbl[内 容],$A53,入出金tbl[年月日],">="&O$3,入出金tbl[年月日],"<"&P$3) -> 0 | P53: =SUMIFS(入出金tbl[金額],入出金tbl[内 容],$A53,入出金tbl[年月日],">="&P$3,入出金tbl[年月日],"<"&Q$3) -> 0

Sheet 日繰り表
A1: =科目!W13 -> K-Oneコンサルティング | N1: (円) | X1: (円) | AI1: (円) | AJ1: この列は日付範囲設定のため必要
A2: =YEAR(E2)&"年"&MONTH(E2)&"月の日繰り表" -> 2018年5月の日繰り表 | E2: 2018-05-01 | F2: =E2+1 -> 2018-05-02 | G2: =F2+1 -> 2018-05-03 | H2: 2018-05-04 | I2: 2018-05-05 | J2: 2018-05-06 | K2: 2018-05-07 | L2: 2018-05-08 | M2: 2018-05-09 | N2: 2018-05-10 | O2: 2018-05-11 | P2: 2018-05-12 | Q2: 2018-05-13 | R2: =Q2+1 -> 2018-05-14 | S2: 2018-05-15 | T2: 2018-05-16 | U2: 2018-05-17 | V2: 2018-05-18 | W2: 2018-05-19 | X2: 2018-05-20 | Y2: 2018-05-21 | Z2: 2018-05-22 | AA2: 2018-05-23 | AB2: =AA2+1 -> 2018-05-24 | AC2: 2018-05-25 | AD2: 2018-05-26 | AE2: 2018-05-27 | AF2: 2018-05-28 | AG2: 2018-05-29 | AH2: 2018-05-30 | AI2: =AH2+1 -> 2018-05-31 | AJ2: =AI2+1 -> 2018-06-01
A3: 繰越現金・当座資金（A) | E3: =HLOOKUP(E2,資金繰り表!E3:P4,2,FALSE) -> 908618 | F3: =E51+E52 -> 909769 | G3: =F51+F52 -> 910894 | H3: 912045 | I3: 912610 | J3: 913848 | K3: 912982 | L3: 912228 | M3: 910648 | N3: 909352 | O3: 907772 | P3: 906433 | Q3: 905396 | R3: 904707 | S3: 905623 | T3: 907008 | U3: 907221 | V3: 907481 | W3: 907741 | X3: 908256 | Y3: 908771 | Z3: 909560 | AA3: 911905 | AB3: 913203 | AC3: 913854 | AD3: 913913 | AE3: 913996 | AF3: 914461 | AG3: 912201 | AH3: 910696 | AI3: 908504
A4: 経常収支 | B4: 収入 | C4: (1) | D4: =資金繰り表!D5 -> 現金売上 | E4: =SUMIFS(入出金tbl[金額],入出金tbl[内 容],$D4,入出金tbl[年月日],">="&E$2,入出金tbl[年月日],"<"&F$2) -> 0 | F4: =SUMIFS(入出金tbl[金額],入出金tbl[内 容],$D4,入出金tbl[年月日],">="&F$2,入出金tbl[年月日],"<"&G$2) -> 0 | G4: =SUMIFS(入出金tbl[金額],入出金tbl[内 容],$D4,入出金tbl[年月日],">="&G$2,入出金tbl[年月日],"<"&H$2) -> 0 | H4: =SUMIFS(入出金tbl[金額],入出金tbl[内 容],$D4,入出金tbl[年月日],">="&H$2,入出金tbl[年月日],"<"&I$2) -> 0 | I4: =SUMIFS(入出金tbl[金額],入出金tbl[内 容],$D4,入出金tbl[年月日],">="&I$2,入出金tbl[年月日],"<"&J$2) -> 0 | J4: =SUMIFS(入出金tbl[金額],入出金tbl[内 容],$D4,入出金tbl[年月日],">="&J$2,入出金tbl[年月日],"<"&K$2) -> 0 | K4: =SUMIFS(入出金tbl[金額],入出金tbl[内 容],$D4,入出金tbl[年月日],">="&K$2,入出金tbl[年月日],"<"&L$2) -> 0 | L4: =SUMIFS(入出金tbl[金額],入出金tbl[内 容],$D4,入出金tbl[年月日],">="&L$2,入出金tbl[年月日],"<"&M$2) -> 0 | M4: =SUMIFS(入出金tbl[金額],入出金tbl[内 容],$D4,入出金tbl[年月日],">="&M$2,入出金tbl[年月日],"<"&N$2) -> 0 | N4: =SUMIFS(入出金tbl[金額],入出金tbl[内 容],$D4,入出金tbl[年月日],">="&N$2,入出金tbl[年月日],"<"&O$2) -> 0 | O4: =SUMIFS(入出金tbl[金額],入出金tbl[内 容],$D4,入出金tbl[年月日],">="&O$2,入出金tbl[年月日],"<"&P$2) -> 0 | P4: =SUMIFS(入出金tbl[金額],入出金tbl[内 容],$D4,入出金tbl[年月日],">="&P$2,入出金tbl[年月日],"<"&Q$2) -> 0 | Q4: =SUMIFS(入出金tbl[金額],入出金tbl[内 容],$D4,入出金tbl[年月日],">="&Q$2,入出金tbl[年月日],"<"&R$2) -> 0 | R4: =SUMIFS(入出金tbl[金額],入出金tbl[内 容],$D4,入出金tbl[年月日],">="&R$2,入出金tbl[年月日],"<"&S$2) -> 1172 | S4: =SUMIFS(入出金tbl[金額],入出金tbl[内 容],$D4,入出金tbl[年月日],">="&S$2,入出金tbl[年月日],"<"&T$2) -> 0 | T4: =SUMIFS(入出金tbl[金額],入出金tbl[内 容],$D4,入出金tbl[年月日],">="&T$2,入出金tbl[年月日],"<"&U$2) -> 0 | U4: =SUMIFS(入出金tbl[金額],入出金tbl[内 容],$D4,入出金tbl[年月日],">="&U$2,入出金tbl[年月日],"<"&V$2) -> 0 | V4: =SUMIFS(入出金tbl[金額],入出金tbl[内 容],$D4,入出金tbl[年月日],">="&V$2,入出金tbl[年月日],"<"&W$2) -> 0 | W4: =SUMIFS(入出金tbl[金額],入出金tbl[内 容],$D4,入出金tbl[年月日],">="&W$2,入出金tbl[年月日],"<"&X$2) -> 0 | X4: =SUMIFS(入出金tbl[金額],入出金tbl[内 容],$D4,入出金tbl[年月日],">="&X$2,入出金tbl[年月日],"<"&Y$2) -> 0 | Y4: =SUMIFS(入出金tbl[金額],入出金tbl[内 容],$D4,入出金tbl[年月日],">="&Y$2,入出金tbl[年月日],"<"&Z$2) -> 0 | Z4: =SUMIFS(入出金tbl[金額],入出金tbl[内 容],$D4,入出金tbl[年月日],">="&Z$2,入出金tbl[年月日],"<"&AA$2) -> 771 | AA4: =SUMIFS(入出金tbl[金額],入出金tbl[内 容],$D4,入出金tbl[年月日],">="&AA$2,入出金tbl[年月日],"<"&AB$2) -> 0 | AB4: =SUMIFS(入出金tbl[金額],入出金tbl[内 容],$D4,入出金tbl[年月日],">="&AB$2,入出金tbl[年月日],"<"&AC$2) -> 0 | AC4: =SUMIFS(入出金tbl[金額],入出金tbl[内 容],$D4,入出金tbl[年月日],">="&AC$2,入出金tbl[年月日],"<"&AD$2) -> 0 | AD4: =SUMIFS(入出金tbl[金額],入出金tbl[内 容],$D4,入出金tbl[年月日],">="&AD$2,入出金tbl[年月日],"<"&AE$2) -> 0 | AE4: =SUMIFS(入出金tbl[金額],入出金tbl[内 容],$D4,入出金tbl[年月日],">="&AE$2,入出金tbl[年月日],"<"&AF$2) -> 0 | AF4: =SUMIFS(入出金tbl[金額],入出金tbl[内 容],$D4,入出金tbl[年月日],">="&AF$2,入出金tbl[年月日],"<"&AG$2) -> 0 | AG4: =SUMIFS(入出金tbl[金額],入出金tbl[内 容],$D4,入出金tbl[年月日],">="&AG$2,入出金tbl[年月日],"<"&AH$2) -> 0 | AH4: =SUMIFS(入出金tbl[金額],入出金tbl[内 容],$D4,入出金tbl[年月日],">="&AH$2,入出金tbl[年月日],"<"&AI$2) -> 0 | AI4: =SUMIFS(入出金tbl[金額],入出金tbl[内 容],$D4,入出金tbl[年月日],">="&AI$2,入出金tbl[年月日],"<"&AJ$2) -> 0
C5: (2) | D5: =資金繰り表!D6 -> 売掛金回収 | E5: =SUMIFS(入出金tbl[金額],入出金tbl[内 容],$D5,入出金tbl[年月日],">="&E$2,入出金tbl[年月日],"<"&F$2) -> 0 | F5: =SUMIFS(入出金tbl[金額],入出金tbl[内 容],$D5,入出金tbl[年月日],">="&F$2,入出金tbl[年月日],"<"&G$2) -> 0 | G5: =SUMIFS(入出金tbl[金額],入出金tbl[内 容],$D5,入出金tbl[年月日],">="&G$2,入出金tbl[年月日],"<"&H$2) -> 0 | H5: =SUMIFS(入出金tbl[金額],入出金tbl[内 容],$D5,入出金tbl[年月日],">="&H$2,入出金tbl[年月日],"<"&I$2) -> 0 | I5: =SUMIFS(入出金tbl[金額],入出金tbl[内 容],$D5,入出金tbl[年月日],">="&I$2,入出金tbl[年月日],"<"&J$2) -> 0 | J5: =SUMIFS(入出金tbl[金額],入出金tbl[内 容],$D5,入出金tbl[年月日],">="&J$2,入出金tbl[年月日],"<"&K$2) -> 0 | K5: =SUMIFS(入出金tbl[金額],入出金tbl[内 容],$D5,入出金tbl[年月日],">="&K$2,入出金tbl[年月日],"<"&L$2) -> 0 | L5: =SUMIFS(入出金tbl[金額],入出金tbl[内 容],$D5,入出金tbl[年月日],">="&L$2,入出金tbl[年月日],"<"&M$2) -> 0 | M5: =SUMIFS(入出金tbl[金額],入出金tbl[内 容],$D5,入出金tbl[年月日],">="&M$2,入出金tbl[年月日],"<"&N$2) -> 0 | N5: =SUMIFS(入出金tbl[金額],入出金tbl[内 容],$D5,入出金tbl[年月日],">="&N$2,入出金tbl[年月日],"<"&O$2) -> 0 | O5: =SUMIFS(入出金tbl[金額],入出金tbl[内 容],$D5,入出金tbl[年月日],">="&O$2,入出金tbl[年月日],"<"&P$2) -> 0 | P5: =SUMIFS(入出金tbl[金額],入出金tbl[内 容],$D5,入出金tbl[年月日],">="&P$2,入出金tbl[年月日],"<"&Q$2) -> 0 | Q5: =SUMIFS(入出金tbl[金額],入出金tbl[内 容],$D5,入出金tbl[年月日],">="&Q$2,入出金tbl[年月日],"<"&R$2) -> 0 | R5: =SUMIFS(入出金tbl[金額],入出金tbl[内 容],$D5,入出金tbl[年月日],">="&R$2,入出金tbl[年月日],"<"&S$2) -> 0 | S5: =SUMIFS(入出金tbl[金額],入出金tbl[内 容],$D5,入出金tbl[年月日],">="&S$2,入出金tbl[年月日],"<"&T$2) -> 213 | T5: =SUMIFS(入出金tbl[金額],入出金tbl[内 容],$D5,入出金tbl[年月日],">="&T$2,入出金tbl[年月日],"<"&U$2) -> 0 | U5: =SUMIFS(入出金tbl[金額],入出金tbl[内 容],$D5,入出金tbl[年月日],">="&U$2,入出金tbl[年月日],"<"&V$2) -> 0 | V5: =SUMIFS(入出金tbl[金額],入出金tbl[内 容],$D5,入出金tbl[年月日],">="&V$2,入出金tbl[年月日],"<"&W$2) -> 0 | W5: =SUMIFS(入出金tbl[金額],入出金tbl[内 容],$D5,入出金tbl[年月日],">="&W$2,入出金tbl[年月日],"<"&X$2) -> 0 | X5: =SUMIFS(入出金tbl[金額],入出金tbl[内 容],$D5,入出金tbl[年月日],">="&X$2,入出金tbl[年月日],"<"&Y$2) -> 0 | Y5: =SUMIFS(入出金tbl[金額],入出金tbl[内 容],$D5,入出金tbl[年月日],">="&Y$2,入出金tbl[年月日],"<"&Z$2) -> 0 | Z5: =SUMIFS(入出金tbl[金額],入出金tbl[内 容],$D5,入出金tbl[年月日],">="&Z$2,入出金tbl[年月日],"<"&AA$2) -> 785 | AA5: =SUMIFS(入出金tbl[金額],入出金tbl[内 容],$D5,入出金tbl[年月日],">="&AA$2,入出金tbl[年月日],"<"&AB$2) -> 0 | AB5: =SUMIFS(入出金tbl[金額],入出金tbl[内 容],$D5,入出金tbl[年月日],">="&AB$2,入出金tbl[年月日],"<"&AC$2) -> 0 | AC5: =SUMIFS(入出金tbl[金額],入出金tbl[内 容],$D5,入出金tbl[年月日],">="&AC$2,入出金tbl[年月日],"<"&AD$2) -> 0 | AD5: =SUMIFS(入出金tbl[金額],入出金tbl[内 容],$D5,入出金tbl[年月日],">="&AD$2,入出金tbl[年月日],"<"&AE$2) -> 0 | AE5: =SUMIFS(入出金tbl[金額],入出金tbl[内 容],$D5,入出金tbl[年月日],">="&AE$2,入出金tbl[年月日],"<"&AF$2) -> 0 | AF5: =SUMIFS(入出金tbl[金額],入出金tbl[内 容],$D5,入出金tbl[年月日],">="&AF$2,入出金tbl[年月日],"<"&AG$2) -> 0 | AG5: =SUMIFS(入出金tbl[金額],入出金tbl[内 容],$D5,入出金tbl[年月日],">="&AG$2,入出金tbl[年月日],"<"&AH$2) -> 0 | AH5: =SUMIFS(入出金tbl[金額],入出金tbl[内 容],$D5,入出金tbl[年月日],">="&AH$2,入出金tbl[年月日],"<"&AI$2) -> 0 | AI5: =SUMIFS(入出金tbl[金額],入出金tbl[内 容],$D5,入出金tbl[年月日],">="&AI$2,入出金tbl[年月日],"<"&AJ$2) -> 0
C6: (3) | D6: =資金繰り表!D7 -> 受取手形回収 | E6: =SUMIFS(入出金tbl[金額],入出金tbl[内 容],$D6,入出金tbl[年月日],">="&E$2,入出金tbl[年月日],"<"&F$2) -> 0 | F6: =SUMIFS(入出金tbl[金額],入出金tbl[内 容],$D6,入出金tbl[年月日],">="&F$2,入出金tbl[年月日],"<"&G$2) -> 0 | G6: =SUMIFS(入出金tbl[金額],入出金tbl[内 容],$D6,入出金tbl[年月日],">="&G$2,入出金tbl[年月日],"<"&H$2) -> 0 | H6: =SUMIFS(入出金tbl[金額],入出金tbl[内 容],$D6,入出金tbl[年月日],">="&H$2,入出金tbl[年月日],"<"&I$2) -> 0 | I6: =SUMIFS(入出金tbl[金額],入出金tbl[内 容],$D6,入出金tbl[年月日],">="&I$2,入出金tbl[年月日],"<"&J$2) -> 0 | J6: =SUMIFS(入出金tbl[金額],入出金tbl[内 容],$D6,入出金tbl[年月日],">="&J$2,入出金tbl[年月日],"<"&K$2) -> 0 | K6: =SUMIFS(入出金tbl[金額],入出金tbl[内 容],$D6,入出金tbl[年月日],">="&K$2,入出金tbl[年月日],"<"&L$2) -> 0 | L6: =SUMIFS(入出金tbl[金額],入出金tbl[内 容],$D6,入出金tbl[年月日],">="&L$2,入出金tbl[年月日],"<"&M$2) -> 0 | M6: =SUMIFS(入出金tbl[金額],入出金tbl[内 容],$D6,入出金tbl[年月日],">="&M$2,入出金tbl[年月日],"<"&N$2) -> 0 | N6: =SUMIFS(入出金tbl[金額],入出金tbl[内 容],$D6,入出金tbl[年月日],">="&N$2,入出金tbl[年月日],"<"&O$2) -> 0 | O6: =SUMIFS(入出金tbl[金額],入出金tbl[内 容],$D6,入出金tbl[年月日],">="&O$2,入出金tbl[年月日],"<"&P$2) -> 0 | P6: =SUMIFS(入出金tbl[金額],入出金tbl[内 容],$D6,入出金tbl[年月日],">="&P$2,入出金tbl[年月日],"<"&Q$2) -> 0 | Q6: =SUMIFS(入出金tbl[金額],入出金tbl[内 容],$D6,入出金tbl[年月日],">="&Q$2,入出金tbl[年月日],"<"&R$2) -> 0 | R6: =SUMIFS(入出金tbl[金額],入出金tbl[内 容],$D6,入出金tbl[年月日],">="&R$2,入出金tbl[年月日],"<"&S$2) -> 0 | S6: =SUMIFS(入出金tbl[金額],入出金tbl[内 容],$D6,入出金tbl[年月日],">="&S$2,入出金tbl[年月日],"<"&T$2) -> 1172 | T6: =SUMIFS(入出金tbl[金額],入出金tbl[内 容],$D6,入出金tbl[年月日],">="&T$2,入出金tbl[年月日],"<"&U$2) -> 0 | U6: =SUMIFS(入出金tbl[金額],入出金tbl[内 容],$D6,入出金tbl[年月日],">="&U$2,入出金tbl[年月日],"<"&V$2) -> 0 | V6: =SUMIFS(入出金tbl[金額],入出金tbl[内 容],$D6,入出金tbl[年月日],">="&V$2,入出金tbl[年月日],"<"&W$2) -> 0 | W6: =SUMIFS(入出金tbl[金額],入出金tbl[内 容],$D6,入出金tbl[年月日],">="&W$2,入出金tbl[年月日],"<"&X$2) -> 0 | X6: =SUMIFS(入出金tbl[金額],入出金tbl[内 容],$D6,入出金tbl[年月日],">="&X$2,入出金tbl[年月日],"<"&Y$2) -> 0 | Y6: =SUMIFS(入出金tbl[金額],入出金tbl[内 容],$D6,入出金tbl[年月日],">="&Y$2,入出金tbl[年月日],"<"&Z$2) -> 0 | Z6: =SUMIFS(入出金tbl[金額],入出金tbl[内 容],$D6,入出金tbl[年月日],">="&Z$2,入出金tbl[年月日],"<"&AA$2) -> 0 | AA6: =SUMIFS(入出金tbl[金額],入出金tbl[内 容],$D6,入出金tbl[年月日],">="&AA$2,入出金tbl[年月日],"<"&AB$2) -> 771 | AB6: =SUMIFS(入出金tbl[金額],入出金tbl[内 容],$D6,入出金tbl[年月日],">="&AB$2,入出金tbl[年月日],"<"&AC$2) -> 0 | AC6: =SUMIFS(入出金tbl[金額],入出金tbl[内 容],$D6,入出金tbl[年月日],">="&AC$2,入出金tbl[年月日],"<"&AD$2) -> 0 | AD6: =SUMIFS(入出金tbl[金額],入出金tbl[内 容],$D6,入出金tbl[年月日],">="&AD$2,入出金tbl[年月日],"<"&AE$2) -> 0 | AE6: =SUMIFS(入出金tbl[金額],入出金tbl[内 容],$D6,入出金tbl[年月日],">="&AE$2,入出金tbl[年月日],"<"&AF$2) -> 0 | AF6: =SUMIFS(入出金tbl[金額],入出金tbl[内 容],$D6,入出金tbl[年月日],">="&AF$2,入出金tbl[年月日],"<"&AG$2) -> 0 | AG6: =SUMIFS(入出金tbl[金額],入出金tbl[内 容],$D6,入出金tbl[年月日],">="&AG$2,入出金tbl[年月日],"<"&AH$2) -> 0 | AH6: =SUMIFS(入出金tbl[金額],入出金tbl[内 容],$D6,入出金tbl[年月日],">="&AH$2,入出金tbl[年月日],"<"&AI$2) -> 0 | AI6: =SUMIFS(入出金tbl[金額],入出金tbl[内 容],$D6,入出金tbl[年月日],">="&AI$2,入出金tbl[年月日],"<"&AJ$2) -> 0
C7: (4) | D7: =資金繰り表!D8 -> 手形割引 | E7: =SUMIFS(入出金tbl[金額],入出金tbl[内 容],$D7,入出金tbl[年月日],">="&E$2,入出金tbl[年月日],"<"&F$2) -> 0 | F7: =SUMIFS(入出金tbl[金額],入出金tbl[内 容],$D7,入出金tbl[年月日],">="&F$2,入出金tbl[年月日],"<"&G$2) -> 0 | G7: =SUMIFS(入出金tbl[金額],入出金tbl[内 容],$D7,入出金tbl[年月日],">="&G$2,入出金tbl[年月日],"<"&H$2) -> 0 | H7: =SUMIFS(入出金tbl[金額],入出金tbl[内 容],$D7,入出金tbl[年月日],">="&H$2,入出金tbl[年月日],"<"&I$2) -> 0 | I7: =SUMIFS(入出金tbl[金額],入出金tbl[内 容],$D7,入出金tbl[年月日],">="&I$2,入出金tbl[年月日],"<"&J$2) -> 0 | J7: =SUMIFS(入出金tbl[金額],入出金tbl[内 容],$D7,入出金tbl[年月日],">="&J$2,入出金tbl[年月日],"<"&K$2) -> 0 | K7: =SUMIFS(入出金tbl[金額],入出金tbl[内 容],$D7,入出金tbl[年月日],">="&K$2,入出金tbl[年月日],"<"&L$2) -> 0 | L7: =SUMIFS(入出金tbl[金額],入出金tbl[内 容],$D7,入出金tbl[年月日],">="&L$2,入出金tbl[年月日],"<"&M$2) -> 0 | M7: =SUMIFS(入出金tbl[金額],入出金tbl[内 容],$D7,入出金tbl[年月日],">="&M$2,入出金tbl[年月日],"<"&N$2) -> 0 | N7: =SUMIFS(入出金tbl[金額],入出金tbl[内 容],$D7,入出金tbl[年月日],">="&N$2,入出金tbl[年月日],"<"&O$2) -> 0 | O7: =SUMIFS(入出金tbl[金額],入出金tbl[内 容],$D7,入出金tbl[年月日],">="&O$2,入出金tbl[年月日],"<"&P$2) -> 0 | P7: =SUMIFS(入出金tbl[金額],入出金tbl[内 容],$D7,入出金tbl[年月日],">="&P$2,入出金tbl[年月日],"<"&Q$2) -> 0 | Q7: =SUMIFS(入出金tbl[金額],入出金tbl[内 容],$D7,入出金tbl[年月日],">="&Q$2,入出金tbl[年月日],"<"&R$2) -> 0 | R7: =SUMIFS(入出金tbl[金額],入出金tbl[内 容],$D7,入出金tbl[年月日],">="&R$2,入出金tbl[年月日],"<"&S$2) -> 0 | S7: =SUMIFS(入出金tbl[金額],入出金tbl[内 容],$D7,入出金tbl[年月日],">="&S$2,入出金tbl[年月日],"<"&T$2) -> 0 | T7: =SUMIFS(入出金tbl[金額],入出金tbl[内 容],$D7,入出金tbl[年月日],">="&T$2,入出金tbl[年月日],"<"&U$2) -> 213 | U7: =SUMIFS(入出金tbl[金額],入出金tbl[内 容],$D7,入出金tbl[年月日],">="&U$2,入出金tbl[年月日],"<"&V$2) -> 0 | V7: =SUMIFS(入出金tbl[金額],入出金tbl[内 容],$D7,入出金tbl[年月日],">="&V$2,入出金tbl[年月日],"<"&W$2) -> 0 | W7: =SUMIFS(入出金tbl[金額],入出金tbl[内 容],$D7,入出金tbl[年月日],">="&W$2,入出金tbl[年月日],"<"&X$2) -> 0 | X7: =SUMIFS(入出金tbl[金額],入出金tbl[内 容],$D7,入出金tbl[年月日],">="&X$2,入出金tbl[年月日],"<"&Y$2) -> 0 | Y7: =SUMIFS(入出金tbl[金額],入出金tbl[内 容],$D7,入出金tbl[年月日],">="&Y$2,入出金tbl[年月日],"<"&Z$2) -> 0 | Z7: =SUMIFS(入出金tbl[金額],入出金tbl[内 容],$D7,入出金tbl[年月日],">="&Z$2,入出金tbl[年月日],"<"&AA$2) -> 0 | AA7: =SUMIFS(入出金tbl[金額],入出金tbl[内 容],$D7,入出金tbl[年月日],">="&AA$2,入出金tbl[年月日],"<"&AB$2) -> 464 | AB7: =SUMIFS(入出金tbl[金額],入出金tbl[内 容],$D7,入出金tbl[年月日],">="&AB$2,入出金tbl[年月日],"<"&AC$2) -> 0 | AC7: =SUMIFS(入出金tbl[金額],入出金tbl[内 容],$D7,入出金tbl[年月日],">="&AC$2,入出金tbl[年月日],"<"&AD$2) -> 0 | AD7: =SUMIFS(入出金tbl[金額],入出金tbl[内 容],$D7,入出金tbl[年月日],">="&AD$2,入出金tbl[年月日],"<"&AE$2) -> 0 | AE7: =SUMIFS(入出金tbl[金額],入出金tbl[内 容],$D7,入出金tbl[年月日],">="&AE$2,入出金tbl[年月日],"<"&AF$2) -> 0 | AF7: =SUMIFS(入出金tbl[金額],入出金tbl[内 容],$D7,入出金tbl[年月日],">="&AF$2,入出金tbl[年月日],"<"&AG$2) -> 0 | AG7: =SUMIFS(入出金tbl[金額],入出金tbl[内 容],$D7,入出金tbl[年月日],">="&AG$2,入出金tbl[年月日],"<"&AH$2) -> 0 | AH7: =SUMIFS(入出金tbl[金額],入出金tbl[内 容],$D7,入出金tbl[年月日],">="&AH$2,入出金tbl[年月日],"<"&AI$2) -> 0 | AI7: =SUMIFS(入出金tbl[金額],入出金tbl[内 容],$D7,入出金tbl[年月日],">="&AI$2,入出金tbl[年月日],"<"&AJ$2) -> 0
C8: (5) | D8: =資金繰り表!D9 -> その他収入 | E8: =SUMIFS(入出金tbl[金額],入出金tbl[内 容],$D8,入出金tbl[年月日],">="&E$2,入出金tbl[年月日],"<"&F$2) -> 0 | F8: =SUMIFS(入出金tbl[金額],入出金tbl[内 容],$D8,入出金tbl[年月日],">="&F$2,入出金tbl[年月日],"<"&G$2) -> 0 | G8: =SUMIFS(入出金tbl[金額],入出金tbl[内 容],$D8,入出金tbl[年月日],">="&G$2,入出金tbl[年月日],"<"&H$2) -> 0 | H8: =SUMIFS(入出金tbl[金額],入出金tbl[内 容],$D8,入出金tbl[年月日],">="&H$2,入出金tbl[年月日],"<"&I$2) -> 0 | I8: =SUMIFS(入出金tbl[金額],入出金tbl[内 容],$D8,入出金tbl[年月日],">="&I$2,入出金tbl[年月日],"<"&J$2) -> 0 | J8: =SUMIFS(入出金tbl[金額],入出金tbl[内 容],$D8,入出金tbl[年月日],">="&J$2,入出金tbl[年月日],"<"&K$2) -> 0 | K8: =SUMIFS(入出金tbl[金額],入出金tbl[内 容],$D8,入出金tbl[年月日],">="&K$2,入出金tbl[年月日],"<"&L$2) -> 0 | L8: =SUMIFS(入出金tbl[金額],入出金tbl[内 容],$D8,入出金tbl[年月日],">="&L$2,入出金tbl[年月日],"<"&M$2) -> 0 | M8: =SUMIFS(入出金tbl[金額],入出金tbl[内 容],$D8,入出金tbl[年月日],">="&M$2,入出金tbl[年月日],"<"&N$2) -> 0 | N8: =SUMIFS(入出金tbl[金額],入出金tbl[内 容],$D8,入出金tbl[年月日],">="&N$2,入出金tbl[年月日],"<"&O$2) -> 0 | O8: =SUMIFS(入出金tbl[金額],入出金tbl[内 容],$D8,入出金tbl[年月日],">="&O$2,入出金tbl[年月日],"<"&P$2) -> 0 | P8: =SUMIFS(入出金tbl[金額],入出金tbl[内 容],$D8,入出金tbl[年月日],">="&P$2,入出金tbl[年月日],"<"&Q$2) -> 0 | Q8: =SUMIFS(入出金tbl[金額],入出金tbl[内 容],$D8,入出金tbl[年月日],">="&Q$2,入出金tbl[年月日],"<"&R$2) -> 0 | R8: =SUMIFS(入出金tbl[金額],入出金tbl[内 容],$D8,入出金tbl[年月日],">="&R$2,入出金tbl[年月日],"<"&S$2) -> 0 | S8: =SUMIFS(入出金tbl[金額],入出金tbl[内 容],$D8,入出金tbl[年月日],">="&S$2,入出金tbl[年月日],"<"&T$2) -> 0 | T8: =SUMIFS(入出金tbl[金額],入出金tbl[内 容],$D8,入出金tbl[年月日],">="&T$2,入出金tbl[年月日],"<"&U$2) -> 0 | U8: =SUMIFS(入出金tbl[金額],入出金tbl[内 容],$D8,入出金tbl[年月日],">="&U$2,入出金tbl[年月日],"<"&V$2) -> 260 | V8: =SUMIFS(入出金tbl[金額],入出金tbl[内 容],$D8,入出金tbl[年月日],">="&V$2,入出金tbl[年月日],"<"&W$2) -> 0 | W8: =SUMIFS(入出金tbl[金額],入出金tbl[内 容],$D8,入出金tbl[年月日],">="&W$2,入出金tbl[年月日],"<"&X$2) -> 0 | X8: =SUMIFS(入出金tbl[金額],入出金tbl[内 容],$D8,入出金tbl[年月日],">="&X$2,入出金tbl[年月日],"<"&Y$2) -> 0 | Y8: =SUMIFS(入出金tbl[金額],入出金tbl[内 容],$D8,入出金tbl[年月日],">="&Y$2,入出金tbl[年月日],"<"&Z$2) -> 0 | Z8: =SUMIFS(入出金tbl[金額],入出金tbl[内 容],$D8,入出金tbl[年月日],">="&Z$2,入出金tbl[年月日],"<"&AA$2) -> 0 | AA8: =SUMIFS(入出金tbl[金額],入出金tbl[内 容],$D8,入出金tbl[年月日],">="&AA$2,入出金tbl[年月日],"<"&AB$2) -> 0 | AB8: =SUMIFS(入出金tbl[金額],入出金tbl[内 容],$D8,入出金tbl[年月日],">="&AB$2,入出金tbl[年月日],"<"&AC$2) -> 124 | AC8: =SUMIFS(入出金tbl[金額],入出金tbl[内 容],$D8,入出金tbl[年月日],">="&AC$2,入出金tbl[年月日],"<"&AD$2) -> 0 | AD8: =SUMIFS(入出金tbl[金額],入出金tbl[内 容],$D8,入出金tbl[年月日],">="&AD$2,入出金tbl[年月日],"<"&AE$2) -> 0 | AE8: =SUMIFS(入出金tbl[金額],入出金tbl[内 容],$D8,入出金tbl[年月日],">="&AE$2,入出金tbl[年月日],"<"&AF$2) -> 0 | AF8: =SUMIFS(入出金tbl[金額],入出金tbl[内 容],$D8,入出金tbl[年月日],">="&AF$2,入出金tbl[年月日],"<"&AG$2) -> 0 | AG8: =SUMIFS(入出金tbl[金額],入出金tbl[内 容],$D8,入出金tbl[年月日],">="&AG$2,入出金tbl[年月日],"<"&AH$2) -> 0 | AH8: =SUMIFS(入出金tbl[金額],入出金tbl[内 容],$D8,入出金tbl[年月日],">="&AH$2,入出金tbl[年月日],"<"&AI$2) -> 0 | AI8: =SUMIFS(入出金tbl[金額],入出金tbl[内 容],$D8,入出金tbl[年月日],">="&AI$2,入出金tbl[年月日],"<"&AJ$2) -> 0
C9: (6) | D9: =資金繰り表!D10 -> ---------- | E9: =SUMIFS(入出金tbl[金額],入出金tbl[内 容],$D9,入出金tbl[年月日],">="&E$2,入出金tbl[年月日],"<"&F$2) -> 0 | F9: =SUMIFS(入出金tbl[金額],入出金tbl[内 容],$D9,入出金tbl[年月日],">="&F$2,入出金tbl[年月日],"<"&G$2) -> 0 | G9: =SUMIFS(入出金tbl[金額],入出金tbl[内 容],$D9,入出金tbl[年月日],">="&G$2,入出金tbl[年月日],"<"&H$2) -> 0 | H9: =SUMIFS(入出金tbl[金額],入出金tbl[内 容],$D9,入出金tbl[年月日],">="&H$2,入出金tbl[年月日],"<"&I$2) -> 0 | I9: =SUMIFS(入出金tbl[金額],入出金tbl[内 容],$D9,入出金tbl[年月日],">="&I$2,入出金tbl[年月日],"<"&J$2) -> 0 | J9: =SUMIFS(入出金tbl[金額],入出金tbl[内 容],$D9,入出金tbl[年月日],">="&J$2,入出金tbl[年月日],"<"&K$2) -> 0 | K9: =SUMIFS(入出金tbl[金額],入出金tbl[内 容],$D9,入出金tbl[年月日],">="&K$2,入出金tbl[年月日],"<"&L$2) -> 0 | L9: =SUMIFS(入出金tbl[金額],入出金tbl[内 容],$D9,入出金tbl[年月日],">="&L$2,入出金tbl[年月日],"<"&M$2) -> 0 | M9: =SUMIFS(入出金tbl[金額],入出金tbl[内 容],$D9,入出金tbl[年月日],">="&M$2,入出金tbl[年月日],"<"&N$2) -> 0 | N9: =SUMIFS(入出金tbl[金額],入出金tbl[内 容],$D9,入出金tbl[年月日],">="&N$2,入出金tbl[年月日],"<"&O$2) -> 0 | O9: =SUMIFS(入出金tbl[金額],入出金tbl[内 容],$D9,入出金tbl[年月日],">="&O$2,入出金tbl[年月日],"<"&P$2) -> 0 | P9: =SUMIFS(入出金tbl[金額],入出金tbl[内 容],$D9,入出金tbl[年月日],">="&P$2,入出金tbl[年月日],"<"&Q$2) -> 0 | Q9: =SUMIFS(入出金tbl[金額],入出金tbl[内 容],$D9,入出金tbl[年月日],">="&Q$2,入出金tbl[年月日],"<"&R$2) -> 0 | R9: =SUMIFS(入出金tbl[金額],入出金tbl[内 容],$D9,入出金tbl[年月日],">="&R$2,入出金tbl[年月日],"<"&S$2) -> 0 | S9: =SUMIFS(入出金tbl[金額],入出金tbl[内 容],$D9,入出金tbl[年月日],">="&S$2,入出金tbl[年月日],"<"&T$2) -> 0 | T9: =SUMIFS(入出金tbl[金額],入出金tbl[内 容],$D9,入出金tbl[年月日],">="&T$2,入出金tbl[年月日],"<"&U$2) -> 0 | U9: =SUMIFS(入出金tbl[金額],入出金tbl[内 容],$D9,入出金tbl[年月日],">="&U$2,入出金tbl[年月日],"<"&V$2) -> 0 | V9: =SUMIFS(入出金tbl[金額],入出金tbl[内 容],$D9,入出金tbl[年月日],">="&V$2,入出金tbl[年月日],"<"&W$2) -> 0 | W9: =SUMIFS(入出金tbl[金額],入出金tbl[内 容],$D9,入出金tbl[年月日],">="&W$2,入出金tbl[年月日],"<"&X$2) -> 0 | X9: =SUMIFS(入出金tbl[金額],入出金tbl[内 容],$D9,入出金tbl[年月日],">="&X$2,入出金tbl[年月日],"<"&Y$2) -> 0 | Y9: =SUMIFS(入出金tbl[金額],入出金tbl[内 容],$D9,入出金tbl[年月日],">="&Y$2,入出金tbl[年月日],"<"&Z$2) -> 0 | Z9: =SUMIFS(入出金tbl[金額],入出金tbl[内 容],$D9,入出金tbl[年月日],">="&Z$2,入出金tbl[年月日],"<"&AA$2) -> 0 | AA9: =SUMIFS(入出金tbl[金額],入出金tbl[内 容],$D9,入出金tbl[年月日],">="&AA$2,入出金tbl[年月日],"<"&AB$2) -> 0 | AB9: =SUMIFS(入出金tbl[金額],入出金tbl[内 容],$D9,入出金tbl[年月日],">="&AB$2,入出金tbl[年月日],"<"&AC$2) -> 0 | AC9: =SUMIFS(入出金tbl[金額],入出金tbl[内 容],$D9,入出金tbl[年月日],">="&AC$2,入出金tbl[年月日],"<"&AD$2) -> 0 | AD9: =SUMIFS(入出金tbl[金額],入出金tbl[内 容],$D9,入出金tbl[年月日],">="&AD$2,入出金tbl[年月日],"<"&AE$2) -> 0 | AE9: =SUMIFS(入出金tbl[金額],入出金tbl[内 容],$D9,入出金tbl[年月日],">="&AE$2,入出金tbl[年月日],"<"&AF$2) -> 0 | AF9: =SUMIFS(入出金tbl[金額],入出金tbl[内 容],$D9,入出金tbl[年月日],">="&AF$2,入出金tbl[年月日],"<"&AG$2) -> 0 | AG9: =SUMIFS(入出金tbl[金額],入出金tbl[内 容],$D9,入出金tbl[年月日],">="&AG$2,入出金tbl[年月日],"<"&AH$2) -> 0 | AH9: =SUMIFS(入出金tbl[金額],入出金tbl[内 容],$D9,入出金tbl[年月日],">="&AH$2,入出金tbl[年月日],"<"&AI$2) -> 0 | AI9: =SUMIFS(入出金tbl[金額],入出金tbl[内 容],$D9,入出金tbl[年月日],">="&AI$2,入出金tbl[年月日],"<"&AJ$2) -> 0
D10: 収入合計（B) | E10: =SUM(E4:E9) -> 0 | F10: =SUM(F4:F9) -> 0 | G10: 0 | H10: 0 | I10: 0 | J10: 0 | K10: 0 | L10: 0 | M10: 0 | N10: 0 | O10: 0 | P10: 0 | Q10: 0 | R10: 1172 | S10: 1385 | T10: 213 | U10: 260 | V10: 0 | W10: 0 | X10: 0 | Y10: 0 | Z10: 1556 | AA10: 1235 | AB10: 124 | AC10: 0 | AD10: 0 | AE10: 0 | AF10: 0 | AG10: 0 | AH10: 0 | AI10: 0
B11: 支出 | C11: (1) | D11: =資金繰り表!D12 -> 現金仕入 | E11: =SUMIFS(入出金tbl[金額],入出金tbl[内 容],$D11,入出金tbl[年月日],">="&E$2,入出金tbl[年月日],"<"&F$2) -> 0 | F11: =SUMIFS(入出金tbl[金額],入出金tbl[内 容],$D11,入出金tbl[年月日],">="&F$2,入出金tbl[年月日],"<"&G$2) -> 0 | G11: =SUMIFS(入出金tbl[金額],入出金tbl[内 容],$D11,入出金tbl[年月日],">="&G$2,入出金tbl[年月日],"<"&H$2) -> 0 | H11: =SUMIFS(入出金tbl[金額],入出金tbl[内 容],$D11,入出金tbl[年月日],">="&H$2,入出金tbl[年月日],"<"&I$2) -> 0 | I11: =SUMIFS(入出金tbl[金額],入出金tbl[内 容],$D11,入出金tbl[年月日],">="&I$2,入出金tbl[年月日],"<"&J$2) -> 0 | J11: =SUMIFS(入出金tbl[金額],入出金tbl[内 容],$D11,入出金tbl[年月日],">="&J$2,入出金tbl[年月日],"<"&K$2) -> 673 | K11: =SUMIFS(入出金tbl[金額],入出金tbl[内 容],$D11,入出金tbl[年月日],">="&K$2,入出金tbl[年月日],"<"&L$2) -> 0 | L11: =SUMIFS(入出金tbl[金額],入出金tbl[内 容],$D11,入出金tbl[年月日],">="&L$2,入出金tbl[年月日],"<"&M$2) -> 0 | M11: =SUMIFS(入出金tbl[金額],入出金tbl[内 容],$D11,入出金tbl[年月日],">="&M$2,入出金tbl[年月日],"<"&N$2) -> 0 | N11: =SUMIFS(入出金tbl[金額],入出金tbl[内 容],$D11,入出金tbl[年月日],">="&N$2,入出金tbl[年月日],"<"&O$2) -> 0 | O11: =SUMIFS(入出金tbl[金額],入出金tbl[内 容],$D11,入出金tbl[年月日],">="&O$2,入出金tbl[年月日],"<"&P$2) -> 0 | P11: =SUMIFS(入出金tbl[金額],入出金tbl[内 容],$D11,入出金tbl[年月日],">="&P$2,入出金tbl[年月日],"<"&Q$2) -> 0 | Q11: =SUMIFS(入出金tbl[金額],入出金tbl[内 容],$D11,入出金tbl[年月日],">="&Q$2,入出金tbl[年月日],"<"&R$2) -> 0 | R11: =SUMIFS(入出金tbl[金額],入出金tbl[内 容],$D11,入出金tbl[年月日],">="&R$2,入出金tbl[年月日],"<"&S$2) -> 0 | S11: =SUMIFS(入出金tbl[金額],入出金tbl[内 容],$D11,入出金tbl[年月日],">="&S$2,入出金tbl[年月日],"<"&T$2) -> 0 | T11: =SUMIFS(入出金tbl[金額],入出金tbl[内 容],$D11,入出金tbl[年月日],">="&T$2,入出金tbl[年月日],"<"&U$2) -> 0 | U11: =SUMIFS(入出金tbl[金額],入出金tbl[内 容],$D11,入出金tbl[年月日],">="&U$2,入出金tbl[年月日],"<"&V$2) -> 0 | V11: =SUMIFS(入出金tbl[金額],入出金tbl[内 容],$D11,入出金tbl[年月日],">="&V$2,入出金tbl[年月日],"<"&W$2) -> 0 | W11: =SUMIFS(入出金tbl[金額],入出金tbl[内 容],$D11,入出金tbl[年月日],">="&W$2,入出金tbl[年月日],"<"&X$2) -> 0 | X11: =SUMIFS(入出金tbl[金額],入出金tbl[内 容],$D11,入出金tbl[年月日],">="&X$2,入出金tbl[年月日],"<"&Y$2) -> 0 | Y11: =SUMIFS(入出金tbl[金額],入出金tbl[内 容],$D11,入出金tbl[年月日],">="&Y$2,入出金tbl[年月日],"<"&Z$2) -> 0 | Z11: =SUMIFS(入出金tbl[金額],入出金tbl[内 容],$D11,入出金tbl[年月日],">="&Z$2,入出金tbl[年月日],"<"&AA$2) -> 0 | AA11: =SUMIFS(入出金tbl[金額],入出金tbl[内 容],$D11,入出金tbl[年月日],">="&AA$2,入出金tbl[年月日],"<"&AB$2) -> 0 | AB11: =SUMIFS(入出金tbl[金額],入出金tbl[内 容],$D11,入出金tbl[年月日],">="&AB$2,入出金tbl[年月日],"<"&AC$2) -> 0 | AC11: =SUMIFS(入出金tbl[金額],入出金tbl[内 容],$D11,入出金tbl[年月日],">="&AC$2,入出金tbl[年月日],"<"&AD$2) -> 529 | AD11: =SUMIFS(入出金tbl[金額],入出金tbl[内 容],$D11,入出金tbl[年月日],">="&AD$2,入出金tbl[年月日],"<"&AE$2) -> 0 | AE11: =SUMIFS(入出金tbl[金額],入出金tbl[内 容],$D11,入出金tbl[年月日],">="&AE$2,入出金tbl[年月日],"<"&AF$2) -> 0 | AF11: =SUMIFS(入出金tbl[金額],入出金tbl[内 容],$D11,入出金tbl[年月日],">="&AF$2,入出金tbl[年月日],"<"&AG$2) -> 536 | AG11: =SUMIFS(入出金tbl[金額],入出金tbl[内 容],$D11,入出金tbl[年月日],">="&AG$2,入出金tbl[年月日],"<"&AH$2) -> 0 | AH11: =SUMIFS(入出金tbl[金額],入出金tbl[内 容],$D11,入出金tbl[年月日],">="&AH$2,入出金tbl[年月日],"<"&AI$2) -> 0 | AI11: =SUMIFS(入出金tbl[金額],入出金tbl[内 容],$D11,入出金tbl[年月日],">="&AI$2,入出金tbl[年月日],"<"&AJ$2) -> 0
C12: (2) | D12: =資金繰り表!D13 -> 買掛金支払 | E12: =SUMIFS(入出金tbl[金額],入出金tbl[内 容],$D12,入出金tbl[年月日],">="&E$2,入出金tbl[年月日],"<"&F$2) -> 0 | F12: =SUMIFS(入出金tbl[金額],入出金tbl[内 容],$D12,入出金tbl[年月日],">="&F$2,入出金tbl[年月日],"<"&G$2) -> 0 | G12: =SUMIFS(入出金tbl[金額],入出金tbl[内 容],$D12,入出金tbl[年月日],">="&G$2,入出金tbl[年月日],"<"&H$2) -> 0 | H12: =SUMIFS(入出金tbl[金額],入出金tbl[内 容],$D12,入出金tbl[年月日],">="&H$2,入出金tbl[年月日],"<"&I$2) -> 0 | I12: =SUMIFS(入出金tbl[金額],入出金tbl[内 容],$D12,入出金tbl[年月日],">="&I$2,入出金tbl[年月日],"<"&J$2) -> 0 | J12: =SUMIFS(入出金tbl[金額],入出金tbl[内 容],$D12,入出金tbl[年月日],">="&J$2,入出金tbl[年月日],"<"&K$2) -> 193 | K12: =SUMIFS(入出金tbl[金額],入出金tbl[内 容],$D12,入出金tbl[年月日],">="&K$2,入出金tbl[年月日],"<"&L$2) -> 0 | L12: =SUMIFS(入出金tbl[金額],入出金tbl[内 容],$D12,入出金tbl[年月日],">="&L$2,入出金tbl[年月日],"<"&M$2) -> 0 | M12: =SUMIFS(入出金tbl[金額],入出金tbl[内 容],$D12,入出金tbl[年月日],">="&M$2,入出金tbl[年月日],"<"&N$2) -> 0 | N12: =SUMIFS(入出金tbl[金額],入出金tbl[内 容],$D12,入出金tbl[年月日],">="&N$2,入出金tbl[年月日],"<"&O$2) -> 0 | O12: =SUMIFS(入出金tbl[金額],入出金tbl[内 容],$D12,入出金tbl[年月日],">="&O$2,入出金tbl[年月日],"<"&P$2) -> 0 | P12: =SUMIFS(入出金tbl[金額],入出金tbl[内 容],$D12,入出金tbl[年月日],">="&P$2,入出金tbl[年月日],"<"&Q$2) -> 0 | Q12: =SUMIFS(入出金tbl[金額],入出金tbl[内 容],$D12,入出金tbl[年月日],">="&Q$2,入出金tbl[年月日],"<"&R$2) -> 0 | R12: =SUMIFS(入出金tbl[金額],入出金tbl[内 容],$D12,入出金tbl[年月日],">="&R$2,入出金tbl[年月日],"<"&S$2) -> 0 | S12: =SUMIFS(入出金tbl[金額],入出金tbl[内 容],$D12,入出金tbl[年月日],">="&S$2,入出金tbl[年月日],"<"&T$2) -> 0 | T12: =SUMIFS(入出金tbl[金額],入出金tbl[内 容],$D12,入出金tbl[年月日],">="&T$2,入出金tbl[年月日],"<"&U$2) -> 0 | U12: =SUMIFS(入出金tbl[金額],入出金tbl[内 容],$D12,入出金tbl[年月日],">="&U$2,入出金tbl[年月日],"<"&V$2) -> 0 | V12: =SUMIFS(入出金tbl[金額],入出金tbl[内 容],$D12,入出金tbl[年月日],">="&V$2,入出金tbl[年月日],"<"&W$2) -> 0 | W12: =SUMIFS(入出金tbl[金額],入出金tbl[内 容],$D12,入出金tbl[年月日],">="&W$2,入出金tbl[年月日],"<"&X$2) -> 0 | X12: =SUMIFS(入出金tbl[金額],入出金tbl[内 容],$D12,入出金tbl[年月日],">="&X$2,入出金tbl[年月日],"<"&Y$2) -> 0 | Y12: =SUMIFS(入出金tbl[金額],入出金tbl[内 容],$D12,入出金tbl[年月日],">="&Y$2,入出金tbl[年月日],"<"&Z$2) -> 0 | Z12: =SUMIFS(入出金tbl[金額],入出金tbl[内 容],$D12,入出金tbl[年月日],">="&Z$2,入出金tbl[年月日],"<"&AA$2) -> 0 | AA12: =SUMIFS(入出金tbl[金額],入出金tbl[内 容],$D12,入出金tbl[年月日],">="&AA$2,入出金tbl[年月日],"<"&AB$2) -> 0 | AB12: =SUMIFS(入出金tbl[金額],入出金tbl[内 容],$D12,入出金tbl[年月日],">="&AB$2,入出金tbl[年月日],"<"&AC$2) -> 0 | AC12: =SUMIFS(入出金tbl[金額],入出金tbl[内 容],$D12,入出金tbl[年月日],">="&AC$2,入出金tbl[年月日],"<"&AD$2) -> 0 | AD12: =SUMIFS(入出金tbl[金額],入出金tbl[内 容],$D12,入出金tbl[年月日],">="&AD$2,入出金tbl[年月日],"<"&AE$2) -> 529 | AE12: =SUMIFS(入出金tbl[金額],入出金tbl[内 容],$D12,入出金tbl[年月日],">="&AE$2,入出金tbl[年月日],"<"&AF$2) -> 0 | AF12: =SUMIFS(入出金tbl[金額],入出金tbl[内 容],$D12,入出金tbl[年月日],">="&AF$2,入出金tbl[年月日],"<"&AG$2) -> 473 | AG12: =SUMIFS(入出金tbl[金額],入出金tbl[内 容],$D12,入出金tbl[年月日],">="&AG$2,入出金tbl[年月日],"<"&AH$2) -> 0 | AH12: =SUMIFS(入出金tbl[金額],入出金tbl[内 容],$D12,入出金tbl[年月日],">="&AH$2,入出金tbl[年月日],"<"&AI$2) -> 0 | AI12: =SUMIFS(入出金tbl[金額],入出金tbl[内 容],$D12,入出金tbl[年月日],">="&AI$2,入出金tbl[年月日],"<"&AJ$2) -> 0
C13: (3) | D13: =資金繰り表!D14 -> 手形支払 | E13: =SUMIFS(入出金tbl[金額],入出金tbl[内 容],$D13,入出金tbl[年月日],">="&E$2,入出金tbl[年月日],"<"&F$2) -> 0 | F13: =SUMIFS(入出金tbl[金額],入出金tbl[内 容],$D13,入出金tbl[年月日],">="&F$2,入出金tbl[年月日],"<"&G$2) -> 0 | G13: =SUMIFS(入出金tbl[金額],入出金tbl[内 容],$D13,入出金tbl[年月日],">="&G$2,入出金tbl[年月日],"<"&H$2) -> 0 | H13: =SUMIFS(入出金tbl[金額],入出金tbl[内 容],$D13,入出金tbl[年月日],">="&H$2,入出金tbl[年月日],"<"&I$2) -> 0 | I13: =SUMIFS(入出金tbl[金額],入出金tbl[内 容],$D13,入出金tbl[年月日],">="&I$2,入出金tbl[年月日],"<"&J$2) -> 0 | J13: =SUMIFS(入出金tbl[金額],入出金tbl[内 容],$D13,入出金tbl[年月日],">="&J$2,入出金tbl[年月日],"<"&K$2) -> 0 | K13: =SUMIFS(入出金tbl[金額],入出金tbl[内 容],$D13,入出金tbl[年月日],">="&K$2,入出金tbl[年月日],"<"&L$2) -> 561 | L13: =SUMIFS(入出金tbl[金額],入出金tbl[内 容],$D13,入出金tbl[年月日],">="&L$2,入出金tbl[年月日],"<"&M$2) -> 0 | M13: =SUMIFS(入出金tbl[金額],入出金tbl[内 容],$D13,入出金tbl[年月日],">="&M$2,入出金tbl[年月日],"<"&N$2) -> 0 | N13: =SUMIFS(入出金tbl[金額],入出金tbl[内 容],$D13,入出金tbl[年月日],">="&N$2,入出金tbl[年月日],"<"&O$2) -> 0 | O13: =SUMIFS(入出金tbl[金額],入出金tbl[内 容],$D13,入出金tbl[年月日],">="&O$2,入出金tbl[年月日],"<"&P$2) -> 0 | P13: =SUMIFS(入出金tbl[金額],入出金tbl[内 容],$D13,入出金tbl[年月日],">="&P$2,入出金tbl[年月日],"<"&Q$2) -> 0 | Q13: =SUMIFS(入出金tbl[金額],入出金tbl[内 容],$D13,入出金tbl[年月日],">="&Q$2,入出金tbl[年月日],"<"&R$2) -> 0 | R13: =SUMIFS(入出金tbl[金額],入出金tbl[内 容],$D13,入出金tbl[年月日],">="&R$2,入出金tbl[年月日],"<"&S$2) -> 0 | S13: =SUMIFS(入出金tbl[金額],入出金tbl[内 容],$D13,入出金tbl[年月日],">="&S$2,入出金tbl[年月日],"<"&T$2) -> 0 | T13: =SUMIFS(入出金tbl[金額],入出金tbl[内 容],$D13,入出金tbl[年月日],">="&T$2,入出金tbl[年月日],"<"&U$2) -> 0 | U13: =SUMIFS(入出金tbl[金額],入出金tbl[内 容],$D13,入出金tbl[年月日],">="&U$2,入出金tbl[年月日],"<"&V$2) -> 0 | V13: =SUMIFS(入出金tbl[金額],入出金tbl[内 容],$D13,入出金tbl[年月日],">="&V$2,入出金tbl[年月日],"<"&W$2) -> 0 | W13: =SUMIFS(入出金tbl[金額],入出金tbl[内 容],$D13,入出金tbl[年月日],">="&W$2,入出金tbl[年月日],"<"&X$2) -> 0 | X13: =SUMIFS(入出金tbl[金額],入出金tbl[内 容],$D13,入出金tbl[年月日],">="&X$2,入出金tbl[年月日],"<"&Y$2) -> 0 | Y13: =SUMIFS(入出金tbl[金額],入出金tbl[内 容],$D13,入出金tbl[年月日],">="&Y$2,入出金tbl[年月日],"<"&Z$2) -> 0 | Z13: =SUMIFS(入出金tbl[金額],入出金tbl[内 容],$D13,入出金tbl[年月日],">="&Z$2,入出金tbl[年月日],"<"&AA$2) -> 0 | AA13: =SUMIFS(入出金tbl[金額],入出金tbl[内 容],$D13,入出金tbl[年月日],">="&AA$2,入出金tbl[年月日],"<"&AB$2) -> 0 | AB13: =SUMIFS(入出金tbl[金額],入出金tbl[内 容],$D13,入出金tbl[年月日],">="&AB$2,入出金tbl[年月日],"<"&AC$2) -> 0 | AC13: =SUMIFS(入出金tbl[金額],入出金tbl[内 容],$D13,入出金tbl[年月日],">="&AC$2,入出金tbl[年月日],"<"&AD$2) -> 0 | AD13: =SUMIFS(入出金tbl[金額],入出金tbl[内 容],$D13,入出金tbl[年月日],">="&AD$2,入出金tbl[年月日],"<"&AE$2) -> 0 | AE13: =SUMIFS(入出金tbl[金額],入出金tbl[内 容],$D13,入出金tbl[年月日],">="&AE$2,入出金tbl[年月日],"<"&AF$2) -> 496 | AF13: =SUMIFS(入出金tbl[金額],入出金tbl[内 容],$D13,入出金tbl[年月日],">="&AF$2,入出金tbl[年月日],"<"&AG$2) -> 488 | AG13: =SUMIFS(入出金tbl[金額],入出金tbl[内 容],$D13,入出金tbl[年月日],">="&AG$2,入出金tbl[年月日],"<"&AH$2) -> 0 | AH13: =SUMIFS(入出金tbl[金額],入出金tbl[内 容],$D13,入出金tbl[年月日],">="&AH$2,入出金tbl[年月日],"<"&AI$2) -> 0 | AI13: =SUMIFS(入出金tbl[金額],入出金tbl[内 容],$D13,入出金tbl[年月日],">="&AI$2,入出金tbl[年月日],"<"&AJ$2) -> 0
C14: (4) | D14: =資金繰り表!D15 -> 賃金・給与現金支払 | E14: =SUMIFS(入出金tbl[金額],入出金tbl[内 容],$D14,入出金tbl[年月日],">="&E$2,入出金tbl[年月日],"<"&F$2) -> 0 | F14: =SUMIFS(入出金tbl[金額],入出金tbl[内 容],$D14,入出金tbl[年月日],">="&F$2,入出金tbl[年月日],"<"&G$2) -> 0 | G14: =SUMIFS(入出金tbl[金額],入出金tbl[内 容],$D14,入出金tbl[年月日],">="&G$2,入出金tbl[年月日],"<"&H$2) -> 0 | H14: =SUMIFS(入出金tbl[金額],入出金tbl[内 容],$D14,入出金tbl[年月日],">="&H$2,入出金tbl[年月日],"<"&I$2) -> 0 | I14: =SUMIFS(入出金tbl[金額],入出金tbl[内 容],$D14,入出金tbl[年月日],">="&I$2,入出金tbl[年月日],"<"&J$2) -> 0 | J14: =SUMIFS(入出金tbl[金額],入出金tbl[内 容],$D14,入出金tbl[年月日],">="&J$2,入出金tbl[年月日],"<"&K$2) -> 0 | K14: =SUMIFS(入出金tbl[金額],入出金tbl[内 容],$D14,入出金tbl[年月日],">="&K$2,入出金tbl[年月日],"<"&L$2) -> 193 | L14: =SUMIFS(入出金tbl[金額],入出金tbl[内 容],$D14,入出金tbl[年月日],">="&L$2,入出金tbl[年月日],"<"&M$2) -> 0 | M14: =SUMIFS(入出金tbl[金額],入出金tbl[内 容],$D14,入出金tbl[年月日],">="&M$2,入出金tbl[年月日],"<"&N$2) -> 0 | N14: =SUMIFS(入出金tbl[金額],入出金tbl[内 容],$D14,入出金tbl[年月日],">="&N$2,入出金tbl[年月日],"<"&O$2) -> 0 | O14: =SUMIFS(入出金tbl[金額],入出金tbl[内 容],$D14,入出金tbl[年月日],">="&O$2,入出金tbl[年月日],"<"&P$2) -> 0 | P14: =SUMIFS(入出金tbl[金額],入出金tbl[内 容],$D14,入出金tbl[年月日],">="&P$2,入出金tbl[年月日],"<"&Q$2) -> 0 | Q14: =SUMIFS(入出金tbl[金額],入出金tbl[内 容],$D14,入出金tbl[年月日],">="&Q$2,入出金tbl[年月日],"<"&R$2) -> 0 | R14: =SUMIFS(入出金tbl[金額],入出金tbl[内 容],$D14,入出金tbl[年月日],">="&R$2,入出金tbl[年月日],"<"&S$2) -> 0 | S14: =SUMIFS(入出金tbl[金額],入出金tbl[内 容],$D14,入出金tbl[年月日],">="&S$2,入出金tbl[年月日],"<"&T$2) -> 0 | T14: =SUMIFS(入出金tbl[金額],入出金tbl[内 容],$D14,入出金tbl[年月日],">="&T$2,入出金tbl[年月日],"<"&U$2) -> 0 | U14: =SUMIFS(入出金tbl[金額],入出金tbl[内 容],$D14,入出金tbl[年月日],">="&U$2,入出金tbl[年月日],"<"&V$2) -> 0 | V14: =SUMIFS(入出金tbl[金額],入出金tbl[内 容],$D14,入出金tbl[年月日],">="&V$2,入出金tbl[年月日],"<"&W$2) -> 0 | W14: =SUMIFS(入出金tbl[金額],入出金tbl[内 容],$D14,入出金tbl[年月日],">="&W$2,入出金tbl[年月日],"<"&X$2) -> 0 | X14: =SUMIFS(入出金tbl[金額],入出金tbl[内 容],$D14,入出金tbl[年月日],">="&X$2,入出金tbl[年月日],"<"&Y$2) -> 0 | Y14: =SUMIFS(入出金tbl[金額],入出金tbl[内 容],$D14,入出金tbl[年月日],">="&Y$2,入出金tbl[年月日],"<"&Z$2) -> 0 | Z14: =SUMIFS(入出金tbl[金額],入出金tbl[内 容],$D14,入出金tbl[年月日],">="&Z$2,入出金tbl[年月日],"<"&AA$2) -> 0 | AA14: =SUMIFS(入出金tbl[金額],入出金tbl[内 容],$D14,入出金tbl[年月日],">="&AA$2,入出金tbl[年月日],"<"&AB$2) -> 0 | AB14: =SUMIFS(入出金tbl[金額],入出金tbl[内 容],$D14,入出金tbl[年月日],">="&AB$2,入出金tbl[年月日],"<"&AC$2) -> 0 | AC14: =SUMIFS(入出金tbl[金額],入出金tbl[内 容],$D14,入出金tbl[年月日],">="&AC$2,入出金tbl[年月日],"<"&AD$2) -> 0 | AD14: =SUMIFS(入出金tbl[金額],入出金tbl[内 容],$D14,入出金tbl[年月日],">="&AD$2,入出金tbl[年月日],"<"&AE$2) -> 0 | AE14: =SUMIFS(入出金tbl[金額],入出金tbl[内 容],$D14,入出金tbl[年月日],">="&AE$2,入出金tbl[年月日],"<"&AF$2) -> 0 | AF14: =SUMIFS(入出金tbl[金額],入出金tbl[内 容],$D14,入出金tbl[年月日],">="&AF$2,入出金tbl[年月日],"<"&AG$2) -> 763 | AG14: =SUMIFS(入出金tbl[金額],入出金tbl[内 容],$D14,入出金tbl[年月日],">="&AG$2,入出金tbl[年月日],"<"&AH$2) -> 536 | AH14: =SUMIFS(入出金tbl[金額],入出金tbl[内 容],$D14,入出金tbl[年月日],">="&AH$2,入出金tbl[年月日],"<"&AI$2) -> 0 | AI14: =SUMIFS(入出金tbl[金額],入出金tbl[内 容],$D14,入出金tbl[年月日],">="&AI$2,入出金tbl[年月日],"<"&AJ$2) -> 0
C15: (5) | D15: =資金繰り表!D16 -> 賞与支払い | E15: =SUMIFS(入出金tbl[金額],入出金tbl[内 容],$D15,入出金tbl[年月日],">="&E$2,入出金tbl[年月日],"<"&F$2) -> 0 | F15: =SUMIFS(入出金tbl[金額],入出金tbl[内 容],$D15,入出金tbl[年月日],">="&F$2,入出金tbl[年月日],"<"&G$2) -> 0 | G15: =SUMIFS(入出金tbl[金額],入出金tbl[内 容],$D15,入出金tbl[年月日],">="&G$2,入出金tbl[年月日],"<"&H$2) -> 0 | H15: =SUMIFS(入出金tbl[金額],入出金tbl[内 容],$D15,入出金tbl[年月日],">="&H$2,入出金tbl[年月日],"<"&I$2) -> 0 | I15: =SUMIFS(入出金tbl[金額],入出金tbl[内 容],$D15,入出金tbl[年月日],">="&I$2,入出金tbl[年月日],"<"&J$2) -> 0 | J15: =SUMIFS(入出金tbl[金額],入出金tbl[内 容],$D15,入出金tbl[年月日],">="&J$2,入出金tbl[年月日],"<"&K$2) -> 0 | K15: =SUMIFS(入出金tbl[金額],入出金tbl[内 容],$D15,入出金tbl[年月日],">="&K$2,入出金tbl[年月日],"<"&L$2) -> 0 | L15: =SUMIFS(入出金tbl[金額],入出金tbl[内 容],$D15,入出金tbl[年月日],">="&L$2,入出金tbl[年月日],"<"&M$2) -> 452 | M15: =SUMIFS(入出金tbl[金額],入出金tbl[内 容],$D15,入出金tbl[年月日],">="&M$2,入出金tbl[年月日],"<"&N$2) -> 0 | N15: =SUMIFS(入出金tbl[金額],入出金tbl[内 容],$D15,入出金tbl[年月日],">="&N$2,入出金tbl[年月日],"<"&O$2) -> 0 | O15: =SUMIFS(入出金tbl[金額],入出金tbl[内 容],$D15,入出金tbl[年月日],">="&O$2,入出金tbl[年月日],"<"&P$2) -> 0 | P15: =SUMIFS(入出金tbl[金額],入出金tbl[内 容],$D15,入出金tbl[年月日],">="&P$2,入出金tbl[年月日],"<"&Q$2) -> 0 | Q15: =SUMIFS(入出金tbl[金額],入出金tbl[内 容],$D15,入出金tbl[年月日],">="&Q$2,入出金tbl[年月日],"<"&R$2) -> 0 | R15: =SUMIFS(入出金tbl[金額],入出金tbl[内 容],$D15,入出金tbl[年月日],">="&R$2,入出金tbl[年月日],"<"&S$2) -> 0 | S15: =SUMIFS(入出金tbl[金額],入出金tbl[内 容],$D15,入出金tbl[年月日],">="&S$2,入出金tbl[年月日],"<"&T$2) -> 0 | T15: =SUMIFS(入出金tbl[金額],入出金tbl[内 容],$D15,入出金tbl[年月日],">="&T$2,入出金tbl[年月日],"<"&U$2) -> 0 | U15: =SUMIFS(入出金tbl[金額],入出金tbl[内 容],$D15,入出金tbl[年月日],">="&U$2,入出金tbl[年月日],"<"&V$2) -> 0 | V15: =SUMIFS(入出金tbl[金額],入出金tbl[内 容],$D15,入出金tbl[年月日],">="&V$2,入出金tbl[年月日],"<"&W$2) -> 0 | W15: =SUMIFS(入出金tbl[金額],入出金tbl[内 容],$D15,入出金tbl[年月日],">="&W$2,入出金tbl[年月日],"<"&X$2) -> 0 | X15: =SUMIFS(入出金tbl[金額],入出金tbl[内 容],$D15,入出金tbl[年月日],">="&X$2,入出金tbl[年月日],"<"&Y$2) -> 0 | Y15: =SUMIFS(入出金tbl[金額],入出金tbl[内 容],$D15,入出金tbl[年月日],">="&Y$2,入出金tbl[年月日],"<"&Z$2) -> 0 | Z15: =SUMIFS(入出金tbl[金額],入出金tbl[内 容],$D15,入出金tbl[年月日],">="&Z$2,入出金tbl[年月日],"<"&AA$2) -> 0 | AA15: =SUMIFS(入出金tbl[金額],入出金tbl[内 容],$D15,入出金tbl[年月日],">="&AA$2,入出金tbl[年月日],"<"&AB$2) -> 0 | AB15: =SUMIFS(入出金tbl[金額],入出金tbl[内 容],$D15,入出金tbl[年月日],">="&AB$2,入出金tbl[年月日],"<"&AC$2) -> 0 | AC15: =SUMIFS(入出金tbl[金額],入出金tbl[内 容],$D15,入出金tbl[年月日],">="&AC$2,入出金tbl[年月日],"<"&AD$2) -> 0 | AD15: =SUMIFS(入出金tbl[金額],入出金tbl[内 容],$D15,入出金tbl[年月日],">="&AD$2,入出金tbl[年月日],"<"&AE$2) -> 0 | AE15: =SUMIFS(入出金tbl[金額],入出金tbl[内 容],$D15,入出金tbl[年月日],">="&AE$2,入出金tbl[年月日],"<"&AF$2) -> 0 | AF15: =SUMIFS(入出金tbl[金額],入出金tbl[内 容],$D15,入出金tbl[年月日],">="&AF$2,入出金tbl[年月日],"<"&AG$2) -> 0 | AG15: =SUMIFS(入出金tbl[金額],入出金tbl[内 容],$D15,入出金tbl[年月日],">="&AG$2,入出金tbl[年月日],"<"&AH$2) -> 969 | AH15: =SUMIFS(入出金tbl[金額],入出金tbl[内 容],$D15,入出金tbl[年月日],">="&AH$2,入出金tbl[年月日],"<"&AI$2) -> 0 | AI15: =SUMIFS(入出金tbl[金額],入出金tbl[内 容],$D15,入出金tbl[年月日],">="&AI$2,入出金tbl[年月日],"<"&AJ$2) -> 0
C16: (6) | D16: =資金繰り表!D17 -> 支払利息・割引料 | E16: =SUMIFS(入出金tbl[金額],入出金tbl[内 容],$D16,入出金tbl[年月日],">="&E$2,入出金tbl[年月日],"<"&F$2) -> 0 | F16: =SUMIFS(入出金tbl[金額],入出金tbl[内 容],$D16,入出金tbl[年月日],">="&F$2,入出金tbl[年月日],"<"&G$2) -> 0 | G16: =SUMIFS(入出金tbl[金額],入出金tbl[内 容],$D16,入出金tbl[年月日],">="&G$2,入出金tbl[年月日],"<"&H$2) -> 0 | H16: =SUMIFS(入出金tbl[金額],入出金tbl[内 容],$D16,入出金tbl[年月日],">="&H$2,入出金tbl[年月日],"<"&I$2) -> 0 | I16: =SUMIFS(入出金tbl[金額],入出金tbl[内 容],$D16,入出金tbl[年月日],">="&I$2,入出金tbl[年月日],"<"&J$2) -> 0 | J16: =SUMIFS(入出金tbl[金額],入出金tbl[内 容],$D16,入出金tbl[年月日],">="&J$2,入出金tbl[年月日],"<"&K$2) -> 0 | K16: =SUMIFS(入出金tbl[金額],入出金tbl[内 容],$D16,入出金tbl[年月日],">="&K$2,入出金tbl[年月日],"<"&L$2) -> 0 | L16: =SUMIFS(入出金tbl[金額],入出金tbl[内 容],$D16,入出金tbl[年月日],">="&L$2,入出金tbl[年月日],"<"&M$2) -> 1128 | M16: =SUMIFS(入出金tbl[金額],入出金tbl[内 容],$D16,入出金tbl[年月日],">="&M$2,入出金tbl[年月日],"<"&N$2) -> 0 | N16: =SUMIFS(入出金tbl[金額],入出金tbl[内 容],$D16,入出金tbl[年月日],">="&N$2,入出金tbl[年月日],"<"&O$2) -> 0 | O16: =SUMIFS(入出金tbl[金額],入出金tbl[内 容],$D16,入出金tbl[年月日],">="&O$2,入出金tbl[年月日],"<"&P$2) -> 0 | P16: =SUMIFS(入出金tbl[金額],入出金tbl[内 容],$D16,入出金tbl[年月日],">="&P$2,入出金tbl[年月日],"<"&Q$2) -> 0 | Q16: =SUMIFS(入出金tbl[金額],入出金tbl[内 容],$D16,入出金tbl[年月日],">="&Q$2,入出金tbl[年月日],"<"&R$2) -> 0 | R16: =SUMIFS(入出金tbl[金額],入出金tbl[内 容],$D16,入出金tbl[年月日],">="&R$2,入出金tbl[年月日],"<"&S$2) -> 0 | S16: =SUMIFS(入出金tbl[金額],入出金tbl[内 容],$D16,入出金tbl[年月日],">="&S$2,入出金tbl[年月日],"<"&T$2) -> 0 | T16: =SUMIFS(入出金tbl[金額],入出金tbl[内 容],$D16,入出金tbl[年月日],">="&T$2,入出金tbl[年月日],"<"&U$2) -> 0 | U16: =SUMIFS(入出金tbl[金額],入出金tbl[内 容],$D16,入出金tbl[年月日],">="&U$2,入出金tbl[年月日],"<"&V$2) -> 0 | V16: =SUMIFS(入出金tbl[金額],入出金tbl[内 容],$D16,入出金tbl[年月日],">="&V$2,入出金tbl[年月日],"<"&W$2) -> 0 | W16: =SUMIFS(入出金tbl[金額],入出金tbl[内 容],$D16,入出金tbl[年月日],">="&W$2,入出金tbl[年月日],"<"&X$2) -> 0 | X16: =SUMIFS(入出金tbl[金額],入出金tbl[内 容],$D16,入出金tbl[年月日],">="&X$2,入出金tbl[年月日],"<"&Y$2) -> 0 | Y16: =SUMIFS(入出金tbl[金額],入出金tbl[内 容],$D16,入出金tbl[年月日],">="&Y$2,入出金tbl[年月日],"<"&Z$2) -> 0 | Z16: =SUMIFS(入出金tbl[金額],入出金tbl[内 容],$D16,入出金tbl[年月日],">="&Z$2,入出金tbl[年月日],"<"&AA$2) -> 0 | AA16: =SUMIFS(入出金tbl[金額],入出金tbl[内 容],$D16,入出金tbl[年月日],">="&AA$2,入出金tbl[年月日],"<"&AB$2) -> 0 | AB16: =SUMIFS(入出金tbl[金額],入出金tbl[内 容],$D16,入出金tbl[年月日],">="&AB$2,入出金tbl[年月日],"<"&AC$2) -> 0 | AC16: =SUMIFS(入出金tbl[金額],入出金tbl[内 容],$D16,入出金tbl[年月日],">="&AC$2,入出金tbl[年月日],"<"&AD$2) -> 0 | AD16: =SUMIFS(入出金tbl[金額],入出金tbl[内 容],$D16,入出金tbl[年月日],">="&AD$2,入出金tbl[年月日],"<"&AE$2) -> 0 | AE16: =SUMIFS(入出金tbl[金額],入出金tbl[内 容],$D16,入出金tbl[年月日],">="&AE$2,入出金tbl[年月日],"<"&AF$2) -> 0 | AF16: =SUMIFS(入出金tbl[金額],入出金tbl[内 容],$D16,入出金tbl[年月日],">="&AF$2,入出金tbl[年月日],"<"&AG$2) -> 0 | AG16: =SUMIFS(入出金tbl[金額],入出金tbl[内 容],$D16,入出金tbl[年月日],">="&AG$2,入出金tbl[年月日],"<"&AH$2) -> 0 | AH16: =SUMIFS(入出金tbl[金額],入出金tbl[内 容],$D16,入出金tbl[年月日],">="&AH$2,入出金tbl[年月日],"<"&AI$2) -> 1299 | AI16: =SUMIFS(入出金tbl[金額],入出金tbl[内 容],$D16,入出金tbl[年月日],">="&AI$2,入出金tbl[年月日],"<"&AJ$2) -> 0
C17: (7) | D17: =資金繰り表!D18 -> 諸経費現金支払 | E17: =SUMIFS(入出金tbl[金額],入出金tbl[内 容],$D17,入出金tbl[年月日],">="&E$2,入出金tbl[年月日],"<"&F$2) -> 0 | F17: =SUMIFS(入出金tbl[金額],入出金tbl[内 容],$D17,入出金tbl[年月日],">="&F$2,入出金tbl[年月日],"<"&G$2) -> 0 | G17: =SUMIFS(入出金tbl[金額],入出金tbl[内 容],$D17,入出金tbl[年月日],">="&G$2,入出金tbl[年月日],"<"&H$2) -> 0 | H17: =SUMIFS(入出金tbl[金額],入出金tbl[内 容],$D17,入出金tbl[年月日],">="&H$2,入出金tbl[年月日],"<"&I$2) -> 0 | I17: =SUMIFS(入出金tbl[金額],入出金tbl[内 容],$D17,入出金tbl[年月日],">="&I$2,入出金tbl[年月日],"<"&J$2) -> 0 | J17: =SUMIFS(入出金tbl[金額],入出金tbl[内 容],$D17,入出金tbl[年月日],">="&J$2,入出金tbl[年月日],"<"&K$2) -> 0 | K17: =SUMIFS(入出金tbl[金額],入出金tbl[内 容],$D17,入出金tbl[年月日],">="&K$2,入出金tbl[年月日],"<"&L$2) -> 0 | L17: =SUMIFS(入出金tbl[金額],入出金tbl[内 容],$D17,入出金tbl[年月日],">="&L$2,入出金tbl[年月日],"<"&M$2) -> 0 | M17: =SUMIFS(入出金tbl[金額],入出金tbl[内 容],$D17,入出金tbl[年月日],">="&M$2,入出金tbl[年月日],"<"&N$2) -> 561 | N17: =SUMIFS(入出金tbl[金額],入出金tbl[内 容],$D17,入出金tbl[年月日],">="&N$2,入出金tbl[年月日],"<"&O$2) -> 0 | O17: =SUMIFS(入出金tbl[金額],入出金tbl[内 容],$D17,入出金tbl[年月日],">="&O$2,入出金tbl[年月日],"<"&P$2) -> 0 | P17: =SUMIFS(入出金tbl[金額],入出金tbl[内 容],$D17,入出金tbl[年月日],">="&P$2,入出金tbl[年月日],"<"&Q$2) -> 0 | Q17: =SUMIFS(入出金tbl[金額],入出金tbl[内 容],$D17,入出金tbl[年月日],">="&Q$2,入出金tbl[年月日],"<"&R$2) -> 0 | R17: =SUMIFS(入出金tbl[金額],入出金tbl[内 容],$D17,入出金tbl[年月日],">="&R$2,入出金tbl[年月日],"<"&S$2) -> 0 | S17: =SUMIFS(入出金tbl[金額],入出金tbl[内 容],$D17,入出金tbl[年月日],">="&S$2,入出金tbl[年月日],"<"&T$2) -> 0 | T17: =SUMIFS(入出金tbl[金額],入出金tbl[内 容],$D17,入出金tbl[年月日],">="&T$2,入出金tbl[年月日],"<"&U$2) -> 0 | U17: =SUMIFS(入出金tbl[金額],入出金tbl[内 容],$D17,入出金tbl[年月日],">="&U$2,入出金tbl[年月日],"<"&V$2) -> 0 | V17: =SUMIFS(入出金tbl[金額],入出金tbl[内 容],$D17,入出金tbl[年月日],">="&V$2,入出金tbl[年月日],"<"&W$2) -> 0 | W17: =SUMIFS(入出金tbl[金額],入出金tbl[内 容],$D17,入出金tbl[年月日],">="&W$2,入出金tbl[年月日],"<"&X$2) -> 0 | X17: =SUMIFS(入出金tbl[金額],入出金tbl[内 容],$D17,入出金tbl[年月日],">="&X$2,入出金tbl[年月日],"<"&Y$2) -> 0 | Y17: =SUMIFS(入出金tbl[金額],入出金tbl[内 容],$D17,入出金tbl[年月日],">="&Y$2,入出金tbl[年月日],"<"&Z$2) -> 0 | Z17: =SUMIFS(入出金tbl[金額],入出金tbl[内 容],$D17,入出金tbl[年月日],">="&Z$2,入出金tbl[年月日],"<"&AA$2) -> 0 | AA17: =SUMIFS(入出金tbl[金額],入出金tbl[内 容],$D17,入出金tbl[年月日],">="&AA$2,入出金tbl[年月日],"<"&AB$2) -> 0 | AB17: =SUMIFS(入出金tbl[金額],入出金tbl[内 容],$D17,入出金tbl[年月日],">="&AB$2,入出金tbl[年月日],"<"&AC$2) -> 0 | AC17: =SUMIFS(入出金tbl[金額],入出金tbl[内 容],$D17,入出金tbl[年月日],">="&AC$2,入出金tbl[年月日],"<"&AD$2) -> 0 | AD17: =SUMIFS(入出金tbl[金額],入出金tbl[内 容],$D17,入出金tbl[年月日],">="&AD$2,入出金tbl[年月日],"<"&AE$2) -> 0 | AE17: =SUMIFS(入出金tbl[金額],入出金tbl[内 容],$D17,入出金tbl[年月日],">="&AE$2,入出金tbl[年月日],"<"&AF$2) -> 0 | AF17: =SUMIFS(入出金tbl[金額],入出金tbl[内 容],$D17,入出金tbl[年月日],">="&AF$2,入出金tbl[年月日],"<"&AG$2) -> 0 | AG17: =SUMIFS(入出金tbl[金額],入出金tbl[内 容],$D17,入出金tbl[年月日],">="&AG$2,入出金tbl[年月日],"<"&AH$2) -> 0 | AH17: =SUMIFS(入出金tbl[金額],入出金tbl[内 容],$D17,入出金tbl[年月日],">="&AH$2,入出金tbl[年月日],"<"&AI$2) -> 893 | AI17: =SUMIFS(入出金tbl[金額],入出金tbl[内 容],$D17,入出金tbl[年月日],">="&AI$2,入出金tbl[年月日],"<"&AJ$2) -> 1125
C18: (8) | D18: =資金繰り表!D19 -> ---------- | E18: =SUMIFS(入出金tbl[金額],入出金tbl[内 容],$D18,入出金tbl[年月日],">="&E$2,入出金tbl[年月日],"<"&F$2) -> 0 | F18: =SUMIFS(入出金tbl[金額],入出金tbl[内 容],$D18,入出金tbl[年月日],">="&F$2,入出金tbl[年月日],"<"&G$2) -> 0 | G18: =SUMIFS(入出金tbl[金額],入出金tbl[内 容],$D18,入出金tbl[年月日],">="&G$2,入出金tbl[年月日],"<"&H$2) -> 0 | H18: =SUMIFS(入出金tbl[金額],入出金tbl[内 容],$D18,入出金tbl[年月日],">="&H$2,入出金tbl[年月日],"<"&I$2) -> 0 | I18: =SUMIFS(入出金tbl[金額],入出金tbl[内 容],$D18,入出金tbl[年月日],">="&I$2,入出金tbl[年月日],"<"&J$2) -> 0 | J18: =SUMIFS(入出金tbl[金額],入出金tbl[内 容],$D18,入出金tbl[年月日],">="&J$2,入出金tbl[年月日],"<"&K$2) -> 0 | K18: =SUMIFS(入出金tbl[金額],入出金tbl[内 容],$D18,入出金tbl[年月日],">="&K$2,入出金tbl[年月日],"<"&L$2) -> 0 | L18: =SUMIFS(入出金tbl[金額],入出金tbl[内 容],$D18,入出金tbl[年月日],">="&L$2,入出金tbl[年月日],"<"&M$2) -> 0 | M18: =SUMIFS(入出金tbl[金額],入出金tbl[内 容],$D18,入出金tbl[年月日],">="&M$2,入出金tbl[年月日],"<"&N$2) -> 0 | N18: =SUMIFS(入出金tbl[金額],入出金tbl[内 容],$D18,入出金tbl[年月日],">="&N$2,入出金tbl[年月日],"<"&O$2) -> 0 | O18: =SUMIFS(入出金tbl[金額],入出金tbl[内 容],$D18,入出金tbl[年月日],">="&O$2,入出金tbl[年月日],"<"&P$2) -> 0 | P18: =SUMIFS(入出金tbl[金額],入出金tbl[内 容],$D18,入出金tbl[年月日],">="&P$2,入出金tbl[年月日],"<"&Q$2) -> 0 | Q18: =SUMIFS(入出金tbl[金額],入出金tbl[内 容],$D18,入出金tbl[年月日],">="&Q$2,入出金tbl[年月日],"<"&R$2) -> 0 | R18: =SUMIFS(入出金tbl[金額],入出金tbl[内 容],$D18,入出金tbl[年月日],">="&R$2,入出金tbl[年月日],"<"&S$2) -> 0 | S18: =SUMIFS(入出金tbl[金額],入出金tbl[内 容],$D18,入出金tbl[年月日],">="&S$2,入出金tbl[年月日],"<"&T$2) -> 0 | T18: =SUMIFS(入出金tbl[金額],入出金tbl[内 容],$D18,入出金tbl[年月日],">="&T$2,入出金tbl[年月日],"<"&U$2) -> 0 | U18: =SUMIFS(入出金tbl[金額],入出金tbl[内 容],$D18,入出金tbl[年月日],">="&U$2,入出金tbl[年月日],"<"&V$2) -> 0 | V18: =SUMIFS(入出金tbl[金額],入出金tbl[内 容],$D18,入出金tbl[年月日],">="&V$2,入出金tbl[年月日],"<"&W$2) -> 0 | W18: =SUMIFS(入出金tbl[金額],入出金tbl[内 容],$D18,入出金tbl[年月日],">="&W$2,入出金tbl[年月日],"<"&X$2) -> 0 | X18: =SUMIFS(入出金tbl[金額],入出金tbl[内 容],$D18,入出金tbl[年月日],">="&X$2,入出金tbl[年月日],"<"&Y$2) -> 0 | Y18: =SUMIFS(入出金tbl[金額],入出金tbl[内 容],$D18,入出金tbl[年月日],">="&Y$2,入出金tbl[年月日],"<"&Z$2) -> 0 | Z18: =SUMIFS(入出金tbl[金額],入出金tbl[内 容],$D18,入出金tbl[年月日],">="&Z$2,入出金tbl[年月日],"<"&AA$2) -> 0 | AA18: =SUMIFS(入出金tbl[金額],入出金tbl[内 容],$D18,入出金tbl[年月日],">="&AA$2,入出金tbl[年月日],"<"&AB$2) -> 0 | AB18: =SUMIFS(入出金tbl[金額],入出金tbl[内 容],$D18,入出金tbl[年月日],">="&AB$2,入出金tbl[年月日],"<"&AC$2) -> 0 | AC18: =SUMIFS(入出金tbl[金額],入出金tbl[内 容],$D18,入出金tbl[年月日],">="&AC$2,入出金tbl[年月日],"<"&AD$2) -> 0 | AD18: =SUMIFS(入出金tbl[金額],入出金tbl[内 容],$D18,入出金tbl[年月日],">="&AD$2,入出金tbl[年月日],"<"&AE$2) -> 0 | AE18: =SUMIFS(入出金tbl[金額],入出金tbl[内 容],$D18,入出金tbl[年月日],">="&AE$2,入出金tbl[年月日],"<"&AF$2) -> 0 | AF18: =SUMIFS(入出金tbl[金額],入出金tbl[内 容],$D18,入出金tbl[年月日],">="&AF$2,入出金tbl[年月日],"<"&AG$2) -> 0 | AG18: =SUMIFS(入出金tbl[金額],入出金tbl[内 容],$D18,入出金tbl[年月日],">="&AG$2,入出金tbl[年月日],"<"&AH$2) -> 0 | AH18: =SUMIFS(入出金tbl[金額],入出金tbl[内 容],$D18,入出金tbl[年月日],">="&AH$2,入出金tbl[年月日],"<"&AI$2) -> 0 | AI18: =SUMIFS(入出金tbl[金額],入出金tbl[内 容],$D18,入出金tbl[年月日],">="&AI$2,入出金tbl[年月日],"<"&AJ$2) -> 0
D19: 支出合計（C） | E19: =SUM(E11:E18) -> 0 | F19: =SUM(F11:F18) -> 0 | G19: 0 | H19: 0 | I19: 0 | J19: 866 | K19: 754 | L19: 1580 | M19: 561 | N19: 0 | O19: 0 | P19: 0 | Q19: 0 | R19: 0 | S19: 0 | T19: 0 | U19: 0 | V19: 0 | W19: 0 | X19: 0 | Y19: 0 | Z19: 0 | AA19: 0 | AB19: 0 | AC19: 529 | AD19: 529 | AE19: 496 | AF19: 2260 | AG19: 1505 | AH19: 2192 | AI19: 1125
B20: 差引過不足(D=B-C) | E20: =E10-E19 -> 0 | F20: =F10-F19 -> 0 | G20: 0 | H20: 0 | I20: 0 | J20: -866 | K20: -754 | L20: -1580 | M20: -561 | N20: 0 | O20: 0 | P20: 0 | Q20: 0 | R20: 1172 | S20: 1385 | T20: 213 | U20: 260 | V20: 0 | W20: 0 | X20: 0 | Y20: 0 | Z20: 1556 | AA20: 1235 | AB20: 124 | AC20: -529 | AD20: -529 | AE20: -496 | AF20: -2260 | AG20: -1505 | AH20: -2192 | AI20: -1125
A21: 経常外収支 | B21: 収入 | C21: (1) | D21: =資金繰り表!D22 -> 固定資産等売却手取 | E21: =SUMIFS(入出金tbl[金額],入出金tbl[内 容],$D21,入出金tbl[年月日],">="&E$2,入出金tbl[年月日],"<"&F$2) -> 0 | F21: =SUMIFS(入出金tbl[金額],入出金tbl[内 容],$D21,入出金tbl[年月日],">="&F$2,入出金tbl[年月日],"<"&G$2) -> 0 | G21: =SUMIFS(入出金tbl[金額],入出金tbl[内 容],$D21,入出金tbl[年月日],">="&G$2,入出金tbl[年月日],"<"&H$2) -> 0 | H21: =SUMIFS(入出金tbl[金額],入出金tbl[内 容],$D21,入出金tbl[年月日],">="&H$2,入出金tbl[年月日],"<"&I$2) -> 0 | I21: =SUMIFS(入出金tbl[金額],入出金tbl[内 容],$D21,入出金tbl[年月日],">="&I$2,入出金tbl[年月日],"<"&J$2) -> 0 | J21: =SUMIFS(入出金tbl[金額],入出金tbl[内 容],$D21,入出金tbl[年月日],">="&J$2,入出金tbl[年月日],"<"&K$2) -> 0 | K21: =SUMIFS(入出金tbl[金額],入出金tbl[内 容],$D21,入出金tbl[年月日],">="&K$2,入出金tbl[年月日],"<"&L$2) -> 0 | L21: =SUMIFS(入出金tbl[金額],入出金tbl[内 容],$D21,入出金tbl[年月日],">="&L$2,入出金tbl[年月日],"<"&M$2) -> 0 | M21: =SUMIFS(入出金tbl[金額],入出金tbl[内 容],$D21,入出金tbl[年月日],">="&M$2,入出金tbl[年月日],"<"&N$2) -> 0 | N21: =SUMIFS(入出金tbl[金額],入出金tbl[内 容],$D21,入出金tbl[年月日],">="&N$2,入出金tbl[年月日],"<"&O$2) -> 0 | O21: =SUMIFS(入出金tbl[金額],入出金tbl[内 容],$D21,入出金tbl[年月日],">="&O$2,入出金tbl[年月日],"<"&P$2) -> 0 | P21: =SUMIFS(入出金tbl[金額],入出金tbl[内 容],$D21,入出金tbl[年月日],">="&P$2,入出金tbl[年月日],"<"&Q$2) -> 0 | Q21: =SUMIFS(入出金tbl[金額],入出金tbl[内 容],$D21,入出金tbl[年月日],">="&Q$2,入出金tbl[年月日],"<"&R$2) -> 0 | R21: =SUMIFS(入出金tbl[金額],入出金tbl[内 容],$D21,入出金tbl[年月日],">="&R$2,入出金tbl[年月日],"<"&S$2) -> 0 | S21: =SUMIFS(入出金tbl[金額],入出金tbl[内 容],$D21,入出金tbl[年月日],">="&S$2,入出金tbl[年月日],"<"&T$2) -> 0 | T21: =SUMIFS(入出金tbl[金額],入出金tbl[内 容],$D21,入出金tbl[年月日],">="&T$2,入出金tbl[年月日],"<"&U$2) -> 0 | U21: =SUMIFS(入出金tbl[金額],入出金tbl[内 容],$D21,入出金tbl[年月日],">="&U$2,入出金tbl[年月日],"<"&V$2) -> 0 | V21: =SUMIFS(入出金tbl[金額],入出金tbl[内 容],$D21,入出金tbl[年月日],">="&V$2,入出金tbl[年月日],"<"&W$2) -> 260 | W21: =SUMIFS(入出金tbl[金額],入出金tbl[内 容],$D21,入出金tbl[年月日],">="&W$2,入出金tbl[年月日],"<"&X$2) -> 0 | X21: =SUMIFS(入出金tbl[金額],入出金tbl[内 容],$D21,入出金tbl[年月日],">="&X$2,入出金tbl[年月日],"<"&Y$2) -> 0 | Y21: =SUMIFS(入出金tbl[金額],入出金tbl[内 容],$D21,入出金tbl[年月日],">="&Y$2,入出金tbl[年月日],"<"&Z$2) -> 0 | Z21: =SUMIFS(入出金tbl[金額],入出金tbl[内 容],$D21,入出金tbl[年月日],">="&Z$2,入出金tbl[年月日],"<"&AA$2) -> 0 | AA21: =SUMIFS(入出金tbl[金額],入出金tbl[内 容],$D21,入出金tbl[年月日],">="&AA$2,入出金tbl[年月日],"<"&AB$2) -> 0 | AB21: =SUMIFS(入出金tbl[金額],入出金tbl[内 容],$D21,入出金tbl[年月日],">="&AB$2,入出金tbl[年月日],"<"&AC$2) -> 464 | AC21: =SUMIFS(入出金tbl[金額],入出金tbl[内 容],$D21,入出金tbl[年月日],">="&AC$2,入出金tbl[年月日],"<"&AD$2) -> 0 | AD21: =SUMIFS(入出金tbl[金額],入出金tbl[内 容],$D21,入出金tbl[年月日],">="&AD$2,入出金tbl[年月日],"<"&AE$2) -> 0 | AE21: =SUMIFS(入出金tbl[金額],入出金tbl[内 容],$D21,入出金tbl[年月日],">="&AE$2,入出金tbl[年月日],"<"&AF$2) -> 0 | AF21: =SUMIFS(入出金tbl[金額],入出金tbl[内 容],$D21,入出金tbl[年月日],">="&AF$2,入出金tbl[年月日],"<"&AG$2) -> 0 | AG21: =SUMIFS(入出金tbl[金額],入出金tbl[内 容],$D21,入出金tbl[年月日],">="&AG$2,入出金tbl[年月日],"<"&AH$2) -> 0 | AH21: =SUMIFS(入出金tbl[金額],入出金tbl[内 容],$D21,入出金tbl[年月日],">="&AH$2,入出金tbl[年月日],"<"&AI$2) -> 0 | AI21: =SUMIFS(入出金tbl[金額],入出金tbl[内 容],$D21,入出金tbl[年月日],">="&AI$2,入出金tbl[年月日],"<"&AJ$2) -> 0
C22: (2) | D22: =資金繰り表!D23 -> 定期預金等解約 | E22: =SUMIFS(入出金tbl[金額],入出金tbl[内 容],$D22,入出金tbl[年月日],">="&E$2,入出金tbl[年月日],"<"&F$2) -> 1151 | F22: =SUMIFS(入出金tbl[金額],入出金tbl[内 容],$D22,入出金tbl[年月日],">="&F$2,入出金tbl[年月日],"<"&G$2) -> 0 | G22: =SUMIFS(入出金tbl[金額],入出金tbl[内 容],$D22,入出金tbl[年月日],">="&G$2,入出金tbl[年月日],"<"&H$2) -> 0 | H22: =SUMIFS(入出金tbl[金額],入出金tbl[内 容],$D22,入出金tbl[年月日],">="&H$2,入出金tbl[年月日],"<"&I$2) -> 0 | I22: =SUMIFS(入出金tbl[金額],入出金tbl[内 容],$D22,入出金tbl[年月日],">="&I$2,入出金tbl[年月日],"<"&J$2) -> 0 | J22: =SUMIFS(入出金tbl[金額],入出金tbl[内 容],$D22,入出金tbl[年月日],">="&J$2,入出金tbl[年月日],"<"&K$2) -> 0 | K22: =SUMIFS(入出金tbl[金額],入出金tbl[内 容],$D22,入出金tbl[年月日],">="&K$2,入出金tbl[年月日],"<"&L$2) -> 0 | L22: =SUMIFS(入出金tbl[金額],入出金tbl[内 容],$D22,入出金tbl[年月日],">="&L$2,入出金tbl[年月日],"<"&M$2) -> 0 | M22: =SUMIFS(入出金tbl[金額],入出金tbl[内 容],$D22,入出金tbl[年月日],">="&M$2,入出金tbl[年月日],"<"&N$2) -> 0 | N22: =SUMIFS(入出金tbl[金額],入出金tbl[内 容],$D22,入出金tbl[年月日],">="&N$2,入出金tbl[年月日],"<"&O$2) -> 0 | O22: =SUMIFS(入出金tbl[金額],入出金tbl[内 容],$D22,入出金tbl[年月日],">="&O$2,入出金tbl[年月日],"<"&P$2) -> 0 | P22: =SUMIFS(入出金tbl[金額],入出金tbl[内 容],$D22,入出金tbl[年月日],">="&P$2,入出金tbl[年月日],"<"&Q$2) -> 0 | Q22: =SUMIFS(入出金tbl[金額],入出金tbl[内 容],$D22,入出金tbl[年月日],">="&Q$2,入出金tbl[年月日],"<"&R$2) -> 0 | R22: =SUMIFS(入出金tbl[金額],入出金tbl[内 容],$D22,入出金tbl[年月日],">="&R$2,入出金tbl[年月日],"<"&S$2) -> 0 | S22: =SUMIFS(入出金tbl[金額],入出金tbl[内 容],$D22,入出金tbl[年月日],">="&S$2,入出金tbl[年月日],"<"&T$2) -> 0 | T22: =SUMIFS(入出金tbl[金額],入出金tbl[内 容],$D22,入出金tbl[年月日],">="&T$2,入出金tbl[年月日],"<"&U$2) -> 0 | U22: =SUMIFS(入出金tbl[金額],入出金tbl[内 容],$D22,入出金tbl[年月日],">="&U$2,入出金tbl[年月日],"<"&V$2) -> 0 | V22: =SUMIFS(入出金tbl[金額],入出金tbl[内 容],$D22,入出金tbl[年月日],">="&V$2,入出金tbl[年月日],"<"&W$2) -> 0 | W22: =SUMIFS(入出金tbl[金額],入出金tbl[内 容],$D22,入出金tbl[年月日],">="&W$2,入出金tbl[年月日],"<"&X$2) -> 515 | X22: =SUMIFS(入出金tbl[金額],入出金tbl[内 容],$D22,入出金tbl[年月日],">="&X$2,入出金tbl[年月日],"<"&Y$2) -> 0 | Y22: =SUMIFS(入出金tbl[金額],入出金tbl[内 容],$D22,入出金tbl[年月日],">="&Y$2,入出金tbl[年月日],"<"&Z$2) -> 0 | Z22: =SUMIFS(入出金tbl[金額],入出金tbl[内 容],$D22,入出金tbl[年月日],">="&Z$2,入出金tbl[年月日],"<"&AA$2) -> 0 | AA22: =SUMIFS(入出金tbl[金額],入出金tbl[内 容],$D22,入出金tbl[年月日],">="&AA$2,入出金tbl[年月日],"<"&AB$2) -> 0 | AB22: =SUMIFS(入出金tbl[金額],入出金tbl[内 容],$D22,入出金tbl[年月日],">="&AB$2,入出金tbl[年月日],"<"&AC$2) -> 0 | AC22: =SUMIFS(入出金tbl[金額],入出金tbl[内 容],$D22,入出金tbl[年月日],">="&AC$2,入出金tbl[年月日],"<"&AD$2) -> 124 | AD22: =SUMIFS(入出金tbl[金額],入出金tbl[内 容],$D22,入出金tbl[年月日],">="&AD$2,入出金tbl[年月日],"<"&AE$2) -> 0 | AE22: =SUMIFS(入出金tbl[金額],入出金tbl[内 容],$D22,入出金tbl[年月日],">="&AE$2,入出金tbl[年月日],"<"&AF$2) -> 0 | AF22: =SUMIFS(入出金tbl[金額],入出金tbl[内 容],$D22,入出金tbl[年月日],">="&AF$2,入出金tbl[年月日],"<"&AG$2) -> 0 | AG22: =SUMIFS(入出金tbl[金額],入出金tbl[内 容],$D22,入出金tbl[年月日],">="&AG$2,入出金tbl[年月日],"<"&AH$2) -> 0 | AH22: =SUMIFS(入出金tbl[金額],入出金tbl[内 容],$D22,入出金tbl[年月日],">="&AH$2,入出金tbl[年月日],"<"&AI$2) -> 0 | AI22: =SUMIFS(入出金tbl[金額],入出金tbl[内 容],$D22,入出金tbl[年月日],">="&AI$2,入出金tbl[年月日],"<"&AJ$2) -> 0
C23: (3) | D23: =資金繰り表!D24 -> その他臨時収入 | E23: =SUMIFS(入出金tbl[金額],入出金tbl[内 容],$D23,入出金tbl[年月日],">="&E$2,入出金tbl[年月日],"<"&F$2) -> 0 | F23: =SUMIFS(入出金tbl[金額],入出金tbl[内 容],$D23,入出金tbl[年月日],">="&F$2,入出金tbl[年月日],"<"&G$2) -> 1125 | G23: =SUMIFS(入出金tbl[金額],入出金tbl[内 容],$D23,入出金tbl[年月日],">="&G$2,入出金tbl[年月日],"<"&H$2) -> 0 | H23: =SUMIFS(入出金tbl[金額],入出金tbl[内 容],$D23,入出金tbl[年月日],">="&H$2,入出金tbl[年月日],"<"&I$2) -> 0 | I23: =SUMIFS(入出金tbl[金額],入出金tbl[内 容],$D23,入出金tbl[年月日],">="&I$2,入出金tbl[年月日],"<"&J$2) -> 0 | J23: =SUMIFS(入出金tbl[金額],入出金tbl[内 容],$D23,入出金tbl[年月日],">="&J$2,入出金tbl[年月日],"<"&K$2) -> 0 | K23: =SUMIFS(入出金tbl[金額],入出金tbl[内 容],$D23,入出金tbl[年月日],">="&K$2,入出金tbl[年月日],"<"&L$2) -> 0 | L23: =SUMIFS(入出金tbl[金額],入出金tbl[内 容],$D23,入出金tbl[年月日],">="&L$2,入出金tbl[年月日],"<"&M$2) -> 0 | M23: =SUMIFS(入出金tbl[金額],入出金tbl[内 容],$D23,入出金tbl[年月日],">="&M$2,入出金tbl[年月日],"<"&N$2) -> 0 | N23: =SUMIFS(入出金tbl[金額],入出金tbl[内 容],$D23,入出金tbl[年月日],">="&N$2,入出金tbl[年月日],"<"&O$2) -> 0 | O23: =SUMIFS(入出金tbl[金額],入出金tbl[内 容],$D23,入出金tbl[年月日],">="&O$2,入出金tbl[年月日],"<"&P$2) -> 0 | P23: =SUMIFS(入出金tbl[金額],入出金tbl[内 容],$D23,入出金tbl[年月日],">="&P$2,入出金tbl[年月日],"<"&Q$2) -> 0 | Q23: =SUMIFS(入出金tbl[金額],入出金tbl[内 容],$D23,入出金tbl[年月日],">="&Q$2,入出金tbl[年月日],"<"&R$2) -> 0 | R23: =SUMIFS(入出金tbl[金額],入出金tbl[内 容],$D23,入出金tbl[年月日],">="&R$2,入出金tbl[年月日],"<"&S$2) -> 0 | S23: =SUMIFS(入出金tbl[金額],入出金tbl[内 容],$D23,入出金tbl[年月日],">="&S$2,入出金tbl[年月日],"<"&T$2) -> 0 | T23: =SUMIFS(入出金tbl[金額],入出金tbl[内 容],$D23,入出金tbl[年月日],">="&T$2,入出金tbl[年月日],"<"&U$2) -> 0 | U23: =SUMIFS(入出金tbl[金額],入出金tbl[内 容],$D23,入出金tbl[年月日],">="&U$2,入出金tbl[年月日],"<"&V$2) -> 0 | V23: =SUMIFS(入出金tbl[金額],入出金tbl[内 容],$D23,入出金tbl[年月日],">="&V$2,入出金tbl[年月日],"<"&W$2) -> 0 | W23: =SUMIFS(入出金tbl[金額],入出金tbl[内 容],$D23,入出金tbl[年月日],">="&W$2,入出金tbl[年月日],"<"&X$2) -> 0 | X23: =SUMIFS(入出金tbl[金額],入出金tbl[内 容],$D23,入出金tbl[年月日],">="&X$2,入出金tbl[年月日],"<"&Y$2) -> 515 | Y23: =SUMIFS(入出金tbl[金額],入出金tbl[内 容],$D23,入出金tbl[年月日],">="&Y$2,入出金tbl[年月日],"<"&Z$2) -> 0 | Z23: =SUMIFS(入出金tbl[金額],入出金tbl[内 容],$D23,入出金tbl[年月日],">="&Z$2,入出金tbl[年月日],"<"&AA$2) -> 0 | AA23: =SUMIFS(入出金tbl[金額],入出金tbl[内 容],$D23,入出金tbl[年月日],">="&AA$2,入出金tbl[年月日],"<"&AB$2) -> 0 | AB23: =SUMIFS(入出金tbl[金額],入出金tbl[内 容],$D23,入出金tbl[年月日],">="&AB$2,入出金tbl[年月日],"<"&AC$2) -> 0 | AC23: =SUMIFS(入出金tbl[金額],入出金tbl[内 容],$D23,入出金tbl[年月日],">="&AC$2,入出金tbl[年月日],"<"&AD$2) -> 464 | AD23: =SUMIFS(入出金tbl[金額],入出金tbl[内 容],$D23,入出金tbl[年月日],">="&AD$2,入出金tbl[年月日],"<"&AE$2) -> 0 | AE23: =SUMIFS(入出金tbl[金額],入出金tbl[内 容],$D23,入出金tbl[年月日],">="&AE$2,入出金tbl[年月日],"<"&AF$2) -> 0 | AF23: =SUMIFS(入出金tbl[金額],入出金tbl[内 容],$D23,入出金tbl[年月日],">="&AF$2,入出金tbl[年月日],"<"&AG$2) -> 0 | AG23: =SUMIFS(入出金tbl[金額],入出金tbl[内 容],$D23,入出金tbl[年月日],">="&AG$2,入出金tbl[年月日],"<"&AH$2) -> 0 | AH23: =SUMIFS(入出金tbl[金額],入出金tbl[内 容],$D23,入出金tbl[年月日],">="&AH$2,入出金tbl[年月日],"<"&AI$2) -> 0 | AI23: =SUMIFS(入出金tbl[金額],入出金tbl[内 容],$D23,入出金tbl[年月日],">="&AI$2,入出金tbl[年月日],"<"&AJ$2) -> 0
C24: (4) | D24: =資金繰り表!D25 -> ---------- | E24: =SUMIFS(入出金tbl[金額],入出金tbl[内 容],$D24,入出金tbl[年月日],">="&E$2,入出金tbl[年月日],"<"&F$2) -> 0 | F24: =SUMIFS(入出金tbl[金額],入出金tbl[内 容],$D24,入出金tbl[年月日],">="&F$2,入出金tbl[年月日],"<"&G$2) -> 0 | G24: =SUMIFS(入出金tbl[金額],入出金tbl[内 容],$D24,入出金tbl[年月日],">="&G$2,入出金tbl[年月日],"<"&H$2) -> 0 | H24: =SUMIFS(入出金tbl[金額],入出金tbl[内 容],$D24,入出金tbl[年月日],">="&H$2,入出金tbl[年月日],"<"&I$2) -> 0 | I24: =SUMIFS(入出金tbl[金額],入出金tbl[内 容],$D24,入出金tbl[年月日],">="&I$2,入出金tbl[年月日],"<"&J$2) -> 0 | J24: =SUMIFS(入出金tbl[金額],入出金tbl[内 容],$D24,入出金tbl[年月日],">="&J$2,入出金tbl[年月日],"<"&K$2) -> 0 | K24: =SUMIFS(入出金tbl[金額],入出金tbl[内 容],$D24,入出金tbl[年月日],">="&K$2,入出金tbl[年月日],"<"&L$2) -> 0 | L24: =SUMIFS(入出金tbl[金額],入出金tbl[内 容],$D24,入出金tbl[年月日],">="&L$2,入出金tbl[年月日],"<"&M$2) -> 0 | M24: =SUMIFS(入出金tbl[金額],入出金tbl[内 容],$D24,入出金tbl[年月日],">="&M$2,入出金tbl[年月日],"<"&N$2) -> 0 | N24: =SUMIFS(入出金tbl[金額],入出金tbl[内 容],$D24,入出金tbl[年月日],">="&N$2,入出金tbl[年月日],"<"&O$2) -> 0 | O24: =SUMIFS(入出金tbl[金額],入出金tbl[内 容],$D24,入出金tbl[年月日],">="&O$2,入出金tbl[年月日],"<"&P$2) -> 0 | P24: =SUMIFS(入出金tbl[金額],入出金tbl[内 容],$D24,入出金tbl[年月日],">="&P$2,入出金tbl[年月日],"<"&Q$2) -> 0 | Q24: =SUMIFS(入出金tbl[金額],入出金tbl[内 容],$D24,入出金tbl[年月日],">="&Q$2,入出金tbl[年月日],"<"&R$2) -> 0 | R24: =SUMIFS(入出金tbl[金額],入出金tbl[内 容],$D24,入出金tbl[年月日],">="&R$2,入出金tbl[年月日],"<"&S$2) -> 0 | S24: =SUMIFS(入出金tbl[金額],入出金tbl[内 容],$D24,入出金tbl[年月日],">="&S$2,入出金tbl[年月日],"<"&T$2) -> 0 | T24: =SUMIFS(入出金tbl[金額],入出金tbl[内 容],$D24,入出金tbl[年月日],">="&T$2,入出金tbl[年月日],"<"&U$2) -> 0 | U24: =SUMIFS(入出金tbl[金額],入出金tbl[内 容],$D24,入出金tbl[年月日],">="&U$2,入出金tbl[年月日],"<"&V$2) -> 0 | V24: =SUMIFS(入出金tbl[金額],入出金tbl[内 容],$D24,入出金tbl[年月日],">="&V$2,入出金tbl[年月日],"<"&W$2) -> 0 | W24: =SUMIFS(入出金tbl[金額],入出金tbl[内 容],$D24,入出金tbl[年月日],">="&W$2,入出金tbl[年月日],"<"&X$2) -> 0 | X24: =SUMIFS(入出金tbl[金額],入出金tbl[内 容],$D24,入出金tbl[年月日],">="&X$2,入出金tbl[年月日],"<"&Y$2) -> 0 | Y24: =SUMIFS(入出金tbl[金額],入出金tbl[内 容],$D24,入出金tbl[年月日],">="&Y$2,入出金tbl[年月日],"<"&Z$2) -> 0 | Z24: =SUMIFS(入出金tbl[金額],入出金tbl[内 容],$D24,入出金tbl[年月日],">="&Z$2,入出金tbl[年月日],"<"&AA$2) -> 0 | AA24: =SUMIFS(入出金tbl[金額],入出金tbl[内 容],$D24,入出金tbl[年月日],">="&AA$2,入出金tbl[年月日],"<"&AB$2) -> 0 | AB24: =SUMIFS(入出金tbl[金額],入出金tbl[内 容],$D24,入出金tbl[年月日],">="&AB$2,入出金tbl[年月日],"<"&AC$2) -> 0 | AC24: =SUMIFS(入出金tbl[金額],入出金tbl[内 容],$D24,入出金tbl[年月日],">="&AC$2,入出金tbl[年月日],"<"&AD$2) -> 0 | AD24: =SUMIFS(入出金tbl[金額],入出金tbl[内 容],$D24,入出金tbl[年月日],">="&AD$2,入出金tbl[年月日],"<"&AE$2) -> 0 | AE24: =SUMIFS(入出金tbl[金額],入出金tbl[内 容],$D24,入出金tbl[年月日],">="&AE$2,入出金tbl[年月日],"<"&AF$2) -> 0 | AF24: =SUMIFS(入出金tbl[金額],入出金tbl[内 容],$D24,入出金tbl[年月日],">="&AF$2,入出金tbl[年月日],"<"&AG$2) -> 0 | AG24: =SUMIFS(入出金tbl[金額],入出金tbl[内 容],$D24,入出金tbl[年月日],">="&AG$2,入出金tbl[年月日],"<"&AH$2) -> 0 | AH24: =SUMIFS(入出金tbl[金額],入出金tbl[内 容],$D24,入出金tbl[年月日],">="&AH$2,入出金tbl[年月日],"<"&AI$2) -> 0 | AI24: =SUMIFS(入出金tbl[金額],入出金tbl[内 容],$D24,入出金tbl[年月日],">="&AI$2,入出金tbl[年月日],"<"&AJ$2) -> 0
D25: 収入合計(E) | E25: =SUM(E21:E24) -> 1151 | F25: =SUM(F21:F24) -> 1125 | G25: 0 | H25: 0 | I25: 0 | J25: 0 | K25: 0 | L25: 0 | M25: 0 | N25: 0 | O25: 0 | P25: 0 | Q25: 0 | R25: 0 | S25: 0 | T25: 0 | U25: 0 | V25: 260 | W25: 515 | X25: 515 | Y25: 0 | Z25: 0 | AA25: 0 | AB25: 464 | AC25: 588 | AD25: 0 | AE25: 0 | AF25: 0 | AG25: 0 | AH25: 0 | AI25: 0
B26: 支出 | C26: (1) | D26: =資金繰り表!D27 -> 税金 | E26: =SUMIFS(入出金tbl[金額],入出金tbl[内 容],$D26,入出金tbl[年月日],">="&E$2,入出金tbl[年月日],"<"&F$2) -> 0 | F26: =SUMIFS(入出金tbl[金額],入出金tbl[内 容],$D26,入出金tbl[年月日],">="&F$2,入出金tbl[年月日],"<"&G$2) -> 0 | G26: =SUMIFS(入出金tbl[金額],入出金tbl[内 容],$D26,入出金tbl[年月日],">="&G$2,入出金tbl[年月日],"<"&H$2) -> 0 | H26: =SUMIFS(入出金tbl[金額],入出金tbl[内 容],$D26,入出金tbl[年月日],">="&H$2,入出金tbl[年月日],"<"&I$2) -> 0 | I26: =SUMIFS(入出金tbl[金額],入出金tbl[内 容],$D26,入出金tbl[年月日],">="&I$2,入出金tbl[年月日],"<"&J$2) -> 0 | J26: =SUMIFS(入出金tbl[金額],入出金tbl[内 容],$D26,入出金tbl[年月日],">="&J$2,入出金tbl[年月日],"<"&K$2) -> 0 | K26: =SUMIFS(入出金tbl[金額],入出金tbl[内 容],$D26,入出金tbl[年月日],">="&K$2,入出金tbl[年月日],"<"&L$2) -> 0 | L26: =SUMIFS(入出金tbl[金額],入出金tbl[内 容],$D26,入出金tbl[年月日],">="&L$2,入出金tbl[年月日],"<"&M$2) -> 0 | M26: =SUMIFS(入出金tbl[金額],入出金tbl[内 容],$D26,入出金tbl[年月日],">="&M$2,入出金tbl[年月日],"<"&N$2) -> 735 | N26: =SUMIFS(入出金tbl[金額],入出金tbl[内 容],$D26,入出金tbl[年月日],">="&N$2,入出金tbl[年月日],"<"&O$2) -> 0 | O26: =SUMIFS(入出金tbl[金額],入出金tbl[内 容],$D26,入出金tbl[年月日],">="&O$2,入出金tbl[年月日],"<"&P$2) -> 0 | P26: =SUMIFS(入出金tbl[金額],入出金tbl[内 容],$D26,入出金tbl[年月日],">="&P$2,入出金tbl[年月日],"<"&Q$2) -> 0 | Q26: =SUMIFS(入出金tbl[金額],入出金tbl[内 容],$D26,入出金tbl[年月日],">="&Q$2,入出金tbl[年月日],"<"&R$2) -> 0 | R26: =SUMIFS(入出金tbl[金額],入出金tbl[内 容],$D26,入出金tbl[年月日],">="&R$2,入出金tbl[年月日],"<"&S$2) -> 0 | S26: =SUMIFS(入出金tbl[金額],入出金tbl[内 容],$D26,入出金tbl[年月日],">="&S$2,入出金tbl[年月日],"<"&T$2) -> 0 | T26: =SUMIFS(入出金tbl[金額],入出金tbl[内 容],$D26,入出金tbl[年月日],">="&T$2,入出金tbl[年月日],"<"&U$2) -> 0 | U26: =SUMIFS(入出金tbl[金額],入出金tbl[内 容],$D26,入出金tbl[年月日],">="&U$2,入出金tbl[年月日],"<"&V$2) -> 0 | V26: =SUMIFS(入出金tbl[金額],入出金tbl[内 容],$D26,入出金tbl[年月日],">="&V$2,入出金tbl[年月日],"<"&W$2) -> 0 | W26: =SUMIFS(入出金tbl[金額],入出金tbl[内 容],$D26,入出金tbl[年月日],">="&W$2,入出金tbl[年月日],"<"&X$2) -> 0 | X26: =SUMIFS(入出金tbl[金額],入出金tbl[内 容],$D26,入出金tbl[年月日],">="&X$2,入出金tbl[年月日],"<"&Y$2) -> 0 | Y26: =SUMIFS(入出金tbl[金額],入出金tbl[内 容],$D26,入出金tbl[年月日],">="&Y$2,入出金tbl[年月日],"<"&Z$2) -> 0 | Z26: =SUMIFS(入出金tbl[金額],入出金tbl[内 容],$D26,入出金tbl[年月日],">="&Z$2,入出金tbl[年月日],"<"&AA$2) -> 0 | AA26: =SUMIFS(入出金tbl[金額],入出金tbl[内 容],$D26,入出金tbl[年月日],">="&AA$2,入出金tbl[年月日],"<"&AB$2) -> 0 | AB26: =SUMIFS(入出金tbl[金額],入出金tbl[内 容],$D26,入出金tbl[年月日],">="&AB$2,入出金tbl[年月日],"<"&AC$2) -> 0 | AC26: =SUMIFS(入出金tbl[金額],入出金tbl[内 容],$D26,入出金tbl[年月日],">="&AC$2,入出金tbl[年月日],"<"&AD$2) -> 0 | AD26: =SUMIFS(入出金tbl[金額],入出金tbl[内 容],$D26,入出金tbl[年月日],">="&AD$2,入出金tbl[年月日],"<"&AE$2) -> 0 | AE26: =SUMIFS(入出金tbl[金額],入出金tbl[内 容],$D26,入出金tbl[年月日],">="&AE$2,入出金tbl[年月日],"<"&AF$2) -> 0 | AF26: =SUMIFS(入出金tbl[金額],入出金tbl[内 容],$D26,入出金tbl[年月日],">="&AF$2,入出金tbl[年月日],"<"&AG$2) -> 0 | AG26: =SUMIFS(入出金tbl[金額],入出金tbl[内 容],$D26,入出金tbl[年月日],">="&AG$2,入出金tbl[年月日],"<"&AH$2) -> 0 | AH26: =SUMIFS(入出金tbl[金額],入出金tbl[内 容],$D26,入出金tbl[年月日],">="&AH$2,入出金tbl[年月日],"<"&AI$2) -> 0 | AI26: =SUMIFS(入出金tbl[金額],入出金tbl[内 容],$D26,入出金tbl[年月日],">="&AI$2,入出金tbl[年月日],"<"&AJ$2) -> 818
C27: (2) | D27: =資金繰り表!D28 -> 役員賞与 | E27: =SUMIFS(入出金tbl[金額],入出金tbl[内 容],$D27,入出金tbl[年月日],">="&E$2,入出金tbl[年月日],"<"&F$2) -> 0 | F27: =SUMIFS(入出金tbl[金額],入出金tbl[内 容],$D27,入出金tbl[年月日],">="&F$2,入出金tbl[年月日],"<"&G$2) -> 0 | G27: =SUMIFS(入出金tbl[金額],入出金tbl[内 容],$D27,入出金tbl[年月日],">="&G$2,入出金tbl[年月日],"<"&H$2) -> 0 | H27: =SUMIFS(入出金tbl[金額],入出金tbl[内 容],$D27,入出金tbl[年月日],">="&H$2,入出金tbl[年月日],"<"&I$2) -> 0 | I27: =SUMIFS(入出金tbl[金額],入出金tbl[内 容],$D27,入出金tbl[年月日],">="&I$2,入出金tbl[年月日],"<"&J$2) -> 0 | J27: =SUMIFS(入出金tbl[金額],入出金tbl[内 容],$D27,入出金tbl[年月日],">="&J$2,入出金tbl[年月日],"<"&K$2) -> 0 | K27: =SUMIFS(入出金tbl[金額],入出金tbl[内 容],$D27,入出金tbl[年月日],">="&K$2,入出金tbl[年月日],"<"&L$2) -> 0 | L27: =SUMIFS(入出金tbl[金額],入出金tbl[内 容],$D27,入出金tbl[年月日],">="&L$2,入出金tbl[年月日],"<"&M$2) -> 0 | M27: =SUMIFS(入出金tbl[金額],入出金tbl[内 容],$D27,入出金tbl[年月日],">="&M$2,入出金tbl[年月日],"<"&N$2) -> 0 | N27: =SUMIFS(入出金tbl[金額],入出金tbl[内 容],$D27,入出金tbl[年月日],">="&N$2,入出金tbl[年月日],"<"&O$2) -> 452 | O27: =SUMIFS(入出金tbl[金額],入出金tbl[内 容],$D27,入出金tbl[年月日],">="&O$2,入出金tbl[年月日],"<"&P$2) -> 0 | P27: =SUMIFS(入出金tbl[金額],入出金tbl[内 容],$D27,入出金tbl[年月日],">="&P$2,入出金tbl[年月日],"<"&Q$2) -> 0 | Q27: =SUMIFS(入出金tbl[金額],入出金tbl[内 容],$D27,入出金tbl[年月日],">="&Q$2,入出金tbl[年月日],"<"&R$2) -> 0 | R27: =SUMIFS(入出金tbl[金額],入出金tbl[内 容],$D27,入出金tbl[年月日],">="&R$2,入出金tbl[年月日],"<"&S$2) -> 0 | S27: =SUMIFS(入出金tbl[金額],入出金tbl[内 容],$D27,入出金tbl[年月日],">="&S$2,入出金tbl[年月日],"<"&T$2) -> 0 | T27: =SUMIFS(入出金tbl[金額],入出金tbl[内 容],$D27,入出金tbl[年月日],">="&T$2,入出金tbl[年月日],"<"&U$2) -> 0 | U27: =SUMIFS(入出金tbl[金額],入出金tbl[内 容],$D27,入出金tbl[年月日],">="&U$2,入出金tbl[年月日],"<"&V$2) -> 0 | V27: =SUMIFS(入出金tbl[金額],入出金tbl[内 容],$D27,入出金tbl[年月日],">="&V$2,入出金tbl[年月日],"<"&W$2) -> 0 | W27: =SUMIFS(入出金tbl[金額],入出金tbl[内 容],$D27,入出金tbl[年月日],">="&W$2,入出金tbl[年月日],"<"&X$2) -> 0 | X27: =SUMIFS(入出金tbl[金額],入出金tbl[内 容],$D27,入出金tbl[年月日],">="&X$2,入出金tbl[年月日],"<"&Y$2) -> 0 | Y27: =SUMIFS(入出金tbl[金額],入出金tbl[内 容],$D27,入出金tbl[年月日],">="&Y$2,入出金tbl[年月日],"<"&Z$2) -> 0 | Z27: =SUMIFS(入出金tbl[金額],入出金tbl[内 容],$D27,入出金tbl[年月日],">="&Z$2,入出金tbl[年月日],"<"&AA$2) -> 0 | AA27: =SUMIFS(入出金tbl[金額],入出金tbl[内 容],$D27,入出金tbl[年月日],">="&AA$2,入出金tbl[年月日],"<"&AB$2) -> 0 | AB27: =SUMIFS(入出金tbl[金額],入出金tbl[内 容],$D27,入出金tbl[年月日],">="&AB$2,入出金tbl[年月日],"<"&AC$2) -> 0 | AC27: =SUMIFS(入出金tbl[金額],入出金tbl[内 容],$D27,入出金tbl[年月日],">="&AC$2,入出金tbl[年月日],"<"&AD$2) -> 0 | AD27: =SUMIFS(入出金tbl[金額],入出金tbl[内 容],$D27,入出金tbl[年月日],">="&AD$2,入出金tbl[年月日],"<"&AE$2) -> 0 | AE27: =SUMIFS(入出金tbl[金額],入出金tbl[内 容],$D27,入出金tbl[年月日],">="&AE$2,入出金tbl[年月日],"<"&AF$2) -> 0 | AF27: =SUMIFS(入出金tbl[金額],入出金tbl[内 容],$D27,入出金tbl[年月日],">="&AF$2,入出金tbl[年月日],"<"&AG$2) -> 0 | AG27: =SUMIFS(入出金tbl[金額],入出金tbl[内 容],$D27,入出金tbl[年月日],">="&AG$2,入出金tbl[年月日],"<"&AH$2) -> 0 | AH27: =SUMIFS(入出金tbl[金額],入出金tbl[内 容],$D27,入出金tbl[年月日],">="&AH$2,入出金tbl[年月日],"<"&AI$2) -> 0 | AI27: =SUMIFS(入出金tbl[金額],入出金tbl[内 容],$D27,入出金tbl[年月日],">="&AI$2,入出金tbl[年月日],"<"&AJ$2) -> 893
C28: (3) | D28: =資金繰り表!D29 -> 配当 | E28: =SUMIFS(入出金tbl[金額],入出金tbl[内 容],$D28,入出金tbl[年月日],">="&E$2,入出金tbl[年月日],"<"&F$2) -> 0 | F28: =SUMIFS(入出金tbl[金額],入出金tbl[内 容],$D28,入出金tbl[年月日],">="&F$2,入出金tbl[年月日],"<"&G$2) -> 0 | G28: =SUMIFS(入出金tbl[金額],入出金tbl[内 容],$D28,入出金tbl[年月日],">="&G$2,入出金tbl[年月日],"<"&H$2) -> 0 | H28: =SUMIFS(入出金tbl[金額],入出金tbl[内 容],$D28,入出金tbl[年月日],">="&H$2,入出金tbl[年月日],"<"&I$2) -> 0 | I28: =SUMIFS(入出金tbl[金額],入出金tbl[内 容],$D28,入出金tbl[年月日],">="&I$2,入出金tbl[年月日],"<"&J$2) -> 0 | J28: =SUMIFS(入出金tbl[金額],入出金tbl[内 容],$D28,入出金tbl[年月日],">="&J$2,入出金tbl[年月日],"<"&K$2) -> 0 | K28: =SUMIFS(入出金tbl[金額],入出金tbl[内 容],$D28,入出金tbl[年月日],">="&K$2,入出金tbl[年月日],"<"&L$2) -> 0 | L28: =SUMIFS(入出金tbl[金額],入出金tbl[内 容],$D28,入出金tbl[年月日],">="&L$2,入出金tbl[年月日],"<"&M$2) -> 0 | M28: =SUMIFS(入出金tbl[金額],入出金tbl[内 容],$D28,入出金tbl[年月日],">="&M$2,入出金tbl[年月日],"<"&N$2) -> 0 | N28: =SUMIFS(入出金tbl[金額],入出金tbl[内 容],$D28,入出金tbl[年月日],">="&N$2,入出金tbl[年月日],"<"&O$2) -> 1128 | O28: =SUMIFS(入出金tbl[金額],入出金tbl[内 容],$D28,入出金tbl[年月日],">="&O$2,入出金tbl[年月日],"<"&P$2) -> 0 | P28: =SUMIFS(入出金tbl[金額],入出金tbl[内 容],$D28,入出金tbl[年月日],">="&P$2,入出金tbl[年月日],"<"&Q$2) -> 0 | Q28: =SUMIFS(入出金tbl[金額],入出金tbl[内 容],$D28,入出金tbl[年月日],">="&Q$2,入出金tbl[年月日],"<"&R$2) -> 0 | R28: =SUMIFS(入出金tbl[金額],入出金tbl[内 容],$D28,入出金tbl[年月日],">="&R$2,入出金tbl[年月日],"<"&S$2) -> 0 | S28: =SUMIFS(入出金tbl[金額],入出金tbl[内 容],$D28,入出金tbl[年月日],">="&S$2,入出金tbl[年月日],"<"&T$2) -> 0 | T28: =SUMIFS(入出金tbl[金額],入出金tbl[内 容],$D28,入出金tbl[年月日],">="&T$2,入出金tbl[年月日],"<"&U$2) -> 0 | U28: =SUMIFS(入出金tbl[金額],入出金tbl[内 容],$D28,入出金tbl[年月日],">="&U$2,入出金tbl[年月日],"<"&V$2) -> 0 | V28: =SUMIFS(入出金tbl[金額],入出金tbl[内 容],$D28,入出金tbl[年月日],">="&V$2,入出金tbl[年月日],"<"&W$2) -> 0 | W28: =SUMIFS(入出金tbl[金額],入出金tbl[内 容],$D28,入出金tbl[年月日],">="&W$2,入出金tbl[年月日],"<"&X$2) -> 0 | X28: =SUMIFS(入出金tbl[金額],入出金tbl[内 容],$D28,入出金tbl[年月日],">="&X$2,入出金tbl[年月日],"<"&Y$2) -> 0 | Y28: =SUMIFS(入出金tbl[金額],入出金tbl[内 容],$D28,入出金tbl[年月日],">="&Y$2,入出金tbl[年月日],"<"&Z$2) -> 0 | Z28: =SUMIFS(入出金tbl[金額],入出金tbl[内 容],$D28,入出金tbl[年月日],">="&Z$2,入出金tbl[年月日],"<"&AA$2) -> 0 | AA28: =SUMIFS(入出金tbl[金額],入出金tbl[内 容],$D28,入出金tbl[年月日],">="&AA$2,入出金tbl[年月日],"<"&AB$2) -> 0 | AB28: =SUMIFS(入出金tbl[金額],入出金tbl[内 容],$D28,入出金tbl[年月日],">="&AB$2,入出金tbl[年月日],"<"&AC$2) -> 0 | AC28: =SUMIFS(入出金tbl[金額],入出金tbl[内 容],$D28,入出金tbl[年月日],">="&AC$2,入出金tbl[年月日],"<"&AD$2) -> 0 | AD28: =SUMIFS(入出金tbl[金額],入出金tbl[内 容],$D28,入出金tbl[年月日],">="&AD$2,入出金tbl[年月日],"<"&AE$2) -> 0 | AE28: =SUMIFS(入出金tbl[金額],入出金tbl[内 容],$D28,入出金tbl[年月日],">="&AE$2,入出金tbl[年月日],"<"&AF$2) -> 0 | AF28: =SUMIFS(入出金tbl[金額],入出金tbl[内 容],$D28,入出金tbl[年月日],">="&AF$2,入出金tbl[年月日],"<"&AG$2) -> 0 | AG28: =SUMIFS(入出金tbl[金額],入出金tbl[内 容],$D28,入出金tbl[年月日],">="&AG$2,入出金tbl[年月日],"<"&AH$2) -> 0 | AH28: =SUMIFS(入出金tbl[金額],入出金tbl[内 容],$D28,入出金tbl[年月日],">="&AH$2,入出金tbl[年月日],"<"&AI$2) -> 0 | AI28: =SUMIFS(入出金tbl[金額],入出金tbl[内 容],$D28,入出金tbl[年月日],">="&AI$2,入出金tbl[年月日],"<"&AJ$2) -> 0
C29: (4) | D29: =資金繰り表!D30 -> 固定資産購入支出 | E29: =SUMIFS(入出金tbl[金額],入出金tbl[内 容],$D29,入出金tbl[年月日],">="&E$2,入出金tbl[年月日],"<"&F$2) -> 0 | F29: =SUMIFS(入出金tbl[金額],入出金tbl[内 容],$D29,入出金tbl[年月日],">="&F$2,入出金tbl[年月日],"<"&G$2) -> 0 | G29: =SUMIFS(入出金tbl[金額],入出金tbl[内 容],$D29,入出金tbl[年月日],">="&G$2,入出金tbl[年月日],"<"&H$2) -> 0 | H29: =SUMIFS(入出金tbl[金額],入出金tbl[内 容],$D29,入出金tbl[年月日],">="&H$2,入出金tbl[年月日],"<"&I$2) -> 0 | I29: =SUMIFS(入出金tbl[金額],入出金tbl[内 容],$D29,入出金tbl[年月日],">="&I$2,入出金tbl[年月日],"<"&J$2) -> 0 | J29: =SUMIFS(入出金tbl[金額],入出金tbl[内 容],$D29,入出金tbl[年月日],">="&J$2,入出金tbl[年月日],"<"&K$2) -> 0 | K29: =SUMIFS(入出金tbl[金額],入出金tbl[内 容],$D29,入出金tbl[年月日],">="&K$2,入出金tbl[年月日],"<"&L$2) -> 0 | L29: =SUMIFS(入出金tbl[金額],入出金tbl[内 容],$D29,入出金tbl[年月日],">="&L$2,入出金tbl[年月日],"<"&M$2) -> 0 | M29: =SUMIFS(入出金tbl[金額],入出金tbl[内 容],$D29,入出金tbl[年月日],">="&M$2,入出金tbl[年月日],"<"&N$2) -> 0 | N29: =SUMIFS(入出金tbl[金額],入出金tbl[内 容],$D29,入出金tbl[年月日],">="&N$2,入出金tbl[年月日],"<"&O$2) -> 0 | O29: =SUMIFS(入出金tbl[金額],入出金tbl[内 容],$D29,入出金tbl[年月日],">="&O$2,入出金tbl[年月日],"<"&P$2) -> 604 | P29: =SUMIFS(入出金tbl[金額],入出金tbl[内 容],$D29,入出金tbl[年月日],">="&P$2,入出金tbl[年月日],"<"&Q$2) -> 0 | Q29: =SUMIFS(入出金tbl[金額],入出金tbl[内 容],$D29,入出金tbl[年月日],">="&Q$2,入出金tbl[年月日],"<"&R$2) -> 0 | R29: =SUMIFS(入出金tbl[金額],入出金tbl[内 容],$D29,入出金tbl[年月日],">="&R$2,入出金tbl[年月日],"<"&S$2) -> 0 | S29: =SUMIFS(入出金tbl[金額],入出金tbl[内 容],$D29,入出金tbl[年月日],">="&S$2,入出金tbl[年月日],"<"&T$2) -> 0 | T29: =SUMIFS(入出金tbl[金額],入出金tbl[内 容],$D29,入出金tbl[年月日],">="&T$2,入出金tbl[年月日],"<"&U$2) -> 0 | U29: =SUMIFS(入出金tbl[金額],入出金tbl[内 容],$D29,入出金tbl[年月日],">="&U$2,入出金tbl[年月日],"<"&V$2) -> 0 | V29: =SUMIFS(入出金tbl[金額],入出金tbl[内 容],$D29,入出金tbl[年月日],">="&V$2,入出金tbl[年月日],"<"&W$2) -> 0 | W29: =SUMIFS(入出金tbl[金額],入出金tbl[内 容],$D29,入出金tbl[年月日],">="&W$2,入出金tbl[年月日],"<"&X$2) -> 0 | X29: =SUMIFS(入出金tbl[金額],入出金tbl[内 容],$D29,入出金tbl[年月日],">="&X$2,入出金tbl[年月日],"<"&Y$2) -> 0 | Y29: =SUMIFS(入出金tbl[金額],入出金tbl[内 容],$D29,入出金tbl[年月日],">="&Y$2,入出金tbl[年月日],"<"&Z$2) -> 0 | Z29: =SUMIFS(入出金tbl[金額],入出金tbl[内 容],$D29,入出金tbl[年月日],">="&Z$2,入出金tbl[年月日],"<"&AA$2) -> 0 | AA29: =SUMIFS(入出金tbl[金額],入出金tbl[内 容],$D29,入出金tbl[年月日],">="&AA$2,入出金tbl[年月日],"<"&AB$2) -> 0 | AB29: =SUMIFS(入出金tbl[金額],入出金tbl[内 容],$D29,入出金tbl[年月日],">="&AB$2,入出金tbl[年月日],"<"&AC$2) -> 0 | AC29: =SUMIFS(入出金tbl[金額],入出金tbl[内 容],$D29,入出金tbl[年月日],">="&AC$2,入出金tbl[年月日],"<"&AD$2) -> 0 | AD29: =SUMIFS(入出金tbl[金額],入出金tbl[内 容],$D29,入出金tbl[年月日],">="&AD$2,入出金tbl[年月日],"<"&AE$2) -> 0 | AE29: =SUMIFS(入出金tbl[金額],入出金tbl[内 容],$D29,入出金tbl[年月日],">="&AE$2,入出金tbl[年月日],"<"&AF$2) -> 0 | AF29: =SUMIFS(入出金tbl[金額],入出金tbl[内 容],$D29,入出金tbl[年月日],">="&AF$2,入出金tbl[年月日],"<"&AG$2) -> 0 | AG29: =SUMIFS(入出金tbl[金額],入出金tbl[内 容],$D29,入出金tbl[年月日],">="&AG$2,入出金tbl[年月日],"<"&AH$2) -> 0 | AH29: =SUMIFS(入出金tbl[金額],入出金tbl[内 容],$D29,入出金tbl[年月日],">="&AH$2,入出金tbl[年月日],"<"&AI$2) -> 0 | AI29: =SUMIFS(入出金tbl[金額],入出金tbl[内 容],$D29,入出金tbl[年月日],">="&AI$2,入出金tbl[年月日],"<"&AJ$2) -> 0
C30: (5) | D30: =資金繰り表!D31 -> 定期預金等設定 | E30: =SUMIFS(入出金tbl[金額],入出金tbl[内 容],$D30,入出金tbl[年月日],">="&E$2,入出金tbl[年月日],"<"&F$2) -> 0 | F30: =SUMIFS(入出金tbl[金額],入出金tbl[内 容],$D30,入出金tbl[年月日],">="&F$2,入出金tbl[年月日],"<"&G$2) -> 0 | G30: =SUMIFS(入出金tbl[金額],入出金tbl[内 容],$D30,入出金tbl[年月日],">="&G$2,入出金tbl[年月日],"<"&H$2) -> 0 | H30: =SUMIFS(入出金tbl[金額],入出金tbl[内 容],$D30,入出金tbl[年月日],">="&H$2,入出金tbl[年月日],"<"&I$2) -> 0 | I30: =SUMIFS(入出金tbl[金額],入出金tbl[内 容],$D30,入出金tbl[年月日],">="&I$2,入出金tbl[年月日],"<"&J$2) -> 0 | J30: =SUMIFS(入出金tbl[金額],入出金tbl[内 容],$D30,入出金tbl[年月日],">="&J$2,入出金tbl[年月日],"<"&K$2) -> 0 | K30: =SUMIFS(入出金tbl[金額],入出金tbl[内 容],$D30,入出金tbl[年月日],">="&K$2,入出金tbl[年月日],"<"&L$2) -> 0 | L30: =SUMIFS(入出金tbl[金額],入出金tbl[内 容],$D30,入出金tbl[年月日],">="&L$2,入出金tbl[年月日],"<"&M$2) -> 0 | M30: =SUMIFS(入出金tbl[金額],入出金tbl[内 容],$D30,入出金tbl[年月日],">="&M$2,入出金tbl[年月日],"<"&N$2) -> 0 | N30: =SUMIFS(入出金tbl[金額],入出金tbl[内 容],$D30,入出金tbl[年月日],">="&N$2,入出金tbl[年月日],"<"&O$2) -> 0 | O30: =SUMIFS(入出金tbl[金額],入出金tbl[内 容],$D30,入出金tbl[年月日],">="&O$2,入出金tbl[年月日],"<"&P$2) -> 735 | P30: =SUMIFS(入出金tbl[金額],入出金tbl[内 容],$D30,入出金tbl[年月日],">="&P$2,入出金tbl[年月日],"<"&Q$2) -> 0 | Q30: =SUMIFS(入出金tbl[金額],入出金tbl[内 容],$D30,入出金tbl[年月日],">="&Q$2,入出金tbl[年月日],"<"&R$2) -> 0 | R30: =SUMIFS(入出金tbl[金額],入出金tbl[内 容],$D30,入出金tbl[年月日],">="&R$2,入出金tbl[年月日],"<"&S$2) -> 0 | S30: =SUMIFS(入出金tbl[金額],入出金tbl[内 容],$D30,入出金tbl[年月日],">="&S$2,入出金tbl[年月日],"<"&T$2) -> 0 | T30: =SUMIFS(入出金tbl[金額],入出金tbl[内 容],$D30,入出金tbl[年月日],">="&T$2,入出金tbl[年月日],"<"&U$2) -> 0 | U30: =SUMIFS(入出金tbl[金額],入出金tbl[内 容],$D30,入出金tbl[年月日],">="&U$2,入出金tbl[年月日],"<"&V$2) -> 0 | V30: =SUMIFS(入出金tbl[金額],入出金tbl[内 容],$D30,入出金tbl[年月日],">="&V$2,入出金tbl[年月日],"<"&W$2) -> 0 | W30: =SUMIFS(入出金tbl[金額],入出金tbl[内 容],$D30,入出金tbl[年月日],">="&W$2,入出金tbl[年月日],"<"&X$2) -> 0 | X30: =SUMIFS(入出金tbl[金額],入出金tbl[内 容],$D30,入出金tbl[年月日],">="&X$2,入出金tbl[年月日],"<"&Y$2) -> 0 | Y30: =SUMIFS(入出金tbl[金額],入出金tbl[内 容],$D30,入出金tbl[年月日],">="&Y$2,入出金tbl[年月日],"<"&Z$2) -> 0 | Z30: =SUMIFS(入出金tbl[金額],入出金tbl[内 容],$D30,入出金tbl[年月日],">="&Z$2,入出金tbl[年月日],"<"&AA$2) -> 0 | AA30: =SUMIFS(入出金tbl[金額],入出金tbl[内 容],$D30,入出金tbl[年月日],">="&AA$2,入出金tbl[年月日],"<"&AB$2) -> 0 | AB30: =SUMIFS(入出金tbl[金額],入出金tbl[内 容],$D30,入出金tbl[年月日],">="&AB$2,入出金tbl[年月日],"<"&AC$2) -> 0 | AC30: =SUMIFS(入出金tbl[金額],入出金tbl[内 容],$D30,入出金tbl[年月日],">="&AC$2,入出金tbl[年月日],"<"&AD$2) -> 0 | AD30: =SUMIFS(入出金tbl[金額],入出金tbl[内 容],$D30,入出金tbl[年月日],">="&AD$2,入出金tbl[年月日],"<"&AE$2) -> 0 | AE30: =SUMIFS(入出金tbl[金額],入出金tbl[内 容],$D30,入出金tbl[年月日],">="&AE$2,入出金tbl[年月日],"<"&AF$2) -> 0 | AF30: =SUMIFS(入出金tbl[金額],入出金tbl[内 容],$D30,入出金tbl[年月日],">="&AF$2,入出金tbl[年月日],"<"&AG$2) -> 0 | AG30: =SUMIFS(入出金tbl[金額],入出金tbl[内 容],$D30,入出金tbl[年月日],">="&AG$2,入出金tbl[年月日],"<"&AH$2) -> 0 | AH30: =SUMIFS(入出金tbl[金額],入出金tbl[内 容],$D30,入出金tbl[年月日],">="&AH$2,入出金tbl[年月日],"<"&AI$2) -> 0 | AI30: =SUMIFS(入出金tbl[金額],入出金tbl[内 容],$D30,入出金tbl[年月日],">="&AI$2,入出金tbl[年月日],"<"&AJ$2) -> 0
C31: (6) | D31: =資金繰り表!D32 -> その他臨時支出 | E31: =SUMIFS(入出金tbl[金額],入出金tbl[内 容],$D31,入出金tbl[年月日],">="&E$2,入出金tbl[年月日],"<"&F$2) -> 0 | F31: =SUMIFS(入出金tbl[金額],入出金tbl[内 容],$D31,入出金tbl[年月日],">="&F$2,入出金tbl[年月日],"<"&G$2) -> 0 | G31: =SUMIFS(入出金tbl[金額],入出金tbl[内 容],$D31,入出金tbl[年月日],">="&G$2,入出金tbl[年月日],"<"&H$2) -> 0 | H31: =SUMIFS(入出金tbl[金額],入出金tbl[内 容],$D31,入出金tbl[年月日],">="&H$2,入出金tbl[年月日],"<"&I$2) -> 0 | I31: =SUMIFS(入出金tbl[金額],入出金tbl[内 容],$D31,入出金tbl[年月日],">="&I$2,入出金tbl[年月日],"<"&J$2) -> 0 | J31: =SUMIFS(入出金tbl[金額],入出金tbl[内 容],$D31,入出金tbl[年月日],">="&J$2,入出金tbl[年月日],"<"&K$2) -> 0 | K31: =SUMIFS(入出金tbl[金額],入出金tbl[内 容],$D31,入出金tbl[年月日],">="&K$2,入出金tbl[年月日],"<"&L$2) -> 0 | L31: =SUMIFS(入出金tbl[金額],入出金tbl[内 容],$D31,入出金tbl[年月日],">="&L$2,入出金tbl[年月日],"<"&M$2) -> 0 | M31: =SUMIFS(入出金tbl[金額],入出金tbl[内 容],$D31,入出金tbl[年月日],">="&M$2,入出金tbl[年月日],"<"&N$2) -> 0 | N31: =SUMIFS(入出金tbl[金額],入出金tbl[内 容],$D31,入出金tbl[年月日],">="&N$2,入出金tbl[年月日],"<"&O$2) -> 0 | O31: =SUMIFS(入出金tbl[金額],入出金tbl[内 容],$D31,入出金tbl[年月日],">="&O$2,入出金tbl[年月日],"<"&P$2) -> 0 | P31: =SUMIFS(入出金tbl[金額],入出金tbl[内 容],$D31,入出金tbl[年月日],">="&P$2,入出金tbl[年月日],"<"&Q$2) -> 604 | Q31: =SUMIFS(入出金tbl[金額],入出金tbl[内 容],$D31,入出金tbl[年月日],">="&Q$2,入出金tbl[年月日],"<"&R$2) -> 0 | R31: =SUMIFS(入出金tbl[金額],入出金tbl[内 容],$D31,入出金tbl[年月日],">="&R$2,入出金tbl[年月日],"<"&S$2) -> 0 | S31: =SUMIFS(入出金tbl[金額],入出金tbl[内 容],$D31,入出金tbl[年月日],">="&S$2,入出金tbl[年月日],"<"&T$2) -> 0 | T31: =SUMIFS(入出金tbl[金額],入出金tbl[内 容],$D31,入出金tbl[年月日],">="&T$2,入出金tbl[年月日],"<"&U$2) -> 0 | U31: =SUMIFS(入出金tbl[金額],入出金tbl[内 容],$D31,入出金tbl[年月日],">="&U$2,入出金tbl[年月日],"<"&V$2) -> 0 | V31: =SUMIFS(入出金tbl[金額],入出金tbl[内 容],$D31,入出金tbl[年月日],">="&V$2,入出金tbl[年月日],"<"&W$2) -> 0 | W31: =SUMIFS(入出金tbl[金額],入出金tbl[内 容],$D31,入出金tbl[年月日],">="&W$2,入出金tbl[年月日],"<"&X$2) -> 0 | X31: =SUMIFS(入出金tbl[金額],入出金tbl[内 容],$D31,入出金tbl[年月日],">="&X$2,入出金tbl[年月日],"<"&Y$2) -> 0 | Y31: =SUMIFS(入出金tbl[金額],入出金tbl[内 容],$D31,入出金tbl[年月日],">="&Y$2,入出金tbl[年月日],"<"&Z$2) -> 0 | Z31: =SUMIFS(入出金tbl[金額],入出金tbl[内 容],$D31,入出金tbl[年月日],">="&Z$2,入出金tbl[年月日],"<"&AA$2) -> 0 | AA31: =SUMIFS(入出金tbl[金額],入出金tbl[内 容],$D31,入出金tbl[年月日],">="&AA$2,入出金tbl[年月日],"<"&AB$2) -> 0 | AB31: =SUMIFS(入出金tbl[金額],入出金tbl[内 容],$D31,入出金tbl[年月日],">="&AB$2,入出金tbl[年月日],"<"&AC$2) -> 0 | AC31: =SUMIFS(入出金tbl[金額],入出金tbl[内 容],$D31,入出金tbl[年月日],">="&AC$2,入出金tbl[年月日],"<"&AD$2) -> 0 | AD31: =SUMIFS(入出金tbl[金額],入出金tbl[内 容],$D31,入出金tbl[年月日],">="&AD$2,入出金tbl[年月日],"<"&AE$2) -> 0 | AE31: =SUMIFS(入出金tbl[金額],入出金tbl[内 容],$D31,入出金tbl[年月日],">="&AE$2,入出金tbl[年月日],"<"&AF$2) -> 0 | AF31: =SUMIFS(入出金tbl[金額],入出金tbl[内 容],$D31,入出金tbl[年月日],">="&AF$2,入出金tbl[年月日],"<"&AG$2) -> 0 | AG31: =SUMIFS(入出金tbl[金額],入出金tbl[内 容],$D31,入出金tbl[年月日],">="&AG$2,入出金tbl[年月日],"<"&AH$2) -> 0 | AH31: =SUMIFS(入出金tbl[金額],入出金tbl[内 容],$D31,入出金tbl[年月日],">="&AH$2,入出金tbl[年月日],"<"&AI$2) -> 0 | AI31: =SUMIFS(入出金tbl[金額],入出金tbl[内 容],$D31,入出金tbl[年月日],">="&AI$2,入出金tbl[年月日],"<"&AJ$2) -> 0
C32: (7) | D32: =資金繰り表!D33 -> テスト4 | E32: =SUMIFS(入出金tbl[金額],入出金tbl[内 容],$D32,入出金tbl[年月日],">="&E$2,入出金tbl[年月日],"<"&F$2) -> 0 | F32: =SUMIFS(入出金tbl[金額],入出金tbl[内 容],$D32,入出金tbl[年月日],">="&F$2,入出金tbl[年月日],"<"&G$2) -> 0 | G32: =SUMIFS(入出金tbl[金額],入出金tbl[内 容],$D32,入出金tbl[年月日],">="&G$2,入出金tbl[年月日],"<"&H$2) -> 0 | H32: =SUMIFS(入出金tbl[金額],入出金tbl[内 容],$D32,入出金tbl[年月日],">="&H$2,入出金tbl[年月日],"<"&I$2) -> 0 | I32: =SUMIFS(入出金tbl[金額],入出金tbl[内 容],$D32,入出金tbl[年月日],">="&I$2,入出金tbl[年月日],"<"&J$2) -> 0 | J32: =SUMIFS(入出金tbl[金額],入出金tbl[内 容],$D32,入出金tbl[年月日],">="&J$2,入出金tbl[年月日],"<"&K$2) -> 0 | K32: =SUMIFS(入出金tbl[金額],入出金tbl[内 容],$D32,入出金tbl[年月日],">="&K$2,入出金tbl[年月日],"<"&L$2) -> 0 | L32: =SUMIFS(入出金tbl[金額],入出金tbl[内 容],$D32,入出金tbl[年月日],">="&L$2,入出金tbl[年月日],"<"&M$2) -> 0 | M32: =SUMIFS(入出金tbl[金額],入出金tbl[内 容],$D32,入出金tbl[年月日],">="&M$2,入出金tbl[年月日],"<"&N$2) -> 0 | N32: =SUMIFS(入出金tbl[金額],入出金tbl[内 容],$D32,入出金tbl[年月日],">="&N$2,入出金tbl[年月日],"<"&O$2) -> 0 | O32: =SUMIFS(入出金tbl[金額],入出金tbl[内 容],$D32,入出金tbl[年月日],">="&O$2,入出金tbl[年月日],"<"&P$2) -> 0 | P32: =SUMIFS(入出金tbl[金額],入出金tbl[内 容],$D32,入出金tbl[年月日],">="&P$2,入出金tbl[年月日],"<"&Q$2) -> 0 | Q32: =SUMIFS(入出金tbl[金額],入出金tbl[内 容],$D32,入出金tbl[年月日],">="&Q$2,入出金tbl[年月日],"<"&R$2) -> 0 | R32: =SUMIFS(入出金tbl[金額],入出金tbl[内 容],$D32,入出金tbl[年月日],">="&R$2,入出金tbl[年月日],"<"&S$2) -> 0 | S32: =SUMIFS(入出金tbl[金額],入出金tbl[内 容],$D32,入出金tbl[年月日],">="&S$2,入出金tbl[年月日],"<"&T$2) -> 0 | T32: =SUMIFS(入出金tbl[金額],入出金tbl[内 容],$D32,入出金tbl[年月日],">="&T$2,入出金tbl[年月日],"<"&U$2) -> 0 | U32: =SUMIFS(入出金tbl[金額],入出金tbl[内 容],$D32,入出金tbl[年月日],">="&U$2,入出金tbl[年月日],"<"&V$2) -> 0 | V32: =SUMIFS(入出金tbl[金額],入出金tbl[内 容],$D32,入出金tbl[年月日],">="&V$2,入出金tbl[年月日],"<"&W$2) -> 0 | W32: =SUMIFS(入出金tbl[金額],入出金tbl[内 容],$D32,入出金tbl[年月日],">="&W$2,入出金tbl[年月日],"<"&X$2) -> 0 | X32: =SUMIFS(入出金tbl[金額],入出金tbl[内 容],$D32,入出金tbl[年月日],">="&X$2,入出金tbl[年月日],"<"&Y$2) -> 0 | Y32: =SUMIFS(入出金tbl[金額],入出金tbl[内 容],$D32,入出金tbl[年月日],">="&Y$2,入出金tbl[年月日],"<"&Z$2) -> 0 | Z32: =SUMIFS(入出金tbl[金額],入出金tbl[内 容],$D32,入出金tbl[年月日],">="&Z$2,入出金tbl[年月日],"<"&AA$2) -> 0 | AA32: =SUMIFS(入出金tbl[金額],入出金tbl[内 容],$D32,入出金tbl[年月日],">="&AA$2,入出金tbl[年月日],"<"&AB$2) -> 0 | AB32: =SUMIFS(入出金tbl[金額],入出金tbl[内 容],$D32,入出金tbl[年月日],">="&AB$2,入出金tbl[年月日],"<"&AC$2) -> 0 | AC32: =SUMIFS(入出金tbl[金額],入出金tbl[内 容],$D32,入出金tbl[年月日],">="&AC$2,入出金tbl[年月日],"<"&AD$2) -> 0 | AD32: =SUMIFS(入出金tbl[金額],入出金tbl[内 容],$D32,入出金tbl[年月日],">="&AD$2,入出金tbl[年月日],"<"&AE$2) -> 0 | AE32: =SUMIFS(入出金tbl[金額],入出金tbl[内 容],$D32,入出金tbl[年月日],">="&AE$2,入出金tbl[年月日],"<"&AF$2) -> 0 | AF32: =SUMIFS(入出金tbl[金額],入出金tbl[内 容],$D32,入出金tbl[年月日],">="&AF$2,入出金tbl[年月日],"<"&AG$2) -> 0 | AG32: =SUMIFS(入出金tbl[金額],入出金tbl[内 容],$D32,入出金tbl[年月日],">="&AG$2,入出金tbl[年月日],"<"&AH$2) -> 0 | AH32: =SUMIFS(入出金tbl[金額],入出金tbl[内 容],$D32,入出金tbl[年月日],">="&AH$2,入出金tbl[年月日],"<"&AI$2) -> 0 | AI32: =SUMIFS(入出金tbl[金額],入出金tbl[内 容],$D32,入出金tbl[年月日],">="&AI$2,入出金tbl[年月日],"<"&AJ$2) -> 0
D33: 支出合計(F) | E33: =SUM(E26:E32) -> 0 | F33: =SUM(F26:F32) -> 0 | G33: 0 | H33: 0 | I33: 0 | J33: 0 | K33: 0 | L33: 0 | M33: 735 | N33: 1580 | O33: 1339 | P33: 604 | Q33: 0 | R33: 0 | S33: 0 | T33: 0 | U33: 0 | V33: 0 | W33: 0 | X33: 0 | Y33: 0 | Z33: 0 | AA33: 0 | AB33: 0 | AC33: 0 | AD33: 0 | AE33: 0 | AF33: 0 | AG33: 0 | AH33: 0 | AI33: 1711
B34: 差引過不足(G=E-F) | E34: =E25-E33 -> 1151 | F34: =F25-F33 -> 1125 | G34: 0 | H34: 0 | I34: 0 | J34: 0 | K34: 0 | L34: 0 | M34: -735 | N34: -1580 | O34: -1339 | P34: -604 | Q34: 0 | R34: 0 | S34: 0 | T34: 0 | U34: 0 | V34: 260 | W34: 515 | X34: 515 | Y34: 0 | Z34: 0 | AA34: 0 | AB34: 464 | AC34: 588 | AD34: 0 | AE34: 0 | AF34: 0 | AG34: 0 | AH34: 0 | AI34: -1711
A35: 財務収支 | B35: 収入 | C35: (1) | D35: =資金繰り表!D36 -> 短期借入金調達 | E35: =SUMIFS(入出金tbl[金額],入出金tbl[内 容],$D35,入出金tbl[年月日],">="&E$2,入出金tbl[年月日],"<"&F$2) -> 0 | F35: =SUMIFS(入出金tbl[金額],入出金tbl[内 容],$D35,入出金tbl[年月日],">="&F$2,入出金tbl[年月日],"<"&G$2) -> 0 | G35: =SUMIFS(入出金tbl[金額],入出金tbl[内 容],$D35,入出金tbl[年月日],">="&G$2,入出金tbl[年月日],"<"&H$2) -> 1151 | H35: =SUMIFS(入出金tbl[金額],入出金tbl[内 容],$D35,入出金tbl[年月日],">="&H$2,入出金tbl[年月日],"<"&I$2) -> 0 | I35: =SUMIFS(入出金tbl[金額],入出金tbl[内 容],$D35,入出金tbl[年月日],">="&I$2,入出金tbl[年月日],"<"&J$2) -> 0 | J35: =SUMIFS(入出金tbl[金額],入出金tbl[内 容],$D35,入出金tbl[年月日],">="&J$2,入出金tbl[年月日],"<"&K$2) -> 0 | K35: =SUMIFS(入出金tbl[金額],入出金tbl[内 容],$D35,入出金tbl[年月日],">="&K$2,入出金tbl[年月日],"<"&L$2) -> 0 | L35: =SUMIFS(入出金tbl[金額],入出金tbl[内 容],$D35,入出金tbl[年月日],">="&L$2,入出金tbl[年月日],"<"&M$2) -> 0 | M35: =SUMIFS(入出金tbl[金額],入出金tbl[内 容],$D35,入出金tbl[年月日],">="&M$2,入出金tbl[年月日],"<"&N$2) -> 0 | N35: =SUMIFS(入出金tbl[金額],入出金tbl[内 容],$D35,入出金tbl[年月日],">="&N$2,入出金tbl[年月日],"<"&O$2) -> 0 | O35: =SUMIFS(入出金tbl[金額],入出金tbl[内 容],$D35,入出金tbl[年月日],">="&O$2,入出金tbl[年月日],"<"&P$2) -> 0 | P35: =SUMIFS(入出金tbl[金額],入出金tbl[内 容],$D35,入出金tbl[年月日],">="&P$2,入出金tbl[年月日],"<"&Q$2) -> 0 | Q35: =SUMIFS(入出金tbl[金額],入出金tbl[内 容],$D35,入出金tbl[年月日],">="&Q$2,入出金tbl[年月日],"<"&R$2) -> 0 | R35: =SUMIFS(入出金tbl[金額],入出金tbl[内 容],$D35,入出金tbl[年月日],">="&R$2,入出金tbl[年月日],"<"&S$2) -> 0 | S35: =SUMIFS(入出金tbl[金額],入出金tbl[内 容],$D35,入出金tbl[年月日],">="&S$2,入出金tbl[年月日],"<"&T$2) -> 0 | T35: =SUMIFS(入出金tbl[金額],入出金tbl[内 容],$D35,入出金tbl[年月日],">="&T$2,入出金tbl[年月日],"<"&U$2) -> 0 | U35: =SUMIFS(入出金tbl[金額],入出金tbl[内 容],$D35,入出金tbl[年月日],">="&U$2,入出金tbl[年月日],"<"&V$2) -> 0 | V35: =SUMIFS(入出金tbl[金額],入出金tbl[内 容],$D35,入出金tbl[年月日],">="&V$2,入出金tbl[年月日],"<"&W$2) -> 0 | W35: =SUMIFS(入出金tbl[金額],入出金tbl[内 容],$D35,入出金tbl[年月日],">="&W$2,入出金tbl[年月日],"<"&X$2) -> 0 | X35: =SUMIFS(入出金tbl[金額],入出金tbl[内 容],$D35,入出金tbl[年月日],">="&X$2,入出金tbl[年月日],"<"&Y$2) -> 0 | Y35: =SUMIFS(入出金tbl[金額],入出金tbl[内 容],$D35,入出金tbl[年月日],">="&Y$2,入出金tbl[年月日],"<"&Z$2) -> 789 | Z35: =SUMIFS(入出金tbl[金額],入出金tbl[内 容],$D35,入出金tbl[年月日],">="&Z$2,入出金tbl[年月日],"<"&AA$2) -> 0 | AA35: =SUMIFS(入出金tbl[金額],入出金tbl[内 容],$D35,入出金tbl[年月日],">="&AA$2,入出金tbl[年月日],"<"&AB$2) -> 0 | AB35: =SUMIFS(入出金tbl[金額],入出金tbl[内 容],$D35,入出金tbl[年月日],">="&AB$2,入出金tbl[年月日],"<"&AC$2) -> 0 | AC35: =SUMIFS(入出金tbl[金額],入出金tbl[内 容],$D35,入出金tbl[年月日],">="&AC$2,入出金tbl[年月日],"<"&AD$2) -> 0 | AD35: =SUMIFS(入出金tbl[金額],入出金tbl[内 容],$D35,入出金tbl[年月日],">="&AD$2,入出金tbl[年月日],"<"&AE$2) -> 124 | AE35: =SUMIFS(入出金tbl[金額],入出金tbl[内 容],$D35,入出金tbl[年月日],">="&AE$2,入出金tbl[年月日],"<"&AF$2) -> 0 | AF35: =SUMIFS(入出金tbl[金額],入出金tbl[内 容],$D35,入出金tbl[年月日],">="&AF$2,入出金tbl[年月日],"<"&AG$2) -> 0 | AG35: =SUMIFS(入出金tbl[金額],入出金tbl[内 容],$D35,入出金tbl[年月日],">="&AG$2,入出金tbl[年月日],"<"&AH$2) -> 0 | AH35: =SUMIFS(入出金tbl[金額],入出金tbl[内 容],$D35,入出金tbl[年月日],">="&AH$2,入出金tbl[年月日],"<"&AI$2) -> 0 | AI35: =SUMIFS(入出金tbl[金額],入出金tbl[内 容],$D35,入出金tbl[年月日],">="&AI$2,入出金tbl[年月日],"<"&AJ$2) -> 0
C36: (2) | D36: =資金繰り表!D37 -> 長期借入金調達 | E36: =SUMIFS(入出金tbl[金額],入出金tbl[内 容],$D36,入出金tbl[年月日],">="&E$2,入出金tbl[年月日],"<"&F$2) -> 0 | F36: =SUMIFS(入出金tbl[金額],入出金tbl[内 容],$D36,入出金tbl[年月日],">="&F$2,入出金tbl[年月日],"<"&G$2) -> 0 | G36: =SUMIFS(入出金tbl[金額],入出金tbl[内 容],$D36,入出金tbl[年月日],">="&G$2,入出金tbl[年月日],"<"&H$2) -> 0 | H36: =SUMIFS(入出金tbl[金額],入出金tbl[内 容],$D36,入出金tbl[年月日],">="&H$2,入出金tbl[年月日],"<"&I$2) -> 565 | I36: =SUMIFS(入出金tbl[金額],入出金tbl[内 容],$D36,入出金tbl[年月日],">="&I$2,入出金tbl[年月日],"<"&J$2) -> 0 | J36: =SUMIFS(入出金tbl[金額],入出金tbl[内 容],$D36,入出金tbl[年月日],">="&J$2,入出金tbl[年月日],"<"&K$2) -> 0 | K36: =SUMIFS(入出金tbl[金額],入出金tbl[内 容],$D36,入出金tbl[年月日],">="&K$2,入出金tbl[年月日],"<"&L$2) -> 0 | L36: =SUMIFS(入出金tbl[金額],入出金tbl[内 容],$D36,入出金tbl[年月日],">="&L$2,入出金tbl[年月日],"<"&M$2) -> 0 | M36: =SUMIFS(入出金tbl[金額],入出金tbl[内 容],$D36,入出金tbl[年月日],">="&M$2,入出金tbl[年月日],"<"&N$2) -> 0 | N36: =SUMIFS(入出金tbl[金額],入出金tbl[内 容],$D36,入出金tbl[年月日],">="&N$2,入出金tbl[年月日],"<"&O$2) -> 0 | O36: =SUMIFS(入出金tbl[金額],入出金tbl[内 容],$D36,入出金tbl[年月日],">="&O$2,入出金tbl[年月日],"<"&P$2) -> 0 | P36: =SUMIFS(入出金tbl[金額],入出金tbl[内 容],$D36,入出金tbl[年月日],">="&P$2,入出金tbl[年月日],"<"&Q$2) -> 0 | Q36: =SUMIFS(入出金tbl[金額],入出金tbl[内 容],$D36,入出金tbl[年月日],">="&Q$2,入出金tbl[年月日],"<"&R$2) -> 0 | R36: =SUMIFS(入出金tbl[金額],入出金tbl[内 容],$D36,入出金tbl[年月日],">="&R$2,入出金tbl[年月日],"<"&S$2) -> 0 | S36: =SUMIFS(入出金tbl[金額],入出金tbl[内 容],$D36,入出金tbl[年月日],">="&S$2,入出金tbl[年月日],"<"&T$2) -> 0 | T36: =SUMIFS(入出金tbl[金額],入出金tbl[内 容],$D36,入出金tbl[年月日],">="&T$2,入出金tbl[年月日],"<"&U$2) -> 0 | U36: =SUMIFS(入出金tbl[金額],入出金tbl[内 容],$D36,入出金tbl[年月日],">="&U$2,入出金tbl[年月日],"<"&V$2) -> 0 | V36: =SUMIFS(入出金tbl[金額],入出金tbl[内 容],$D36,入出金tbl[年月日],">="&V$2,入出金tbl[年月日],"<"&W$2) -> 0 | W36: =SUMIFS(入出金tbl[金額],入出金tbl[内 容],$D36,入出金tbl[年月日],">="&W$2,入出金tbl[年月日],"<"&X$2) -> 0 | X36: =SUMIFS(入出金tbl[金額],入出金tbl[内 容],$D36,入出金tbl[年月日],">="&X$2,入出金tbl[年月日],"<"&Y$2) -> 0 | Y36: =SUMIFS(入出金tbl[金額],入出金tbl[内 容],$D36,入出金tbl[年月日],">="&Y$2,入出金tbl[年月日],"<"&Z$2) -> 0 | Z36: =SUMIFS(入出金tbl[金額],入出金tbl[内 容],$D36,入出金tbl[年月日],">="&Z$2,入出金tbl[年月日],"<"&AA$2) -> 789 | AA36: =SUMIFS(入出金tbl[金額],入出金tbl[内 容],$D36,入出金tbl[年月日],">="&AA$2,入出金tbl[年月日],"<"&AB$2) -> 0 | AB36: =SUMIFS(入出金tbl[金額],入出金tbl[内 容],$D36,入出金tbl[年月日],">="&AB$2,入出金tbl[年月日],"<"&AC$2) -> 0 | AC36: =SUMIFS(入出金tbl[金額],入出金tbl[内 容],$D36,入出金tbl[年月日],">="&AC$2,入出金tbl[年月日],"<"&AD$2) -> 0 | AD36: =SUMIFS(入出金tbl[金額],入出金tbl[内 容],$D36,入出金tbl[年月日],">="&AD$2,入出金tbl[年月日],"<"&AE$2) -> 488 | AE36: =SUMIFS(入出金tbl[金額],入出金tbl[内 容],$D36,入出金tbl[年月日],">="&AE$2,入出金tbl[年月日],"<"&AF$2) -> 0 | AF36: =SUMIFS(入出金tbl[金額],入出金tbl[内 容],$D36,入出金tbl[年月日],">="&AF$2,入出金tbl[年月日],"<"&AG$2) -> 0 | AG36: =SUMIFS(入出金tbl[金額],入出金tbl[内 容],$D36,入出金tbl[年月日],">="&AG$2,入出金tbl[年月日],"<"&AH$2) -> 0 | AH36: =SUMIFS(入出金tbl[金額],入出金tbl[内 容],$D36,入出金tbl[年月日],">="&AH$2,入出金tbl[年月日],"<"&AI$2) -> 0 | AI36: =SUMIFS(入出金tbl[金額],入出金tbl[内 容],$D36,入出金tbl[年月日],">="&AI$2,入出金tbl[年月日],"<"&AJ$2) -> 0
C37: (3) | D37: =資金繰り表!D38 -> 社長借入金調達 | E37: =SUMIFS(入出金tbl[金額],入出金tbl[内 容],$D37,入出金tbl[年月日],">="&E$2,入出金tbl[年月日],"<"&F$2) -> 0 | F37: =SUMIFS(入出金tbl[金額],入出金tbl[内 容],$D37,入出金tbl[年月日],">="&F$2,入出金tbl[年月日],"<"&G$2) -> 0 | G37: =SUMIFS(入出金tbl[金額],入出金tbl[内 容],$D37,入出金tbl[年月日],">="&G$2,入出金tbl[年月日],"<"&H$2) -> 0 | H37: =SUMIFS(入出金tbl[金額],入出金tbl[内 容],$D37,入出金tbl[年月日],">="&H$2,入出金tbl[年月日],"<"&I$2) -> 0 | I37: =SUMIFS(入出金tbl[金額],入出金tbl[内 容],$D37,入出金tbl[年月日],">="&I$2,入出金tbl[年月日],"<"&J$2) -> 673 | J37: =SUMIFS(入出金tbl[金額],入出金tbl[内 容],$D37,入出金tbl[年月日],">="&J$2,入出金tbl[年月日],"<"&K$2) -> 0 | K37: =SUMIFS(入出金tbl[金額],入出金tbl[内 容],$D37,入出金tbl[年月日],">="&K$2,入出金tbl[年月日],"<"&L$2) -> 0 | L37: =SUMIFS(入出金tbl[金額],入出金tbl[内 容],$D37,入出金tbl[年月日],">="&L$2,入出金tbl[年月日],"<"&M$2) -> 0 | M37: =SUMIFS(入出金tbl[金額],入出金tbl[内 容],$D37,入出金tbl[年月日],">="&M$2,入出金tbl[年月日],"<"&N$2) -> 0 | N37: =SUMIFS(入出金tbl[金額],入出金tbl[内 容],$D37,入出金tbl[年月日],">="&N$2,入出金tbl[年月日],"<"&O$2) -> 0 | O37: =SUMIFS(入出金tbl[金額],入出金tbl[内 容],$D37,入出金tbl[年月日],">="&O$2,入出金tbl[年月日],"<"&P$2) -> 0 | P37: =SUMIFS(入出金tbl[金額],入出金tbl[内 容],$D37,入出金tbl[年月日],">="&P$2,入出金tbl[年月日],"<"&Q$2) -> 0 | Q37: =SUMIFS(入出金tbl[金額],入出金tbl[内 容],$D37,入出金tbl[年月日],">="&Q$2,入出金tbl[年月日],"<"&R$2) -> 0 | R37: =SUMIFS(入出金tbl[金額],入出金tbl[内 容],$D37,入出金tbl[年月日],">="&R$2,入出金tbl[年月日],"<"&S$2) -> 0 | S37: =SUMIFS(入出金tbl[金額],入出金tbl[内 容],$D37,入出金tbl[年月日],">="&S$2,入出金tbl[年月日],"<"&T$2) -> 0 | T37: =SUMIFS(入出金tbl[金額],入出金tbl[内 容],$D37,入出金tbl[年月日],">="&T$2,入出金tbl[年月日],"<"&U$2) -> 0 | U37: =SUMIFS(入出金tbl[金額],入出金tbl[内 容],$D37,入出金tbl[年月日],">="&U$2,入出金tbl[年月日],"<"&V$2) -> 0 | V37: =SUMIFS(入出金tbl[金額],入出金tbl[内 容],$D37,入出金tbl[年月日],">="&V$2,入出金tbl[年月日],"<"&W$2) -> 0 | W37: =SUMIFS(入出金tbl[金額],入出金tbl[内 容],$D37,入出金tbl[年月日],">="&W$2,入出金tbl[年月日],"<"&X$2) -> 0 | X37: =SUMIFS(入出金tbl[金額],入出金tbl[内 容],$D37,入出金tbl[年月日],">="&X$2,入出金tbl[年月日],"<"&Y$2) -> 0 | Y37: =SUMIFS(入出金tbl[金額],入出金tbl[内 容],$D37,入出金tbl[年月日],">="&Y$2,入出金tbl[年月日],"<"&Z$2) -> 0 | Z37: =SUMIFS(入出金tbl[金額],入出金tbl[内 容],$D37,入出金tbl[年月日],">="&Z$2,入出金tbl[年月日],"<"&AA$2) -> 0 | AA37: =SUMIFS(入出金tbl[金額],入出金tbl[内 容],$D37,入出金tbl[年月日],">="&AA$2,入出金tbl[年月日],"<"&AB$2) -> 63 | AB37: =SUMIFS(入出金tbl[金額],入出金tbl[内 容],$D37,入出金tbl[年月日],">="&AB$2,入出金tbl[年月日],"<"&AC$2) -> 0 | AC37: =SUMIFS(入出金tbl[金額],入出金tbl[内 容],$D37,入出金tbl[年月日],">="&AC$2,入出金tbl[年月日],"<"&AD$2) -> 0 | AD37: =SUMIFS(入出金tbl[金額],入出金tbl[内 容],$D37,入出金tbl[年月日],">="&AD$2,入出金tbl[年月日],"<"&AE$2) -> 0 | AE37: =SUMIFS(入出金tbl[金額],入出金tbl[内 容],$D37,入出金tbl[年月日],">="&AE$2,入出金tbl[年月日],"<"&AF$2) -> 473 | AF37: =SUMIFS(入出金tbl[金額],入出金tbl[内 容],$D37,入出金tbl[年月日],">="&AF$2,入出金tbl[年月日],"<"&AG$2) -> 0 | AG37: =SUMIFS(入出金tbl[金額],入出金tbl[内 容],$D37,入出金tbl[年月日],">="&AG$2,入出金tbl[年月日],"<"&AH$2) -> 0 | AH37: =SUMIFS(入出金tbl[金額],入出金tbl[内 容],$D37,入出金tbl[年月日],">="&AH$2,入出金tbl[年月日],"<"&AI$2) -> 0 | AI37: =SUMIFS(入出金tbl[金額],入出金tbl[内 容],$D37,入出金tbl[年月日],">="&AI$2,入出金tbl[年月日],"<"&AJ$2) -> 0
C38: (4) | D38: =資金繰り表!D39 -> その他調達 | E38: =SUMIFS(入出金tbl[金額],入出金tbl[内 容],$D38,入出金tbl[年月日],">="&E$2,入出金tbl[年月日],"<"&F$2) -> 0 | F38: =SUMIFS(入出金tbl[金額],入出金tbl[内 容],$D38,入出金tbl[年月日],">="&F$2,入出金tbl[年月日],"<"&G$2) -> 0 | G38: =SUMIFS(入出金tbl[金額],入出金tbl[内 容],$D38,入出金tbl[年月日],">="&G$2,入出金tbl[年月日],"<"&H$2) -> 0 | H38: =SUMIFS(入出金tbl[金額],入出金tbl[内 容],$D38,入出金tbl[年月日],">="&H$2,入出金tbl[年月日],"<"&I$2) -> 0 | I38: =SUMIFS(入出金tbl[金額],入出金tbl[内 容],$D38,入出金tbl[年月日],">="&I$2,入出金tbl[年月日],"<"&J$2) -> 565 | J38: =SUMIFS(入出金tbl[金額],入出金tbl[内 容],$D38,入出金tbl[年月日],">="&J$2,入出金tbl[年月日],"<"&K$2) -> 0 | K38: =SUMIFS(入出金tbl[金額],入出金tbl[内 容],$D38,入出金tbl[年月日],">="&K$2,入出金tbl[年月日],"<"&L$2) -> 0 | L38: =SUMIFS(入出金tbl[金額],入出金tbl[内 容],$D38,入出金tbl[年月日],">="&L$2,入出金tbl[年月日],"<"&M$2) -> 0 | M38: =SUMIFS(入出金tbl[金額],入出金tbl[内 容],$D38,入出金tbl[年月日],">="&M$2,入出金tbl[年月日],"<"&N$2) -> 0 | N38: =SUMIFS(入出金tbl[金額],入出金tbl[内 容],$D38,入出金tbl[年月日],">="&N$2,入出金tbl[年月日],"<"&O$2) -> 0 | O38: =SUMIFS(入出金tbl[金額],入出金tbl[内 容],$D38,入出金tbl[年月日],">="&O$2,入出金tbl[年月日],"<"&P$2) -> 0 | P38: =SUMIFS(入出金tbl[金額],入出金tbl[内 容],$D38,入出金tbl[年月日],">="&P$2,入出金tbl[年月日],"<"&Q$2) -> 0 | Q38: =SUMIFS(入出金tbl[金額],入出金tbl[内 容],$D38,入出金tbl[年月日],">="&Q$2,入出金tbl[年月日],"<"&R$2) -> 0 | R38: =SUMIFS(入出金tbl[金額],入出金tbl[内 容],$D38,入出金tbl[年月日],">="&R$2,入出金tbl[年月日],"<"&S$2) -> 0 | S38: =SUMIFS(入出金tbl[金額],入出金tbl[内 容],$D38,入出金tbl[年月日],">="&S$2,入出金tbl[年月日],"<"&T$2) -> 0 | T38: =SUMIFS(入出金tbl[金額],入出金tbl[内 容],$D38,入出金tbl[年月日],">="&T$2,入出金tbl[年月日],"<"&U$2) -> 0 | U38: =SUMIFS(入出金tbl[金額],入出金tbl[内 容],$D38,入出金tbl[年月日],">="&U$2,入出金tbl[年月日],"<"&V$2) -> 0 | V38: =SUMIFS(入出金tbl[金額],入出金tbl[内 容],$D38,入出金tbl[年月日],">="&V$2,入出金tbl[年月日],"<"&W$2) -> 0 | W38: =SUMIFS(入出金tbl[金額],入出金tbl[内 容],$D38,入出金tbl[年月日],">="&W$2,入出金tbl[年月日],"<"&X$2) -> 0 | X38: =SUMIFS(入出金tbl[金額],入出金tbl[内 容],$D38,入出金tbl[年月日],">="&X$2,入出金tbl[年月日],"<"&Y$2) -> 0 | Y38: =SUMIFS(入出金tbl[金額],入出金tbl[内 容],$D38,入出金tbl[年月日],">="&Y$2,入出金tbl[年月日],"<"&Z$2) -> 0 | Z38: =SUMIFS(入出金tbl[金額],入出金tbl[内 容],$D38,入出金tbl[年月日],">="&Z$2,入出金tbl[年月日],"<"&AA$2) -> 0 | AA38: =SUMIFS(入出金tbl[金額],入出金tbl[内 容],$D38,入出金tbl[年月日],">="&AA$2,入出金tbl[年月日],"<"&AB$2) -> 0 | AB38: =SUMIFS(入出金tbl[金額],入出金tbl[内 容],$D38,入出金tbl[年月日],">="&AB$2,入出金tbl[年月日],"<"&AC$2) -> 63 | AC38: =SUMIFS(入出金tbl[金額],入出金tbl[内 容],$D38,入出金tbl[年月日],">="&AC$2,入出金tbl[年月日],"<"&AD$2) -> 0 | AD38: =SUMIFS(入出金tbl[金額],入出金tbl[内 容],$D38,入出金tbl[年月日],">="&AD$2,入出金tbl[年月日],"<"&AE$2) -> 0 | AE38: =SUMIFS(入出金tbl[金額],入出金tbl[内 容],$D38,入出金tbl[年月日],">="&AE$2,入出金tbl[年月日],"<"&AF$2) -> 488 | AF38: =SUMIFS(入出金tbl[金額],入出金tbl[内 容],$D38,入出金tbl[年月日],">="&AF$2,入出金tbl[年月日],"<"&AG$2) -> 0 | AG38: =SUMIFS(入出金tbl[金額],入出金tbl[内 容],$D38,入出金tbl[年月日],">="&AG$2,入出金tbl[年月日],"<"&AH$2) -> 0 | AH38: =SUMIFS(入出金tbl[金額],入出金tbl[内 容],$D38,入出金tbl[年月日],">="&AH$2,入出金tbl[年月日],"<"&AI$2) -> 0 | AI38: =SUMIFS(入出金tbl[金額],入出金tbl[内 容],$D38,入出金tbl[年月日],">="&AI$2,入出金tbl[年月日],"<"&AJ$2) -> 0
C39: (5) | D39: =資金繰り表!D40 -> ---------- | E39: =SUMIFS(入出金tbl[金額],入出金tbl[内 容],$D39,入出金tbl[年月日],">="&E$2,入出金tbl[年月日],"<"&F$2) -> 0 | F39: =SUMIFS(入出金tbl[金額],入出金tbl[内 容],$D39,入出金tbl[年月日],">="&F$2,入出金tbl[年月日],"<"&G$2) -> 0 | G39: =SUMIFS(入出金tbl[金額],入出金tbl[内 容],$D39,入出金tbl[年月日],">="&G$2,入出金tbl[年月日],"<"&H$2) -> 0 | H39: =SUMIFS(入出金tbl[金額],入出金tbl[内 容],$D39,入出金tbl[年月日],">="&H$2,入出金tbl[年月日],"<"&I$2) -> 0 | I39: =SUMIFS(入出金tbl[金額],入出金tbl[内 容],$D39,入出金tbl[年月日],">="&I$2,入出金tbl[年月日],"<"&J$2) -> 0 | J39: =SUMIFS(入出金tbl[金額],入出金tbl[内 容],$D39,入出金tbl[年月日],">="&J$2,入出金tbl[年月日],"<"&K$2) -> 0 | K39: =SUMIFS(入出金tbl[金額],入出金tbl[内 容],$D39,入出金tbl[年月日],">="&K$2,入出金tbl[年月日],"<"&L$2) -> 0 | L39: =SUMIFS(入出金tbl[金額],入出金tbl[内 容],$D39,入出金tbl[年月日],">="&L$2,入出金tbl[年月日],"<"&M$2) -> 0 | M39: =SUMIFS(入出金tbl[金額],入出金tbl[内 容],$D39,入出金tbl[年月日],">="&M$2,入出金tbl[年月日],"<"&N$2) -> 0 | N39: =SUMIFS(入出金tbl[金額],入出金tbl[内 容],$D39,入出金tbl[年月日],">="&N$2,入出金tbl[年月日],"<"&O$2) -> 0 | O39: =SUMIFS(入出金tbl[金額],入出金tbl[内 容],$D39,入出金tbl[年月日],">="&O$2,入出金tbl[年月日],"<"&P$2) -> 0 | P39: =SUMIFS(入出金tbl[金額],入出金tbl[内 容],$D39,入出金tbl[年月日],">="&P$2,入出金tbl[年月日],"<"&Q$2) -> 0 | Q39: =SUMIFS(入出金tbl[金額],入出金tbl[内 容],$D39,入出金tbl[年月日],">="&Q$2,入出金tbl[年月日],"<"&R$2) -> 0 | R39: =SUMIFS(入出金tbl[金額],入出金tbl[内 容],$D39,入出金tbl[年月日],">="&R$2,入出金tbl[年月日],"<"&S$2) -> 0 | S39: =SUMIFS(入出金tbl[金額],入出金tbl[内 容],$D39,入出金tbl[年月日],">="&S$2,入出金tbl[年月日],"<"&T$2) -> 0 | T39: =SUMIFS(入出金tbl[金額],入出金tbl[内 容],$D39,入出金tbl[年月日],">="&T$2,入出金tbl[年月日],"<"&U$2) -> 0 | U39: =SUMIFS(入出金tbl[金額],入出金tbl[内 容],$D39,入出金tbl[年月日],">="&U$2,入出金tbl[年月日],"<"&V$2) -> 0 | V39: =SUMIFS(入出金tbl[金額],入出金tbl[内 容],$D39,入出金tbl[年月日],">="&V$2,入出金tbl[年月日],"<"&W$2) -> 0 | W39: =SUMIFS(入出金tbl[金額],入出金tbl[内 容],$D39,入出金tbl[年月日],">="&W$2,入出金tbl[年月日],"<"&X$2) -> 0 | X39: =SUMIFS(入出金tbl[金額],入出金tbl[内 容],$D39,入出金tbl[年月日],">="&X$2,入出金tbl[年月日],"<"&Y$2) -> 0 | Y39: =SUMIFS(入出金tbl[金額],入出金tbl[内 容],$D39,入出金tbl[年月日],">="&Y$2,入出金tbl[年月日],"<"&Z$2) -> 0 | Z39: =SUMIFS(入出金tbl[金額],入出金tbl[内 容],$D39,入出金tbl[年月日],">="&Z$2,入出金tbl[年月日],"<"&AA$2) -> 0 | AA39: =SUMIFS(入出金tbl[金額],入出金tbl[内 容],$D39,入出金tbl[年月日],">="&AA$2,入出金tbl[年月日],"<"&AB$2) -> 0 | AB39: =SUMIFS(入出金tbl[金額],入出金tbl[内 容],$D39,入出金tbl[年月日],">="&AB$2,入出金tbl[年月日],"<"&AC$2) -> 0 | AC39: =SUMIFS(入出金tbl[金額],入出金tbl[内 容],$D39,入出金tbl[年月日],">="&AC$2,入出金tbl[年月日],"<"&AD$2) -> 0 | AD39: =SUMIFS(入出金tbl[金額],入出金tbl[内 容],$D39,入出金tbl[年月日],">="&AD$2,入出金tbl[年月日],"<"&AE$2) -> 0 | AE39: =SUMIFS(入出金tbl[金額],入出金tbl[内 容],$D39,入出金tbl[年月日],">="&AE$2,入出金tbl[年月日],"<"&AF$2) -> 0 | AF39: =SUMIFS(入出金tbl[金額],入出金tbl[内 容],$D39,入出金tbl[年月日],">="&AF$2,入出金tbl[年月日],"<"&AG$2) -> 0 | AG39: =SUMIFS(入出金tbl[金額],入出金tbl[内 容],$D39,入出金tbl[年月日],">="&AG$2,入出金tbl[年月日],"<"&AH$2) -> 0 | AH39: =SUMIFS(入出金tbl[金額],入出金tbl[内 容],$D39,入出金tbl[年月日],">="&AH$2,入出金tbl[年月日],"<"&AI$2) -> 0 | AI39: =SUMIFS(入出金tbl[金額],入出金tbl[内 容],$D39,入出金tbl[年月日],">="&AI$2,入出金tbl[年月日],"<"&AJ$2) -> 0
D40: 収入合計(H) | E40: =SUM(E35:E39) -> 0 | F40: =SUM(F35:F39) -> 0 | G40: 1151 | H40: 565 | I40: 1238 | J40: 0 | K40: 0 | L40: 0 | M40: 0 | N40: 0 | O40: 0 | P40: 0 | Q40: 0 | R40: 0 | S40: 0 | T40: 0 | U40: 0 | V40: 0 | W40: 0 | X40: 0 | Y40: 789 | Z40: 789 | AA40: 63 | AB40: 63 | AC40: 0 | AD40: 612 | AE40: 961 | AF40: 0 | AG40: 0 | AH40: 0 | AI40: 0
B41: 支出 | C41: (1) | D41: =資金繰り表!D42 -> 短期借入金返済 | E41: =SUMIFS(入出金tbl[金額],入出金tbl[内 容],$D41,入出金tbl[年月日],">="&E$2,入出金tbl[年月日],"<"&F$2) -> 0 | F41: =SUMIFS(入出金tbl[金額],入出金tbl[内 容],$D41,入出金tbl[年月日],">="&F$2,入出金tbl[年月日],"<"&G$2) -> 0 | G41: =SUMIFS(入出金tbl[金額],入出金tbl[内 容],$D41,入出金tbl[年月日],">="&G$2,入出金tbl[年月日],"<"&H$2) -> 0 | H41: =SUMIFS(入出金tbl[金額],入出金tbl[内 容],$D41,入出金tbl[年月日],">="&H$2,入出金tbl[年月日],"<"&I$2) -> 0 | I41: =SUMIFS(入出金tbl[金額],入出金tbl[内 容],$D41,入出金tbl[年月日],">="&I$2,入出金tbl[年月日],"<"&J$2) -> 0 | J41: =SUMIFS(入出金tbl[金額],入出金tbl[内 容],$D41,入出金tbl[年月日],">="&J$2,入出金tbl[年月日],"<"&K$2) -> 0 | K41: =SUMIFS(入出金tbl[金額],入出金tbl[内 容],$D41,入出金tbl[年月日],">="&K$2,入出金tbl[年月日],"<"&L$2) -> 0 | L41: =SUMIFS(入出金tbl[金額],入出金tbl[内 容],$D41,入出金tbl[年月日],">="&L$2,入出金tbl[年月日],"<"&M$2) -> 0 | M41: =SUMIFS(入出金tbl[金額],入出金tbl[内 容],$D41,入出金tbl[年月日],">="&M$2,入出金tbl[年月日],"<"&N$2) -> 0 | N41: =SUMIFS(入出金tbl[金額],入出金tbl[内 容],$D41,入出金tbl[年月日],">="&N$2,入出金tbl[年月日],"<"&O$2) -> 0 | O41: =SUMIFS(入出金tbl[金額],入出金tbl[内 容],$D41,入出金tbl[年月日],">="&O$2,入出金tbl[年月日],"<"&P$2) -> 0 | P41: =SUMIFS(入出金tbl[金額],入出金tbl[内 容],$D41,入出金tbl[年月日],">="&P$2,入出金tbl[年月日],"<"&Q$2) -> 433 | Q41: =SUMIFS(入出金tbl[金額],入出金tbl[内 容],$D41,入出金tbl[年月日],">="&Q$2,入出金tbl[年月日],"<"&R$2) -> 0 | R41: =SUMIFS(入出金tbl[金額],入出金tbl[内 容],$D41,入出金tbl[年月日],">="&R$2,入出金tbl[年月日],"<"&S$2) -> 0 | S41: =SUMIFS(入出金tbl[金額],入出金tbl[内 容],$D41,入出金tbl[年月日],">="&S$2,入出金tbl[年月日],"<"&T$2) -> 0 | T41: =SUMIFS(入出金tbl[金額],入出金tbl[内 容],$D41,入出金tbl[年月日],">="&T$2,入出金tbl[年月日],"<"&U$2) -> 0 | U41: =SUMIFS(入出金tbl[金額],入出金tbl[内 容],$D41,入出金tbl[年月日],">="&U$2,入出金tbl[年月日],"<"&V$2) -> 0 | V41: =SUMIFS(入出金tbl[金額],入出金tbl[内 容],$D41,入出金tbl[年月日],">="&V$2,入出金tbl[年月日],"<"&W$2) -> 0 | W41: =SUMIFS(入出金tbl[金額],入出金tbl[内 容],$D41,入出金tbl[年月日],">="&W$2,入出金tbl[年月日],"<"&X$2) -> 0 | X41: =SUMIFS(入出金tbl[金額],入出金tbl[内 容],$D41,入出金tbl[年月日],">="&X$2,入出金tbl[年月日],"<"&Y$2) -> 0 | Y41: =SUMIFS(入出金tbl[金額],入出金tbl[内 容],$D41,入出金tbl[年月日],">="&Y$2,入出金tbl[年月日],"<"&Z$2) -> 0 | Z41: =SUMIFS(入出金tbl[金額],入出金tbl[内 容],$D41,入出金tbl[年月日],">="&Z$2,入出金tbl[年月日],"<"&AA$2) -> 0 | AA41: =SUMIFS(入出金tbl[金額],入出金tbl[内 容],$D41,入出金tbl[年月日],">="&AA$2,入出金tbl[年月日],"<"&AB$2) -> 0 | AB41: =SUMIFS(入出金tbl[金額],入出金tbl[内 容],$D41,入出金tbl[年月日],">="&AB$2,入出金tbl[年月日],"<"&AC$2) -> 0 | AC41: =SUMIFS(入出金tbl[金額],入出金tbl[内 容],$D41,入出金tbl[年月日],">="&AC$2,入出金tbl[年月日],"<"&AD$2) -> 0 | AD41: =SUMIFS(入出金tbl[金額],入出金tbl[内 容],$D41,入出金tbl[年月日],">="&AD$2,入出金tbl[年月日],"<"&AE$2) -> 0 | AE41: =SUMIFS(入出金tbl[金額],入出金tbl[内 容],$D41,入出金tbl[年月日],">="&AE$2,入出金tbl[年月日],"<"&AF$2) -> 0 | AF41: =SUMIFS(入出金tbl[金額],入出金tbl[内 容],$D41,入出金tbl[年月日],">="&AF$2,入出金tbl[年月日],"<"&AG$2) -> 0 | AG41: =SUMIFS(入出金tbl[金額],入出金tbl[内 容],$D41,入出金tbl[年月日],">="&AG$2,入出金tbl[年月日],"<"&AH$2) -> 0 | AH41: =SUMIFS(入出金tbl[金額],入出金tbl[内 容],$D41,入出金tbl[年月日],">="&AH$2,入出金tbl[年月日],"<"&AI$2) -> 0 | AI41: =SUMIFS(入出金tbl[金額],入出金tbl[内 容],$D41,入出金tbl[年月日],">="&AI$2,入出金tbl[年月日],"<"&AJ$2) -> 0
C42: (2) | D42: =資金繰り表!D43 -> 長期借入金返済 | E42: =SUMIFS(入出金tbl[金額],入出金tbl[内 容],$D42,入出金tbl[年月日],">="&E$2,入出金tbl[年月日],"<"&F$2) -> 0 | F42: =SUMIFS(入出金tbl[金額],入出金tbl[内 容],$D42,入出金tbl[年月日],">="&F$2,入出金tbl[年月日],"<"&G$2) -> 0 | G42: =SUMIFS(入出金tbl[金額],入出金tbl[内 容],$D42,入出金tbl[年月日],">="&G$2,入出金tbl[年月日],"<"&H$2) -> 0 | H42: =SUMIFS(入出金tbl[金額],入出金tbl[内 容],$D42,入出金tbl[年月日],">="&H$2,入出金tbl[年月日],"<"&I$2) -> 0 | I42: =SUMIFS(入出金tbl[金額],入出金tbl[内 容],$D42,入出金tbl[年月日],">="&I$2,入出金tbl[年月日],"<"&J$2) -> 0 | J42: =SUMIFS(入出金tbl[金額],入出金tbl[内 容],$D42,入出金tbl[年月日],">="&J$2,入出金tbl[年月日],"<"&K$2) -> 0 | K42: =SUMIFS(入出金tbl[金額],入出金tbl[内 容],$D42,入出金tbl[年月日],">="&K$2,入出金tbl[年月日],"<"&L$2) -> 0 | L42: =SUMIFS(入出金tbl[金額],入出金tbl[内 容],$D42,入出金tbl[年月日],">="&L$2,入出金tbl[年月日],"<"&M$2) -> 0 | M42: =SUMIFS(入出金tbl[金額],入出金tbl[内 容],$D42,入出金tbl[年月日],">="&M$2,入出金tbl[年月日],"<"&N$2) -> 0 | N42: =SUMIFS(入出金tbl[金額],入出金tbl[内 容],$D42,入出金tbl[年月日],">="&N$2,入出金tbl[年月日],"<"&O$2) -> 0 | O42: =SUMIFS(入出金tbl[金額],入出金tbl[内 容],$D42,入出金tbl[年月日],">="&O$2,入出金tbl[年月日],"<"&P$2) -> 0 | P42: =SUMIFS(入出金tbl[金額],入出金tbl[内 容],$D42,入出金tbl[年月日],">="&P$2,入出金tbl[年月日],"<"&Q$2) -> 0 | Q42: =SUMIFS(入出金tbl[金額],入出金tbl[内 容],$D42,入出金tbl[年月日],">="&Q$2,入出金tbl[年月日],"<"&R$2) -> 256 | R42: =SUMIFS(入出金tbl[金額],入出金tbl[内 容],$D42,入出金tbl[年月日],">="&R$2,入出金tbl[年月日],"<"&S$2) -> 0 | S42: =SUMIFS(入出金tbl[金額],入出金tbl[内 容],$D42,入出金tbl[年月日],">="&S$2,入出金tbl[年月日],"<"&T$2) -> 0 | T42: =SUMIFS(入出金tbl[金額],入出金tbl[内 容],$D42,入出金tbl[年月日],">="&T$2,入出金tbl[年月日],"<"&U$2) -> 0 | U42: =SUMIFS(入出金tbl[金額],入出金tbl[内 容],$D42,入出金tbl[年月日],">="&U$2,入出金tbl[年月日],"<"&V$2) -> 0 | V42: =SUMIFS(入出金tbl[金額],入出金tbl[内 容],$D42,入出金tbl[年月日],">="&V$2,入出金tbl[年月日],"<"&W$2) -> 0 | W42: =SUMIFS(入出金tbl[金額],入出金tbl[内 容],$D42,入出金tbl[年月日],">="&W$2,入出金tbl[年月日],"<"&X$2) -> 0 | X42: =SUMIFS(入出金tbl[金額],入出金tbl[内 容],$D42,入出金tbl[年月日],">="&X$2,入出金tbl[年月日],"<"&Y$2) -> 0 | Y42: =SUMIFS(入出金tbl[金額],入出金tbl[内 容],$D42,入出金tbl[年月日],">="&Y$2,入出金tbl[年月日],"<"&Z$2) -> 0 | Z42: =SUMIFS(入出金tbl[金額],入出金tbl[内 容],$D42,入出金tbl[年月日],">="&Z$2,入出金tbl[年月日],"<"&AA$2) -> 0 | AA42: =SUMIFS(入出金tbl[金額],入出金tbl[内 容],$D42,入出金tbl[年月日],">="&AA$2,入出金tbl[年月日],"<"&AB$2) -> 0 | AB42: =SUMIFS(入出金tbl[金額],入出金tbl[内 容],$D42,入出金tbl[年月日],">="&AB$2,入出金tbl[年月日],"<"&AC$2) -> 0 | AC42: =SUMIFS(入出金tbl[金額],入出金tbl[内 容],$D42,入出金tbl[年月日],">="&AC$2,入出金tbl[年月日],"<"&AD$2) -> 0 | AD42: =SUMIFS(入出金tbl[金額],入出金tbl[内 容],$D42,入出金tbl[年月日],">="&AD$2,入出金tbl[年月日],"<"&AE$2) -> 0 | AE42: =SUMIFS(入出金tbl[金額],入出金tbl[内 容],$D42,入出金tbl[年月日],">="&AE$2,入出金tbl[年月日],"<"&AF$2) -> 0 | AF42: =SUMIFS(入出金tbl[金額],入出金tbl[内 容],$D42,入出金tbl[年月日],">="&AF$2,入出金tbl[年月日],"<"&AG$2) -> 0 | AG42: =SUMIFS(入出金tbl[金額],入出金tbl[内 容],$D42,入出金tbl[年月日],">="&AG$2,入出金tbl[年月日],"<"&AH$2) -> 0 | AH42: =SUMIFS(入出金tbl[金額],入出金tbl[内 容],$D42,入出金tbl[年月日],">="&AH$2,入出金tbl[年月日],"<"&AI$2) -> 0 | AI42: =SUMIFS(入出金tbl[金額],入出金tbl[内 容],$D42,入出金tbl[年月日],">="&AI$2,入出金tbl[年月日],"<"&AJ$2) -> 0
C43: (3) | D43: =資金繰り表!D44 -> 社長借入金返済 | E43: =SUMIFS(入出金tbl[金額],入出金tbl[内 容],$D43,入出金tbl[年月日],">="&E$2,入出金tbl[年月日],"<"&F$2) -> 0 | F43: =SUMIFS(入出金tbl[金額],入出金tbl[内 容],$D43,入出金tbl[年月日],">="&F$2,入出金tbl[年月日],"<"&G$2) -> 0 | G43: =SUMIFS(入出金tbl[金額],入出金tbl[内 容],$D43,入出金tbl[年月日],">="&G$2,入出金tbl[年月日],"<"&H$2) -> 0 | H43: =SUMIFS(入出金tbl[金額],入出金tbl[内 容],$D43,入出金tbl[年月日],">="&H$2,入出金tbl[年月日],"<"&I$2) -> 0 | I43: =SUMIFS(入出金tbl[金額],入出金tbl[内 容],$D43,入出金tbl[年月日],">="&I$2,入出金tbl[年月日],"<"&J$2) -> 0 | J43: =SUMIFS(入出金tbl[金額],入出金tbl[内 容],$D43,入出金tbl[年月日],">="&J$2,入出金tbl[年月日],"<"&K$2) -> 0 | K43: =SUMIFS(入出金tbl[金額],入出金tbl[内 容],$D43,入出金tbl[年月日],">="&K$2,入出金tbl[年月日],"<"&L$2) -> 0 | L43: =SUMIFS(入出金tbl[金額],入出金tbl[内 容],$D43,入出金tbl[年月日],">="&L$2,入出金tbl[年月日],"<"&M$2) -> 0 | M43: =SUMIFS(入出金tbl[金額],入出金tbl[内 容],$D43,入出金tbl[年月日],">="&M$2,入出金tbl[年月日],"<"&N$2) -> 0 | N43: =SUMIFS(入出金tbl[金額],入出金tbl[内 容],$D43,入出金tbl[年月日],">="&N$2,入出金tbl[年月日],"<"&O$2) -> 0 | O43: =SUMIFS(入出金tbl[金額],入出金tbl[内 容],$D43,入出金tbl[年月日],">="&O$2,入出金tbl[年月日],"<"&P$2) -> 0 | P43: =SUMIFS(入出金tbl[金額],入出金tbl[内 容],$D43,入出金tbl[年月日],">="&P$2,入出金tbl[年月日],"<"&Q$2) -> 0 | Q43: =SUMIFS(入出金tbl[金額],入出金tbl[内 容],$D43,入出金tbl[年月日],">="&Q$2,入出金tbl[年月日],"<"&R$2) -> 433 | R43: =SUMIFS(入出金tbl[金額],入出金tbl[内 容],$D43,入出金tbl[年月日],">="&R$2,入出金tbl[年月日],"<"&S$2) -> 0 | S43: =SUMIFS(入出金tbl[金額],入出金tbl[内 容],$D43,入出金tbl[年月日],">="&S$2,入出金tbl[年月日],"<"&T$2) -> 0 | T43: =SUMIFS(入出金tbl[金額],入出金tbl[内 容],$D43,入出金tbl[年月日],">="&T$2,入出金tbl[年月日],"<"&U$2) -> 0 | U43: =SUMIFS(入出金tbl[金額],入出金tbl[内 容],$D43,入出金tbl[年月日],">="&U$2,入出金tbl[年月日],"<"&V$2) -> 0 | V43: =SUMIFS(入出金tbl[金額],入出金tbl[内 容],$D43,入出金tbl[年月日],">="&V$2,入出金tbl[年月日],"<"&W$2) -> 0 | W43: =SUMIFS(入出金tbl[金額],入出金tbl[内 容],$D43,入出金tbl[年月日],">="&W$2,入出金tbl[年月日],"<"&X$2) -> 0 | X43: =SUMIFS(入出金tbl[金額],入出金tbl[内 容],$D43,入出金tbl[年月日],">="&X$2,入出金tbl[年月日],"<"&Y$2) -> 0 | Y43: =SUMIFS(入出金tbl[金額],入出金tbl[内 容],$D43,入出金tbl[年月日],">="&Y$2,入出金tbl[年月日],"<"&Z$2) -> 0 | Z43: =SUMIFS(入出金tbl[金額],入出金tbl[内 容],$D43,入出金tbl[年月日],">="&Z$2,入出金tbl[年月日],"<"&AA$2) -> 0 | AA43: =SUMIFS(入出金tbl[金額],入出金tbl[内 容],$D43,入出金tbl[年月日],">="&AA$2,入出金tbl[年月日],"<"&AB$2) -> 0 | AB43: =SUMIFS(入出金tbl[金額],入出金tbl[内 容],$D43,入出金tbl[年月日],">="&AB$2,入出金tbl[年月日],"<"&AC$2) -> 0 | AC43: =SUMIFS(入出金tbl[金額],入出金tbl[内 容],$D43,入出金tbl[年月日],">="&AC$2,入出金tbl[年月日],"<"&AD$2) -> 0 | AD43: =SUMIFS(入出金tbl[金額],入出金tbl[内 容],$D43,入出金tbl[年月日],">="&AD$2,入出金tbl[年月日],"<"&AE$2) -> 0 | AE43: =SUMIFS(入出金tbl[金額],入出金tbl[内 容],$D43,入出金tbl[年月日],">="&AE$2,入出金tbl[年月日],"<"&AF$2) -> 0 | AF43: =SUMIFS(入出金tbl[金額],入出金tbl[内 容],$D43,入出金tbl[年月日],">="&AF$2,入出金tbl[年月日],"<"&AG$2) -> 0 | AG43: =SUMIFS(入出金tbl[金額],入出金tbl[内 容],$D43,入出金tbl[年月日],">="&AG$2,入出金tbl[年月日],"<"&AH$2) -> 0 | AH43: =SUMIFS(入出金tbl[金額],入出金tbl[内 容],$D43,入出金tbl[年月日],">="&AH$2,入出金tbl[年月日],"<"&AI$2) -> 0 | AI43: =SUMIFS(入出金tbl[金額],入出金tbl[内 容],$D43,入出金tbl[年月日],">="&AI$2,入出金tbl[年月日],"<"&AJ$2) -> 0
C44: (4) | D44: =資金繰り表!D45 -> その他返済 | E44: =SUMIFS(入出金tbl[金額],入出金tbl[内 容],$D44,入出金tbl[年月日],">="&E$2,入出金tbl[年月日],"<"&F$2) -> 0 | F44: =SUMIFS(入出金tbl[金額],入出金tbl[内 容],$D44,入出金tbl[年月日],">="&F$2,入出金tbl[年月日],"<"&G$2) -> 0 | G44: =SUMIFS(入出金tbl[金額],入出金tbl[内 容],$D44,入出金tbl[年月日],">="&G$2,入出金tbl[年月日],"<"&H$2) -> 0 | H44: =SUMIFS(入出金tbl[金額],入出金tbl[内 容],$D44,入出金tbl[年月日],">="&H$2,入出金tbl[年月日],"<"&I$2) -> 0 | I44: =SUMIFS(入出金tbl[金額],入出金tbl[内 容],$D44,入出金tbl[年月日],">="&I$2,入出金tbl[年月日],"<"&J$2) -> 0 | J44: =SUMIFS(入出金tbl[金額],入出金tbl[内 容],$D44,入出金tbl[年月日],">="&J$2,入出金tbl[年月日],"<"&K$2) -> 0 | K44: =SUMIFS(入出金tbl[金額],入出金tbl[内 容],$D44,入出金tbl[年月日],">="&K$2,入出金tbl[年月日],"<"&L$2) -> 0 | L44: =SUMIFS(入出金tbl[金額],入出金tbl[内 容],$D44,入出金tbl[年月日],">="&L$2,入出金tbl[年月日],"<"&M$2) -> 0 | M44: =SUMIFS(入出金tbl[金額],入出金tbl[内 容],$D44,入出金tbl[年月日],">="&M$2,入出金tbl[年月日],"<"&N$2) -> 0 | N44: =SUMIFS(入出金tbl[金額],入出金tbl[内 容],$D44,入出金tbl[年月日],">="&N$2,入出金tbl[年月日],"<"&O$2) -> 0 | O44: =SUMIFS(入出金tbl[金額],入出金tbl[内 容],$D44,入出金tbl[年月日],">="&O$2,入出金tbl[年月日],"<"&P$2) -> 0 | P44: =SUMIFS(入出金tbl[金額],入出金tbl[内 容],$D44,入出金tbl[年月日],">="&P$2,入出金tbl[年月日],"<"&Q$2) -> 0 | Q44: =SUMIFS(入出金tbl[金額],入出金tbl[内 容],$D44,入出金tbl[年月日],">="&Q$2,入出金tbl[年月日],"<"&R$2) -> 0 | R44: =SUMIFS(入出金tbl[金額],入出金tbl[内 容],$D44,入出金tbl[年月日],">="&R$2,入出金tbl[年月日],"<"&S$2) -> 256 | S44: =SUMIFS(入出金tbl[金額],入出金tbl[内 容],$D44,入出金tbl[年月日],">="&S$2,入出金tbl[年月日],"<"&T$2) -> 0 | T44: =SUMIFS(入出金tbl[金額],入出金tbl[内 容],$D44,入出金tbl[年月日],">="&T$2,入出金tbl[年月日],"<"&U$2) -> 0 | U44: =SUMIFS(入出金tbl[金額],入出金tbl[内 容],$D44,入出金tbl[年月日],">="&U$2,入出金tbl[年月日],"<"&V$2) -> 0 | V44: =SUMIFS(入出金tbl[金額],入出金tbl[内 容],$D44,入出金tbl[年月日],">="&V$2,入出金tbl[年月日],"<"&W$2) -> 0 | W44: =SUMIFS(入出金tbl[金額],入出金tbl[内 容],$D44,入出金tbl[年月日],">="&W$2,入出金tbl[年月日],"<"&X$2) -> 0 | X44: =SUMIFS(入出金tbl[金額],入出金tbl[内 容],$D44,入出金tbl[年月日],">="&X$2,入出金tbl[年月日],"<"&Y$2) -> 0 | Y44: =SUMIFS(入出金tbl[金額],入出金tbl[内 容],$D44,入出金tbl[年月日],">="&Y$2,入出金tbl[年月日],"<"&Z$2) -> 0 | Z44: =SUMIFS(入出金tbl[金額],入出金tbl[内 容],$D44,入出金tbl[年月日],">="&Z$2,入出金tbl[年月日],"<"&AA$2) -> 0 | AA44: =SUMIFS(入出金tbl[金額],入出金tbl[内 容],$D44,入出金tbl[年月日],">="&AA$2,入出金tbl[年月日],"<"&AB$2) -> 0 | AB44: =SUMIFS(入出金tbl[金額],入出金tbl[内 容],$D44,入出金tbl[年月日],">="&AB$2,入出金tbl[年月日],"<"&AC$2) -> 0 | AC44: =SUMIFS(入出金tbl[金額],入出金tbl[内 容],$D44,入出金tbl[年月日],">="&AC$2,入出金tbl[年月日],"<"&AD$2) -> 0 | AD44: =SUMIFS(入出金tbl[金額],入出金tbl[内 容],$D44,入出金tbl[年月日],">="&AD$2,入出金tbl[年月日],"<"&AE$2) -> 0 | AE44: =SUMIFS(入出金tbl[金額],入出金tbl[内 容],$D44,入出金tbl[年月日],">="&AE$2,入出金tbl[年月日],"<"&AF$2) -> 0 | AF44: =SUMIFS(入出金tbl[金額],入出金tbl[内 容],$D44,入出金tbl[年月日],">="&AF$2,入出金tbl[年月日],"<"&AG$2) -> 0 | AG44: =SUMIFS(入出金tbl[金額],入出金tbl[内 容],$D44,入出金tbl[年月日],">="&AG$2,入出金tbl[年月日],"<"&AH$2) -> 0 | AH44: =SUMIFS(入出金tbl[金額],入出金tbl[内 容],$D44,入出金tbl[年月日],">="&AH$2,入出金tbl[年月日],"<"&AI$2) -> 0 | AI44: =SUMIFS(入出金tbl[金額],入出金tbl[内 容],$D44,入出金tbl[年月日],">="&AI$2,入出金tbl[年月日],"<"&AJ$2) -> 0
C45: (5) | D45: =資金繰り表!D46 -> ---------- | E45: =SUMIFS(入出金tbl[金額],入出金tbl[内 容],$D45,入出金tbl[年月日],">="&E$2,入出金tbl[年月日],"<"&F$2) -> 0 | F45: =SUMIFS(入出金tbl[金額],入出金tbl[内 容],$D45,入出金tbl[年月日],">="&F$2,入出金tbl[年月日],"<"&G$2) -> 0 | G45: =SUMIFS(入出金tbl[金額],入出金tbl[内 容],$D45,入出金tbl[年月日],">="&G$2,入出金tbl[年月日],"<"&H$2) -> 0 | H45: =SUMIFS(入出金tbl[金額],入出金tbl[内 容],$D45,入出金tbl[年月日],">="&H$2,入出金tbl[年月日],"<"&I$2) -> 0 | I45: =SUMIFS(入出金tbl[金額],入出金tbl[内 容],$D45,入出金tbl[年月日],">="&I$2,入出金tbl[年月日],"<"&J$2) -> 0 | J45: =SUMIFS(入出金tbl[金額],入出金tbl[内 容],$D45,入出金tbl[年月日],">="&J$2,入出金tbl[年月日],"<"&K$2) -> 0 | K45: =SUMIFS(入出金tbl[金額],入出金tbl[内 容],$D45,入出金tbl[年月日],">="&K$2,入出金tbl[年月日],"<"&L$2) -> 0 | L45: =SUMIFS(入出金tbl[金額],入出金tbl[内 容],$D45,入出金tbl[年月日],">="&L$2,入出金tbl[年月日],"<"&M$2) -> 0 | M45: =SUMIFS(入出金tbl[金額],入出金tbl[内 容],$D45,入出金tbl[年月日],">="&M$2,入出金tbl[年月日],"<"&N$2) -> 0 | N45: =SUMIFS(入出金tbl[金額],入出金tbl[内 容],$D45,入出金tbl[年月日],">="&N$2,入出金tbl[年月日],"<"&O$2) -> 0 | O45: =SUMIFS(入出金tbl[金額],入出金tbl[内 容],$D45,入出金tbl[年月日],">="&O$2,入出金tbl[年月日],"<"&P$2) -> 0 | P45: =SUMIFS(入出金tbl[金額],入出金tbl[内 容],$D45,入出金tbl[年月日],">="&P$2,入出金tbl[年月日],"<"&Q$2) -> 0 | Q45: =SUMIFS(入出金tbl[金額],入出金tbl[内 容],$D45,入出金tbl[年月日],">="&Q$2,入出金tbl[年月日],"<"&R$2) -> 0 | R45: =SUMIFS(入出金tbl[金額],入出金tbl[内 容],$D45,入出金tbl[年月日],">="&R$2,入出金tbl[年月日],"<"&S$2) -> 0 | S45: =SUMIFS(入出金tbl[金額],入出金tbl[内 容],$D45,入出金tbl[年月日],">="&S$2,入出金tbl[年月日],"<"&T$2) -> 0 | T45: =SUMIFS(入出金tbl[金額],入出金tbl[内 容],$D45,入出金tbl[年月日],">="&T$2,入出金tbl[年月日],"<"&U$2) -> 0 | U45: =SUMIFS(入出金tbl[金額],入出金tbl[内 容],$D45,入出金tbl[年月日],">="&U$2,入出金tbl[年月日],"<"&V$2) -> 0 | V45: =SUMIFS(入出金tbl[金額],入出金tbl[内 容],$D45,入出金tbl[年月日],">="&V$2,入出金tbl[年月日],"<"&W$2) -> 0 | W45: =SUMIFS(入出金tbl[金額],入出金tbl[内 容],$D45,入出金tbl[年月日],">="&W$2,入出金tbl[年月日],"<"&X$2) -> 0 | X45: =SUMIFS(入出金tbl[金額],入出金tbl[内 容],$D45,入出金tbl[年月日],">="&X$2,入出金tbl[年月日],"<"&Y$2) -> 0 | Y45: =SUMIFS(入出金tbl[金額],入出金tbl[内 容],$D45,入出金tbl[年月日],">="&Y$2,入出金tbl[年月日],"<"&Z$2) -> 0 | Z45: =SUMIFS(入出金tbl[金額],入出金tbl[内 容],$D45,入出金tbl[年月日],">="&Z$2,入出金tbl[年月日],"<"&AA$2) -> 0 | AA45: =SUMIFS(入出金tbl[金額],入出金tbl[内 容],$D45,入出金tbl[年月日],">="&AA$2,入出金tbl[年月日],"<"&AB$2) -> 0 | AB45: =SUMIFS(入出金tbl[金額],入出金tbl[内 容],$D45,入出金tbl[年月日],">="&AB$2,入出金tbl[年月日],"<"&AC$2) -> 0 | AC45: =SUMIFS(入出金tbl[金額],入出金tbl[内 容],$D45,入出金tbl[年月日],">="&AC$2,入出金tbl[年月日],"<"&AD$2) -> 0 | AD45: =SUMIFS(入出金tbl[金額],入出金tbl[内 容],$D45,入出金tbl[年月日],">="&AD$2,入出金tbl[年月日],"<"&AE$2) -> 0 | AE45: =SUMIFS(入出金tbl[金額],入出金tbl[内 容],$D45,入出金tbl[年月日],">="&AE$2,入出金tbl[年月日],"<"&AF$2) -> 0 | AF45: =SUMIFS(入出金tbl[金額],入出金tbl[内 容],$D45,入出金tbl[年月日],">="&AF$2,入出金tbl[年月日],"<"&AG$2) -> 0 | AG45: =SUMIFS(入出金tbl[金額],入出金tbl[内 容],$D45,入出金tbl[年月日],">="&AG$2,入出金tbl[年月日],"<"&AH$2) -> 0 | AH45: =SUMIFS(入出金tbl[金額],入出金tbl[内 容],$D45,入出金tbl[年月日],">="&AH$2,入出金tbl[年月日],"<"&AI$2) -> 0 | AI45: =SUMIFS(入出金tbl[金額],入出金tbl[内 容],$D45,入出金tbl[年月日],">="&AI$2,入出金tbl[年月日],"<"&AJ$2) -> 0
D46: 支出合計(I) | E46: =SUM(E41:E45) -> 0 | F46: =SUM(F41:F45) -> 0 | G46: 0 | H46: 0 | I46: 0 | J46: 0 | K46: 0 | L46: 0 | M46: 0 | N46: 0 | O46: 0 | P46: 433 | Q46: 689 | R46: 256 | S46: 0 | T46: 0 | U46: 0 | V46: 0 | W46: 0 | X46: 0 | Y46: 0 | Z46: 0 | AA46: 0 | AB46: 0 | AC46: 0 | AD46: 0 | AE46: 0 | AF46: 0 | AG46: 0 | AH46: 0 | AI46: 0
B47: 差引過不足(J=H-I) | E47: =E40-E46 -> 0 | F47: =F40-F46 -> 0 | G47: 1151 | H47: 565 | I47: 1238 | J47: 0 | K47: 0 | L47: 0 | M47: 0 | N47: 0 | O47: 0 | P47: -433 | Q47: -689 | R47: -256 | S47: 0 | T47: 0 | U47: 0 | V47: 0 | W47: 0 | X47: 0 | Y47: 789 | Z47: 789 | AA47: 63 | AB47: 63 | AC47: 0 | AD47: 612 | AE47: 961 | AF47: 0 | AG47: 0 | AH47: 0 | AI47: 0
A48: 収入合計(B+E+H) | E48: =E10+E25+E40 -> 1151 | F48: =F10+F25+F40 -> 1125 | G48: 1151 | H48: 565 | I48: 1238 | J48: 0 | K48: 0 | L48: 0 | M48: 0 | N48: 0 | O48: 0 | P48: 0 | Q48: 0 | R48: 1172 | S48: 1385 | T48: 213 | U48: 260 | V48: 260 | W48: 515 | X48: 515 | Y48: 789 | Z48: 2345 | AA48: 1298 | AB48: 651 | AC48: 588 | AD48: 612 | AE48: 961 | AF48: 0 | AG48: 0 | AH48: 0 | AI48: 0
A49: 支出合計(C+F+I) | E49: =E19+E33+E46 -> 0 | F49: =F19+F33+F46 -> 0 | G49: 0 | H49: 0 | I49: 0 | J49: 866 | K49: 754 | L49: 1580 | M49: 1296 | N49: 1580 | O49: 1339 | P49: 1037 | Q49: 689 | R49: 256 | S49: 0 | T49: 0 | U49: 0 | V49: 0 | W49: 0 | X49: 0 | Y49: 0 | Z49: 0 | AA49: 0 | AB49: 0 | AC49: 529 | AD49: 529 | AE49: 496 | AF49: 2260 | AG49: 1505 | AH49: 2192 | AI49: 2836
A50: 総合資金収支過不足 | E50: =E48-E49 -> 1151 | F50: =F48-F49 -> 1125 | G50: 1151 | H50: =H48-H49 -> 565 | I50: =I48-I49 -> 1238 | J50: =J48-J49 -> -866 | K50: =K48-K49 -> -754 | L50: =L48-L49 -> -1580 | M50: =M48-M49 -> -1296 | N50: =N48-N49 -> -1580 | O50: =O48-O49 -> -1339 | P50: =P48-P49 -> -1037 | Q50: =Q48-Q49 -> -689 | R50: =R48-R49 -> 916 | S50: =S48-S49 -> 1385 | T50: =T48-T49 -> 213 | U50: =U48-U49 -> 260 | V50: =V48-V49 -> 260 | W50: =W48-W49 -> 515 | X50: =X48-X49 -> 515 | Y50: =Y48-Y49 -> 789 | Z50: =Z48-Z49 -> 2345 | AA50: =AA48-AA49 -> 1298 | AB50: =AB48-AB49 -> 651 | AC50: =AC48-AC49 -> 59 | AD50: =AD48-AD49 -> 83 | AE50: =AE48-AE49 -> 465 | AF50: =AF48-AF49 -> -2260 | AG50: =AG48-AG49 -> -1505 | AH50: =AH48-AH49 -> -2192 | AI50: =AI48-AI49 -> -2836
A51: 繰越現金・当座資金(A+D+G+J) | E51: =E3+E20+E34+E47 -> 909769 | F51: =F3+F20+F34+F47 -> 910894 | G51: 912045 | H51: 912610 | I51: 913848 | J51: 912982 | K51: 912228 | L51: 910648 | M51: 909352 | N51: 907772 | O51: 906433 | P51: 905396 | Q51: 904707 | R51: 905623 | S51: 907008 | T51: 907221 | U51: 907481 | V51: 907741 | W51: 908256 | X51: 908771 | Y51: 909560 | Z51: 911905 | AA51: 913203 | AB51: 913854 | AC51: 913913 | AD51: 913996 | AE51: 914461 | AF51: 912201 | AG51: 910696 | AH51: 908504 | AI51: 905668
A52: 繰越調整 | E52: =SUMIFS(入出金tbl[金額],入出金tbl[内 容],$A52,入出金tbl[年月日],">="&E$2,入出金tbl[年月日],"<"&F$2) -> 0 | F52: =SUMIFS(入出金tbl[金額],入出金tbl[内 容],$A52,入出金tbl[年月日],">="&F$2,入出金tbl[年月日],"<"&G$2) -> 0 | G52: =SUMIFS(入出金tbl[金額],入出金tbl[内 容],$A52,入出金tbl[年月日],">="&G$2,入出金tbl[年月日],"<"&H$2) -> 0 | H52: =SUMIFS(入出金tbl[金額],入出金tbl[内 容],$A52,入出金tbl[年月日],">="&H$2,入出金tbl[年月日],"<"&I$2) -> 0 | I52: =SUMIFS(入出金tbl[金額],入出金tbl[内 容],$A52,入出金tbl[年月日],">="&I$2,入出金tbl[年月日],"<"&J$2) -> 0 | J52: =SUMIFS(入出金tbl[金額],入出金tbl[内 容],$A52,入出金tbl[年月日],">="&J$2,入出金tbl[年月日],"<"&K$2) -> 0 | K52: =SUMIFS(入出金tbl[金額],入出金tbl[内 容],$A52,入出金tbl[年月日],">="&K$2,入出金tbl[年月日],"<"&L$2) -> 0 | L52: =SUMIFS(入出金tbl[金額],入出金tbl[内 容],$A52,入出金tbl[年月日],">="&L$2,入出金tbl[年月日],"<"&M$2) -> 0 | M52: =SUMIFS(入出金tbl[金額],入出金tbl[内 容],$A52,入出金tbl[年月日],">="&M$2,入出金tbl[年月日],"<"&N$2) -> 0 | N52: =SUMIFS(入出金tbl[金額],入出金tbl[内 容],$A52,入出金tbl[年月日],">="&N$2,入出金tbl[年月日],"<"&O$2) -> 0 | O52: =SUMIFS(入出金tbl[金額],入出金tbl[内 容],$A52,入出金tbl[年月日],">="&O$2,入出金tbl[年月日],"<"&P$2) -> 0 | P52: =SUMIFS(入出金tbl[金額],入出金tbl[内 容],$A52,入出金tbl[年月日],">="&P$2,入出金tbl[年月日],"<"&Q$2) -> 0 | Q52: =SUMIFS(入出金tbl[金額],入出金tbl[内 容],$A52,入出金tbl[年月日],">="&Q$2,入出金tbl[年月日],"<"&R$2) -> 0 | R52: =SUMIFS(入出金tbl[金額],入出金tbl[内 容],$A52,入出金tbl[年月日],">="&R$2,入出金tbl[年月日],"<"&S$2) -> 0 | S52: =SUMIFS(入出金tbl[金額],入出金tbl[内 容],$A52,入出金tbl[年月日],">="&S$2,入出金tbl[年月日],"<"&T$2) -> 0 | T52: =SUMIFS(入出金tbl[金額],入出金tbl[内 容],$A52,入出金tbl[年月日],">="&T$2,入出金tbl[年月日],"<"&U$2) -> 0 | U52: =SUMIFS(入出金tbl[金額],入出金tbl[内 容],$A52,入出金tbl[年月日],">="&U$2,入出金tbl[年月日],"<"&V$2) -> 0 | V52: =SUMIFS(入出金tbl[金額],入出金tbl[内 容],$A52,入出金tbl[年月日],">="&V$2,入出金tbl[年月日],"<"&W$2) -> 0 | W52: =SUMIFS(入出金tbl[金額],入出金tbl[内 容],$A52,入出金tbl[年月日],">="&W$2,入出金tbl[年月日],"<"&X$2) -> 0 | X52: =SUMIFS(入出金tbl[金額],入出金tbl[内 容],$A52,入出金tbl[年月日],">="&X$2,入出金tbl[年月日],"<"&Y$2) -> 0 | Y52: =SUMIFS(入出金tbl[金額],入出金tbl[内 容],$A52,入出金tbl[年月日],">="&Y$2,入出金tbl[年月日],"<"&Z$2) -> 0 | Z52: =SUMIFS(入出金tbl[金額],入出金tbl[内 容],$A52,入出金tbl[年月日],">="&Z$2,入出金tbl[年月日],"<"&AA$2) -> 0 | AA52: =SUMIFS(入出金tbl[金額],入出金tbl[内 容],$A52,入出金tbl[年月日],">="&AA$2,入出金tbl[年月日],"<"&AB$2) -> 0 | AB52: =SUMIFS(入出金tbl[金額],入出金tbl[内 容],$A52,入出金tbl[年月日],">="&AB$2,入出金tbl[年月日],"<"&AC$2) -> 0 | AC52: =SUMIFS(入出金tbl[金額],入出金tbl[内 容],$A52,入出金tbl[年月日],">="&AC$2,入出金tbl[年月日],"<"&AD$2) -> 0 | AD52: =SUMIFS(入出金tbl[金額],入出金tbl[内 容],$A52,入出金tbl[年月日],">="&AD$2,入出金tbl[年月日],"<"&AE$2) -> 0 | AE52: =SUMIFS(入出金tbl[金額],入出金tbl[内 容],$A52,入出金tbl[年月日],">="&AE$2,入出金tbl[年月日],"<"&AF$2) -> 0 | AF52: =SUMIFS(入出金tbl[金額],入出金tbl[内 容],$A52,入出金tbl[年月日],">="&AF$2,入出金tbl[年月日],"<"&AG$2) -> 0 | AG52: =SUMIFS(入出金tbl[金額],入出金tbl[内 容],$A52,入出金tbl[年月日],">="&AG$2,入出金tbl[年月日],"<"&AH$2) -> 0 | AH52: =SUMIFS(入出金tbl[金額],入出金tbl[内 容],$A52,入出金tbl[年月日],">="&AH$2,入出金tbl[年月日],"<"&AI$2) -> 0 | AI52: =SUMIFS(入出金tbl[金額],入出金tbl[内 容],$A52,入出金tbl[年月日],">="&AI$2,入出金tbl[年月日],"<"&AJ$2) -> 0

Sheet 科目
B1: ドロップダウンリスト用勘定科目テーブル | E1: このテーブルはバックグラウンドでデータベーステーブルとして処理するものなので、非表示とする。 | I1: 経常・財務+収支look_up用テーブル | P1: 収支look_up用テーブル | W1: メニュー 今日の収支用コピー元セル
B3: ID | C3: 内 容 | D3: 経常・財務 | E3: 収支 | F3: 番号 | I3: ID | J3: 内 容 | K3: 経常・財務 | L3: 収支 | M3: 番号 | P3: ID | Q3: 内 容 | R3: 経常・財務 | S3: 収支 | T3: 番号
B4: 1 | C4: =IF(資金繰り表!D5="","",資金繰り表!D5) -> 現金売上 | D4: 経常収支 | E4: 収入 | F4: (1) | I4: 6 | J4: ---------- | K4: 経常収支 | L4: 収入 | M4: (6) | P4: 18 | Q4: ---------- | R4: 経常外収支 | S4: 収入 | T4: (4) | W4: =NOW() -> 2018-05-30T23:07:10.700
B5: 2 | C5: =IF(資金繰り表!D6="","",資金繰り表!D6) -> 売掛金回収 | D5: 経常収支 | E5: 収入 | F5: (2) | I5: 14 | J5: ---------- | K5: 経常収支 | L5: 支出 | M5: (8) | P5: 30 | Q5: ---------- | R5: 財務収支 | S5: 収入 | T5: (5) | W5: =HLOOKUP(W4,日繰り表!$E$2:$AI$3,2,TRUE) -> 910696
B6: 3 | C6: =IF(資金繰り表!D7="","",資金繰り表!D7) -> 受取手形回収 | D6: 経常収支 | E6: 収入 | F6: (3) | I6: 18 | J6: ---------- | K6: 経常外収支 | L6: 収入 | M6: (4) | P6: 6 | Q6: ---------- | R6: 経常収支 | S6: 収入 | T6: (6) | W6: =HLOOKUP(W4,日繰り表!$E$2:$AI$20,19,TRUE) -> -2192
B7: 4 | C7: =IF(資金繰り表!D8="","",資金繰り表!D8) -> 手形割引 | D7: 経常収支 | E7: 収入 | F7: (4) | I7: 30 | J7: ---------- | K7: 財務収支 | L7: 収入 | M7: (5) | P7: 35 | Q7: ---------- | R7: 財務収支 | S7: 支出 | T7: (5) | W7: =HLOOKUP(W4,日繰り表!$E$2:$AI$34,33,TRUE) -> 0
B8: 5 | C8: =IF(資金繰り表!D9="","",資金繰り表!D9) -> その他収入 | D8: 経常収支 | E8: 収入 | F8: (5) | I8: 35 | J8: ---------- | K8: 財務収支 | L8: 支出 | M8: (5) | P8: 14 | Q8: ---------- | R8: 経常収支 | S8: 支出 | T8: (8) | W8: =HLOOKUP(W4,日繰り表!$E$2:$AI$47,46,TRUE) -> 0
B9: 6 | C9: =IF(資金繰り表!D10="","",資金繰り表!D10) -> ---------- | D9: 経常収支 | E9: 収入 | F9: (6) | I9: 5 | J9: その他収入 | K9: 経常収支 | L9: 収入 | M9: (5) | P9: 5 | Q9: その他収入 | R9: 経常収支 | S9: 収入 | T9: (5) | W9: =HLOOKUP(W4,日繰り表!$E$2:$AI$51,50,TRUE) -> 908504
B10: 7 | C10: =IF(資金繰り表!D12="","",資金繰り表!D12) -> 現金仕入 | D10: 経常収支 | E10: 支出 | F10: (1) | I10: 29 | J10: その他調達 | K10: 財務収支 | L10: 収入 | M10: (4) | P10: 29 | Q10: その他調達 | R10: 財務収支 | S10: 収入 | T10: (4)
B11: 8 | C11: =IF(資金繰り表!D13="","",資金繰り表!D13) -> 買掛金支払 | D11: 経常収支 | E11: 支出 | F11: (2) | I11: 34 | J11: その他返済 | K11: 財務収支 | L11: 支出 | M11: (4) | P11: 34 | Q11: その他返済 | R11: 財務収支 | S11: 支出 | T11: (4)
B12: 9 | C12: =IF(資金繰り表!D14="","",資金繰り表!D14) -> 手形支払 | D12: 経常収支 | E12: 支出 | F12: (3) | I12: 24 | J12: その他臨時支出 | K12: 経常外収支 | L12: 支出 | M12: (6) | P12: 24 | Q12: その他臨時支出 | R12: 経常外収支 | S12: 支出 | T12: (6) | W12: 事業所名登録
B13: 10 | C13: =IF(資金繰り表!D15="","",資金繰り表!D15) -> 賃金・給与現金支払 | D13: 経常収支 | E13: 支出 | F13: (4) | I13: 17 | J13: その他臨時収入 | K13: 経常外収支 | L13: 収入 | M13: (3) | P13: 17 | Q13: その他臨時収入 | R13: 経常外収支 | S13: 収入 | T13: (3) | W13: K-Oneコンサルティング
B14: 11 | C14: =IF(資金繰り表!D16="","",資金繰り表!D16) -> 賞与支払い | D14: 経常収支 | E14: 支出 | F14: (5) | I14: 25 | J14: テスト4 | K14: 経常外収支 | L14: 支出 | M14: (7) | P14: 25 | Q14: テスト4 | R14: 経常外収支 | S14: 支出 | T14: (7)
B15: 12 | C15: =IF(資金繰り表!D17="","",資金繰り表!D17) -> 支払利息・割引料 | D15: 経常収支 | E15: 支出 | F15: (6) | I15: 36 | J15: 繰越調整 | K15: - | L15: - | P15: 36 | Q15: 繰越調整 | R15: - | S15: - | W15: 決算期登録
B16: 13 | C16: =IF(資金繰り表!D18="","",資金繰り表!D18) -> 諸経費現金支払 | D16: 経常収支 | E16: 支出 | F16: (7) | I16: 7 | J16: 現金仕入 | K16: 経常収支 | L16: 支出 | M16: (1) | P16: 7 | Q16: 現金仕入 | R16: 経常収支 | S16: 支出 | T16: (1) | W16: 12月
B17: 14 | C17: =IF(資金繰り表!D19="","",資金繰り表!D19) -> ---------- | D17: 経常収支 | E17: 支出 | F17: (8) | I17: 1 | J17: 現金売上 | K17: 経常収支 | L17: 収入 | M17: (1) | P17: 1 | Q17: 現金売上 | R17: 経常収支 | S17: 収入 | T17: (1)
B18: 15 | C18: =IF(資金繰り表!D22="","",資金繰り表!D22) -> 固定資産等売却手取 | D18: 経常外収支 | E18: 収入 | F18: (1) | I18: 22 | J18: 固定資産購入支出 | K18: 経常外収支 | L18: 支出 | M18: (4) | P18: 22 | Q18: 固定資産購入支出 | R18: 経常外収支 | S18: 支出 | T18: (4) | W18: ver:
B19: 16 | C19: =IF(資金繰り表!D23="","",資金繰り表!D23) -> 定期預金等解約 | D19: 経常外収支 | E19: 収入 | F19: (2) | I19: 15 | J19: 固定資産等売却手取 | K19: 経常外収支 | L19: 収入 | M19: (1) | P19: 15 | Q19: 固定資産等売却手取 | R19: 経常外収支 | S19: 収入 | T19: (1) | W19: 1.04
B20: 17 | C20: =IF(資金繰り表!D24="","",資金繰り表!D24) -> その他臨時収入 | D20: 経常外収支 | E20: 収入 | F20: (3) | I20: 12 | J20: 支払利息・割引料 | K20: 経常収支 | L20: 支出 | M20: (6) | P20: 12 | Q20: 支払利息・割引料 | R20: 経常収支 | S20: 支出 | T20: (6)
B21: 18 | C21: =IF(資金繰り表!D25="","",資金繰り表!D25) -> ---------- | D21: 経常外収支 | E21: 収入 | F21: (4) | I21: 28 | J21: 社長借入金調達 | K21: 財務収支 | L21: 収入 | M21: (3) | P21: 28 | Q21: 社長借入金調達 | R21: 財務収支 | S21: 収入 | T21: (3) | W21: コピーライト
B22: 19 | C22: =IF(資金繰り表!D27="","",資金繰り表!D27) -> 税金 | D22: 経常外収支 | E22: 支出 | F22: (1) | I22: 33 | J22: 社長借入金返済 | K22: 財務収支 | L22: 支出 | M22: (3) | P22: 33 | Q22: 社長借入金返済 | R22: 財務収支 | S22: 支出 | T22: (3) | W22: ©K-Oneコンサルティング
B23: 20 | C23: =IF(資金繰り表!D28="","",資金繰り表!D28) -> 役員賞与 | D23: 経常外収支 | E23: 支出 | F23: (2) | I23: 4 | J23: 手形割引 | K23: 経常収支 | L23: 収入 | M23: (4) | P23: 4 | Q23: 手形割引 | R23: 経常収支 | S23: 収入 | T23: (4)
B24: 21 | C24: =IF(資金繰り表!D29="","",資金繰り表!D29) -> 配当 | D24: 経常外収支 | E24: 支出 | F24: (3) | I24: 9 | J24: 手形支払 | K24: 経常収支 | L24: 支出 | M24: (3) | P24: 9 | Q24: 手形支払 | R24: 経常収支 | S24: 支出 | T24: (3) | W24: ver
B25: 22 | C25: =IF(資金繰り表!D30="","",資金繰り表!D30) -> 固定資産購入支出 | D25: 経常外収支 | E25: 支出 | F25: (4) | I25: 3 | J25: 受取手形回収 | K25: 経常収支 | L25: 収入 | M25: (3) | P25: 3 | Q25: 受取手形回収 | R25: 経常収支 | S25: 収入 | T25: (3) | W25: 1.00 | X25: 2018-04-06 | Y25: リリース
B26: 23 | C26: =IF(資金繰り表!D31="","",資金繰り表!D31) -> 定期預金等設定 | D26: 経常外収支 | E26: 支出 | F26: (5) | I26: 13 | J26: 諸経費現金支払 | K26: 経常収支 | L26: 支出 | M26: (7) | P26: 13 | Q26: 諸経費現金支払 | R26: 経常収支 | S26: 支出 | T26: (7) | W26: 1.01 | X26: 2018-04-12 | Y26: 初期入力を拒否するとほかに開いていたbookも道連れに終了するのを防ぐ。
B27: 24 | C27: =IF(資金繰り表!D32="","",資金繰り表!D32) -> その他臨時支出 | D27: 経常外収支 | E27: 支出 | F27: (6) | I27: 11 | J27: 賞与支払い | K27: 経常収支 | L27: 支出 | M27: (5) | P27: 11 | Q27: 賞与支払い | R27: 経常収支 | S27: 支出 | T27: (5) | W27: 1.02 | X27: 2018-04-16 | Y27: 入出金データを全削除すると、入出金フォームが出てこないエラーを修正
B28: 25 | C28: =IF(資金繰り表!D33="","",資金繰り表!D33) -> テスト4 | D28: 経常外収支 | E28: 支出 | F28: (7) | I28: 19 | J28: 税金 | K28: 経常外収支 | L28: 支出 | M28: (1) | P28: 19 | Q28: 税金 | R28: 経常外収支 | S28: 支出 | T28: (1) | Y28: 入出金データテーブルのシート保護を解除しないとデータ削除できない事象の対応
B29: 26 | C29: =IF(資金繰り表!D36="","",資金繰り表!D36) -> 短期借入金調達 | D29: 財務収支 | E29: 収入 | F29: (1) | I29: 26 | J29: 短期借入金調達 | K29: 財務収支 | L29: 収入 | M29: (1) | P29: 26 | Q29: 短期借入金調達 | R29: 財務収支 | S29: 収入 | T29: (1) | W29: 1.03 | X29: 2018-05-25 | Y29: 入出金入力フォームで数値以外が入力されることを防止
B30: 27 | C30: =IF(資金繰り表!D37="","",資金繰り表!D37) -> 長期借入金調達 | D30: 財務収支 | E30: 収入 | F30: (2) | I30: 31 | J30: 短期借入金返済 | K30: 財務収支 | L30: 支出 | M30: (1) | P30: 31 | Q30: 短期借入金返済 | R30: 財務収支 | S30: 支出 | T30: (1) | W30: 1.04 | X30: 2018-05-30 | Y30: 入出金tblにデータが無いとき、「最上位行へ移動」「最下行へ移動」をするとエラーが出ることに対処
B31: 28 | C31: =IF(資金繰り表!D38="","",資金繰り表!D38) -> 社長借入金調達 | D31: 財務収支 | E31: 収入 | F31: (3) | I31: 27 | J31: 長期借入金調達 | K31: 財務収支 | L31: 収入 | M31: (2) | P31: 27 | Q31: 長期借入金調達 | R31: 財務収支 | S31: 収入 | T31: (2)
B32: 29 | C32: =IF(資金繰り表!D39="","",資金繰り表!D39) -> その他調達 | D32: 財務収支 | E32: 収入 | F32: (4) | I32: 32 | J32: 長期借入金返済 | K32: 財務収支 | L32: 支出 | M32: (2) | P32: 32 | Q32: 長期借入金返済 | R32: 財務収支 | S32: 支出 | T32: (2)
B33: 30 | C33: =IF(資金繰り表!D40="","",資金繰り表!D40) -> ---------- | D33: 財務収支 | E33: 収入 | F33: (5) | I33: 10 | J33: 賃金・給与現金支払 | K33: 経常収支 | L33: 支出 | M33: (4) | P33: 10 | Q33: 賃金・給与現金支払 | R33: 経常収支 | S33: 支出 | T33: (4)
B34: 31 | C34: =IF(資金繰り表!D42="","",資金繰り表!D42) -> 短期借入金返済 | D34: 財務収支 | E34: 支出 | F34: (1) | I34: 16 | J34: 定期預金等解約 | K34: 経常外収支 | L34: 収入 | M34: (2) | P34: 16 | Q34: 定期預金等解約 | R34: 経常外収支 | S34: 収入 | T34: (2)
B35: 32 | C35: =IF(資金繰り表!D43="","",資金繰り表!D43) -> 長期借入金返済 | D35: 財務収支 | E35: 支出 | F35: (2) | I35: 23 | J35: 定期預金等設定 | K35: 経常外収支 | L35: 支出 | M35: (5) | P35: 23 | Q35: 定期預金等設定 | R35: 経常外収支 | S35: 支出 | T35: (5)
B36: 33 | C36: =IF(資金繰り表!D44="","",資金繰り表!D44) -> 社長借入金返済 | D36: 財務収支 | E36: 支出 | F36: (3) | I36: 21 | J36: 配当 | K36: 経常外収支 | L36: 支出 | M36: (3) | P36: 21 | Q36: 配当 | R36: 経常外収支 | S36: 支出 | T36: (3)
B37: 34 | C37: =IF(資金繰り表!D45="","",資金繰り表!D45) -> その他返済 | D37: 財務収支 | E37: 支出 | F37: (4) | I37: 8 | J37: 買掛金支払 | K37: 経常収支 | L37: 支出 | M37: (2) | P37: 8 | Q37: 買掛金支払 | R37: 経常収支 | S37: 支出 | T37: (2)
B38: 35 | C38: =IF(資金繰り表!D46="","",資金繰り表!D46) -> ---------- | D38: 財務収支 | E38: 支出 | F38: (5) | I38: 2 | J38: 売掛金回収 | K38: 経常収支 | L38: 収入 | M38: (2) | P38: 2 | Q38: 売掛金回収 | R38: 経常収支 | S38: 収入 | T38: (2)
B39: 36 | C39: =IF(資金繰り表!A53="","",資金繰り表!A53) -> 繰越調整 | D39: - | E39: - | I39: 20 | J39: 役員賞与 | K39: 経常外収支 | L39: 支出 | M39: (2) | P39: 20 | Q39: 役員賞与 | R39: 経常外収支 | S39: 支出 | T39: (2)

Sheet 入出金tbl
A1: =科目!W13 -> K-Oneコンサルティング
A2: 入出金データ
A4: № | B4: 年月日 | C4: 経常・財務 | D4: 収支 | E4: 内 容 | F4: 摘 要 | G4: 金額
A5: 1 | B5: 2018-05-22 | C5: =VLOOKUP(入出金tbl[[#This Row],[内 容]],科目tbl[[内 容]:[番号]],2,TRUE) -> 経常収支 | D5: =VLOOKUP(入出金tbl[[#This Row],[内 容]],科目tbl[[内 容]:[番号]],3,TRUE) -> 収入 | E5: 現金売上 | F5: 摘要を記載する 212 | G5: 771
A6: 2 | B6: 2018-05-22 | C6: =VLOOKUP(入出金tbl[[#This Row],[内 容]],科目tbl[[内 容]:[番号]],2,TRUE) -> 経常収支 | D6: =VLOOKUP(入出金tbl[[#This Row],[内 容]],科目tbl[[内 容]:[番号]],3,TRUE) -> 収入 | E6: 売掛金回収 | F6: 摘要を記載する 253 | G6: 785
A7: 3 | B7: 2018-05-23 | C7: =VLOOKUP(入出金tbl[[#This Row],[内 容]],科目tbl[[内 容]:[番号]],2,TRUE) -> 経常収支 | D7: =VLOOKUP(入出金tbl[[#This Row],[内 容]],科目tbl[[内 容]:[番号]],3,TRUE) -> 収入 | E7: 受取手形回収 | F7: 摘要を記載する 212 | G7: 771
A8: 4 | B8: 2018-05-23 | C8: =VLOOKUP(入出金tbl[[#This Row],[内 容]],科目tbl[[内 容]:[番号]],2,TRUE) -> 経常収支 | D8: =VLOOKUP(入出金tbl[[#This Row],[内 容]],科目tbl[[内 容]:[番号]],3,TRUE) -> 収入 | E8: 手形割引 | F8: 摘要を記載する 410 | G8: 464
A9: 5 | B9: 2018-05-24 | C9: =VLOOKUP(入出金tbl[[#This Row],[内 容]],科目tbl[[内 容]:[番号]],2,TRUE) -> 経常収支 | D9: =VLOOKUP(入出金tbl[[#This Row],[内 容]],科目tbl[[内 容]:[番号]],3,TRUE) -> 収入 | E9: その他収入 | F9: 摘要を記載する 209 | G9: 124
A10: 6 | B10: 2018-05-24 | C10: =VLOOKUP(入出金tbl[[#This Row],[内 容]],科目tbl[[内 容]:[番号]],2,TRUE) -> 経常外収支 | D10: =VLOOKUP(入出金tbl[[#This Row],[内 容]],科目tbl[[内 容]:[番号]],3,TRUE) -> 収入 | E10: 固定資産等売却手取 | F10: 摘要を記載する 410 | G10: 464
A11: 7 | B11: 2018-05-25 | C11: =VLOOKUP(入出金tbl[[#This Row],[内 容]],科目tbl[[内 容]:[番号]],2,TRUE) -> 経常外収支 | D11: =VLOOKUP(入出金tbl[[#This Row],[内 容]],科目tbl[[内 容]:[番号]],3,TRUE) -> 収入 | E11: 定期預金等解約 | F11: 摘要を記載する 209 | G11: 124
A12: 8 | B12: 2018-05-25 | C12: =VLOOKUP(入出金tbl[[#This Row],[内 容]],科目tbl[[内 容]:[番号]],2,TRUE) -> 経常外収支 | D12: =VLOOKUP(入出金tbl[[#This Row],[内 容]],科目tbl[[内 容]:[番号]],3,TRUE) -> 収入 | E12: その他臨時収入 | F12: 摘要を記載する 410 | G12: 464
A13: 9 | B13: 2018-05-26 | C13: =VLOOKUP(入出金tbl[[#This Row],[内 容]],科目tbl[[内 容]:[番号]],2,TRUE) -> 財務収支 | D13: =VLOOKUP(入出金tbl[[#This Row],[内 容]],科目tbl[[内 容]:[番号]],3,TRUE) -> 収入 | E13: 短期借入金調達 | F13: 摘要を記載する 209 | G13: 124
A14: 10 | B14: 2018-05-26 | C14: =VLOOKUP(入出金tbl[[#This Row],[内 容]],科目tbl[[内 容]:[番号]],2,TRUE) -> 財務収支 | D14: =VLOOKUP(入出金tbl[[#This Row],[内 容]],科目tbl[[内 容]:[番号]],3,TRUE) -> 収入 | E14: 長期借入金調達 | F14: 摘要を記載する 276 | G14: 488
A15: 11 | B15: 2018-05-27 | C15: =VLOOKUP(入出金tbl[[#This Row],[内 容]],科目tbl[[内 容]:[番号]],2,TRUE) -> 財務収支 | D15: =VLOOKUP(入出金tbl[[#This Row],[内 容]],科目tbl[[内 容]:[番号]],3,TRUE) -> 収入 | E15: 社長借入金調達 | F15: 摘要を記載する 280 | G15: 473
A16: 12 | B16: 2018-05-27 | C16: =VLOOKUP(入出金tbl[[#This Row],[内 容]],科目tbl[[内 容]:[番号]],2,TRUE) -> 財務収支 | D16: =VLOOKUP(入出金tbl[[#This Row],[内 容]],科目tbl[[内 容]:[番号]],3,TRUE) -> 収入 | E16: その他調達 | F16: 摘要を記載する 276 | G16: 488
A17: 13 | B17: 2018-05-28 | C17: =VLOOKUP(入出金tbl[[#This Row],[内 容]],科目tbl[[内 容]:[番号]],2,TRUE) -> 経常収支 | D17: =VLOOKUP(入出金tbl[[#This Row],[内 容]],科目tbl[[内 容]:[番号]],3,TRUE) -> 支出 | E17: 現金仕入 | F17: 摘要を記載する 230 | G17: 536
A18: 14 | B18: 2018-05-28 | C18: =VLOOKUP(入出金tbl[[#This Row],[内 容]],科目tbl[[内 容]:[番号]],2,TRUE) -> 経常収支 | D18: =VLOOKUP(入出金tbl[[#This Row],[内 容]],科目tbl[[内 容]:[番号]],3,TRUE) -> 支出 | E18: 買掛金支払 | F18: 摘要を記載する 280 | G18: 473
A19: 15 | B19: 2018-05-28 | C19: =VLOOKUP(入出金tbl[[#This Row],[内 容]],科目tbl[[内 容]:[番号]],2,TRUE) -> 経常収支 | D19: =VLOOKUP(入出金tbl[[#This Row],[内 容]],科目tbl[[内 容]:[番号]],3,TRUE) -> 支出 | E19: 手形支払 | F19: 摘要を記載する 276 | G19: 488
A20: 16 | B20: 2018-05-29 | C20: =VLOOKUP(入出金tbl[[#This Row],[内 容]],科目tbl[[内 容]:[番号]],2,TRUE) -> 経常収支 | D20: =VLOOKUP(入出金tbl[[#This Row],[内 容]],科目tbl[[内 容]:[番号]],3,TRUE) -> 支出 | E20: 賃金・給与現金支払 | F20: 摘要を記載する 230 | G20: 536
A21: 17 | B21: 2018-05-29 | C21: =VLOOKUP(入出金tbl[[#This Row],[内 容]],科目tbl[[内 容]:[番号]],2,TRUE) -> 経常収支 | D21: =VLOOKUP(入出金tbl[[#This Row],[内 容]],科目tbl[[内 容]:[番号]],3,TRUE) -> 支出 | E21: 賞与支払い | F21: 摘要を記載する 280 | G21: 473
A22: 18 | B22: 2018-05-30 | C22: =VLOOKUP(入出金tbl[[#This Row],[内 容]],科目tbl[[内 容]:[番号]],2,TRUE) -> 経常収支 | D22: =VLOOKUP(入出金tbl[[#This Row],[内 容]],科目tbl[[内 容]:[番号]],3,TRUE) -> 支出 | E22: 支払利息・割引料 | F22: 摘要を記載する 230 | G22: 536
A23: 19 | B23: 2018-05-30 | C23: =VLOOKUP(入出金tbl[[#This Row],[内 容]],科目tbl[[内 容]:[番号]],2,TRUE) -> 経常収支 | D23: =VLOOKUP(入出金tbl[[#This Row],[内 容]],科目tbl[[内 容]:[番号]],3,TRUE) -> 支出 | E23: 諸経費現金支払 | F23: 摘要を記載する 260 | G23: 893
A24: 20 | B24: 2018-05-31 | C24: =VLOOKUP(入出金tbl[[#This Row],[内 容]],科目tbl[[内 容]:[番号]],2,TRUE) -> 経常外収支 | D24: =VLOOKUP(入出金tbl[[#This Row],[内 容]],科目tbl[[内 容]:[番号]],3,TRUE) -> 支出 | E24: 税金 | F24: 摘要を記載する 082 | G24: 818
A25: 21 | B25: 2018-05-31 | C25: =VLOOKUP(入出金tbl[[#This Row],[内 容]],科目tbl[[内 容]:[番号]],2,TRUE) -> 経常外収支 | D25: =VLOOKUP(入出金tbl[[#This Row],[内 容]],科目tbl[[内 容]:[番号]],3,TRUE) -> 支出 | E25: 役員賞与 | F25: 摘要を記載する 260 | G25: 893
A26: 22 | B26: 2018-06-01 | C26: =VLOOKUP(入出金tbl[[#This Row],[内 容]],科目tbl[[内 容]:[番号]],2,TRUE) -> 経常外収支 | D26: =VLOOKUP(入出金tbl[[#This Row],[内 容]],科目tbl[[内 容]:[番号]],3,TRUE) -> 支出 | E26: 配当 | F26: 摘要を記載する 288 | G26: 1190
A27: 23 | B27: 2018-06-01 | C27: =VLOOKUP(入出金tbl[[#This Row],[内 容]],科目tbl[[内 容]:[番号]],2,TRUE) -> 経常外収支 | D27: =VLOOKUP(入出金tbl[[#This Row],[内 容]],科目tbl[[内 容]:[番号]],3,TRUE) -> 支出 | E27: 固定資産購入支出 | F27: 摘要を記載する 243 | G27: 830
A28: 24 | B28: 2018-06-02 | C28: =VLOOKUP(入出金tbl[[#This Row],[内 容]],科目tbl[[内 容]:[番号]],2,TRUE) -> 経常外収支 | D28: =VLOOKUP(入出金tbl[[#This Row],[内 容]],科目tbl[[内 容]:[番号]],3,TRUE) -> 支出 | E28: 定期預金等設定 | F28: 摘要を記載する 254 | G28: 426
A29: 25 | B29: 2018-06-02 | C29: =VLOOKUP(入出金tbl[[#This Row],[内 容]],科目tbl[[内 容]:[番号]],2,TRUE) -> 経常外収支 | D29: =VLOOKUP(入出金tbl[[#This Row],[内 容]],科目tbl[[内 容]:[番号]],3,TRUE) -> 支出 | E29: その他臨時支出 | F29: 摘要を記載する 243 | G29: 830
A30: 26 | B30: 2018-06-03 | C30: =VLOOKUP(入出金tbl[[#This Row],[内 容]],科目tbl[[内 容]:[番号]],2,TRUE) -> 財務収支 | D30: =VLOOKUP(入出金tbl[[#This Row],[内 容]],科目tbl[[内 容]:[番号]],3,TRUE) -> 支出 | E30: 短期借入金返済 | F30: 摘要を記載する 288 | G30: 1190
A31: 27 | B31: 2018-06-03 | C31: =VLOOKUP(入出金tbl[[#This Row],[内 容]],科目tbl[[内 容]:[番号]],2,TRUE) -> 財務収支 | D31: =VLOOKUP(入出金tbl[[#This Row],[内 容]],科目tbl[[内 容]:[番号]],3,TRUE) -> 支出 | E31: 長期借入金返済 | F31: 摘要を記載する 453 | G31: 53
A32: 28 | B32: 2018-06-04 | C32: =VLOOKUP(入出金tbl[[#This Row],[内 容]],科目tbl[[内 容]:[番号]],2,TRUE) -> 財務収支 | D32: =VLOOKUP(入出金tbl[[#This Row],[内 容]],科目tbl[[内 容]:[番号]],3,TRUE) -> 支出 | E32: 社長借入金返済 | F32: 摘要を記載する 102 | G32: 105
A33: 29 | B33: 2018-06-04 | C33: =VLOOKUP(入出金tbl[[#This Row],[内 容]],科目tbl[[内 容]:[番号]],2,TRUE) -> 財務収支 | D33: =VLOOKUP(入出金tbl[[#This Row],[内 容]],科目tbl[[内 容]:[番号]],3,TRUE) -> 支出 | E33: その他返済 | F33: 摘要を記載する 477 | G33: 650
A34: 30 | B34: 2018-06-05 | C34: =VLOOKUP(入出金tbl[[#This Row],[内 容]],科目tbl[[内 容]:[番号]],2,TRUE) -> 経常収支 | D34: =VLOOKUP(入出金tbl[[#This Row],[内 容]],科目tbl[[内 容]:[番号]],3,TRUE) -> 収入 | E34: 現金売上 | F34: 摘要を記載する 102 | G34: 105
A35: 31 | B35: 2018-06-05 | C35: =VLOOKUP(入出金tbl[[#This Row],[内 容]],科目tbl[[内 容]:[番号]],2,TRUE) -> 経常収支 | D35: =VLOOKUP(入出金tbl[[#This Row],[内 容]],科目tbl[[内 容]:[番号]],3,TRUE) -> 収入 | E35: 売掛金回収 | F35: 摘要を記載する 453 | G35: 53
A36: 32 | B36: 2018-06-06 | C36: =VLOOKUP(入出金tbl[[#This Row],[内 容]],科目tbl[[内 容]:[番号]],2,TRUE) -> 経常収支 | D36: =VLOOKUP(入出金tbl[[#This Row],[内 容]],科目tbl[[内 容]:[番号]],3,TRUE) -> 収入 | E36: 受取手形回収 | F36: 摘要を記載する 102 | G36: 105
A37: 33 | B37: 2018-06-06 | C37: =VLOOKUP(入出金tbl[[#This Row],[内 容]],科目tbl[[内 容]:[番号]],2,TRUE) -> 経常収支 | D37: =VLOOKUP(入出金tbl[[#This Row],[内 容]],科目tbl[[内 容]:[番号]],3,TRUE) -> 収入 | E37: 手形割引 | F37: 摘要を記載する 477 | G37: 650
A38: 34 | B38: 2018-06-07 | C38: =VLOOKUP(入出金tbl[[#This Row],[内 容]],科目tbl[[内 容]:[番号]],2,TRUE) -> 経常収支 | D38: =VLOOKUP(入出金tbl[[#This Row],[内 容]],科目tbl[[内 容]:[番号]],3,TRUE) -> 収入 | E38: その他収入 | F38: 摘要を記載する 067 | G38: 638
A39: 35 | B39: 2018-06-07 | C39: =VLOOKUP(入出金tbl[[#This Row],[内 容]],科目tbl[[内 容]:[番号]],2,TRUE) -> 経常外収支 | D39: =VLOOKUP(入出金tbl[[#This Row],[内 容]],科目tbl[[内 容]:[番号]],3,TRUE) -> 収入 | E39: 固定資産等売却手取 | F39: 摘要を記載する 453 | G39: 53
A40: 36 | B40: 2018-06-08 | C40: =VLOOKUP(入出金tbl[[#This Row],[内 容]],科目tbl[[内 容]:[番号]],2,TRUE) -> 経常外収支 | D40: =VLOOKUP(入出金tbl[[#This Row],[内 容]],科目tbl[[内 容]:[番号]],3,TRUE) -> 収入 | E40: 定期預金等解約 | F40: 摘要を記載する 331 | G40: 889
A41: 37 | B41: 2018-06-08 | C41: =VLOOKUP(入出金tbl[[#This Row],[内 容]],科目tbl[[内 容]:[番号]],2,TRUE) -> 経常外収支 | D41: =VLOOKUP(入出金tbl[[#This Row],[内 容]],科目tbl[[内 容]:[番号]],3,TRUE) -> 収入 | E41: その他臨時収入 | F41: 摘要を記載する 477 | G41: 650
A42: 38 | B42: 2018-06-09 | C42: =VLOOKUP(入出金tbl[[#This Row],[内 容]],科目tbl[[内 容]:[番号]],2,TRUE) -> 財務収支 | D42: =VLOOKUP(入出金tbl[[#This Row],[内 容]],科目tbl[[内 容]:[番号]],3,TRUE) -> 収入 | E42: 短期借入金調達 | F42: 摘要を記載する 067 | G42: 638
A43: 39 | B43: 2018-06-09 | C43: =VLOOKUP(入出金tbl[[#This Row],[内 容]],科目tbl[[内 容]:[番号]],2,TRUE) -> 財務収支 | D43: =VLOOKUP(入出金tbl[[#This Row],[内 容]],科目tbl[[内 容]:[番号]],3,TRUE) -> 収入 | E43: 長期借入金調達 | F43: 摘要を記載する 511 | G43: 924
A44: 40 | B44: 2018-06-10 | C44: =VLOOKUP(入出金tbl[[#This Row],[内 容]],科目tbl[[内 容]:[番号]],2,TRUE) -> 財務収支 | D44: =VLOOKUP(入出金tbl[[#This Row],[内 容]],科目tbl[[内 容]:[番号]],3,TRUE) -> 収入 | E44: 社長借入金調達 | F44: 摘要を記載する 331 | G44: 889
A45: 41 | B45: 2018-06-10 | C45: =VLOOKUP(入出金tbl[[#This Row],[内 容]],科目tbl[[内 容]:[番号]],2,TRUE) -> 財務収支 | D45: =VLOOKUP(入出金tbl[[#This Row],[内 容]],科目tbl[[内 容]:[番号]],3,TRUE) -> 収入 | E45: その他調達 | F45: 摘要を記載する 511 | G45: 924
A46: 42 | B46: 2018-06-11 | C46: =VLOOKUP(入出金tbl[[#This Row],[内 容]],科目tbl[[内 容]:[番号]],2,TRUE) -> 経常収支 | D46: =VLOOKUP(入出金tbl[[#This Row],[内 容]],科目tbl[[内 容]:[番号]],3,TRUE) -> 支出 | E46: 現金仕入 | F46: 摘要を記載する 067 | G46: 638
A47: 43 | B47: 2018-06-11 | C47: =VLOOKUP(入出金tbl[[#This Row],[内 容]],科目tbl[[内 容]:[番号]],2,TRUE) -> 経常収支 | D47: =VLOOKUP(入出金tbl[[#This Row],[内 容]],科目tbl[[内 容]:[番号]],3,TRUE) -> 支出 | E47: 買掛金支払 | F47: 摘要を記載する 511 | G47: 924
A48: 44 | B48: 2018-06-12 | C48: =VLOOKUP(入出金tbl[[#This Row],[内 容]],科目tbl[[内 容]:[番号]],2,TRUE) -> 経常収支 | D48: =VLOOKUP(入出金tbl[[#This Row],[内 容]],科目tbl[[内 容]:[番号]],3,TRUE) -> 支出 | E48: 手形支払 | F48: 摘要を記載する 331 | G48: 889
A49: 45 | B49: 2018-06-12 | C49: =VLOOKUP(入出金tbl[[#This Row],[内 容]],科目tbl[[内 容]:[番号]],2,TRUE) -> 経常収支 | D49: =VLOOKUP(入出金tbl[[#This Row],[内 容]],科目tbl[[内 容]:[番号]],3,TRUE) -> 支出 | E49: 賃金・給与現金支払 | F49: 摘要を記載する 159 | G49: 80
A50: 46 | B50: 2018-06-13 | C50: =VLOOKUP(入出金tbl[[#This Row],[内 容]],科目tbl[[内 容]:[番号]],2,TRUE) -> 経常収支 | D50: =VLOOKUP(入出金tbl[[#This Row],[内 容]],科目tbl[[内 容]:[番号]],3,TRUE) -> 支出 | E50: 賞与支払い | F50: 摘要を記載する 051 | G50: 784
A51: 47 | B51: 2018-06-13 | C51: =VLOOKUP(入出金tbl[[#This Row],[内 容]],科目tbl[[内 容]:[番号]],2,TRUE) -> 経常収支 | D51: =VLOOKUP(入出金tbl[[#This Row],[内 容]],科目tbl[[内 容]:[番号]],3,TRUE) -> 支出 | E51: 支払利息・割引料 | F51: 摘要を記載する 159 | G51: 80
A52: 48 | B52: 2018-06-14 | C52: =VLOOKUP(入出金tbl[[#This Row],[内 容]],科目tbl[[内 容]:[番号]],2,TRUE) -> 経常収支 | D52: =VLOOKUP(入出金tbl[[#This Row],[内 容]],科目tbl[[内 容]:[番号]],3,TRUE) -> 支出 | E52: 諸経費現金支払 | F52: 摘要を記載する 051 | G52: 784
A53: 49 | B53: 2018-06-14 | C53: =VLOOKUP(入出金tbl[[#This Row],[内 容]],科目tbl[[内 容]:[番号]],2,TRUE) -> 経常外収支 | D53: =VLOOKUP(入出金tbl[[#This Row],[内 容]],科目tbl[[内 容]:[番号]],3,TRUE) -> 支出 | E53: 税金 | F53: 摘要を記載する 159 | G53: 80
A54: 50 | B54: 2018-06-15 | C54: =VLOOKUP(入出金tbl[[#This Row],[内 容]],科目tbl[[内 容]:[番号]],2,TRUE) -> 経常外収支 | D54: =VLOOKUP(入出金tbl[[#This Row],[内 容]],科目tbl[[内 容]:[番号]],3,TRUE) -> 支出 | E54: 役員賞与 | F54: 摘要を記載する 051 | G54: 784
A55: 51 | B55: 2018-06-15 | C55: =VLOOKUP(入出金tbl[[#This Row],[内 容]],科目tbl[[内 容]:[番号]],2,TRUE) -> 経常外収支 | D55: =VLOOKUP(入出金tbl[[#This Row],[内 容]],科目tbl[[内 容]:[番号]],3,TRUE) -> 支出 | E55: 配当 | F55: 摘要を記載する 291 | G55: 132
A56: 52 | B56: 2018-06-16 | C56: =VLOOKUP(入出金tbl[[#This Row],[内 容]],科目tbl[[内 容]:[番号]],2,TRUE) -> 経常外収支 | D56: =VLOOKUP(入出金tbl[[#This Row],[内 容]],科目tbl[[内 容]:[番号]],3,TRUE) -> 支出 | E56: 固定資産購入支出 | F56: 摘要を記載する 248 | G56: 896
A57: 53 | B57: 2018-06-16 | C57: =VLOOKUP(入出金tbl[[#This Row],[内 容]],科目tbl[[内 容]:[番号]],2,TRUE) -> 経常外収支 | D57: =VLOOKUP(入出金tbl[[#This Row],[内 容]],科目tbl[[内 容]:[番号]],3,TRUE) -> 支出 | E57: 定期預金等設定 | F57: 摘要を記載する 242 | G57: 313
A58: 54 | B58: 2018-06-17 | C58: =VLOOKUP(入出金tbl[[#This Row],[内 容]],科目tbl[[内 容]:[番号]],2,TRUE) -> 経常外収支 | D58: =VLOOKUP(入出金tbl[[#This Row],[内 容]],科目tbl[[内 容]:[番号]],3,TRUE) -> 支出 | E58: その他臨時支出 | F58: 摘要を記載する 248 | G58: 896
A59: 55 | B59: 2018-06-17 | C59: =VLOOKUP(入出金tbl[[#This Row],[内 容]],科目tbl[[内 容]:[番号]],2,TRUE) -> 財務収支 | D59: =VLOOKUP(入出金tbl[[#This Row],[内 容]],科目tbl[[内 容]:[番号]],3,TRUE) -> 支出 | E59: 短期借入金返済 | F59: 摘要を記載する 291 | G59: 132
A60: 56 | B60: 2018-06-18 | C60: =VLOOKUP(入出金tbl[[#This Row],[内 容]],科目tbl[[内 容]:[番号]],2,TRUE) -> 財務収支 | D60: =VLOOKUP(入出金tbl[[#This Row],[内 容]],科目tbl[[内 容]:[番号]],3,TRUE) -> 支出 | E60: 長期借入金返済 | F60: 摘要を記載する 248 | G60: 896
A61: 57 | B61: 2018-06-18 | C61: =VLOOKUP(入出金tbl[[#This Row],[内 容]],科目tbl[[内 容]:[番号]],2,TRUE) -> 財務収支 | D61: =VLOOKUP(入出金tbl[[#This Row],[内 容]],科目tbl[[内 容]:[番号]],3,TRUE) -> 支出 | E61: 社長借入金返済 | F61: 摘要を記載する 242 | G61: 313
A62: 58 | B62: 2018-06-19 | C62: =VLOOKUP(入出金tbl[[#This Row],[内 容]],科目tbl[[内 容]:[番号]],2,TRUE) -> 財務収支 | D62: =VLOOKUP(入出金tbl[[#This Row],[内 容]],科目tbl[[内 容]:[番号]],3,TRUE) -> 支出 | E62: その他返済 | F62: 摘要を記載する 347 | G62: 732
A63: 59 | B63: 2018-06-19 | C63: =VLOOKUP(入出金tbl[[#This Row],[内 容]],科目tbl[[内 容]:[番号]],2,TRUE) -> 経常収支 | D63: =VLOOKUP(入出金tbl[[#This Row],[内 容]],科目tbl[[内 容]:[番号]],3,TRUE) -> 収入 | E63: 現金売上 | F63: 摘要を記載する 291 | G63: 132
A64: 60 | B64: 2018-06-20 | C64: =VLOOKUP(入出金tbl[[#This Row],[内 容]],科目tbl[[内 容]:[番号]],2,TRUE) -> 経常収支 | D64: =VLOOKUP(入出金tbl[[#This Row],[内 容]],科目tbl[[内 容]:[番号]],3,TRUE) -> 収入 | E64: 売掛金回収 | F64: 摘要を記載する 347 | G64: 732
A65: 61 | B65: 2018-06-20 | C65: =VLOOKUP(入出金tbl[[#This Row],[内 容]],科目tbl[[内 容]:[番号]],2,TRUE) -> 経常収支 | D65: =VLOOKUP(入出金tbl[[#This Row],[内 容]],科目tbl[[内 容]:[番号]],3,TRUE) -> 収入 | E65: 受取手形回収 | F65: 摘要を記載する 242 | G65: 313
A66: 62 | B66: 2018-06-21 | C66: =VLOOKUP(入出金tbl[[#This Row],[内 容]],科目tbl[[内 容]:[番号]],2,TRUE) -> 経常収支 | D66: =VLOOKUP(入出金tbl[[#This Row],[内 容]],科目tbl[[内 容]:[番号]],3,TRUE) -> 収入 | E66: 手形割引 | F66: 摘要を記載する 347 | G66: 732
A67: 63 | B67: 2018-06-21 | C67: =VLOOKUP(入出金tbl[[#This Row],[内 容]],科目tbl[[内 容]:[番号]],2,TRUE) -> 経常収支 | D67: =VLOOKUP(入出金tbl[[#This Row],[内 容]],科目tbl[[内 容]:[番号]],3,TRUE) -> 収入 | E67: その他収入 | F67: 摘要を記載する 440 | G67: 379
A68: 64 | B68: 2018-06-22 | C68: =VLOOKUP(入出金tbl[[#This Row],[内 容]],科目tbl[[内 容]:[番号]],2,TRUE) -> 経常外収支 | D68: =VLOOKUP(入出金tbl[[#This Row],[内 容]],科目tbl[[内 容]:[番号]],3,TRUE) -> 収入 | E68: 固定資産等売却手取 | F68: 摘要を記載する 198 | G68: 230
A69: 65 | B69: 2018-06-22 | C69: =VLOOKUP(入出金tbl[[#This Row],[内 容]],科目tbl[[内 容]:[番号]],2,TRUE) -> 経常外収支 | D69: =VLOOKUP(入出金tbl[[#This Row],[内 容]],科目tbl[[内 容]:[番号]],3,TRUE) -> 収入 | E69: 定期預金等解約 | F69: 摘要を記載する 440 | G69: 379
A70: 66 | B70: 2018-06-23 | C70: =VLOOKUP(入出金tbl[[#This Row],[内 容]],科目tbl[[内 容]:[番号]],2,TRUE) -> 経常外収支 | D70: =VLOOKUP(入出金tbl[[#This Row],[内 容]],科目tbl[[内 容]:[番号]],3,TRUE) -> 収入 | E70: その他臨時収入 | F70: 摘要を記載する 198 | G70: 230
A71: 67 | B71: 2018-06-23 | C71: =VLOOKUP(入出金tbl[[#This Row],[内 容]],科目tbl[[内 容]:[番号]],2,TRUE) -> 財務収支 | D71: =VLOOKUP(入出金tbl[[#This Row],[内 容]],科目tbl[[内 容]:[番号]],3,TRUE) -> 収入 | E71: 短期借入金調達 | F71: 摘要を記載する 440 | G71: 379
A72: 68 | B72: 2018-06-24 | C72: =VLOOKUP(入出金tbl[[#This Row],[内 容]],科目tbl[[内 容]:[番号]],2,TRUE) -> 財務収支 | D72: =VLOOKUP(入出金tbl[[#This Row],[内 容]],科目tbl[[内 容]:[番号]],3,TRUE) -> 収入 | E72: 長期借入金調達 | F72: 摘要を記載する 198 | G72: 230
A73: 69 | B73: 2018-06-24 | C73: =VLOOKUP(入出金tbl[[#This Row],[内 容]],科目tbl[[内 容]:[番号]],2,TRUE) -> 財務収支 | D73: =VLOOKUP(入出金tbl[[#This Row],[内 容]],科目tbl[[内 容]:[番号]],3,TRUE) -> 収入 | E73: 社長借入金調達 | F73: 摘要を記載する 080 | G73: 169
A74: 70 | B74: 2018-06-25 | C74: =VLOOKUP(入出金tbl[[#This Row],[内 容]],科目tbl[[内 容]:[番号]],2,TRUE) -> 財務収支 | D74: =VLOOKUP(入出金tbl[[#This Row],[内 容]],科目tbl[[内 容]:[番号]],3,TRUE) -> 収入 | E74: その他調達 | F74: 摘要を記載する 058 | G74: 872
A75: 71 | B75: 2018-06-25 | C75: =VLOOKUP(入出金tbl[[#This Row],[内 容]],科目tbl[[内 容]:[番号]],2,TRUE) -> 経常収支 | D75: =VLOOKUP(入出金tbl[[#This Row],[内 容]],科目tbl[[内 容]:[番号]],3,TRUE) -> 支出 | E75: 現金仕入 | F75: 摘要を記載する 080 | G75: 169
A76: 72 | B76: 2018-06-26 | C76: =VLOOKUP(入出金tbl[[#This Row],[内 容]],科目tbl[[内 容]:[番号]],2,TRUE) -> 経常収支 | D76: =VLOOKUP(入出金tbl[[#This Row],[内 容]],科目tbl[[内 容]:[番号]],3,TRUE) -> 支出 | E76: 買掛金支払 | F76: 摘要を記載する 058 | G76: 872
A77: 73 | B77: 2018-06-26 | C77: =VLOOKUP(入出金tbl[[#This Row],[内 容]],科目tbl[[内 容]:[番号]],2,TRUE) -> 経常収支 | D77: =VLOOKUP(入出金tbl[[#This Row],[内 容]],科目tbl[[内 容]:[番号]],3,TRUE) -> 支出 | E77: 手形支払 | F77: 摘要を記載する 080 | G77: 169
A78: 74 | B78: 2018-06-27 | C78: =VLOOKUP(入出金tbl[[#This Row],[内 容]],科目tbl[[内 容]:[番号]],2,TRUE) -> 経常収支 | D78: =VLOOKUP(入出金tbl[[#This Row],[内 容]],科目tbl[[内 容]:[番号]],3,TRUE) -> 支出 | E78: 賃金・給与現金支払 | F78: 摘要を記載する 058 | G78: 872
A79: 75 | B79: 2018-06-27 | C79: =VLOOKUP(入出金tbl[[#This Row],[内 容]],科目tbl[[内 容]:[番号]],2,TRUE) -> 経常収支 | D79: =VLOOKUP(入出金tbl[[#This Row],[内 容]],科目tbl[[内 容]:[番号]],3,TRUE) -> 支出 | E79: 賞与支払い | F79: 摘要を記載する 351 | G79: 442
A80: 76 | B80: 2018-06-28 | C80: =VLOOKUP(入出金tbl[[#This Row],[内 容]],科目tbl[[内 容]:[番号]],2,TRUE) -> 経常収支 | D80: =VLOOKUP(入出金tbl[[#This Row],[内 容]],科目tbl[[内 容]:[番号]],3,TRUE) -> 支出 | E80: 支払利息・割引料 | F80: 摘要を記載する 330 | G80: 527
A81: 77 | B81: 2018-06-28 | C81: =VLOOKUP(入出金tbl[[#This Row],[内 容]],科目tbl[[内 容]:[番号]],2,TRUE) -> 経常収支 | D81: =VLOOKUP(入出金tbl[[#This Row],[内 容]],科目tbl[[内 容]:[番号]],3,TRUE) -> 支出 | E81: 諸経費現金支払 | F81: 摘要を記載する 351 | G81: 442
A82: 78 | B82: 2018-06-29 | C82: =VLOOKUP(入出金tbl[[#This Row],[内 容]],科目tbl[[内 容]:[番号]],2,TRUE) -> 経常外収支 | D82: =VLOOKUP(入出金tbl[[#This Row],[内 容]],科目tbl[[内 容]:[番号]],3,TRUE) -> 支出 | E82: 税金 | F82: 摘要を記載する 254 | G82: 426
A83: 79 | B83: 2018-06-29 | C83: =VLOOKUP(入出金tbl[[#This Row],[内 容]],科目tbl[[内 容]:[番号]],2,TRUE) -> 経常外収支 | D83: =VLOOKUP(入出金tbl[[#This Row],[内 容]],科目tbl[[内 容]:[番号]],3,TRUE) -> 支出 | E83: 役員賞与 | F83: 摘要を記載する 330 | G83: 527
A84: 80 | B84: 2018-06-29 | C84: =VLOOKUP(入出金tbl[[#This Row],[内 容]],科目tbl[[内 容]:[番号]],2,TRUE) -> 経常外収支 | D84: =VLOOKUP(入出金tbl[[#This Row],[内 容]],科目tbl[[内 容]:[番号]],3,TRUE) -> 支出 | E84: 配当 | F84: 摘要を記載する 351 | G84: 442
A85: 81 | B85: 2018-06-30 | C85: =VLOOKUP(入出金tbl[[#This Row],[内 容]],科目tbl[[内 容]:[番号]],2,TRUE) -> 経常外収支 | D85: =VLOOKUP(入出金tbl[[#This Row],[内 容]],科目tbl[[内 容]:[番号]],3,TRUE) -> 支出 | E85: 固定資産購入支出 | F85: 摘要を記載する 288 | G85: 1190
A86: 82 | B86: 2018-06-30 | C86: =VLOOKUP(入出金tbl[[#This Row],[内 容]],科目tbl[[内 容]:[番号]],2,TRUE) -> 経常外収支 | D86: =VLOOKUP(入出金tbl[[#This Row],[内 容]],科目tbl[[内 容]:[番号]],3,TRUE) -> 支出 | E86: 定期預金等設定 | F86: 摘要を記載する 330 | G86: 527
A87: 83 | B87: 2018-06-30 | C87: =VLOOKUP(入出金tbl[[#This Row],[内 容]],科目tbl[[内 容]:[番号]],2,TRUE) -> 経常外収支 | D87: =VLOOKUP(入出金tbl[[#This Row],[内 容]],科目tbl[[内 容]:[番号]],3,TRUE) -> 支出 | E87: その他臨時支出 | F87: 摘要を記載する 254 | G87: 426
A88: 84 | B88: 2018-06-30 | C88: =VLOOKUP(入出金tbl[[#This Row],[内 容]],科目tbl[[内 容]:[番号]],2,TRUE) -> 財務収支 | D88: =VLOOKUP(入出金tbl[[#This Row],[内 容]],科目tbl[[内 容]:[番号]],3,TRUE) -> 支出 | E88: 短期借入金返済 | F88: 摘要を記載する 243 | G88: 830
A89: 85 | B89: 2018-07-01 | C89: =VLOOKUP(入出金tbl[[#This Row],[内 容]],科目tbl[[内 容]:[番号]],2,TRUE) -> 財務収支 | D89: =VLOOKUP(入出金tbl[[#This Row],[内 容]],科目tbl[[内 容]:[番号]],3,TRUE) -> 支出 | E89: 長期借入金返済 | F89: 摘要を記載する 458 | G89: 443
A90: 86 | B90: 2018-07-01 | C90: =VLOOKUP(入出金tbl[[#This Row],[内 容]],科目tbl[[内 容]:[番号]],2,TRUE) -> 財務収支 | D90: =VLOOKUP(入出金tbl[[#This Row],[内 容]],科目tbl[[内 容]:[番号]],3,TRUE) -> 支出 | E90: 社長借入金返済 | F90: 摘要を記載する 334 | G90: 452
A91: 87 | B91: 2018-07-02 | C91: =VLOOKUP(入出金tbl[[#This Row],[内 容]],科目tbl[[内 容]:[番号]],2,TRUE) -> 財務収支 | D91: =VLOOKUP(入出金tbl[[#This Row],[内 容]],科目tbl[[内 容]:[番号]],3,TRUE) -> 支出 | E91: その他返済 | F91: 摘要を記載する 316 | G91: 923
A92: 88 | B92: 2018-07-02 | C92: =VLOOKUP(入出金tbl[[#This Row],[内 容]],科目tbl[[内 容]:[番号]],2,TRUE) -> 経常収支 | D92: =VLOOKUP(入出金tbl[[#This Row],[内 容]],科目tbl[[内 容]:[番号]],3,TRUE) -> 収入 | E92: 現金売上 | F92: 摘要を記載する 334 | G92: 452
A93: 89 | B93: 2018-07-03 | C93: =VLOOKUP(入出金tbl[[#This Row],[内 容]],科目tbl[[内 容]:[番号]],2,TRUE) -> 経常収支 | D93: =VLOOKUP(入出金tbl[[#This Row],[内 容]],科目tbl[[内 容]:[番号]],3,TRUE) -> 収入 | E93: 売掛金回収 | F93: 摘要を記載する 316 | G93: 923
A94: 90 | B94: 2018-07-03 | C94: =VLOOKUP(入出金tbl[[#This Row],[内 容]],科目tbl[[内 容]:[番号]],2,TRUE) -> 経常収支 | D94: =VLOOKUP(入出金tbl[[#This Row],[内 容]],科目tbl[[内 容]:[番号]],3,TRUE) -> 収入 | E94: 受取手形回収 | F94: 摘要を記載する 334 | G94: 452
A95: 91 | B95: 2018-07-04 | C95: =VLOOKUP(入出金tbl[[#This Row],[内 容]],科目tbl[[内 容]:[番号]],2,TRUE) -> 経常収支 | D95: =VLOOKUP(入出金tbl[[#This Row],[内 容]],科目tbl[[内 容]:[番号]],3,TRUE) -> 収入 | E95: 手形割引 | F95: 摘要を記載する 316 | G95: 923
A96: 92 | B96: 2018-07-04 | C96: =VLOOKUP(入出金tbl[[#This Row],[内 容]],科目tbl[[内 容]:[番号]],2,TRUE) -> 経常収支 | D96: =VLOOKUP(入出金tbl[[#This Row],[内 容]],科目tbl[[内 容]:[番号]],3,TRUE) -> 収入 | E96: その他収入 | F96: 摘要を記載する 402 | G96: 631
A97: 93 | B97: 2018-07-05 | C97: =VLOOKUP(入出金tbl[[#This Row],[内 容]],科目tbl[[内 容]:[番号]],2,TRUE) -> 経常外収支 | D97: =VLOOKUP(入出金tbl[[#This Row],[内 容]],科目tbl[[内 容]:[番号]],3,TRUE) -> 収入 | E97: 固定資産等売却手取 | F97: 摘要を記載する 353 | G97: 516
A98: 94 | B98: 2018-07-05 | C98: =VLOOKUP(入出金tbl[[#This Row],[内 容]],科目tbl[[内 容]:[番号]],2,TRUE) -> 経常外収支 | D98: =VLOOKUP(入出金tbl[[#This Row],[内 容]],科目tbl[[内 容]:[番号]],3,TRUE) -> 収入 | E98: 定期預金等解約 | F98: 摘要を記載する 443 | G98: 148
A99: 95 | B99: 2018-07-06 | C99: =VLOOKUP(入出金tbl[[#This Row],[内 容]],科目tbl[[内 容]:[番号]],2,TRUE) -> 経常外収支 | D99: =VLOOKUP(入出金tbl[[#This Row],[内 容]],科目tbl[[内 容]:[番号]],3,TRUE) -> 収入 | E99: その他臨時収入 | F99: 摘要を記載する 353 | G99: 516
A100: 96 | B100: 2018-07-06 | C100: =VLOOKUP(入出金tbl[[#This Row],[内 容]],科目tbl[[内 容]:[番号]],2,TRUE) -> 財務収支 | D100: =VLOOKUP(入出金tbl[[#This Row],[内 容]],科目tbl[[内 容]:[番号]],3,TRUE) -> 収入 | E100: 短期借入金調達 | F100: 摘要を記載する 402 | G100: 631
A101: 97 | B101: 2018-07-07 | C101: =VLOOKUP(入出金tbl[[#This Row],[内 容]],科目tbl[[内 容]:[番号]],2,TRUE) -> 財務収支 | D101: =VLOOKUP(入出金tbl[[#This Row],[内 容]],科目tbl[[内 容]:[番号]],3,TRUE) -> 収入 | E101: 長期借入金調達 | F101: 摘要を記載する 353 | G101: 516
A102: 98 | B102: 2018-07-07 | C102: =VLOOKUP(入出金tbl[[#This Row],[内 容]],科目tbl[[内 容]:[番号]],2,TRUE) -> 財務収支 | D102: =VLOOKUP(入出金tbl[[#This Row],[内 容]],科目tbl[[内 容]:[番号]],3,TRUE) -> 収入 | E102: 社長借入金調達 | F102: 摘要を記載する 443 | G102: 148
A103: 99 | B103: 2018-07-08 | C103: =VLOOKUP(入出金tbl[[#This Row],[内 容]],科目tbl[[内 容]:[番号]],2,TRUE) -> 財務収支 | D103: =VLOOKUP(入出金tbl[[#This Row],[内 容]],科目tbl[[内 容]:[番号]],3,TRUE) -> 収入 | E103: その他調達 | F103: 摘要を記載する 376 | G103: 931
A104: 100 | B104: 2018-07-08 | C104: =VLOOKUP(入出金tbl[[#This Row],[内 容]],科目tbl[[内 容]:[番号]],2,TRUE) -> 経常収支 | D104: =VLOOKUP(入出金tbl[[#This Row],[内 容]],科目tbl[[内 容]:[番号]],3,TRUE) -> 支出 | E104: 現金仕入 | F104: 摘要を記載する 402 | G104: 631
A105: 101 | B105: 2018-07-09 | C105: =VLOOKUP(入出金tbl[[#This Row],[内 容]],科目tbl[[内 容]:[番号]],2,TRUE) -> 経常収支 | D105: =VLOOKUP(入出金tbl[[#This Row],[内 容]],科目tbl[[内 容]:[番号]],3,TRUE) -> 支出 | E105: 買掛金支払 | F105: 摘要を記載する 376 | G105: 931
A106: 102 | B106: 2018-07-09 | C106: =VLOOKUP(入出金tbl[[#This Row],[内 容]],科目tbl[[内 容]:[番号]],2,TRUE) -> 経常収支 | D106: =VLOOKUP(入出金tbl[[#This Row],[内 容]],科目tbl[[内 容]:[番号]],3,TRUE) -> 支出 | E106: 手形支払 | F106: 摘要を記載する 443 | G106: 148
A107: 103 | B107: 2018-07-10 | C107: =VLOOKUP(入出金tbl[[#This Row],[内 容]],科目tbl[[内 容]:[番号]],2,TRUE) -> 経常収支 | D107: =VLOOKUP(入出金tbl[[#This Row],[内 容]],科目tbl[[内 容]:[番号]],3,TRUE) -> 支出 | E107: 賃金・給与現金支払 | F107: 摘要を記載する 376 | G107: 931
A108: 104 | B108: 2018-07-10 | C108: =VLOOKUP(入出金tbl[[#This Row],[内 容]],科目tbl[[内 容]:[番号]],2,TRUE) -> 経常収支 | D108: =VLOOKUP(入出金tbl[[#This Row],[内 容]],科目tbl[[内 容]:[番号]],3,TRUE) -> 支出 | E108: 賞与支払い | F108: 摘要を記載する 500 | G108: 348
A109: 105 | B109: 2018-07-11 | C109: =VLOOKUP(入出金tbl[[#This Row],[内 容]],科目tbl[[内 容]:[番号]],2,TRUE) -> 経常収支 | D109: =VLOOKUP(入出金tbl[[#This Row],[内 容]],科目tbl[[内 容]:[番号]],3,TRUE) -> 支出 | E109: 支払利息・割引料 | F109: 摘要を記載する 167 | G109: 1040
A110: 106 | B110: 2018-07-11 | C110: =VLOOKUP(入出金tbl[[#This Row],[内 容]],科目tbl[[内 容]:[番号]],2,TRUE) -> 経常収支 | D110: =VLOOKUP(入出金tbl[[#This Row],[内 容]],科目tbl[[内 容]:[番号]],3,TRUE) -> 支出 | E110: 諸経費現金支払 | F110: 摘要を記載する 500 | G110: 348
A111: 107 | B111: 2018-07-12 | C111: =VLOOKUP(入出金tbl[[#This Row],[内 容]],科目tbl[[内 容]:[番号]],2,TRUE) -> 経常外収支 | D111: =VLOOKUP(入出金tbl[[#This Row],[内 容]],科目tbl[[内 容]:[番号]],3,TRUE) -> 支出 | E111: 税金 | F111: 摘要を記載する 167 | G111: 1040
A112: 108 | B112: 2018-07-12 | C112: =VLOOKUP(入出金tbl[[#This Row],[内 容]],科目tbl[[内 容]:[番号]],2,TRUE) -> 経常外収支 | D112: =VLOOKUP(入出金tbl[[#This Row],[内 容]],科目tbl[[内 容]:[番号]],3,TRUE) -> 支出 | E112: 役員賞与 | F112: 摘要を記載する 500 | G112: 348
A113: 109 | B113: 2018-07-13 | C113: =VLOOKUP(入出金tbl[[#This Row],[内 容]],科目tbl[[内 容]:[番号]],2,TRUE) -> 経常外収支 | D113: =VLOOKUP(入出金tbl[[#This Row],[内 容]],科目tbl[[内 容]:[番号]],3,TRUE) -> 支出 | E113: 配当 | F113: 摘要を記載する 167 | G113: 1040
A114: 110 | B114: 2018-07-13 | C114: =VLOOKUP(入出金tbl[[#This Row],[内 容]],科目tbl[[内 容]:[番号]],2,TRUE) -> 経常外収支 | D114: =VLOOKUP(入出金tbl[[#This Row],[内 容]],科目tbl[[内 容]:[番号]],3,TRUE) -> 支出 | E114: 固定資産購入支出 | F114: 摘要を記載する 438 | G114: 477
A115: 111 | B115: 2018-07-14 | C115: =VLOOKUP(入出金tbl[[#This Row],[内 容]],科目tbl[[内 容]:[番号]],2,TRUE) -> 経常外収支 | D115: =VLOOKUP(入出金tbl[[#This Row],[内 容]],科目tbl[[内 容]:[番号]],3,TRUE) -> 支出 | E115: 定期預金等設定 | F115: 摘要を記載する 185 | G115: 956
A116: 112 | B116: 2018-07-14 | C116: =VLOOKUP(入出金tbl[[#This Row],[内 容]],科目tbl[[内 容]:[番号]],2,TRUE) -> 経常外収支 | D116: =VLOOKUP(入出金tbl[[#This Row],[内 容]],科目tbl[[内 容]:[番号]],3,TRUE) -> 支出 | E116: その他臨時支出 | F116: 摘要を記載する 241 | G116: 419
A117: 113 | B117: 2018-07-15 | C117: =VLOOKUP(入出金tbl[[#This Row],[内 容]],科目tbl[[内 容]:[番号]],2,TRUE) -> 財務収支 | D117: =VLOOKUP(入出金tbl[[#This Row],[内 容]],科目tbl[[内 容]:[番号]],3,TRUE) -> 支出 | E117: 短期借入金返済 | F117: 摘要を記載する 185 | G117: 956
A118: 114 | B118: 2018-07-15 | C118: =VLOOKUP(入出金tbl[[#This Row],[内 容]],科目tbl[[内 容]:[番号]],2,TRUE) -> 財務収支 | D118: =VLOOKUP(入出金tbl[[#This Row],[内 容]],科目tbl[[内 容]:[番号]],3,TRUE) -> 支出 | E118: 長期借入金返済 | F118: 摘要を記載する 438 | G118: 477
A119: 115 | B119: 2018-07-16 | C119: =VLOOKUP(入出金tbl[[#This Row],[内 容]],科目tbl[[内 容]:[番号]],2,TRUE) -> 財務収支 | D119: =VLOOKUP(入出金tbl[[#This Row],[内 容]],科目tbl[[内 容]:[番号]],3,TRUE) -> 支出 | E119: 社長借入金返済 | F119: 摘要を記載する 185 | G119: 956
A120: 116 | B120: 2018-07-16 | C120: =VLOOKUP(入出金tbl[[#This Row],[内 容]],科目tbl[[内 容]:[番号]],2,TRUE) -> 財務収支 | D120: =VLOOKUP(入出金tbl[[#This Row],[内 容]],科目tbl[[内 容]:[番号]],3,TRUE) -> 支出 | E120: その他返済 | F120: 摘要を記載する 241 | G120: 419
A121: 117 | B121: 2018-07-17 | C121: =VLOOKUP(入出金tbl[[#This Row],[内 容]],科目tbl[[内 容]:[番号]],2,TRUE) -> 経常収支 | D121: =VLOOKUP(入出金tbl[[#This Row],[内 容]],科目tbl[[内 容]:[番号]],3,TRUE) -> 収入 | E121: 現金売上 | F121: 摘要を記載する 393 | G121: 292
A122: 118 | B122: 2018-07-17 | C122: =VLOOKUP(入出金tbl[[#This Row],[内 容]],科目tbl[[内 容]:[番号]],2,TRUE) -> 経常収支 | D122: =VLOOKUP(入出金tbl[[#This Row],[内 容]],科目tbl[[内 容]:[番号]],3,TRUE) -> 収入 | E122: 売掛金回収 | F122: 摘要を記載する 438 | G122: 477
A123: 119 | B123: 2018-07-18 | C123: =VLOOKUP(入出金tbl[[#This Row],[内 容]],科目tbl[[内 容]:[番号]],2,TRUE) -> 経常収支 | D123: =VLOOKUP(入出金tbl[[#This Row],[内 容]],科目tbl[[内 容]:[番号]],3,TRUE) -> 収入 | E123: 受取手形回収 | F123: 摘要を記載する 393 | G123: 292
A124: 120 | B124: 2018-07-18 | C124: =VLOOKUP(入出金tbl[[#This Row],[内 容]],科目tbl[[内 容]:[番号]],2,TRUE) -> 経常収支 | D124: =VLOOKUP(入出金tbl[[#This Row],[内 容]],科目tbl[[内 容]:[番号]],3,TRUE) -> 収入 | E124: 手形割引 | F124: 摘要を記載する 241 | G124: 419
A125: 121 | B125: 2018-07-19 | C125: =VLOOKUP(入出金tbl[[#This Row],[内 容]],科目tbl[[内 容]:[番号]],2,TRUE) -> 経常収支 | D125: =VLOOKUP(入出金tbl[[#This Row],[内 容]],科目tbl[[内 容]:[番号]],3,TRUE) -> 収入 | E125: その他収入 | F125: 摘要を記載する 393 | G125: 292
A126: 122 | B126: 2018-07-19 | C126: =VLOOKUP(入出金tbl[[#This Row],[内 容]],科目tbl[[内 容]:[番号]],2,TRUE) -> 経常外収支 | D126: =VLOOKUP(入出金tbl[[#This Row],[内 容]],科目tbl[[内 容]:[番号]],3,TRUE) -> 収入 | E126: 固定資産等売却手取 | F126: 摘要を記載する 101 | G126: 437
A127: 123 | B127: 2018-07-20 | C127: =VLOOKUP(入出金tbl[[#This Row],[内 容]],科目tbl[[内 容]:[番号]],2,TRUE) -> 経常外収支 | D127: =VLOOKUP(入出金tbl[[#This Row],[内 容]],科目tbl[[内 容]:[番号]],3,TRUE) -> 収入 | E127: 定期預金等解約 | F127: 摘要を記載する 234 | G127: 1101
A128: 124 | B128: 2018-07-20 | C128: =VLOOKUP(入出金tbl[[#This Row],[内 容]],科目tbl[[内 容]:[番号]],2,TRUE) -> 経常外収支 | D128: =VLOOKUP(入出金tbl[[#This Row],[内 容]],科目tbl[[内 容]:[番号]],3,TRUE) -> 収入 | E128: その他臨時収入 | F128: 摘要を記載する 101 | G128: 437
A129: 125 | B129: 2018-07-21 | C129: =VLOOKUP(入出金tbl[[#This Row],[内 容]],科目tbl[[内 容]:[番号]],2,TRUE) -> 財務収支 | D129: =VLOOKUP(入出金tbl[[#This Row],[内 容]],科目tbl[[内 容]:[番号]],3,TRUE) -> 収入 | E129: 短期借入金調達 | F129: 摘要を記載する 234 | G129: 1101
A130: 126 | B130: 2018-07-21 | C130: =VLOOKUP(入出金tbl[[#This Row],[内 容]],科目tbl[[内 容]:[番号]],2,TRUE) -> 財務収支 | D130: =VLOOKUP(入出金tbl[[#This Row],[内 容]],科目tbl[[内 容]:[番号]],3,TRUE) -> 収入 | E130: 長期借入金調達 | F130: 摘要を記載する 101 | G130: 437
A131: 127 | B131: 2018-07-22 | C131: =VLOOKUP(入出金tbl[[#This Row],[内 容]],科目tbl[[内 容]:[番号]],2,TRUE) -> 財務収支 | D131: =VLOOKUP(入出金tbl[[#This Row],[内 容]],科目tbl[[内 容]:[番号]],3,TRUE) -> 収入 | E131: 社長借入金調達 | F131: 摘要を記載する 234 | G131: 1101
A132: 128 | B132: 2018-07-22 | C132: =VLOOKUP(入出金tbl[[#This Row],[内 容]],科目tbl[[内 容]:[番号]],2,TRUE) -> 財務収支 | D132: =VLOOKUP(入出金tbl[[#This Row],[内 容]],科目tbl[[内 容]:[番号]],3,TRUE) -> 収入 | E132: その他調達 | F132: 摘要を記載する 386 | G132: 818
A133: 129 | B133: 2018-07-23 | C133: =VLOOKUP(入出金tbl[[#This Row],[内 容]],科目tbl[[内 容]:[番号]],2,TRUE) -> 経常収支 | D133: =VLOOKUP(入出金tbl[[#This Row],[内 容]],科目tbl[[内 容]:[番号]],3,TRUE) -> 支出 | E133: 現金仕入 | F133: 摘要を記載する 203 | G133: 387
A134: 130 | B134: 2018-07-23 | C134: =VLOOKUP(入出金tbl[[#This Row],[内 容]],科目tbl[[内 容]:[番号]],2,TRUE) -> 経常収支 | D134: =VLOOKUP(入出金tbl[[#This Row],[内 容]],科目tbl[[内 容]:[番号]],3,TRUE) -> 支出 | E134: 買掛金支払 | F134: 摘要を記載する 386 | G134: 818
A135: 131 | B135: 2018-07-24 | C135: =VLOOKUP(入出金tbl[[#This Row],[内 容]],科目tbl[[内 容]:[番号]],2,TRUE) -> 経常収支 | D135: =VLOOKUP(入出金tbl[[#This Row],[内 容]],科目tbl[[内 容]:[番号]],3,TRUE) -> 支出 | E135: 手形支払 | F135: 摘要を記載する 203 | G135: 387
A136: 132 | B136: 2018-07-24 | C136: =VLOOKUP(入出金tbl[[#This Row],[内 容]],科目tbl[[内 容]:[番号]],2,TRUE) -> 経常収支 | D136: =VLOOKUP(入出金tbl[[#This Row],[内 容]],科目tbl[[内 容]:[番号]],3,TRUE) -> 支出 | E136: 賃金・給与現金支払 | F136: 摘要を記載する 386 | G136: 818
A137: 133 | B137: 2018-07-25 | C137: =VLOOKUP(入出金tbl[[#This Row],[内 容]],科目tbl[[内 容]:[番号]],2,TRUE) -> 経常収支 | D137: =VLOOKUP(入出金tbl[[#This Row],[内 容]],科目tbl[[内 容]:[番号]],3,TRUE) -> 支出 | E137: 賞与支払い | F137: 摘要を記載する 203 | G137: 387
A138: 134 | B138: 2018-07-25 | C138: =VLOOKUP(入出金tbl[[#This Row],[内 容]],科目tbl[[内 容]:[番号]],2,TRUE) -> 経常収支 | D138: =VLOOKUP(入出金tbl[[#This Row],[内 容]],科目tbl[[内 容]:[番号]],3,TRUE) -> 支出 | E138: 支払利息・割引料 | F138: 摘要を記載する 427 | G138: 276
A139: 135 | B139: 2018-07-26 | C139: =VLOOKUP(入出金tbl[[#This Row],[内 容]],科目tbl[[内 容]:[番号]],2,TRUE) -> 経常収支 | D139: =VLOOKUP(入出金tbl[[#This Row],[内 容]],科目tbl[[内 容]:[番号]],3,TRUE) -> 支出 | E139: 諸経費現金支払 | F139: 摘要を記載する 228 | G139: 1150
A140: 136 | B140: 2018-07-26 | C140: =VLOOKUP(入出金tbl[[#This Row],[内 容]],科目tbl[[内 容]:[番号]],2,TRUE) -> 経常外収支 | D140: =VLOOKUP(入出金tbl[[#This Row],[内 容]],科目tbl[[内 容]:[番号]],3,TRUE) -> 支出 | E140: 税金 | F140: 摘要を記載する 427 | G140: 276
A141: 137 | B141: 2018-07-27 | C141: =VLOOKUP(入出金tbl[[#This Row],[内 容]],科目tbl[[内 容]:[番号]],2,TRUE) -> 経常外収支 | D141: =VLOOKUP(入出金tbl[[#This Row],[内 容]],科目tbl[[内 容]:[番号]],3,TRUE) -> 支出 | E141: 役員賞与 | F141: 摘要を記載する 228 | G141: 1150
A142: 138 | B142: 2018-07-27 | C142: =VLOOKUP(入出金tbl[[#This Row],[内 容]],科目tbl[[内 容]:[番号]],2,TRUE) -> 経常外収支 | D142: =VLOOKUP(入出金tbl[[#This Row],[内 容]],科目tbl[[内 容]:[番号]],3,TRUE) -> 支出 | E142: 配当 | F142: 摘要を記載する 427 | G142: 276
A143: 139 | B143: 2018-07-28 | C143: =VLOOKUP(入出金tbl[[#This Row],[内 容]],科目tbl[[内 容]:[番号]],2,TRUE) -> 経常外収支 | D143: =VLOOKUP(入出金tbl[[#This Row],[内 容]],科目tbl[[内 容]:[番号]],3,TRUE) -> 支出 | E143: 固定資産購入支出 | F143: 摘要を記載する 228 | G143: 1150
A144: 140 | B144: 2018-07-28 | C144: =VLOOKUP(入出金tbl[[#This Row],[内 容]],科目tbl[[内 容]:[番号]],2,TRUE) -> 経常外収支 | D144: =VLOOKUP(入出金tbl[[#This Row],[内 容]],科目tbl[[内 容]:[番号]],3,TRUE) -> 支出 | E144: 定期預金等設定 | F144: 摘要を記載する 079 | G144: 58
A145: 141 | B145: 2018-07-29 | C145: =VLOOKUP(入出金tbl[[#This Row],[内 容]],科目tbl[[内 容]:[番号]],2,TRUE) -> 経常外収支 | D145: =VLOOKUP(入出金tbl[[#This Row],[内 容]],科目tbl[[内 容]:[番号]],3,TRUE) -> 支出 | E145: その他臨時支出 | F145: 摘要を記載する 314 | G145: 1028
A146: 142 | B146: 2018-07-29 | C146: =VLOOKUP(入出金tbl[[#This Row],[内 容]],科目tbl[[内 容]:[番号]],2,TRUE) -> 財務収支 | D146: =VLOOKUP(入出金tbl[[#This Row],[内 容]],科目tbl[[内 容]:[番号]],3,TRUE) -> 支出 | E146: 短期借入金返済 | F146: 摘要を記載する 079 | G146: 58
A147: 143 | B147: 2018-07-30 | C147: =VLOOKUP(入出金tbl[[#This Row],[内 容]],科目tbl[[内 容]:[番号]],2,TRUE) -> 財務収支 | D147: =VLOOKUP(入出金tbl[[#This Row],[内 容]],科目tbl[[内 容]:[番号]],3,TRUE) -> 支出 | E147: 長期借入金返済 | F147: 摘要を記載する 458 | G147: 443
A148: 144 | B148: 2018-07-30 | C148: =VLOOKUP(入出金tbl[[#This Row],[内 容]],科目tbl[[内 容]:[番号]],2,TRUE) -> 財務収支 | D148: =VLOOKUP(入出金tbl[[#This Row],[内 容]],科目tbl[[内 容]:[番号]],3,TRUE) -> 支出 | E148: 社長借入金返済 | F148: 摘要を記載する 314 | G148: 1028
A149: 145 | B149: 2018-07-30 | C149: =VLOOKUP(入出金tbl[[#This Row],[内 容]],科目tbl[[内 容]:[番号]],2,TRUE) -> 財務収支 | D149: =VLOOKUP(入出金tbl[[#This Row],[内 容]],科目tbl[[内 容]:[番号]],3,TRUE) -> 支出 | E149: その他返済 | F149: 摘要を記載する 079 | G149: 58
A150: 146 | B150: 2018-07-31 | C150: =VLOOKUP(入出金tbl[[#This Row],[内 容]],科目tbl[[内 容]:[番号]],2,TRUE) -> 経常収支 | D150: =VLOOKUP(入出金tbl[[#This Row],[内 容]],科目tbl[[内 容]:[番号]],3,TRUE) -> 収入 | E150: 現金売上 | F150: 摘要を記載する 458 | G150: 443
A151: 147 | B151: 2018-07-31 | C151: =VLOOKUP(入出金tbl[[#This Row],[内 容]],科目tbl[[内 容]:[番号]],2,TRUE) -> 経常収支 | D151: =VLOOKUP(入出金tbl[[#This Row],[内 容]],科目tbl[[内 容]:[番号]],3,TRUE) -> 収入 | E151: 売掛金回収 | F151: 摘要を記載する 314 | G151: 1028
A152: 148 | B152: 2018-08-01 | C152: =VLOOKUP(入出金tbl[[#This Row],[内 容]],科目tbl[[内 容]:[番号]],2,TRUE) -> 経常収支 | D152: =VLOOKUP(入出金tbl[[#This Row],[内 容]],科目tbl[[内 容]:[番号]],3,TRUE) -> 収入 | E152: 受取手形回収 | F152: 摘要を記載する 404 | G152: 57
A153: 149 | B153: 2018-08-01 | C153: =VLOOKUP(入出金tbl[[#This Row],[内 容]],科目tbl[[内 容]:[番号]],2,TRUE) -> 経常収支 | D153: =VLOOKUP(入出金tbl[[#This Row],[内 容]],科目tbl[[内 容]:[番号]],3,TRUE) -> 収入 | E153: 手形割引 | F153: 摘要を記載する 308 | G153: 325
A154: 150 | B154: 2018-08-02 | C154: =VLOOKUP(入出金tbl[[#This Row],[内 容]],科目tbl[[内 容]:[番号]],2,TRUE) -> 経常収支 | D154: =VLOOKUP(入出金tbl[[#This Row],[内 容]],科目tbl[[内 容]:[番号]],3,TRUE) -> 収入 | E154: その他収入 | F154: 摘要を記載する 404 | G154: 57
A155: 151 | B155: 2018-08-02 | C155: =VLOOKUP(入出金tbl[[#This Row],[内 容]],科目tbl[[内 容]:[番号]],2,TRUE) -> 経常外収支 | D155: =VLOOKUP(入出金tbl[[#This Row],[内 容]],科目tbl[[内 容]:[番号]],3,TRUE) -> 収入 | E155: 固定資産等売却手取 | F155: 摘要を記載する 237 | G155: 159
A156: 152 | B156: 2018-08-03 | C156: =VLOOKUP(入出金tbl[[#This Row],[内 容]],科目tbl[[内 容]:[番号]],2,TRUE) -> 経常外収支 | D156: =VLOOKUP(入出金tbl[[#This Row],[内 容]],科目tbl[[内 容]:[番号]],3,TRUE) -> 収入 | E156: 定期預金等解約 | F156: 摘要を記載する 354 | G156: 511
A157: 153 | B157: 2018-08-03 | C157: =VLOOKUP(入出金tbl[[#This Row],[内 容]],科目tbl[[内 容]:[番号]],2,TRUE) -> 経常外収支 | D157: =VLOOKUP(入出金tbl[[#This Row],[内 容]],科目tbl[[内 容]:[番号]],3,TRUE) -> 収入 | E157: その他臨時収入 | F157: 摘要を記載する 237 | G157: 159
A158: 154 | B158: 2018-08-04 | C158: =VLOOKUP(入出金tbl[[#This Row],[内 容]],科目tbl[[内 容]:[番号]],2,TRUE) -> 財務収支 | D158: =VLOOKUP(入出金tbl[[#This Row],[内 容]],科目tbl[[内 容]:[番号]],3,TRUE) -> 収入 | E158: 短期借入金調達 | F158: 摘要を記載する 354 | G158: 511
A159: 155 | B159: 2018-08-04 | C159: =VLOOKUP(入出金tbl[[#This Row],[内 容]],科目tbl[[内 容]:[番号]],2,TRUE) -> 財務収支 | D159: =VLOOKUP(入出金tbl[[#This Row],[内 容]],科目tbl[[内 容]:[番号]],3,TRUE) -> 収入 | E159: 長期借入金調達 | F159: 摘要を記載する 237 | G159: 159
A160: 156 | B160: 2018-08-05 | C160: =VLOOKUP(入出金tbl[[#This Row],[内 容]],科目tbl[[内 容]:[番号]],2,TRUE) -> 財務収支 | D160: =VLOOKUP(入出金tbl[[#This Row],[内 容]],科目tbl[[内 容]:[番号]],3,TRUE) -> 収入 | E160: 社長借入金調達 | F160: 摘要を記載する 354 | G160: 511
A161: 157 | B161: 2018-08-05 | C161: =VLOOKUP(入出金tbl[[#This Row],[内 容]],科目tbl[[内 容]:[番号]],2,TRUE) -> 財務収支 | D161: =VLOOKUP(入出金tbl[[#This Row],[内 容]],科目tbl[[内 容]:[番号]],3,TRUE) -> 収入 | E161: その他調達 | F161: 摘要を記載する 099 | G161: 397
A162: 158 | B162: 2018-08-06 | C162: =VLOOKUP(入出金tbl[[#This Row],[内 容]],科目tbl[[内 容]:[番号]],2,TRUE) -> 経常収支 | D162: =VLOOKUP(入出金tbl[[#This Row],[内 容]],科目tbl[[内 容]:[番号]],3,TRUE) -> 支出 | E162: 現金仕入 | F162: 摘要を記載する 507 | G162: 422
A163: 159 | B163: 2018-08-06 | C163: =VLOOKUP(入出金tbl[[#This Row],[内 容]],科目tbl[[内 容]:[番号]],2,TRUE) -> 経常収支 | D163: =VLOOKUP(入出金tbl[[#This Row],[内 容]],科目tbl[[内 容]:[番号]],3,TRUE) -> 支出 | E163: 買掛金支払 | F163: 摘要を記載する 099 | G163: 397
A164: 160 | B164: 2018-08-07 | C164: =VLOOKUP(入出金tbl[[#This Row],[内 容]],科目tbl[[内 容]:[番号]],2,TRUE) -> 経常収支 | D164: =VLOOKUP(入出金tbl[[#This Row],[内 容]],科目tbl[[内 容]:[番号]],3,TRUE) -> 支出 | E164: 手形支払 | F164: 摘要を記載する 507 | G164: 422
A165: 161 | B165: 2018-08-07 | C165: =VLOOKUP(入出金tbl[[#This Row],[内 容]],科目tbl[[内 容]:[番号]],2,TRUE) -> 経常収支 | D165: =VLOOKUP(入出金tbl[[#This Row],[内 容]],科目tbl[[内 容]:[番号]],3,TRUE) -> 支出 | E165: 賃金・給与現金支払 | F165: 摘要を記載する 099 | G165: 397
A166: 162 | B166: 2018-08-08 | C166: =VLOOKUP(入出金tbl[[#This Row],[内 容]],科目tbl[[内 容]:[番号]],2,TRUE) -> 経常収支 | D166: =VLOOKUP(入出金tbl[[#This Row],[内 容]],科目tbl[[内 容]:[番号]],3,TRUE) -> 支出 | E166: 賞与支払い | F166: 摘要を記載する 507 | G166: 422
A167: 163 | B167: 2018-08-08 | C167: =VLOOKUP(入出金tbl[[#This Row],[内 容]],科目tbl[[内 容]:[番号]],2,TRUE) -> 経常収支 | D167: =VLOOKUP(入出金tbl[[#This Row],[内 容]],科目tbl[[内 容]:[番号]],3,TRUE) -> 支出 | E167: 支払利息・割引料 | F167: 摘要を記載する 387 | G167: 545
A168: 164 | B168: 2018-08-09 | C168: =VLOOKUP(入出金tbl[[#This Row],[内 容]],科目tbl[[内 容]:[番号]],2,TRUE) -> 経常収支 | D168: =VLOOKUP(入出金tbl[[#This Row],[内 容]],科目tbl[[内 容]:[番号]],3,TRUE) -> 支出 | E168: 諸経費現金支払 | F168: 摘要を記載する 239 | G168: 160
A169: 165 | B169: 2018-08-09 | C169: =VLOOKUP(入出金tbl[[#This Row],[内 容]],科目tbl[[内 容]:[番号]],2,TRUE) -> 経常外収支 | D169: =VLOOKUP(入出金tbl[[#This Row],[内 容]],科目tbl[[内 容]:[番号]],3,TRUE) -> 支出 | E169: 税金 | F169: 摘要を記載する 387 | G169: 545
A170: 166 | B170: 2018-08-10 | C170: =VLOOKUP(入出金tbl[[#This Row],[内 容]],科目tbl[[内 容]:[番号]],2,TRUE) -> 経常外収支 | D170: =VLOOKUP(入出金tbl[[#This Row],[内 容]],科目tbl[[内 容]:[番号]],3,TRUE) -> 支出 | E170: 役員賞与 | F170: 摘要を記載する 239 | G170: 160
A171: 167 | B171: 2018-08-10 | C171: =VLOOKUP(入出金tbl[[#This Row],[内 容]],科目tbl[[内 容]:[番号]],2,TRUE) -> 経常外収支 | D171: =VLOOKUP(入出金tbl[[#This Row],[内 容]],科目tbl[[内 容]:[番号]],3,TRUE) -> 支出 | E171: 配当 | F171: 摘要を記載する 387 | G171: 545
A172: 168 | B172: 2018-08-11 | C172: =VLOOKUP(入出金tbl[[#This Row],[内 容]],科目tbl[[内 容]:[番号]],2,TRUE) -> 経常外収支 | D172: =VLOOKUP(入出金tbl[[#This Row],[内 容]],科目tbl[[内 容]:[番号]],3,TRUE) -> 支出 | E172: 固定資産購入支出 | F172: 摘要を記載する 239 | G172: 160
A173: 169 | B173: 2018-08-11 | C173: =VLOOKUP(入出金tbl[[#This Row],[内 容]],科目tbl[[内 容]:[番号]],2,TRUE) -> 経常外収支 | D173: =VLOOKUP(入出金tbl[[#This Row],[内 容]],科目tbl[[内 容]:[番号]],3,TRUE) -> 支出 | E173: 定期預金等設定 | F173: 摘要を記載する 216 | G173: 610
A174: 170 | B174: 2018-08-12 | C174: =VLOOKUP(入出金tbl[[#This Row],[内 容]],科目tbl[[内 容]:[番号]],2,TRUE) -> 経常外収支 | D174: =VLOOKUP(入出金tbl[[#This Row],[内 容]],科目tbl[[内 容]:[番号]],3,TRUE) -> 支出 | E174: その他臨時支出 | F174: 摘要を記載する 168 | G174: 813
A175: 171 | B175: 2018-08-12 | C175: =VLOOKUP(入出金tbl[[#This Row],[内 容]],科目tbl[[内 容]:[番号]],2,TRUE) -> 財務収支 | D175: =VLOOKUP(入出金tbl[[#This Row],[内 容]],科目tbl[[内 容]:[番号]],3,TRUE) -> 支出 | E175: 短期借入金返済 | F175: 摘要を記載する 216 | G175: 610
A176: 172 | B176: 2018-08-13 | C176: =VLOOKUP(入出金tbl[[#This Row],[内 容]],科目tbl[[内 容]:[番号]],2,TRUE) -> 財務収支 | D176: =VLOOKUP(入出金tbl[[#This Row],[内 容]],科目tbl[[内 容]:[番号]],3,TRUE) -> 支出 | E176: 長期借入金返済 | F176: 摘要を記載する 168 | G176: 813
A177: 173 | B177: 2018-08-13 | C177: =VLOOKUP(入出金tbl[[#This Row],[内 容]],科目tbl[[内 容]:[番号]],2,TRUE) -> 財務収支 | D177: =VLOOKUP(入出金tbl[[#This Row],[内 容]],科目tbl[[内 容]:[番号]],3,TRUE) -> 支出 | E177: 社長借入金返済 | F177: 摘要を記載する 216 | G177: 610
A178: 174 | B178: 2018-08-14 | C178: =VLOOKUP(入出金tbl[[#This Row],[内 容]],科目tbl[[内 容]:[番号]],2,TRUE) -> 財務収支 | D178: =VLOOKUP(入出金tbl[[#This Row],[内 容]],科目tbl[[内 容]:[番号]],3,TRUE) -> 支出 | E178: その他返済 | F178: 摘要を記載する 168 | G178: 813
A179: 175 | B179: 2018-08-14 | C179: =VLOOKUP(入出金tbl[[#This Row],[内 容]],科目tbl[[内 容]:[番号]],2,TRUE) -> 経常収支 | D179: =VLOOKUP(入出金tbl[[#This Row],[内 容]],科目tbl[[内 容]:[番号]],3,TRUE) -> 収入 | E179: 現金売上 | F179: 摘要を記載する 359 | G179: 295
A180: 176 | B180: 2018-08-15 | C180: =VLOOKUP(入出金tbl[[#This Row],[内 容]],科目tbl[[内 容]:[番号]],2,TRUE) -> 経常収支 | D180: =VLOOKUP(入出金tbl[[#This Row],[内 容]],科目tbl[[内 容]:[番号]],3,TRUE) -> 収入 | E180: 売掛金回収 | F180: 摘要を記載する 362 | G180: 597
A181: 177 | B181: 2018-08-15 | C181: =VLOOKUP(入出金tbl[[#This Row],[内 容]],科目tbl[[内 容]:[番号]],2,TRUE) -> 経常収支 | D181: =VLOOKUP(入出金tbl[[#This Row],[内 容]],科目tbl[[内 容]:[番号]],3,TRUE) -> 収入 | E181: 受取手形回収 | F181: 摘要を記載する 359 | G181: 295
A182: 178 | B182: 2018-08-16 | C182: =VLOOKUP(入出金tbl[[#This Row],[内 容]],科目tbl[[内 容]:[番号]],2,TRUE) -> 経常収支 | D182: =VLOOKUP(入出金tbl[[#This Row],[内 容]],科目tbl[[内 容]:[番号]],3,TRUE) -> 収入 | E182: 手形割引 | F182: 摘要を記載する 362 | G182: 597
A183: 179 | B183: 2018-08-16 | C183: =VLOOKUP(入出金tbl[[#This Row],[内 容]],科目tbl[[内 容]:[番号]],2,TRUE) -> 経常収支 | D183: =VLOOKUP(入出金tbl[[#This Row],[内 容]],科目tbl[[内 容]:[番号]],3,TRUE) -> 収入 | E183: その他収入 | F183: 摘要を記載する 359 | G183: 295
A184: 180 | B184: 2018-08-17 | C184: =VLOOKUP(入出金tbl[[#This Row],[内 容]],科目tbl[[内 容]:[番号]],2,TRUE) -> 経常外収支 | D184: =VLOOKUP(入出金tbl[[#This Row],[内 容]],科目tbl[[内 容]:[番号]],3,TRUE) -> 収入 | E184: 固定資産等売却手取 | F184: 摘要を記載する 362 | G184: 597
A185: 181 | B185: 2018-08-17 | C185: =VLOOKUP(入出金tbl[[#This Row],[内 容]],科目tbl[[内 容]:[番号]],2,TRUE) -> 経常外収支 | D185: =VLOOKUP(入出金tbl[[#This Row],[内 容]],科目tbl[[内 容]:[番号]],3,TRUE) -> 収入 | E185: 定期預金等解約 | F185: 摘要を記載する 160 | G185: 927
A186: 182 | B186: 2018-08-18 | C186: =VLOOKUP(入出金tbl[[#This Row],[内 容]],科目tbl[[内 容]:[番号]],2,TRUE) -> 経常外収支 | D186: =VLOOKUP(入出金tbl[[#This Row],[内 容]],科目tbl[[内 容]:[番号]],3,TRUE) -> 収入 | E186: その他臨時収入 | F186: 摘要を記載する 454 | G186: 1168
A187: 183 | B187: 2018-08-18 | C187: =VLOOKUP(入出金tbl[[#This Row],[内 容]],科目tbl[[内 容]:[番号]],2,TRUE) -> 財務収支 | D187: =VLOOKUP(入出金tbl[[#This Row],[内 容]],科目tbl[[内 容]:[番号]],3,TRUE) -> 収入 | E187: 短期借入金調達 | F187: 摘要を記載する 160 | G187: 927
A188: 184 | B188: 2018-08-19 | C188: =VLOOKUP(入出金tbl[[#This Row],[内 容]],科目tbl[[内 容]:[番号]],2,TRUE) -> 財務収支 | D188: =VLOOKUP(入出金tbl[[#This Row],[内 容]],科目tbl[[内 容]:[番号]],3,TRUE) -> 収入 | E188: 長期借入金調達 | F188: 摘要を記載する 454 | G188: 1168
A189: 185 | B189: 2018-08-19 | C189: =VLOOKUP(入出金tbl[[#This Row],[内 容]],科目tbl[[内 容]:[番号]],2,TRUE) -> 財務収支 | D189: =VLOOKUP(入出金tbl[[#This Row],[内 容]],科目tbl[[内 容]:[番号]],3,TRUE) -> 収入 | E189: 社長借入金調達 | F189: 摘要を記載する 160 | G189: 927
A190: 186 | B190: 2018-08-20 | C190: =VLOOKUP(入出金tbl[[#This Row],[内 容]],科目tbl[[内 容]:[番号]],2,TRUE) -> 財務収支 | D190: =VLOOKUP(入出金tbl[[#This Row],[内 容]],科目tbl[[内 容]:[番号]],3,TRUE) -> 収入 | E190: その他調達 | F190: 摘要を記載する 454 | G190: 1168
A191: 187 | B191: 2018-08-20 | C191: =VLOOKUP(入出金tbl[[#This Row],[内 容]],科目tbl[[内 容]:[番号]],2,TRUE) -> 経常収支 | D191: =VLOOKUP(入出金tbl[[#This Row],[内 容]],科目tbl[[内 容]:[番号]],3,TRUE) -> 支出 | E191: 現金仕入 | F191: 摘要を記載する 245 | G191: 363
A192: 188 | B192: 2018-08-21 | C192: =VLOOKUP(入出金tbl[[#This Row],[内 容]],科目tbl[[内 容]:[番号]],2,TRUE) -> 経常収支 | D192: =VLOOKUP(入出金tbl[[#This Row],[内 容]],科目tbl[[内 容]:[番号]],3,TRUE) -> 支出 | E192: 買掛金支払 | F192: 摘要を記載する 207 | G192: 553
A193: 189 | B193: 2018-08-21 | C193: =VLOOKUP(入出金tbl[[#This Row],[内 容]],科目tbl[[内 容]:[番号]],2,TRUE) -> 経常収支 | D193: =VLOOKUP(入出金tbl[[#This Row],[内 容]],科目tbl[[内 容]:[番号]],3,TRUE) -> 支出 | E193: 手形支払 | F193: 摘要を記載する 245 | G193: 363
A194: 190 | B194: 2018-08-22 | C194: =VLOOKUP(入出金tbl[[#This Row],[内 容]],科目tbl[[内 容]:[番号]],2,TRUE) -> 経常収支 | D194: =VLOOKUP(入出金tbl[[#This Row],[内 容]],科目tbl[[内 容]:[番号]],3,TRUE) -> 支出 | E194: 賃金・給与現金支払 | F194: 摘要を記載する 207 | G194: 553
A195: 191 | B195: 2018-08-22 | C195: =VLOOKUP(入出金tbl[[#This Row],[内 容]],科目tbl[[内 容]:[番号]],2,TRUE) -> 経常収支 | D195: =VLOOKUP(入出金tbl[[#This Row],[内 容]],科目tbl[[内 容]:[番号]],3,TRUE) -> 支出 | E195: 賞与支払い | F195: 摘要を記載する 245 | G195: 363
A196: 192 | B196: 2018-08-23 | C196: =VLOOKUP(入出金tbl[[#This Row],[内 容]],科目tbl[[内 容]:[番号]],2,TRUE) -> 経常収支 | D196: =VLOOKUP(入出金tbl[[#This Row],[内 容]],科目tbl[[内 容]:[番号]],3,TRUE) -> 支出 | E196: 支払利息・割引料 | F196: 摘要を記載する 207 | G196: 553
A197: 193 | B197: 2018-08-23 | C197: =VLOOKUP(入出金tbl[[#This Row],[内 容]],科目tbl[[内 容]:[番号]],2,TRUE) -> 経常収支 | D197: =VLOOKUP(入出金tbl[[#This Row],[内 容]],科目tbl[[内 容]:[番号]],3,TRUE) -> 支出 | E197: 諸経費現金支払 | F197: 摘要を記載する 371 | G197: 632
A198: 194 | B198: 2018-08-24 | C198: =VLOOKUP(入出金tbl[[#This Row],[内 容]],科目tbl[[内 容]:[番号]],2,TRUE) -> 経常外収支 | D198: =VLOOKUP(入出金tbl[[#This Row],[内 容]],科目tbl[[内 容]:[番号]],3,TRUE) -> 支出 | E198: 税金 | F198: 摘要を記載する 298 | G198: 1024
A199: 195 | B199: 2018-08-24 | C199: =VLOOKUP(入出金tbl[[#This Row],[内 容]],科目tbl[[内 容]:[番号]],2,TRUE) -> 経常外収支 | D199: =VLOOKUP(入出金tbl[[#This Row],[内 容]],科目tbl[[内 容]:[番号]],3,TRUE) -> 支出 | E199: 役員賞与 | F199: 摘要を記載する 434 | G199: 194
A200: 196 | B200: 2018-08-25 | C200: =VLOOKUP(入出金tbl[[#This Row],[内 容]],科目tbl[[内 容]:[番号]],2,TRUE) -> 経常外収支 | D200: =VLOOKUP(入出金tbl[[#This Row],[内 容]],科目tbl[[内 容]:[番号]],3,TRUE) -> 支出 | E200: 配当 | F200: 摘要を記載する 298 | G200: 1024
A201: 197 | B201: 2018-08-25 | C201: =VLOOKUP(入出金tbl[[#This Row],[内 容]],科目tbl[[内 容]:[番号]],2,TRUE) -> 経常外収支 | D201: =VLOOKUP(入出金tbl[[#This Row],[内 容]],科目tbl[[内 容]:[番号]],3,TRUE) -> 支出 | E201: 固定資産購入支出 | F201: 摘要を記載する 371 | G201: 632
... 2064 more rows

Sheet 使い方
B2: [使い方]
B3: （初めて使う場合）
B4: ・「初期設定」フォームが開きます。事業所名と決算期を入力し、登録してください。
B5: ・登録された事業所名は、各シートで参照されます。
B6: ・「初期設定」フォームはその後開くことができません。修正できないので、ご注意ください。
B7: ・登録された事業所名と決算期は他のシートでも修正できませんので、ご注意ください。
B8: ※他社にこのファイルを譲渡する場合、事業所名もそのままになりますのでご注意ください。
B10: ・テストデータが入力されていますので、各シートのデータを参考にしてください。
B11: ・メニューから他のシートへはボタンで切り替わりますが、他のシートからは画面下部のシートタブで
B12: 切り替えてください。
B13: ・日繰り表は自動的に開いた日で調整されます。テストデータに該当日が無いときは繰越残高でエラーが生じますが、
B14: 誤りではありません。
B16: （データの初期化）
B17: ・表示期間等の設定
B18: ① | C18: 資金繰り表シートの左上に集計する月初めの日付を入力してください。
B19: ② | C19: 集計開始付の前月からの繰越額を入力してください。
B20: ③ | C20: 勘定科目を編集してください。 | G20: の色のセルが編集可能です。
B21: ④ | C21: 勘定科目を変更した場合は、上部の「科目の更新」ボタンを押してください。
C22: ※集計額が大きなものを中心に科目を設定し、稀にしか生じないものはその他勘定を使用してください。
C23: ※入出金データが入力された後でも科目は変更できますが、入出金データで入力された科目はそのままになります。
C24: 適宜、「入出金tbl」で直接修正してください。
C25: ※科目を変更した場合は、「科目の更新」ボタンを押してください。
C26: ※行の追加や削除は行わず、既存のものを修正して使用してください。
B28: ・データのクリア
B29: ① | C29: メニューから「入出金データクリア」ボタンを押してください。
B30: ② | C30: 「すべての入出金データを削除」ボタンを押すと、すべての入出金データをクリアします。
C31: （会計年度の切り替えなど）
B32: ② | C32: 削除する期間をテキストボックスに入力し、「期間を指定して削除」ボタンを押してください。
B34: （使い方）
B35: ・ファイルを開いたとき
B36: ① | C36: メニュー画面が表示されます。各ボタンから切り替えるシートを選ぶか、直接シートタブをクリックし、
C37: 切り替えてください。
B38: ② | C38: 「今日の収支」コーナーは開いた日の収支予定が表示されます。
C39: 開いたときのデータがそのままになりますので、新たに入出金データを編集しても反映されないのでご注意ください。
B40: ③ | C40: 「今日の収支」コーナーの日付が日繰り表で設定された範囲外となった場合は、エラーが表示されることがあります。
B43: ・入出金データの入力
B44: ① | C44: 「入出金tbl」シートに切り替えると、「入出金入力フォーム」が開くので、そこからデータを入力してください。
C45: 入力内容は自動的に「資金繰り表」と「日繰り表」に反映されます。
B47: ・資金繰り表
B48: ① | C48: 入力した月別に集計されるので、資金管理の参考にしてください。
B49: ② | C49: 繰越額残高が合わない場合は、「繰越調整」科目を用意しています。「入出金入力フォーム」から入力してください。
C50: ※繰越調整額が多額になる場合は原因究明し、管理を強化する必要があります。
B51: ③ | C51: 期間を再設定する場合には、繰越残高の再入力も行ってください。
B53: ・日繰り表
C54: 自動的にファイルを開いた月が表示されます。
C55: 前月と翌月を参照したい場合は、ボタンを押してください。
C56: （注意） | D56: 「資金繰り表」で設定された期間以前には遡れません。
D57: 「資金繰り表」で設定された期間を超えた場合はエラーが生じます。
D58: これらの場合は、期間を再設定し、繰越残高を入力し直してください。
C59: 今月ボタンで当月のデータが表示されます。
B61: ・入出金tbl
B62: ① | C62: 「入出金入力フォーム」で入力されたデータが保存されています。
B63: ② | C63: シートを開くたびに「入出金入力フォーム」が開き、入力可能状態になります。
B64: ③ | C64: 行タイトルでオートフィルタが設定されているので、必要に応じてデータを抽出できます。
B65: ④ | C65: データを直接編集するには、「入出金入力フォーム」を閉じてから行ってください。
B66: ⑤ | C66: 同様に、他のシートに移る場合も「入出金入力フォーム」を閉じてください。
B67: ⑥ | C67: データ行は削除できますが、「ナンバーを振り直す」ボタンで振り直してください。
B68: ⑦ | C68: 「経常・財務」列と「収支」列は入力しないでください。
C69: 「内容」列を入力することで自動入力されます。
B71: （全般的なご注意）
B72: ・このソフトではマクロを使用し、行列を直接制御している部分があります。
B73: 行の挿入追加や削除、移動などは避けてください。
B74: ・登録した事業所名は後から修正・削除することができません。
B75: シートに表示されてしまうので、他社への譲渡はお気を付けください。
B76: ・初期設定できるファイル、バージョンアップなどはホームページをご参照ください。
B77: http://www.k-one.work
B79: ・ソフトの作成はOffice 365のExcel最新版で行われています。
B80: Excel2013以降のバージョン以前での動作は保証できません。
B82: ・著作権は中小企業診断士事務所「K-Oneコンサルティング 代表 栗村圭一」に帰属しますが、
B83: 無断の販売目的でない限り、使用していただけます。
B84: ・本ソフトによって使用者に生じたあらゆる損害について、一切の責任を負いません。
B85: あくまでも財務管理の補助としてお使いください。
B86: ・詳細な財務分析や管理についてはK-Oneコンサルティングまたは税理士にお尋ねください。
B88: ・ご質問やエラーのご指摘は以下のメールアドレスまでお願いします。
B89: なお、ご要望に沿えない場合もありますので、予めご了承ください。
B90: info@k-one.work
B91: (クリックすると自動的にメールソフトが起動します。)
